{"text_format":"1","workbook":"xlsx","n_sheets":4,"sheets":["Formato2020 ","Instructivo","Tipo","Eje_Pilar_Prop"],"not_rendered":{"charts":0,"images":1,"macros":1,"external_links":1,"defined_names":14,"comments":2,"pivot_tables":0},"unopened":[],"bounds":{"document_bytes":16777216,"sheet_cells":100000,"rows_first":2000,"rows_last":500,"rows_between":2000,"halvings":0,"cell_chars":16384,"cell_head_chars":4096},"cells_cut":0,"cells_raw":0,"read":"whole","date_system":"1900"}

{"sheet":"Formato2020 ","index":0,"n_rows":288,"n_cols":38,"rows_kept":288,"cut":false,"hidden":false,"merged":[[5,0,5,3],[5,8,5,10],[5,29,5,30],[6,0,6,3],[6,8,6,10],[6,29,6,30],[1,0,1,37],[2,0,2,37],[4,0,4,3],[4,8,4,10],[4,14,4,15],[4,22,4,37],[8,10,9,15],[8,29,8,30],[9,0,9,3],[9,5,9,7],[11,14,11,15],[10,0,10,15],[10,16,10,22],[10,23,10,28],[11,2,11,3],[11,8,11,12],[8,0,8,3],[8,5,8,7],[7,29,7,30],[11,33,11,36],[10,29,10,32],[5,31,5,37],[6,31,6,37],[7,31,7,37],[8,31,8,37],[9,31,9,37],[9,29,9,30],[10,33,10,36]]}
[]
["VEEDURIA DISTRITAL - RENDICION DE CUENTAS DE LA GESTION CONTRACTUAL EN EL DISTRITO CAPITAL (Acuerdo 380 de 2009)"]
["INFORMACION GENERAL DE CONTRATACION ENTIDADES DISTRITALES  -  ENERO 1 A 31 DICIEMBRE DE 2020"]
[]
["1. Entidad",null,null,null,"ALCALDÍA LOCAL DE FONTIBÓN",null,null,"2. Sector","Gobierno"]
["3. Presupuesto Disponible Inversión Directa PREDIS",null,null,null,28901578639,null,null,"5. Presupuesto Disponible Funcionamiento PREDIS",4719357686,null,null,null,null,null,null,null,null,null,null,null,null,null,null,null,null,null,null,null,null,"9. Nombre de quien diligencia el formato"]
["4. Presupuesto Comprometido de Inversión Directa según PREDIS ",null,null,null,26161202354,null,null,"6. Presupuesto Comprometido Funcionamiento según PREDIS",3779433925,null,null,null,null,null,null,null,null,null,null,null,null,null,null,null,null,null,null,null,null,"Cargo",null,"HEIDI VANESSA SARAY GUATAQUIRA"]
[null,null,null,null,null,null,null,null,null,null,null,null,null,null,null,null,null,null,null,null,null,null,null,null,null,null,null,null,null,"Dependencia",null,"DESPACHO"]
["7. Presupuesto Disponible Operación (Régimen Privado)",null,null,null,null,null,null,null,null,null,null,null,null,null,null,null,null,null,null,null,null,null,null,null,null,null,null,null,null,"Teléfono",null,2670114]
["8. Presupuesto Comprometido Operación mediante contratos",null,null,null,null,null,null,null,null,null,null,null,null,null,null,null,null,null,null,null,null,null,null,null,null,null,null,null,null,"Correo Electrónico",null,"heidi.saray@gobiernobogota.gov.co"]
["1- INFORMACION GENERAL",null,null,null,null,null,null,null,null,null,null,null,null,null,null,null,"2- INFORMACION FINANCIERA",null,null,null,null,null,null,"3 - PLAZOS ",null,null,null,null,null,"4. CESION",null,null,null,null,null,null,null,"5. %  Avance y/o cumplimiento"]
[1,2,3,null,4,5,6,7,8,null,null,null,null,9,10,null,11,12,13,14,15,16,17,18,19,20,21,22,23,24,25,26,27,null,null,null,null,29]
["Número Contrato","Año","Proceso Publicado en","Número de proceso contractual \nSECOP","Tipo de contrato ","Modalidad de Selección","Procedimiento o causal","Objeto","Afectación","Plan de Desarrollo Distrital","Número Programa","Equivalencia número de programa","Eje / Pilar / Propósito","Número Proyecto","Número  de Identificación del contratista\n(NIT con digito de verificación)","Nombre del contratista","Valor Inicial del contrato","Número de reducciones","Valor total reducciones \n(En valor negativo)","Número de adiciones","Valor total de adiciones ","Valor Final ","Giros\n(Valor en pesos)","Fecha de suscripción (DD/MM/AAAA)","Fecha de inicio (DD/MM/AAAA)","Fecha de terminación (DD/MM/AAAA)","Plazo en días","Número de prórrogas","Prorroga en días","Número  de Identificación del cesionario\n(NIT con digito de verificación)","Nombre cesionario","Fecha cesión\n(DD/MM/AAAA)","Valor cesión","Celebrado o por iniciar","En Ejecución","Terminado","Liquidado","% Avance y/o Cumplimiento"]
[1,2020,"SECOP II","FDLF-CD-1-2020","Contratos de prestación de servicios","Contratación Directa","Prestación de servicios profesionales y de apoyo a la gestión, o para la ejecución de trabajos artísticos que sólo puedan encomendarse a determinadas personas naturales;","Prestar servicios de apoyo a las actividades operativas y administrativas de la junta administradora local","Inversión","Bogotá Mejor para Todos",45,{"$f":"IF(ISERROR(VLOOKUP(K14,Eje_Pilar_Prop!$C$2:$E$104,2,FALSE)),\" \",VLOOKUP(K14,Eje_Pilar_Prop!$C$2:$E$104,2,FALSE))","v":"Gobernanza e influencia local, regional e internacional"},{"$f":"IF(ISERROR(VLOOKUP(K14,Eje_Pilar_Prop!$C$2:$E$104,3,FALSE)),\" \",VLOOKUP(K14,Eje_Pilar_Prop!$C$2:$E$104,3,FALSE))","v":"Eje Transversal 4 Gobierno Legitimo, Fortalecimiento Local y Eficiencia"},1474,19426466,"RAUL ARMANDO LUQUE RUIZ",9452000,null,null,1,4726000,{"$f":"+Q14+S14+U14","v":14178000},14178000,"2020-02-06","2020-02-07","2020-08-06",120,1,60,null,null,null,null,null,null,"X",null,{"$f":"IF(ISERROR(W14/V14),\"-\",(W14/V14))","v":1}]
[2,2020,"SECOP II","FDLF-CD-2-2020","Contratos de prestación de servicios","Contratación Directa","Prestación de servicios profesionales y de apoyo a la gestión, o para la ejecución de trabajos artísticos que sólo puedan encomendarse a determinadas personas naturales;","Prestar servicios para Apoyar y dar soporte técnico al administrador y usuario final de la red de sistemas y tecnología e información de la Alcaldía Local","Inversión","Bogotá Mejor para Todos",45,{"$f":"IF(ISERROR(VLOOKUP(K15,Eje_Pilar_Prop!$C$2:$E$104,2,FALSE)),\" \",VLOOKUP(K15,Eje_Pilar_Prop!$C$2:$E$104,2,FALSE))","v":"Gobernanza e influencia local, regional e internacional"},{"$f":"IF(ISERROR(VLOOKUP(K15,Eje_Pilar_Prop!$C$2:$E$104,3,FALSE)),\" \",VLOOKUP(K15,Eje_Pilar_Prop!$C$2:$E$104,3,FALSE))","v":"Eje Transversal 4 Gobierno Legitimo, Fortalecimiento Local y Eficiencia"},1474,1015410053,"JUAN DAVID RAMIREZ FARIAS",15400000,null,null,1,7700000,23100000,23100000,"2020-02-17","2020-02-18","2020-08-17",120,1,60,null,null,null,null,null,null,"X",null,1]
[3,2020,"SECOP II","FDLF-CD-3-2020","Contratos de prestación de servicios","Contratación Directa","Prestación de servicios profesionales y de apoyo a la gestión, o para la ejecución de trabajos artísticos que sólo puedan encomendarse a determinadas personas naturales;","Prestar servicios para Apoyar técnicamente a los responsables e integrantes de los procesos en la implementación de herramientas de gestión, siguiendo los lineamientos metodológicos establecidos por la Oficina Asesora de Planeación de la Secretaría Distrital de Gobierno","Inversión","Bogotá Mejor para Todos",45,{"$f":"IF(ISERROR(VLOOKUP(K16,Eje_Pilar_Prop!$C$2:$E$104,2,FALSE)),\" \",VLOOKUP(K16,Eje_Pilar_Prop!$C$2:$E$104,2,FALSE))","v":"Gobernanza e influencia local, regional e internacional"},{"$f":"IF(ISERROR(VLOOKUP(K16,Eje_Pilar_Prop!$C$2:$E$104,3,FALSE)),\" \",VLOOKUP(K16,Eje_Pilar_Prop!$C$2:$E$104,3,FALSE))","v":"Eje Transversal 4 Gobierno Legitimo, Fortalecimiento Local y Eficiencia"},1474,1026555099,"MANUEL GUILLERMO FRANCISCO AMOROCHO B",22612000,null,null,0,0,22612000,22612000,"2020-02-18","2020-02-20","2020-06-19",120,0,0,52521699,"JENIFFER ZAPATA VILLALOBOS","2020-03-17",17524300,null,null,"X",null,1]
[4,2020,"SECOP II","FDLF-CD-04-2020","Contratos de prestación de servicios","Contratación Directa","Prestación de servicios profesionales y de apoyo a la gestión, o para la ejecución de trabajos artísticos que sólo puedan encomendarse a determinadas personas naturales;","Prestar servicios profesionales para apoyar al Alcalde Local de Fontibón en la formulación, seguimiento e implementación de la estrategia local para la terminación jurídica de las actuaciones administrativas que cursan en la Alcaldía Local","Inversión","Bogotá Mejor para Todos",45,{"$f":"IF(ISERROR(VLOOKUP(K17,Eje_Pilar_Prop!$C$2:$E$104,2,FALSE)),\" \",VLOOKUP(K17,Eje_Pilar_Prop!$C$2:$E$104,2,FALSE))","v":"Gobernanza e influencia local, regional e internacional"},{"$f":"IF(ISERROR(VLOOKUP(K17,Eje_Pilar_Prop!$C$2:$E$104,3,FALSE)),\" \",VLOOKUP(K17,Eje_Pilar_Prop!$C$2:$E$104,3,FALSE))","v":"Eje Transversal 4 Gobierno Legitimo, Fortalecimiento Local y Eficiencia"},1474,80203157,"HAROLD RAUL MOLANO CERQUERA",26336000,null,null,1,13168000,39504000,39504000,"2020-02-18","2020-02-19","2020-08-18",120,1,60,null,null,null,null,null,null,"X",null,1]
[5,2020,"SECOP II","FDLF-CD-05-2020","Contratos de prestación de servicios","Contratación Directa","Prestación de servicios profesionales y de apoyo a la gestión, o para la ejecución de trabajos artísticos que sólo puedan encomendarse a determinadas personas naturales;","Prestar servicios como auxiliar que apoye la digitalización y subida al aplicativo SI ACTUA para el área de Gestión Policiva de la Alcaldía Local de Fontibón","Inversión","Bogotá Mejor para Todos",45,{"$f":"IF(ISERROR(VLOOKUP(K18,Eje_Pilar_Prop!$C$2:$E$104,2,FALSE)),\" \",VLOOKUP(K18,Eje_Pilar_Prop!$C$2:$E$104,2,FALSE))","v":"Gobernanza e influencia local, regional e internacional"},{"$f":"IF(ISERROR(VLOOKUP(K18,Eje_Pilar_Prop!$C$2:$E$104,3,FALSE)),\" \",VLOOKUP(K18,Eje_Pilar_Prop!$C$2:$E$104,3,FALSE))","v":"Eje Transversal 4 Gobierno Legitimo, Fortalecimiento Local y Eficiencia"},1474,1026585989,"MARIA ALEJANDRA QUINTERO MARTINEZ",9452000,null,null,1,4726000,14178000,14178000,"2020-02-28","2020-03-02","2020-09-04",120,1,60,null,null,null,null,null,null,"X",null,1]
[6,2020,"SECOP II","FDLF-CD-6-2020","Contratos de prestación de servicios","Contratación Directa","Prestación de servicios profesionales y de apoyo a la gestión, o para la ejecución de trabajos artísticos que sólo puedan encomendarse a determinadas personas naturales;","Prestar servicios para apoyar al equipo de prensa y comunicaciones de la alcaldía local mediante el registro, la atención, y la presentación de fotografía de los acontecimientos hechos y eventos de la alcaldía local en los medios de comunicación especialmente escritos digitales y audiovisuales.","Inversión","Bogotá Mejor para Todos",45,{"$f":"IF(ISERROR(VLOOKUP(K19,Eje_Pilar_Prop!$C$2:$E$104,2,FALSE)),\" \",VLOOKUP(K19,Eje_Pilar_Prop!$C$2:$E$104,2,FALSE))","v":"Gobernanza e influencia local, regional e internacional"},{"$f":"IF(ISERROR(VLOOKUP(K19,Eje_Pilar_Prop!$C$2:$E$104,3,FALSE)),\" \",VLOOKUP(K19,Eje_Pilar_Prop!$C$2:$E$104,3,FALSE))","v":"Eje Transversal 4 Gobierno Legitimo, Fortalecimiento Local y Eficiencia"},1474,79654994,"JORGE ENRIQUE CAÑON UBAQUE",19132000,null,null,0,0,19132000,18813133,"2020-03-02","2020-03-03","2020-07-02",120,0,0,null,null,null,null,null,null,"X",null,0.98333331591051643]
[7,2020,"SECOP II","FDLF-CD-7-2020","Contratos de prestación de servicios","Contratación Directa","Prestación de servicios profesionales y de apoyo a la gestión, o para la ejecución de trabajos artísticos que sólo puedan encomendarse a determinadas personas naturales;","Prestar servicios profesionales para realizar el control seguimiento actualización y análisis del banco de programas y proyectos, así como también los instrumentos de la planeación y gestión del desarrollo local de Fontibon. ","Inversión","Bogotá Mejor para Todos",45,{"$f":"IF(ISERROR(VLOOKUP(K20,Eje_Pilar_Prop!$C$2:$E$104,2,FALSE)),\" \",VLOOKUP(K20,Eje_Pilar_Prop!$C$2:$E$104,2,FALSE))","v":"Gobernanza e influencia local, regional e internacional"},{"$f":"IF(ISERROR(VLOOKUP(K20,Eje_Pilar_Prop!$C$2:$E$104,3,FALSE)),\" \",VLOOKUP(K20,Eje_Pilar_Prop!$C$2:$E$104,3,FALSE))","v":"Eje Transversal 4 Gobierno Legitimo, Fortalecimiento Local y Eficiencia"},1474,1015402473,"CARLOS ANDRES DUQUE NIÑO",16800000,null,null,0,0,16800000,15540000,"2020-03-02","2020-03-10","2020-07-09",120,0,0,null,null,null,null,null,null,"X",null,0.92500000000000004]
[8,2020,"SECOP II","FDLF-CD-8-2020","Contratos de prestación de servicios","Contratación Directa","Prestación de servicios profesionales y de apoyo a la gestión, o para la ejecución de trabajos artísticos que sólo puedan encomendarse a determinadas personas naturales;","Servicios profesionales parta apoyar el área de gestión de desarrollo local orientado a los temas de recreación y deporte  enfocados en la creación e implementación de escuelas de formación deportiva.","Inversión","Bogotá Mejor para Todos",45,{"$f":"IF(ISERROR(VLOOKUP(K21,Eje_Pilar_Prop!$C$2:$E$104,2,FALSE)),\" \",VLOOKUP(K21,Eje_Pilar_Prop!$C$2:$E$104,2,FALSE))","v":"Gobernanza e influencia local, regional e internacional"},{"$f":"IF(ISERROR(VLOOKUP(K21,Eje_Pilar_Prop!$C$2:$E$104,3,FALSE)),\" \",VLOOKUP(K21,Eje_Pilar_Prop!$C$2:$E$104,3,FALSE))","v":"Eje Transversal 4 Gobierno Legitimo, Fortalecimiento Local y Eficiencia"},1458,1014185339,"LUISA FERNANDA LEON LUQUE",19132000,null,null,1,9566000,28698000,28379133,"2020-03-02","2020-03-03","2020-09-02",120,1,60,null,null,null,null,null,null,"X",null,0.98888887727367758]
[9,2020,"SECOP II","FDLF-CD-09-2020","Contratos de prestación de servicios","Contratación Directa","Prestación de servicios profesionales y de apoyo a la gestión, o para la ejecución de trabajos artísticos que sólo puedan encomendarse a determinadas personas naturales;","Prestar servicios para apoyar administrativa y asistencialmente al área de gestión policiva de la Alcaldia local de Fontibon.","Inversión","Bogotá Mejor para Todos",45,{"$f":"IF(ISERROR(VLOOKUP(K22,Eje_Pilar_Prop!$C$2:$E$104,2,FALSE)),\" \",VLOOKUP(K22,Eje_Pilar_Prop!$C$2:$E$104,2,FALSE))","v":"Gobernanza e influencia local, regional e internacional"},{"$f":"IF(ISERROR(VLOOKUP(K22,Eje_Pilar_Prop!$C$2:$E$104,3,FALSE)),\" \",VLOOKUP(K22,Eje_Pilar_Prop!$C$2:$E$104,3,FALSE))","v":"Eje Transversal 4 Gobierno Legitimo, Fortalecimiento Local y Eficiencia"},1474,51874701,"CLAUDIA TERESA MORENO BOBADILLA",9452000,null,null,1,4726000,14178000,14178000,"2020-03-02","2020-03-10","2020-09-09",120,1,60,null,null,null,null,null,null,"X",null,1]
[10,2020,"SECOP II","FDLF-CD-10-2020","Contratos de prestación de servicios","Contratación Directa","Prestación de servicios profesionales y de apoyo a la gestión, o para la ejecución de trabajos artísticos que sólo puedan encomendarse a determinadas personas naturales;","Prestar servicios para Apoyar técnicamente las distintas etapas de los procesos de copetencia de las inspecciones de Plocia de la Localidad.Segun reparto","Inversión","Bogotá Mejor para Todos",45,{"$f":"IF(ISERROR(VLOOKUP(K23,Eje_Pilar_Prop!$C$2:$E$104,2,FALSE)),\" \",VLOOKUP(K23,Eje_Pilar_Prop!$C$2:$E$104,2,FALSE))","v":"Gobernanza e influencia local, regional e internacional"},{"$f":"IF(ISERROR(VLOOKUP(K23,Eje_Pilar_Prop!$C$2:$E$104,3,FALSE)),\" \",VLOOKUP(K23,Eje_Pilar_Prop!$C$2:$E$104,3,FALSE))","v":"Eje Transversal 4 Gobierno Legitimo, Fortalecimiento Local y Eficiencia"},1474,19374118,"JUAN BAUTISTA VANEGAS QUINTERO",22612000,null,null,1,11306000,33918000,33918000,"2020-03-09","2020-03-16","2020-09-15",120,1,60,null,null,null,null,null,null,"X",null,1]
[11,2020,"SECOP II","FDLF-CD-11-2020","Contratos de prestación de servicios","Contratación Directa","Prestación de servicios profesionales y de apoyo a la gestión, o para la ejecución de trabajos artísticos que sólo puedan encomendarse a determinadas personas naturales;","Servicios profesionales parta apoyar el área de gestión de desarrollo local orientado a los temas deportivos y recreativos.","Inversión","Bogotá Mejor para Todos",45,{"$f":"IF(ISERROR(VLOOKUP(K24,Eje_Pilar_Prop!$C$2:$E$104,2,FALSE)),\" \",VLOOKUP(K24,Eje_Pilar_Prop!$C$2:$E$104,2,FALSE))","v":"Gobernanza e influencia local, regional e internacional"},{"$f":"IF(ISERROR(VLOOKUP(K24,Eje_Pilar_Prop!$C$2:$E$104,3,FALSE)),\" \",VLOOKUP(K24,Eje_Pilar_Prop!$C$2:$E$104,3,FALSE))","v":"Eje Transversal 4 Gobierno Legitimo, Fortalecimiento Local y Eficiencia"},1458,36065900,"ANGELICA MARIA PUENTES AVILA",19132000,null,null,0,0,19132000,19132000,"2020-03-03","2020-03-09","2020-07-08",120,0,0,null,null,null,null,null,null,"X",null,1]
[12,2020,"SECOP II","FDLF-CD-12-2020","Contratos de prestación de servicios","Contratación Directa","Prestación de servicios profesionales y de apoyo a la gestión, o para la ejecución de trabajos artísticos que sólo puedan encomendarse a determinadas personas naturales;","Prestar servicios profesionales para brindar el apoyo al área de gestión del desarrollo local en los temas sociales desarrollados en la localidad de Fontibón.","Inversión","Bogotá Mejor para Todos",45,{"$f":"IF(ISERROR(VLOOKUP(K25,Eje_Pilar_Prop!$C$2:$E$104,2,FALSE)),\" \",VLOOKUP(K25,Eje_Pilar_Prop!$C$2:$E$104,2,FALSE))","v":"Gobernanza e influencia local, regional e internacional"},{"$f":"IF(ISERROR(VLOOKUP(K25,Eje_Pilar_Prop!$C$2:$E$104,3,FALSE)),\" \",VLOOKUP(K25,Eje_Pilar_Prop!$C$2:$E$104,3,FALSE))","v":"Eje Transversal 4 Gobierno Legitimo, Fortalecimiento Local y Eficiencia"},1474,52187970,"ANA PAOLA AMAYA RABE",19132000,null,null,0,0,19132000,19132000,"2020-03-06","2020-03-09","2020-07-08",120,0,0,null,null,null,null,null,null,"X",null,1]
[13,2020,"SECOP II","FDLF-CD-13-2020","Contratos de prestación de servicios","Contratación Directa","Prestación de servicios profesionales y de apoyo a la gestión, o para la ejecución de trabajos artísticos que sólo puedan encomendarse a determinadas personas naturales;","Prestar servicios profesionales especializados para apoyar el área de gestión de desarrollo local en la ejecución del proyecto Fontibon mejor movilidad para todos.","Inversión","Bogotá Mejor para Todos",18,{"$f":"IF(ISERROR(VLOOKUP(K26,Eje_Pilar_Prop!$C$2:$E$104,2,FALSE)),\" \",VLOOKUP(K26,Eje_Pilar_Prop!$C$2:$E$104,2,FALSE))","v":"Mejor movilidad para todos"},{"$f":"IF(ISERROR(VLOOKUP(K26,Eje_Pilar_Prop!$C$2:$E$104,3,FALSE)),\" \",VLOOKUP(K26,Eje_Pilar_Prop!$C$2:$E$104,3,FALSE))","v":"Pilar 2 Democracía Urbana"},1464,1026568535,"DORIS JULIETH MORA DAZA",26336000,null,null,0,0,26336000,24141333,"2020-03-09","2020-03-11","2020-07-10",120,0,0,null,null,null,null,null,null,"X",null,0.91666665400972058]
[14,2020,"SECOP II","FDLF-CD-14-2020","Contratos de prestación de servicios","Contratación Directa","Prestación de servicios profesionales y de apoyo a la gestión, o para la ejecución de trabajos artísticos que sólo puedan encomendarse a determinadas personas naturales;","Prestar servicios para Apoyar juridicamente la ejecución de las acciones requeridas para la depuración de las actuaciones administrativas que cursan en la Alcaldia Local.","Inversión","Bogotá Mejor para Todos",45,{"$f":"IF(ISERROR(VLOOKUP(K27,Eje_Pilar_Prop!$C$2:$E$104,2,FALSE)),\" \",VLOOKUP(K27,Eje_Pilar_Prop!$C$2:$E$104,2,FALSE))","v":"Gobernanza e influencia local, regional e internacional"},{"$f":"IF(ISERROR(VLOOKUP(K27,Eje_Pilar_Prop!$C$2:$E$104,3,FALSE)),\" \",VLOOKUP(K27,Eje_Pilar_Prop!$C$2:$E$104,3,FALSE))","v":"Eje Transversal 4 Gobierno Legitimo, Fortalecimiento Local y Eficiencia"},1474,1031152968,"NATALIA ALEJANDRA SEDANO GARZON",19132000,null,null,0,0,19132000,{"$f":"+R27+T27+V27","v":19132000},"2020-03-06","2020-03-11","2020-07-10",120,0,0,null,null,null,null,null,null,"X",null,1]
[15,2020,"SECOP II","FDLF-CD-15-2020","Contratos de prestación de servicios","Contratación Directa","Prestación de servicios profesionales y de apoyo a la gestión, o para la ejecución de trabajos artísticos que sólo puedan encomendarse a determinadas personas naturales;","Prestar servicios profesionales de apoyo contable en los procesos de causacion, sistematización y registros de información contable.","Inversión","Bogotá Mejor para Todos",45,{"$f":"IF(ISERROR(VLOOKUP(K28,Eje_Pilar_Prop!$C$2:$E$104,2,FALSE)),\" \",VLOOKUP(K28,Eje_Pilar_Prop!$C$2:$E$104,2,FALSE))","v":"Gobernanza e influencia local, regional e internacional"},{"$f":"IF(ISERROR(VLOOKUP(K28,Eje_Pilar_Prop!$C$2:$E$104,3,FALSE)),\" \",VLOOKUP(K28,Eje_Pilar_Prop!$C$2:$E$104,3,FALSE))","v":"Eje Transversal 4 Gobierno Legitimo, Fortalecimiento Local y Eficiencia"},1474,79378493,"ELMAN CIFUENTES CASTAÑEDA",19132000,null,null,1,9566000,28698000,28698000,"2020-03-10","2020-03-13","2020-09-12",120,1,60,null,null,null,null,null,null,"X",null,1]
[16,2020,"SECOP II","FDLF-CD-16-2020","Contratos de prestación de servicios","Contratación Directa","Prestación de servicios profesionales y de apoyo a la gestión, o para la ejecución de trabajos artísticos que sólo puedan encomendarse a determinadas personas naturales;","Prestar servicios profesionales de apoyo contable en los procesos de causacion, sistematización y registros de información contable y a la gestión presupuestal del Fondo de Desarrollo Local.","Inversión","Bogotá Mejor para Todos",45,{"$f":"IF(ISERROR(VLOOKUP(K29,Eje_Pilar_Prop!$C$2:$E$104,2,FALSE)),\" \",VLOOKUP(K29,Eje_Pilar_Prop!$C$2:$E$104,2,FALSE))","v":"Gobernanza e influencia local, regional e internacional"},{"$f":"IF(ISERROR(VLOOKUP(K29,Eje_Pilar_Prop!$C$2:$E$104,3,FALSE)),\" \",VLOOKUP(K29,Eje_Pilar_Prop!$C$2:$E$104,3,FALSE))","v":"Eje Transversal 4 Gobierno Legitimo, Fortalecimiento Local y Eficiencia"},1474,79938920,"JHON FREDY ROA PINTO",19132000,null,null,1,9566000,28698000,28698000,"2020-03-06","2020-03-11","2020-09-10",120,1,60,null,null,null,null,null,null,"X",null,1]
["17",2020,null,null,"Otros","Contratación directa","No aplica","RESOLUCION No 017 DE 2020- POR MEDIO DE LA CUAL SE GARANTIZA EL GASTO Y EL PAGO CORRESPONDIENTE AL PROYECTO NO. 1453 -  FONTIBON INCLUYENTE, DIGNO Y FELIZ PARA PERSONAS MAYORES Y EN CONDICIÓN DE DISCAPACIDAD COMPONENTE: ENTREGA SUBSIDIO ECONOMICO TIPO C, VIGENCIA2020","Inversión","Bogotá Mejor para Todos",3,{"$f":"IF(ISERROR(VLOOKUP(K30,[1]Eje_Pilar_Prop!$C$2:$E$104,2,FALSE)),\" \",VLOOKUP(K30,[1]Eje_Pilar_Prop!$C$2:$E$104,2,FALSE))","v":"Igualdad y autonomía para una Bogotá incluyente"},{"$f":"IF(ISERROR(VLOOKUP(K30,[1]Eje_Pilar_Prop!$C$2:$E$104,3,FALSE)),\" \",VLOOKUP(K30,[1]Eje_Pilar_Prop!$C$2:$E$104,3,FALSE))","v":"Pilar 1 Igualdad de Calidad de Vida"},1453,"860.066942-7","CAJA DE COMPENSACION FAMILIAR COMPENSAR",612500000,null,null,null,null,612500000,611000000,"2020-01-14","2020-01-14","2020-06-13",{"$f":"5*30","v":150},null,null,null,null,null,null,null,null,"X",null,0.99755102040816324]
[18,2020,"SECOP II","FDLF-CD-18-2020","Contratos de prestación de servicios","Contratación Directa","Prestación de servicios profesionales y de apoyo a la gestión, o para la ejecución de trabajos artísticos que sólo puedan encomendarse a determinadas personas naturales;","Prestar servicios para apoyar la gestión documental de la Alcaldia local en la implementación de los procesos de clasificación, ordenación, selección natural, foliación, identificación, levantamiento de inventarios, almacenamiento y aplicación de protocolos de eliminacion y transferencias documentales","Inversión","Bogotá Mejor para Todos",45,{"$f":"IF(ISERROR(VLOOKUP(K31,Eje_Pilar_Prop!$C$2:$E$104,2,FALSE)),\" \",VLOOKUP(K31,Eje_Pilar_Prop!$C$2:$E$104,2,FALSE))","v":"Gobernanza e influencia local, regional e internacional"},{"$f":"IF(ISERROR(VLOOKUP(K31,Eje_Pilar_Prop!$C$2:$E$104,3,FALSE)),\" \",VLOOKUP(K31,Eje_Pilar_Prop!$C$2:$E$104,3,FALSE))","v":"Eje Transversal 4 Gobierno Legitimo, Fortalecimiento Local y Eficiencia"},1474,1016111572,"ANA MARIA LOPEZ MORENO",9452000,null,null,0,0,9452000,8585567,"2020-03-06","2020-03-12","2020-07-11",120,0,0,null,null,null,null,null,null,"X",null,{"$f":"IF(ISERROR(W31/V31),\"-\",(W31/V31))","v":0.9083333685992383}]
["18",2020,null,null,"Otros","Contratación directa","No aplica","POR MEDIO DE LA CUAL SE GARANTIZA EL PAGO DE LOS COSTOS OPERATIVOS QUE SE CAUSEN EN DESARROLLO DEL CONVENIO DE ASOCIACION NO. 4002 DE 2011, CELEBRADO ENTRE LA ALCALDIA LOCAL DE FONTIBON Y LA CAJA DE COMPENSACION FAMILIAR COMPENSAR, DENTRO DEL PROYECTO 1453 DE LA LOCALIDAD DE FONTIBON, VIGENCIA 2020- SEGUN MEMORANDO 5920001273- SEGUN MEMORANDO DE CREACION DE CRP NO 5920001193 DE 18-02-2020","Inversión","Bogotá Mejor para Todos",3,{"$f":"IF(ISERROR(VLOOKUP(K32,[1]Eje_Pilar_Prop!$C$2:$E$104,2,FALSE)),\" \",VLOOKUP(K32,[1]Eje_Pilar_Prop!$C$2:$E$104,2,FALSE))","v":"Igualdad y autonomía para una Bogotá incluyente"},{"$f":"IF(ISERROR(VLOOKUP(K32,[1]Eje_Pilar_Prop!$C$2:$E$104,3,FALSE)),\" \",VLOOKUP(K32,[1]Eje_Pilar_Prop!$C$2:$E$104,3,FALSE))","v":"Pilar 1 Igualdad de Calidad de Vida"},1453,"860.066942-7","CAJA DE COMPENSACION FAMILIAR COMPENSAR",8000000,null,null,null,null,8000000,6598932,"2020-01-14","2020-01-14","2020-06-13",150,null,null,null,null,null,null,null,null,"X",null,{"$f":"IF(ISERROR(W32/V32),\"-\",(W32/V32))","v":0.82486649999999995}]
[19,2020,"SECOP II","FDLF-CD-19-2020","Contratos de prestación de servicios","Contratación Directa","Prestación de servicios profesionales y de apoyo a la gestión, o para la ejecución de trabajos artísticos que sólo puedan encomendarse a determinadas personas naturales;","Prestar servicios profesionales en derecho para apoyar las actividades juridicas y administrativas propias de la casa del consumidor,en el marco del convenio suscrito entre la superintendencia de industria y comercio y la Alcaldia Local de Fontibon.","Inversión","Bogotá Mejor para Todos",45,{"$f":"IF(ISERROR(VLOOKUP(K33,Eje_Pilar_Prop!$C$2:$E$104,2,FALSE)),\" \",VLOOKUP(K33,Eje_Pilar_Prop!$C$2:$E$104,2,FALSE))","v":"Gobernanza e influencia local, regional e internacional"},{"$f":"IF(ISERROR(VLOOKUP(K33,Eje_Pilar_Prop!$C$2:$E$104,3,FALSE)),\" \",VLOOKUP(K33,Eje_Pilar_Prop!$C$2:$E$104,3,FALSE))","v":"Eje Transversal 4 Gobierno Legitimo, Fortalecimiento Local y Eficiencia"},1474,1115690569,"ELIZABETH GONZÁLEZ ROA",19132000,null,null,0,0,19132000,19132000,"2020-03-10","2020-04-22","2020-08-21",120,0,0,null,null,null,null,null,null,"X",null,1]
[20,2020,"SECOP II","FDLF-CD-20-2020","Contratos de prestación de servicios","Contratación Directa","Prestación de servicios profesionales y de apoyo a la gestión, o para la ejecución de trabajos artísticos que sólo puedan encomendarse a determinadas personas naturales;","Prestar servicios de apoyo al área de gestión de desarrollo local de Fontibón.","Inversión","Bogotá Mejor para Todos",45,{"$f":"IF(ISERROR(VLOOKUP(K34,Eje_Pilar_Prop!$C$2:$E$104,2,FALSE)),\" \",VLOOKUP(K34,Eje_Pilar_Prop!$C$2:$E$104,2,FALSE))","v":"Gobernanza e influencia local, regional e internacional"},{"$f":"IF(ISERROR(VLOOKUP(K34,Eje_Pilar_Prop!$C$2:$E$104,3,FALSE)),\" \",VLOOKUP(K34,Eje_Pilar_Prop!$C$2:$E$104,3,FALSE))","v":"Eje Transversal 4 Gobierno Legitimo, Fortalecimiento Local y Eficiencia"},1474,1016039271,"JUAN DAVID RAMIREZ MONTOYA",9452000,null,null,1,4726000,14178000,14178000,"2020-03-10","2020-03-11","2020-09-10",120,1,60,null,null,null,null,null,null,"X",null,1]
[21,2020,"SECOP II","FDLF-CD-21-2020","Contratos de prestación de servicios","Contratación Directa","Prestación de servicios profesionales y de apoyo a la gestión, o para la ejecución de trabajos artísticos que sólo puedan encomendarse a determinadas personas naturales;","Prestar servicios para apoyar el 100% del proceso de radicación y distribución de la correspondencia, así como la atención  en la ventanilla cdi de las inspecciones de policía de la alcaldía local de Fontibón.","Inversión","Bogotá Mejor para Todos",45,{"$f":"IF(ISERROR(VLOOKUP(K35,Eje_Pilar_Prop!$C$2:$E$104,2,FALSE)),\" \",VLOOKUP(K35,Eje_Pilar_Prop!$C$2:$E$104,2,FALSE))","v":"Gobernanza e influencia local, regional e internacional"},{"$f":"IF(ISERROR(VLOOKUP(K35,Eje_Pilar_Prop!$C$2:$E$104,3,FALSE)),\" \",VLOOKUP(K35,Eje_Pilar_Prop!$C$2:$E$104,3,FALSE))","v":"Eje Transversal 4 Gobierno Legitimo, Fortalecimiento Local y Eficiencia"},1474,1019064411,"ADRIANA PAOLA ROJAS VASQUEZ",9452000,null,null,1,4726000,14178000,14178000,"2020-03-10","2020-03-12","2020-09-11",120,1,60,null,null,null,null,null,null,"X",null,1]
[22,2020,"SECOP II","FDLF-CD-22-2020","Contratos de prestación de servicios","Contratación Directa","Prestación de servicios profesionales y de apoyo a la gestión, o para la ejecución de trabajos artísticos que sólo puedan encomendarse a determinadas personas naturales;","Prestar servicios para apoyar la gestión documental de la Alcaldia local en la implementación de los procesos de clasificación, ordenación, selección natural, foliación, identificación, levantamiento de inventarios, almacenamiento y aplicación de protocolos de eliminación y transferencia documental.    ","Inversión","Bogotá Mejor para Todos",45,{"$f":"IF(ISERROR(VLOOKUP(K36,Eje_Pilar_Prop!$C$2:$E$104,2,FALSE)),\" \",VLOOKUP(K36,Eje_Pilar_Prop!$C$2:$E$104,2,FALSE))","v":"Gobernanza e influencia local, regional e internacional"},{"$f":"IF(ISERROR(VLOOKUP(K36,Eje_Pilar_Prop!$C$2:$E$104,3,FALSE)),\" \",VLOOKUP(K36,Eje_Pilar_Prop!$C$2:$E$104,3,FALSE))","v":"Eje Transversal 4 Gobierno Legitimo, Fortalecimiento Local y Eficiencia"},1474,80804691,"JOHAN MANUEL RAMOS RODRIGUEZ ",9452000,null,null,1,4726000,14178000,14178000,"2020-03-10","2020-03-13","2020-09-12",120,1,60,null,null,null,null,null,null,"X",null,1]
[23,2020,"SECOP II","FDLF-CD-23-2020","Contratos de prestación de servicios","Contratación Directa","Prestación de servicios profesionales y de apoyo a la gestión, o para la ejecución de trabajos artísticos que sólo puedan encomendarse a determinadas personas naturales;","Prestar servicios profesionales en ingeniería para apoyar las actividades administrativas propias de la casa del consumidor en el marco de convenio suscrito entre la superintendencia de la industria y comercio y la Alcaldia local de Fontibón.","Inversión","Bogotá Mejor para Todos",45,{"$f":"IF(ISERROR(VLOOKUP(K37,Eje_Pilar_Prop!$C$2:$E$104,2,FALSE)),\" \",VLOOKUP(K37,Eje_Pilar_Prop!$C$2:$E$104,2,FALSE))","v":"Gobernanza e influencia local, regional e internacional"},{"$f":"IF(ISERROR(VLOOKUP(K37,Eje_Pilar_Prop!$C$2:$E$104,3,FALSE)),\" \",VLOOKUP(K37,Eje_Pilar_Prop!$C$2:$E$104,3,FALSE))","v":"Eje Transversal 4 Gobierno Legitimo, Fortalecimiento Local y Eficiencia"},1474,14320959,"JOSE ALBEYRO AVILEZ CRUZ",19132000,null,null,1,9566000,28698000,28698000,"2020-03-10","2020-03-13","2020-09-12",120,1,60,null,null,null,null,null,null,"X",null,1]
[24,2020,"SECOP II","FDLF-CD-24-2020","Contratos de prestación de servicios","Contratación Directa","Prestación de servicios profesionales y de apoyo a la gestión, o para la ejecución de trabajos artísticos que sólo puedan encomendarse a determinadas personas naturales;","Prestar servicios de apoyo a la Area de gestión del desarrollo local de la Alcaldía Local de Fontibon.","Inversión","Bogotá Mejor para Todos",45,{"$f":"IF(ISERROR(VLOOKUP(K38,Eje_Pilar_Prop!$C$2:$E$104,2,FALSE)),\" \",VLOOKUP(K38,Eje_Pilar_Prop!$C$2:$E$104,2,FALSE))","v":"Gobernanza e influencia local, regional e internacional"},{"$f":"IF(ISERROR(VLOOKUP(K38,Eje_Pilar_Prop!$C$2:$E$104,3,FALSE)),\" \",VLOOKUP(K38,Eje_Pilar_Prop!$C$2:$E$104,3,FALSE))","v":"Eje Transversal 4 Gobierno Legitimo, Fortalecimiento Local y Eficiencia"},1474,1016064829,"CARLOS EDUARDO FLOREZ TORRES",9452000,null,null,0,0,9452000,9452000,"2020-03-10","2020-03-12","2020-07-11",120,0,0,null,null,null,null,null,null,"X",null,1]
[25,2020,"SECOP II","FDLF-CD-25-2020","Contratos de prestación de servicios","Contratación Directa","Prestación de servicios profesionales y de apoyo a la gestión, o para la ejecución de trabajos artísticos que sólo puedan encomendarse a determinadas personas naturales;","Prestar servicios como auxiliar de apoyo en el trámite y desarrollo de los despachos comisorios que por competencia corresponden a la alcaldía local de Fontibon y las demás actividades que se le asignen de acuerdo a la naturaleza del contrato.   ","Inversión","Bogotá Mejor para Todos",45,{"$f":"IF(ISERROR(VLOOKUP(K39,Eje_Pilar_Prop!$C$2:$E$104,2,FALSE)),\" \",VLOOKUP(K39,Eje_Pilar_Prop!$C$2:$E$104,2,FALSE))","v":"Gobernanza e influencia local, regional e internacional"},{"$f":"IF(ISERROR(VLOOKUP(K39,Eje_Pilar_Prop!$C$2:$E$104,3,FALSE)),\" \",VLOOKUP(K39,Eje_Pilar_Prop!$C$2:$E$104,3,FALSE))","v":"Eje Transversal 4 Gobierno Legitimo, Fortalecimiento Local y Eficiencia"},1474,35221867,"MARIA JOHANA LOPEZ ULCUE",9452000,null,null,0,0,9452000,9452000,"2020-03-10","2020-03-11","2020-07-10",120,0,0,null,null,null,null,null,null,"X",null,1]
[26,2020,"SECOP II","FDLF-CD-26-2020","Contratos de prestación de servicios","Contratación Directa","Prestación de servicios profesionales y de apoyo a la gestión, o para la ejecución de trabajos artísticos que sólo puedan encomendarse a determinadas personas naturales;","Prestar servicios para apoyar jurídicamente la ejecución de las acciones requeridas para el trámite e impulso procesal de las actuaciones contravencionales y/o querellas en las inspecciones de policía de la localidad.","Inversión","Bogotá Mejor para Todos",45,{"$f":"IF(ISERROR(VLOOKUP(K40,Eje_Pilar_Prop!$C$2:$E$104,2,FALSE)),\" \",VLOOKUP(K40,Eje_Pilar_Prop!$C$2:$E$104,2,FALSE))","v":"Gobernanza e influencia local, regional e internacional"},{"$f":"IF(ISERROR(VLOOKUP(K40,Eje_Pilar_Prop!$C$2:$E$104,3,FALSE)),\" \",VLOOKUP(K40,Eje_Pilar_Prop!$C$2:$E$104,3,FALSE))","v":"Eje Transversal 4 Gobierno Legitimo, Fortalecimiento Local y Eficiencia"},1474,93020228,"HAMIXON LEAL CHILATRA",19132000,null,null,0,0,19132000,19132000,"2020-03-10","2020-03-12","2020-07-11",120,0,0,null,null,null,null,null,null,"X",null,1]
[27,2020,"SECOP II","FDLF-CD-27-2020","Contratos de prestación de servicios","Contratación Directa","Prestación de servicios profesionales y de apoyo a la gestión, o para la ejecución de trabajos artísticos que sólo puedan encomendarse a determinadas personas naturales;","Prestar servicios para apoyar jurídicamente la ejecución de las acciones requeridas para el trámite e impulso procesal de las actuaciones contravencionales y/o querellas en las inspecciones de policía de la localidad.","Inversión","Bogotá Mejor para Todos",45,{"$f":"IF(ISERROR(VLOOKUP(K41,Eje_Pilar_Prop!$C$2:$E$104,2,FALSE)),\" \",VLOOKUP(K41,Eje_Pilar_Prop!$C$2:$E$104,2,FALSE))","v":"Gobernanza e influencia local, regional e internacional"},{"$f":"IF(ISERROR(VLOOKUP(K41,Eje_Pilar_Prop!$C$2:$E$104,3,FALSE)),\" \",VLOOKUP(K41,Eje_Pilar_Prop!$C$2:$E$104,3,FALSE))","v":"Eje Transversal 4 Gobierno Legitimo, Fortalecimiento Local y Eficiencia"},1474,79307654,"ALVARO GOMEZ GOMEZ",19132000,null,null,0,0,19132000,19132000,"2020-03-10","2020-03-12","2020-07-11",120,0,0,null,null,null,null,null,null,"X",null,1]
[28,2020,"SECOP II","FDLF-CD-28-2020","Contratos de prestación de servicios","Contratación Directa","Prestación de servicios profesionales y de apoyo a la gestión, o para la ejecución de trabajos artísticos que sólo puedan encomendarse a determinadas personas naturales;","Prestar servicios para apoyar jurídicamente la ejecución de las acciones requeridas para el trámite e impulso procesal de las actuaciones contravencionales y/o querellas en las inspecciones de policía de la localidad.","Inversión","Bogotá Mejor para Todos",45,{"$f":"IF(ISERROR(VLOOKUP(K42,Eje_Pilar_Prop!$C$2:$E$104,2,FALSE)),\" \",VLOOKUP(K42,Eje_Pilar_Prop!$C$2:$E$104,2,FALSE))","v":"Gobernanza e influencia local, regional e internacional"},{"$f":"IF(ISERROR(VLOOKUP(K42,Eje_Pilar_Prop!$C$2:$E$104,3,FALSE)),\" \",VLOOKUP(K42,Eje_Pilar_Prop!$C$2:$E$104,3,FALSE))","v":"Eje Transversal 4 Gobierno Legitimo, Fortalecimiento Local y Eficiencia"},1474,1136886171,"JUAN FELIPE GAVIRIA VILLEGAS ",19132000,null,null,0,0,19132000,19132000,"2020-03-10","2020-03-12","2020-07-11",120,0,0,null,null,null,null,null,null,"X",null,1]
[29,2020,"SECOP II","FDLF-CD-29-2020","Contratos de prestación de servicios","Contratación Directa","Prestación de servicios profesionales y de apoyo a la gestión, o para la ejecución de trabajos artísticos que sólo puedan encomendarse a determinadas personas naturales;","Prestar servicios para apoyar jurídicamente la ejecución de las acciones requeridas para el trámite e impulso procesal de las actuaciones contravencionales y/o querellas en las inspecciones de policía de la localidad.","Inversión","Bogotá Mejor para Todos",45,{"$f":"IF(ISERROR(VLOOKUP(K43,Eje_Pilar_Prop!$C$2:$E$104,2,FALSE)),\" \",VLOOKUP(K43,Eje_Pilar_Prop!$C$2:$E$104,2,FALSE))","v":"Gobernanza e influencia local, regional e internacional"},{"$f":"IF(ISERROR(VLOOKUP(K43,Eje_Pilar_Prop!$C$2:$E$104,3,FALSE)),\" \",VLOOKUP(K43,Eje_Pilar_Prop!$C$2:$E$104,3,FALSE))","v":"Eje Transversal 4 Gobierno Legitimo, Fortalecimiento Local y Eficiencia"},1474,79131970,"WILFORD LIBERMAN RODRIGUEZ FONSECA",19132000,null,null,1,9566000,28698000,28698000,"2020-03-10","2020-03-12","2020-09-11",120,1,60,null,null,null,null,null,null,"X",null,1]
[30,2020,"SECOP II","FDLF-CD-30-2020","Contratos de prestación de servicios","Contratación Directa","Prestación de servicios profesionales y de apoyo a la gestión, o para la ejecución de trabajos artísticos que sólo puedan encomendarse a determinadas personas naturales;","Prestar servicios para apoyar el equipo de prensa y comunicaciones de la Alcaldia local en la creación, realización y producción de videos que transmitan un mensaje en la comunicación interna y externa.","Inversión","Bogotá Mejor para Todos",45,{"$f":"IF(ISERROR(VLOOKUP(K44,Eje_Pilar_Prop!$C$2:$E$104,2,FALSE)),\" \",VLOOKUP(K44,Eje_Pilar_Prop!$C$2:$E$104,2,FALSE))","v":"Gobernanza e influencia local, regional e internacional"},{"$f":"IF(ISERROR(VLOOKUP(K44,Eje_Pilar_Prop!$C$2:$E$104,3,FALSE)),\" \",VLOOKUP(K44,Eje_Pilar_Prop!$C$2:$E$104,3,FALSE))","v":"Eje Transversal 4 Gobierno Legitimo, Fortalecimiento Local y Eficiencia"},1474,1016060955,"DIEGO ARMANDO HUERTAS GARCIA",16800000,null,null,0,0,16800000,16800000,"2020-03-10","2020-03-12","2020-07-11",120,0,0,null,null,null,null,null,null,"X",null,1]
[31,2020,"SECOP II","FDLF-CD-31-2020","Contratos de prestación de servicios","Contratación Directa","Prestación de servicios profesionales y de apoyo a la gestión, o para la ejecución de trabajos artísticos que sólo puedan encomendarse a determinadas personas naturales;","Prestar servicios para apoyar la formulación gestión y seguimiento de actividades a la gestión ambiental externa encaminada a la mitigación de los diferentes impactos ambientales y la conservación de los recursos naturales de la localidad.","Inversión","Bogotá Mejor para Todos",45,{"$f":"IF(ISERROR(VLOOKUP(K45,Eje_Pilar_Prop!$C$2:$E$104,2,FALSE)),\" \",VLOOKUP(K45,Eje_Pilar_Prop!$C$2:$E$104,2,FALSE))","v":"Gobernanza e influencia local, regional e internacional"},{"$f":"IF(ISERROR(VLOOKUP(K45,Eje_Pilar_Prop!$C$2:$E$104,3,FALSE)),\" \",VLOOKUP(K45,Eje_Pilar_Prop!$C$2:$E$104,3,FALSE))","v":"Eje Transversal 4 Gobierno Legitimo, Fortalecimiento Local y Eficiencia"},1474,1015437921,"CRISTIAN STIVEN TAMBO LOPEZ",19132000,null,null,0,0,19132000,17378233,"2020-03-10","2020-03-12","2020-07-11",120,0,0,null,null,null,null,null,null,"X",null,0.90833331591051636]
[32,2020,"SECOP II","FDLF-CD-32-2020","Contratos de prestación de servicios","Contratación Directa","Prestación de servicios profesionales y de apoyo a la gestión, o para la ejecución de trabajos artísticos que sólo puedan encomendarse a determinadas personas naturales;","Prestar servicios para apoyar jurídicamente la ejecución de las acciones requeridas para la depuración de las actualizaciones administrativas que cursan en la Alcaldia local.","Inversión","Bogotá Mejor para Todos",45,{"$f":"IF(ISERROR(VLOOKUP(K46,Eje_Pilar_Prop!$C$2:$E$104,2,FALSE)),\" \",VLOOKUP(K46,Eje_Pilar_Prop!$C$2:$E$104,2,FALSE))","v":"Gobernanza e influencia local, regional e internacional"},{"$f":"IF(ISERROR(VLOOKUP(K46,Eje_Pilar_Prop!$C$2:$E$104,3,FALSE)),\" \",VLOOKUP(K46,Eje_Pilar_Prop!$C$2:$E$104,3,FALSE))","v":"Eje Transversal 4 Gobierno Legitimo, Fortalecimiento Local y Eficiencia"},1474,1121839153,"YULI NATALY GARCIA MEJIA",19132000,null,null,1,9566000,28698000,22161233,"2020-03-10","2020-03-12","2020-09-11",120,1,60,null,null,null,null,null,null,"X",null,0.77222221060701091]
[33,2020,"SECOP II","FDLF-CD-33-2020","Contratos de prestación de servicios","Contratación Directa","Prestación de servicios profesionales y de apoyo a la gestión, o para la ejecución de trabajos artísticos que sólo puedan encomendarse a determinadas personas naturales;","Prestar servicios para apoyar jurídicamente la ejecución de las acciones requeridas para la depuración de las actualizaciones administrativas que cursan en la Alcaldia local.","Inversión","Bogotá Mejor para Todos",45,{"$f":"IF(ISERROR(VLOOKUP(K47,Eje_Pilar_Prop!$C$2:$E$104,2,FALSE)),\" \",VLOOKUP(K47,Eje_Pilar_Prop!$C$2:$E$104,2,FALSE))","v":"Gobernanza e influencia local, regional e internacional"},{"$f":"IF(ISERROR(VLOOKUP(K47,Eje_Pilar_Prop!$C$2:$E$104,3,FALSE)),\" \",VLOOKUP(K47,Eje_Pilar_Prop!$C$2:$E$104,3,FALSE))","v":"Eje Transversal 4 Gobierno Legitimo, Fortalecimiento Local y Eficiencia"},1474,1022941624,"ANDY FABIAN HERRERA PINTO",19132000,null,null,1,9566000,28698000,26944233,"2020-03-10","2020-03-12","2020-09-11",120,1,60,null,null,null,null,null,null,"X",null,0.93888887727367765]
[34,2020,"SECOP II","FDLF-CD-34-2020","Contratos de prestación de servicios","Contratación Directa","Prestación de servicios profesionales y de apoyo a la gestión, o para la ejecución de trabajos artísticos que sólo puedan encomendarse a determinadas personas naturales;","Prestar servicios para apoyo a la gestión de expedientes contractuales vigentes y activos a cargo del área de contratación del fondo de desarrollo local de Fontibón.","Inversión","Bogotá Mejor para Todos",45,{"$f":"IF(ISERROR(VLOOKUP(K48,Eje_Pilar_Prop!$C$2:$E$104,2,FALSE)),\" \",VLOOKUP(K48,Eje_Pilar_Prop!$C$2:$E$104,2,FALSE))","v":"Gobernanza e influencia local, regional e internacional"},{"$f":"IF(ISERROR(VLOOKUP(K48,Eje_Pilar_Prop!$C$2:$E$104,3,FALSE)),\" \",VLOOKUP(K48,Eje_Pilar_Prop!$C$2:$E$104,3,FALSE))","v":"Eje Transversal 4 Gobierno Legitimo, Fortalecimiento Local y Eficiencia"},1474,80147386,"JOHN  FREDY HERRERA RINCON",9452000,null,null,0,0,9452000,9452000,"2020-03-10","2020-03-13","2020-07-12",120,0,0,null,null,null,null,null,null,"X",null,1]
[35,2020,"SECOP II","FDLF-CD-35-2020","Contratos de prestación de servicios","Contratación Directa","Prestación de servicios profesionales y de apoyo a la gestión, o para la ejecución de trabajos artísticos que sólo puedan encomendarse a determinadas personas naturales;","Prestar servcios profesionales como abogado para brindar apoyo juridico en el trámite y desarrollo de los despachos comisorios que por competencia corresponden a la Alcaldía Local de Fontibon.","Inversión","Bogotá Mejor para Todos",45,{"$f":"IF(ISERROR(VLOOKUP(K49,Eje_Pilar_Prop!$C$2:$E$104,2,FALSE)),\" \",VLOOKUP(K49,Eje_Pilar_Prop!$C$2:$E$104,2,FALSE))","v":"Gobernanza e influencia local, regional e internacional"},{"$f":"IF(ISERROR(VLOOKUP(K49,Eje_Pilar_Prop!$C$2:$E$104,3,FALSE)),\" \",VLOOKUP(K49,Eje_Pilar_Prop!$C$2:$E$104,3,FALSE))","v":"Eje Transversal 4 Gobierno Legitimo, Fortalecimiento Local y Eficiencia"},1474,80228231,"CRHISTIAN ANDRES PINTO GONZALEZ",22612000,null,null,1,11306000,33918000,31656800,"2020-03-10","2020-03-13","2020-09-12",120,1,60,null,null,null,null,null,null,"X",null,0.93333333333333335]
[36,2020,"SECOP II","FDLF-CD-36-2020","Contratos de prestación de servicios","Contratación Directa","Prestación de servicios profesionales y de apoyo a la gestión, o para la ejecución de trabajos artísticos que sólo puedan encomendarse a determinadas personas naturales;","Prestar servicios para apoyar jurídicamente la ejecución de las acciones requeridas para la depuración de las actualizaciones administrativas que cursan en la Alcaldia local.","Inversión","Bogotá Mejor para Todos",45,{"$f":"IF(ISERROR(VLOOKUP(K50,Eje_Pilar_Prop!$C$2:$E$104,2,FALSE)),\" \",VLOOKUP(K50,Eje_Pilar_Prop!$C$2:$E$104,2,FALSE))","v":"Gobernanza e influencia local, regional e internacional"},{"$f":"IF(ISERROR(VLOOKUP(K50,Eje_Pilar_Prop!$C$2:$E$104,3,FALSE)),\" \",VLOOKUP(K50,Eje_Pilar_Prop!$C$2:$E$104,3,FALSE))","v":"Eje Transversal 4 Gobierno Legitimo, Fortalecimiento Local y Eficiencia"},1474,1016053840,"EVELYN LORENA GÓMEZ ORTIZ",19132000,null,null,1,9566000,28698000,26944233,"2020-03-10","2020-03-12","2020-09-11",120,1,60,null,null,null,null,null,null,"X",null,0.93888887727367765]
[37,2020,"SECOP II","FDLF-CD-37-2020","Contratos de prestación de servicios","Contratación Directa","Prestación de servicios profesionales y de apoyo a la gestión, o para la ejecución de trabajos artísticos que sólo puedan encomendarse a determinadas personas naturales;","Prestar servicios para apoyar jurídicamente la ejecución de las acciones requeridas para la depuración de las actualizaciones administrativas que cursan en la Alcaldia local.","Inversión","Bogotá Mejor para Todos",45,{"$f":"IF(ISERROR(VLOOKUP(K51,Eje_Pilar_Prop!$C$2:$E$104,2,FALSE)),\" \",VLOOKUP(K51,Eje_Pilar_Prop!$C$2:$E$104,2,FALSE))","v":"Gobernanza e influencia local, regional e internacional"},{"$f":"IF(ISERROR(VLOOKUP(K51,Eje_Pilar_Prop!$C$2:$E$104,3,FALSE)),\" \",VLOOKUP(K51,Eje_Pilar_Prop!$C$2:$E$104,3,FALSE))","v":"Eje Transversal 4 Gobierno Legitimo, Fortalecimiento Local y Eficiencia"},1474,52783302,"CLAUDIA PATRICIA VILLAMIZAR ALCALA",19132000,null,null,1,9566000,28698000,26784800,"2020-03-10","2020-03-13","2020-09-12",120,1,60,null,null,null,null,null,null,"X",null,0.93333333333333335]
[38,2020,"SECOP II","FDLF-CD-38-2020","Contratos de prestación de servicios","Contratación Directa","Prestación de servicios profesionales y de apoyo a la gestión, o para la ejecución de trabajos artísticos que sólo puedan encomendarse a determinadas personas naturales;","Apoyar las labores de entrega y recibo de las comunicaciones emitidas o recibidas por las inspecciones de policia de la localidad.","Inversión","Bogotá Mejor para Todos",45,{"$f":"IF(ISERROR(VLOOKUP(K52,Eje_Pilar_Prop!$C$2:$E$104,2,FALSE)),\" \",VLOOKUP(K52,Eje_Pilar_Prop!$C$2:$E$104,2,FALSE))","v":"Gobernanza e influencia local, regional e internacional"},{"$f":"IF(ISERROR(VLOOKUP(K52,Eje_Pilar_Prop!$C$2:$E$104,3,FALSE)),\" \",VLOOKUP(K52,Eje_Pilar_Prop!$C$2:$E$104,3,FALSE))","v":"Eje Transversal 4 Gobierno Legitimo, Fortalecimiento Local y Eficiencia"},1474,79538248,"SABAS CRUZ ORTIZ",9452000,null,null,0,0,9452000,9452000,"2020-03-11","2020-03-12","2020-07-11",120,0,0,null,null,null,null,null,null,"X",null,1]
[39,2020,"SECOP II","FDLF-CD-39-2020","Contratos de prestación de servicios","Contratación Directa","Prestación de servicios profesionales y de apoyo a la gestión, o para la ejecución de trabajos artísticos que sólo puedan encomendarse a determinadas personas naturales;","Prestar servicios técnicos para el apoyo logísticos y administrativo del despacho de la Alcaldia local de Fontibón.","Inversión","Bogotá Mejor para Todos",45,{"$f":"IF(ISERROR(VLOOKUP(K53,Eje_Pilar_Prop!$C$2:$E$104,2,FALSE)),\" \",VLOOKUP(K53,Eje_Pilar_Prop!$C$2:$E$104,2,FALSE))","v":"Gobernanza e influencia local, regional e internacional"},{"$f":"IF(ISERROR(VLOOKUP(K53,Eje_Pilar_Prop!$C$2:$E$104,3,FALSE)),\" \",VLOOKUP(K53,Eje_Pilar_Prop!$C$2:$E$104,3,FALSE))","v":"Eje Transversal 4 Gobierno Legitimo, Fortalecimiento Local y Eficiencia"},1474,51653895,"MARTHA LUCIA AVELLANEDA BAUTISTA",14000000,null,null,1,7000000,21000000,19600000,"2020-03-11","2020-03-13","2020-09-12",120,1,60,null,null,null,null,null,null,"X",null,0.93333333333333335]
[40,2020,"SECOP II","FDLF-CD-40-2020","Contratos de prestación de servicios","Contratación Directa","Prestación de servicios profesionales y de apoyo a la gestión, o para la ejecución de trabajos artísticos que sólo puedan encomendarse a determinadas personas naturales;","Prestar servicios como auxiliar de apoyo a las actividades correspondientes a temas de malla vial,obras,espacio publico e infraestructura para la Alcaldia Local de Fontibon.","Inversión","Bogotá Mejor para Todos",18,{"$f":"IF(ISERROR(VLOOKUP(K54,Eje_Pilar_Prop!$C$2:$E$104,2,FALSE)),\" \",VLOOKUP(K54,Eje_Pilar_Prop!$C$2:$E$104,2,FALSE))","v":"Mejor movilidad para todos"},{"$f":"IF(ISERROR(VLOOKUP(K54,Eje_Pilar_Prop!$C$2:$E$104,3,FALSE)),\" \",VLOOKUP(K54,Eje_Pilar_Prop!$C$2:$E$104,3,FALSE))","v":"Pilar 2 Democracía Urbana"},1464,19497903,"EDGAR AUGUSTO GRANADOS MEJIA ",10180000,null,null,0,0,10180000,8059167,"2020-03-13","2020-03-26","2020-08-06",120,0,0,null,null,null,null,null,null,"X",null,0.79166669941060908]
[41,2020,"SECOP II","FDLF-CD-41-2020","Contratos de prestación de servicios","Contratación Directa","Prestación de servicios profesionales y de apoyo a la gestión, o para la ejecución de trabajos artísticos que sólo puedan encomendarse a determinadas personas naturales;","Apoyar técnicamente las distintas etapas de los procesos de cometencia de las inspecciones de Policía de la localidad,según reparto.","Inversión","Bogotá Mejor para Todos",45,{"$f":"IF(ISERROR(VLOOKUP(K55,Eje_Pilar_Prop!$C$2:$E$104,2,FALSE)),\" \",VLOOKUP(K55,Eje_Pilar_Prop!$C$2:$E$104,2,FALSE))","v":"Gobernanza e influencia local, regional e internacional"},{"$f":"IF(ISERROR(VLOOKUP(K55,Eje_Pilar_Prop!$C$2:$E$104,3,FALSE)),\" \",VLOOKUP(K55,Eje_Pilar_Prop!$C$2:$E$104,3,FALSE))","v":"Eje Transversal 4 Gobierno Legitimo, Fortalecimiento Local y Eficiencia"},1474,1013601563,"JENNY ANGELICA MALAGON CORTES",22612000,null,null,0,0,22612000,22612000,"2020-03-12","2020-04-08","2020-08-07",120,0,0,null,null,null,null,null,null,"X",null,1]
[42,2020,"SECOP II","FDLF-CD-42-2020","Contratos de prestación de servicios","Contratación Directa","Prestación de servicios profesionales y de apoyo a la gestión, o para la ejecución de trabajos artísticos que sólo puedan encomendarse a determinadas personas naturales;","Apoyar técnicamente las distintas etapas de los procesos de cometencia de las inspecciones de Policía de la localidad,según reparto.","Inversión","Bogotá Mejor para Todos",45,{"$f":"IF(ISERROR(VLOOKUP(K56,Eje_Pilar_Prop!$C$2:$E$104,2,FALSE)),\" \",VLOOKUP(K56,Eje_Pilar_Prop!$C$2:$E$104,2,FALSE))","v":"Gobernanza e influencia local, regional e internacional"},{"$f":"IF(ISERROR(VLOOKUP(K56,Eje_Pilar_Prop!$C$2:$E$104,3,FALSE)),\" \",VLOOKUP(K56,Eje_Pilar_Prop!$C$2:$E$104,3,FALSE))","v":"Eje Transversal 4 Gobierno Legitimo, Fortalecimiento Local y Eficiencia"},1474,52283995,"EMMA CECILIA BAUTISTA IBARRA",22612000,null,null,0,0,22612000,22612000,"2020-03-12","2020-04-08","2020-08-07",120,0,0,null,null,null,null,null,null,"X",null,1]
[43,2020,"SECOP II","FDLF-CD-43-2020","Contratos de prestación de servicios","Contratación Directa","Prestación de servicios profesionales y de apoyo a la gestión, o para la ejecución de trabajos artísticos que sólo puedan encomendarse a determinadas personas naturales;","Prestar servicios profesionales para liderar y garantizar la implementacion y seguimiento de los procesos y prodecimientos del servicio social.","Inversión","Bogotá Mejor para Todos",3,{"$f":"IF(ISERROR(VLOOKUP(K57,Eje_Pilar_Prop!$C$2:$E$104,2,FALSE)),\" \",VLOOKUP(K57,Eje_Pilar_Prop!$C$2:$E$104,2,FALSE))","v":"Igualdad y autonomía para una Bogotá incluyente"},{"$f":"IF(ISERROR(VLOOKUP(K57,Eje_Pilar_Prop!$C$2:$E$104,3,FALSE)),\" \",VLOOKUP(K57,Eje_Pilar_Prop!$C$2:$E$104,3,FALSE))","v":"Pilar 1 Igualdad de Calidad de Vida"},1453,1016024724,"GINA PAOLA RODRIGUEZ RIAÑO",49344167,null,null,0,0,49344167,33015733,"2020-03-25","2020-03-25","2021-02-21",275,0,0,null,null,null,null,null,"X",null,null,0.66909089781574382]
[44,2020,"SECOP II","FDLF-CD-44-2020","Contratos de prestación de servicios","Contratación Directa","Prestación de servicios profesionales y de apoyo a la gestión, o para la ejecución de trabajos artísticos que sólo puedan encomendarse a determinadas personas naturales;","Prestar servicios de apoyo a la gestión de la Alcaldia Local de Fontibon en la recepción de correspondencia interna y externa, asi como la signacion de solicitudes y/o correspondencia recibida.","Inversión","Bogotá Mejor para Todos",45,{"$f":"IF(ISERROR(VLOOKUP(K58,Eje_Pilar_Prop!$C$2:$E$104,2,FALSE)),\" \",VLOOKUP(K58,Eje_Pilar_Prop!$C$2:$E$104,2,FALSE))","v":"Gobernanza e influencia local, regional e internacional"},{"$f":"IF(ISERROR(VLOOKUP(K58,Eje_Pilar_Prop!$C$2:$E$104,3,FALSE)),\" \",VLOOKUP(K58,Eje_Pilar_Prop!$C$2:$E$104,3,FALSE))","v":"Eje Transversal 4 Gobierno Legitimo, Fortalecimiento Local y Eficiencia"},1474,52223673,"SANDRA ROCIO VARGAS HERNANDEZ",9452000,null,null,1,4726000,14178000,14178000,"2020-03-26","2020-03-30","2020-09-29",120,1,60,null,null,null,null,null,null,"X",null,1]
[45,2020,"SECOP II","FDLF-CD-45-2020","Contratos de prestación de servicios","Contratación Directa","Prestación de servicios profesionales y de apoyo a la gestión, o para la ejecución de trabajos artísticos que sólo puedan encomendarse a determinadas personas naturales;","Prestar servicios profesionales a la Alcaldia Local de Fontibon en la Administración de la Red de voz y datos, en la actualización y soporte con las tecnologias y sistemas de información,asi como el apoyo a la supervisión de los contratos que tienen relación con soportes tecnologicos y temas relacionados.","Inversión","Bogotá Mejor para Todos",45,{"$f":"IF(ISERROR(VLOOKUP(K59,Eje_Pilar_Prop!$C$2:$E$104,2,FALSE)),\" \",VLOOKUP(K59,Eje_Pilar_Prop!$C$2:$E$104,2,FALSE))","v":"Gobernanza e influencia local, regional e internacional"},{"$f":"IF(ISERROR(VLOOKUP(K59,Eje_Pilar_Prop!$C$2:$E$104,3,FALSE)),\" \",VLOOKUP(K59,Eje_Pilar_Prop!$C$2:$E$104,3,FALSE))","v":"Eje Transversal 4 Gobierno Legitimo, Fortalecimiento Local y Eficiencia"},1474,79955070,"FERNANDO HUÉRFANO GUIZA",22612000,null,null,1,11306000,33918000,33918000,"2020-03-26","2020-03-30","2020-09-29",120,1,60,null,null,null,null,null,null,"X",null,1]
[46,2020,"SECOP II","FDLF-CD-046-2020","Contratos de prestación de servicios","Contratación Directa","Prestación de servicios profesionales y de apoyo a la gestión, o para la ejecución de trabajos artísticos que sólo puedan encomendarse a determinadas personas naturales;","Prestar servicios técnicos para la operación,segumiento y cumplimiento de los procesos y procedimientos del servicio social Apoyo para la seguridada Economíca Tipo C,requerídos para el oportuno y adecuado registro,cruce y reporte de datos en el sistema de informacion y registro de beneficiarios SIRBE,que contribuyan a la garantia de los derechos de la poblacion mayor en el marco de la Politica Pública Social para el Envejecimiento y la Vejez en el Distrito Capital a cargo de la Alcaldia Local.","Inversión","Bogotá Mejor para Todos",3,{"$f":"IF(ISERROR(VLOOKUP(K60,Eje_Pilar_Prop!$C$2:$E$104,2,FALSE)),\" \",VLOOKUP(K60,Eje_Pilar_Prop!$C$2:$E$104,2,FALSE))","v":"Igualdad y autonomía para una Bogotá incluyente"},{"$f":"IF(ISERROR(VLOOKUP(K60,Eje_Pilar_Prop!$C$2:$E$104,3,FALSE)),\" \",VLOOKUP(K60,Eje_Pilar_Prop!$C$2:$E$104,3,FALSE))","v":"Pilar 1 Igualdad de Calidad de Vida"},1453,52771657,"LUISA FERNANDA GARZON HERNANDEZ",11936000,null,null,1,5968000,17904000,17605600,"2020-04-08","2020-04-13","2020-10-12",120,1,60,53080759,"VIVIANA ANDREA OJEDA VILLALBA","2020-08-04",4177600,null,null,"X",null,0.98333333333333328]
[47,2020,"SECOP I","FDLF-CD-47-2020","Contratos de prestación de servicios","Contratación directa","Urgencia manifiesta","La Cruz Roja se obliga a prestar, a monto agotable, los servicios y realizar las acciones necesarias para la provisión y entrega de ayudas humanitarias y asistencia para la contingencia de la población pobre y vulnerable de Bogotá D.C., en el marco de Ia contención y migración del Co\\ld-19, la declaratoria de emergencia sanitaria en todo el territorio nacional y la calamidad pública declarada en la ciudad de Bogotá D.C, de acuerdo a lo establecido en el manual Operativo del sistema Distrital Bogotá Solidaria en casa.","Inversión","Bogotá Mejor para Todos",3,{"$f":"IF(ISERROR(VLOOKUP(K61,Eje_Pilar_Prop!$C$2:$E$104,2,FALSE)),\" \",VLOOKUP(K61,Eje_Pilar_Prop!$C$2:$E$104,2,FALSE))","v":"Igualdad y autonomía para una Bogotá incluyente"},{"$f":"IF(ISERROR(VLOOKUP(K61,Eje_Pilar_Prop!$C$2:$E$104,3,FALSE)),\" \",VLOOKUP(K61,Eje_Pilar_Prop!$C$2:$E$104,3,FALSE))","v":"Pilar 1 Igualdad de Calidad de Vida"},1453,"860070301-1","LA CRUZ ROJA COLOMBIANA SECCIONAL CUNDINAMARCA Y BOGOTA MODIFICATORIO VALOR",1700543830,null,null,0,0,1700543830,1416810252,"2020-05-06","2020-05-15","2020-10-09",120,2,20,null,null,null,null,null,null,null,"X",0.83315127020277979]
[48,2020,"SECOP II","FDLF-CD-48-2020","Contratos de prestación de servicios","Contratación mínima cuantia","Prestación de servicios profesionales y de apoyo a la gestión, o para la ejecución de trabajos artísticos que sólo puedan encomendarse a determinadas personas naturales;","Prestar servicios como profesional para realizar el proceso de liquidaciones de los contratos suscritos por el fondo de Desarrollo Local de Fontibón.","Inversión","Bogotá Mejor para Todos",45,{"$f":"IF(ISERROR(VLOOKUP(K62,Eje_Pilar_Prop!$C$2:$E$104,2,FALSE)),\" \",VLOOKUP(K62,Eje_Pilar_Prop!$C$2:$E$104,2,FALSE))","v":"Gobernanza e influencia local, regional e internacional"},{"$f":"IF(ISERROR(VLOOKUP(K62,Eje_Pilar_Prop!$C$2:$E$104,3,FALSE)),\" \",VLOOKUP(K62,Eje_Pilar_Prop!$C$2:$E$104,3,FALSE))","v":"Eje Transversal 4 Gobierno Legitimo, Fortalecimiento Local y Eficiencia"},1474,1123730820,"RODRIGO JOSE ZABALETA BAÑOL",19132000,null,null,0,0,19132000,16421634,"2020-05-08","2020-05-11","2020-08-24",120,0,0,null,null,null,null,null,null,"X",null,0.85833336817896722]
[49,2020,"SECOP II","FDLF-CD-49-2020","Contratos de prestación de servicios","Contratación Directa","Prestación de servicios profesionales y de apoyo a la gestión, o para la ejecución de trabajos artísticos que sólo puedan encomendarse a determinadas personas naturales;","Prestar servicios para apoyar juridicamente la ejecución de las acciones requeridas para la depuración de las actuaciones administartivas que cursan en la Alcaldía Local.","Inversión","Bogotá Mejor para Todos",45,{"$f":"IF(ISERROR(VLOOKUP(K63,Eje_Pilar_Prop!$C$2:$E$104,2,FALSE)),\" \",VLOOKUP(K63,Eje_Pilar_Prop!$C$2:$E$104,2,FALSE))","v":"Gobernanza e influencia local, regional e internacional"},{"$f":"IF(ISERROR(VLOOKUP(K63,Eje_Pilar_Prop!$C$2:$E$104,3,FALSE)),\" \",VLOOKUP(K63,Eje_Pilar_Prop!$C$2:$E$104,3,FALSE))","v":"Eje Transversal 4 Gobierno Legitimo, Fortalecimiento Local y Eficiencia"},1474,1033701606,"CARLOS MAURICIO OVIEDO DÍAZ",19132000,null,null,0,0,19132000,17378233,"2020-05-11","2020-05-12","2020-09-11",120,0,0,null,null,null,null,null,null,"X",null,0.90833331591051636]
[50,2020,"SECOP II","FDLF-CD-50-2020","Contratos de prestación de servicios","Contratación Directa","Prestación de servicios profesionales y de apoyo a la gestión, o para la ejecución de trabajos artísticos que sólo puedan encomendarse a determinadas personas naturales;","Prestar servicios como profesional de apoyo a la gestión relacionada con el espacio público,establecmientos de comercio y las acciones operativas para el control ambiental para el área de gestión policiva de la alcaldía local de fontibon.","Inversión","Bogotá Mejor para Todos",45,{"$f":"IF(ISERROR(VLOOKUP(K64,Eje_Pilar_Prop!$C$2:$E$104,2,FALSE)),\" \",VLOOKUP(K64,Eje_Pilar_Prop!$C$2:$E$104,2,FALSE))","v":"Gobernanza e influencia local, regional e internacional"},{"$f":"IF(ISERROR(VLOOKUP(K64,Eje_Pilar_Prop!$C$2:$E$104,3,FALSE)),\" \",VLOOKUP(K64,Eje_Pilar_Prop!$C$2:$E$104,3,FALSE))","v":"Eje Transversal 4 Gobierno Legitimo, Fortalecimiento Local y Eficiencia"},1474,1026270867,"LEIDY JOHANNA SIERRA COLLAZOS",19132000,null,null,1,9850199,28982199,{"$f":"28982199-3029233","v":25952966},"2020-05-18","2020-05-20","2020-11-19",120,1,60,null,null,null,null,null,null,"X",null,0.89547953210865749]
[50,2020,null,null,"Otros","Contratación directa","No aplica","PRESTAR LOS SERVICIOS DE NOTIFICACIÓN DE CORRESPONDENCIA DE LA ALCALDÍA LOCAL DE FONTIBÓN. CERTIFICADO DE NO EXISTENCIA DE PERSONAL 17140, RADICADO SIPSE 40102. SE EXPIDE CRP PARA COMPLETAR EL VALOR DE LA CUENTA POR PAGAR SEGÚN RESOLUCIÓN 050 DEL 18 MAYO 2020","Inversión","Bogotá Mejor para Todos",45,{"$f":"IF(ISERROR(VLOOKUP(K65,[1]Eje_Pilar_Prop!$C$2:$E$104,2,FALSE)),\" \",VLOOKUP(K65,[1]Eje_Pilar_Prop!$C$2:$E$104,2,FALSE))","v":"Gobernanza e influencia local, regional e internacional"},{"$f":"IF(ISERROR(VLOOKUP(K65,[1]Eje_Pilar_Prop!$C$2:$E$104,3,FALSE)),\" \",VLOOKUP(K65,[1]Eje_Pilar_Prop!$C$2:$E$104,3,FALSE))","v":"Eje Transversal 4 Gobierno Legitimo, Fortalecimiento Local y Eficiencia"},1474,null,"JEFFERSON STEVEN PENAGOS BARRERA",200000,null,null,null,null,200000,200000,"2020-06-05",null,null,null,null,null,null,null,null,null,null,null,null,"X",1]
[51,2020,"SECOP II","FDLF-CD-51-2020","Contratos de prestación de servicios","Contratación Directa","Prestación de servicios profesionales y de apoyo a la gestión, o para la ejecución de trabajos artísticos que sólo puedan encomendarse a determinadas personas naturales;","Prestar servicioss para apoyar técnicamente las distintas etapas de los procesos de competencia de las inspecciones de policía de la localidad,según reparto","Inversión","Bogotá Mejor para Todos",45,{"$f":"IF(ISERROR(VLOOKUP(K66,Eje_Pilar_Prop!$C$2:$E$104,2,FALSE)),\" \",VLOOKUP(K66,Eje_Pilar_Prop!$C$2:$E$104,2,FALSE))","v":"Gobernanza e influencia local, regional e internacional"},{"$f":"IF(ISERROR(VLOOKUP(K66,Eje_Pilar_Prop!$C$2:$E$104,3,FALSE)),\" \",VLOOKUP(K66,Eje_Pilar_Prop!$C$2:$E$104,3,FALSE))","v":"Eje Transversal 4 Gobierno Legitimo, Fortalecimiento Local y Eficiencia"},1474,39536092,"ANA YANET LEGUIZAMON FANDIÑO",22612000,null,null,0,0,22612000,22612000,"2020-05-18","2020-05-22","2020-09-21",120,0,0,null,null,null,null,null,null,"X",null,{"$f":"IF(ISERROR(W66/V66),\"-\",(W66/V66))","v":1}]
[53,2020,"SECOP II","FDLF-CD-53-2020","Contratos de prestación de servicios","Contratación Directa","Prestación de servicios profesionales y de apoyo a la gestión, o para la ejecución de trabajos artísticos que sólo puedan encomendarse a determinadas personas naturales;","Servicios de apoyo al área de gestión del desarrollo local de fontibon en actividades inherentes a la planeación.","Inversión","Bogotá Mejor para Todos",45,{"$f":"IF(ISERROR(VLOOKUP(K67,Eje_Pilar_Prop!$C$2:$E$104,2,FALSE)),\" \",VLOOKUP(K67,Eje_Pilar_Prop!$C$2:$E$104,2,FALSE))","v":"Gobernanza e influencia local, regional e internacional"},{"$f":"IF(ISERROR(VLOOKUP(K67,Eje_Pilar_Prop!$C$2:$E$104,3,FALSE)),\" \",VLOOKUP(K67,Eje_Pilar_Prop!$C$2:$E$104,3,FALSE))","v":"Eje Transversal 4 Gobierno Legitimo, Fortalecimiento Local y Eficiencia"},1474,51712771,"MARIA ELENA SARMIENTO FRANCO",9452000,null,null,1,4726000,14178000,14178000,"2020-05-19","2020-05-20","2020-11-19",120,1,60,null,null,null,null,null,null,"X",null,{"$f":"IF(ISERROR(W67/V67),\"-\",(W67/V67))","v":1}]
[54,2020,"SECOP II","FDLF-CD-54-2020","Contratos de prestación de servicios","Contratación Directa","Prestación de servicios profesionales y de apoyo a la gestión, o para la ejecución de trabajos artísticos que sólo puedan encomendarse a determinadas personas naturales;","Prestar servicios profesionales para apoyar jurídicamente los diferentes procesos que requiera adelantar la Alcaldía Local de Fontibón desde las etapas precontractual, contractual y post contractual.","Inversión","Bogotá Mejor para Todos",45,{"$f":"IF(ISERROR(VLOOKUP(K68,Eje_Pilar_Prop!$C$2:$E$104,2,FALSE)),\" \",VLOOKUP(K68,Eje_Pilar_Prop!$C$2:$E$104,2,FALSE))","v":"Gobernanza e influencia local, regional e internacional"},{"$f":"IF(ISERROR(VLOOKUP(K68,Eje_Pilar_Prop!$C$2:$E$104,3,FALSE)),\" \",VLOOKUP(K68,Eje_Pilar_Prop!$C$2:$E$104,3,FALSE))","v":"Eje Transversal 4 Gobierno Legitimo, Fortalecimiento Local y Eficiencia"},1474,52489713,"EDNA LORENA YISSETH LEON SAAVEDRA",30000000,null,null,2,{"$f":"12400000+2600000","v":15000000},45000000,36400000,"2020-05-28","2020-05-29","2021-01-13",150,2,62,null,null,null,null,null,"X",null,null,{"$f":"IF(ISERROR(W68/V68),\"-\",(W68/V68))","v":0.80888888888888888}]
[54,2020,null,null,"Otros","Contratación directa","No aplica","AUTORIZAR LA TRANSFERENCIA DE RECURSOS CON DESTINO A LA DIRECCIÓN DSITRITAL DE TESORERIA PARA ATENDER EL CANAL DE TRANSFERENCIAS MONETARIAS SEGÚN RESOLUCIÓN 054 DEL 09 DE JUNIO DE 2020 DE LA ALCALDÍA LOCAL DE FONTIBÓN. SOLCITUD DE CRP 10-06-2020","Inversión","Bogotá Mejor para Todos",3,{"$f":"IF(ISERROR(VLOOKUP(K69,[1]Eje_Pilar_Prop!$C$2:$E$104,2,FALSE)),\" \",VLOOKUP(K69,[1]Eje_Pilar_Prop!$C$2:$E$104,2,FALSE))","v":"Igualdad y autonomía para una Bogotá incluyente"},{"$f":"IF(ISERROR(VLOOKUP(K69,[1]Eje_Pilar_Prop!$C$2:$E$104,3,FALSE)),\" \",VLOOKUP(K69,[1]Eje_Pilar_Prop!$C$2:$E$104,3,FALSE))","v":"Pilar 1 Igualdad de Calidad de Vida"},1453,"899999061-2","FONDO DE DESARROLLO LOCAL DE FONTIBON",425135957,null,null,null,null,425135957,425135957,"2020-06-09",null,null,null,null,null,null,null,null,null,null,null,null,"X",{"$f":"IF(ISERROR(W69/V69),\"-\",(W69/V69))","v":1}]
[55,2020,"SECOP II","FDLF-CD-55-2020","Contratos de prestación de servicios","Contratación Directa","Prestación de servicios profesionales y de apoyo a la gestión, o para la ejecución de trabajos artísticos que sólo puedan encomendarse a determinadas personas naturales;","Prestar servicios profesionales para apoyar jurídicamente los diferentes procesos que requiera adelantar la Alcaldía Local de Fontibón desde las etapas precontractual, contractual y post contractual.","Inversión","Bogotá Mejor para Todos",45,{"$f":"IF(ISERROR(VLOOKUP(K70,Eje_Pilar_Prop!$C$2:$E$104,2,FALSE)),\" \",VLOOKUP(K70,Eje_Pilar_Prop!$C$2:$E$104,2,FALSE))","v":"Gobernanza e influencia local, regional e internacional"},{"$f":"IF(ISERROR(VLOOKUP(K70,Eje_Pilar_Prop!$C$2:$E$104,3,FALSE)),\" \",VLOOKUP(K70,Eje_Pilar_Prop!$C$2:$E$104,3,FALSE))","v":"Eje Transversal 4 Gobierno Legitimo, Fortalecimiento Local y Eficiencia"},1474,1026255330,"CHRISTIAN CAMILO CRUZ MEJIA",30000000,null,null,1,11800000,41800000,28200000,"2020-05-29","2020-06-02","2020-12-30",150,1,59,1118541837,"ZAIDA VIANNEY RODRIGUEZ RODRIGUEZ","2020-10-09",4580000,null,null,"X",null,{"$f":"IF(ISERROR(W70/V70),\"-\",(W70/V70))","v":0.67464114832535882}]
[56,2020,"SECOP II","FDLF-CD-56-2020","Contratos de prestación de servicios","Contratación Directa","Prestación de servicios profesionales y de apoyo a la gestión, o para la ejecución de trabajos artísticos que sólo puedan encomendarse a determinadas personas naturales;","Prestar servicios profesionales de apoyo a presupuesto en el Fondo de Desarrollo Local de Fontibón en el registro, análisis y gestión de obligaciones por pagar y otros asuntos que en materia de presupuesto local le sean asignados.","Inversión","Bogotá Mejor para Todos",45,{"$f":"IF(ISERROR(VLOOKUP(K71,Eje_Pilar_Prop!$C$2:$E$104,2,FALSE)),\" \",VLOOKUP(K71,Eje_Pilar_Prop!$C$2:$E$104,2,FALSE))","v":"Gobernanza e influencia local, regional e internacional"},{"$f":"IF(ISERROR(VLOOKUP(K71,Eje_Pilar_Prop!$C$2:$E$104,3,FALSE)),\" \",VLOOKUP(K71,Eje_Pilar_Prop!$C$2:$E$104,3,FALSE))","v":"Eje Transversal 4 Gobierno Legitimo, Fortalecimiento Local y Eficiencia"},1474,1014177647,"NAIRA CAROLINA PARRA BELTRAN",19132000,null,null,0,0,19132000,19132000,"2020-05-29","2020-06-02","2020-10-01",120,0,0,null,null,null,null,null,null,"X",null,1]
[57,2020,"SECOP II","FDLF-CD-57-2020","Contratos de prestación de servicios","Contratación Directa","Prestación de servicios profesionales y de apoyo a la gestión, o para la ejecución de trabajos artísticos que sólo puedan encomendarse a determinadas personas naturales;","Servicios para el apoyo en la conducción de vehículos al servicio de la Alcaldía Local de Fontibón.”","Inversión","Bogotá Mejor para Todos",45,{"$f":"IF(ISERROR(VLOOKUP(K72,Eje_Pilar_Prop!$C$2:$E$104,2,FALSE)),\" \",VLOOKUP(K72,Eje_Pilar_Prop!$C$2:$E$104,2,FALSE))","v":"Gobernanza e influencia local, regional e internacional"},{"$f":"IF(ISERROR(VLOOKUP(K72,Eje_Pilar_Prop!$C$2:$E$104,3,FALSE)),\" \",VLOOKUP(K72,Eje_Pilar_Prop!$C$2:$E$104,3,FALSE))","v":"Eje Transversal 4 Gobierno Legitimo, Fortalecimiento Local y Eficiencia"},1474,11385997,"JULIO ARMANDO GARZON MONTAÑEZ",9452000,null,null,0,0,9452000,9452000,"2020-06-01","2020-06-02","2020-10-01",120,0,0,null,null,null,null,null,null,"X",null,1]
[58,2020,"SECOP II","FDLF-CD-58-2020","Contratos de prestación de servicios","Contratación Directa","Prestación de servicios profesionales y de apoyo a la gestión, o para la ejecución de trabajos artísticos que sólo puedan encomendarse a determinadas personas naturales;","Prestar servicios profesionales para apoyar el área de gestión de desarrollo local orientada a los temas culturales ","Inversión","Bogotá Mejor para Todos",11,{"$f":"IF(ISERROR(VLOOKUP(K73,Eje_Pilar_Prop!$C$2:$E$104,2,FALSE)),\" \",VLOOKUP(K73,Eje_Pilar_Prop!$C$2:$E$104,2,FALSE))","v":"Mejores oportunidades para el desarrollo a través de la cultura, la recreación y el deporte"},{"$f":"IF(ISERROR(VLOOKUP(K73,Eje_Pilar_Prop!$C$2:$E$104,3,FALSE)),\" \",VLOOKUP(K73,Eje_Pilar_Prop!$C$2:$E$104,3,FALSE))","v":"Pilar 1 Igualdad de Calidad de Vida"},1458,80040922,"ANDRES FERNANDO ACERO DIAZ",19132000,null,null,0,0,19132000,19132000,"2020-06-02","2020-06-03","2020-10-02",120,0,0,null,null,null,null,null,null,"X",null,1]
[59,2020,"SECOP II","FDLF-CD-59-2020","Contratos de prestación de servicios","Contratación Directa","Prestación de servicios profesionales y de apoyo a la gestión, o para la ejecución de trabajos artísticos que sólo puedan encomendarse a determinadas personas naturales;","Prestar servicios como profesional para realizar el proceso de liquidaciones de los contratos suscritos por el fondo de Desarrollo Local de Fontibón.","Inversión","Bogotá Mejor para Todos",45,{"$f":"IF(ISERROR(VLOOKUP(K74,Eje_Pilar_Prop!$C$2:$E$104,2,FALSE)),\" \",VLOOKUP(K74,Eje_Pilar_Prop!$C$2:$E$104,2,FALSE))","v":"Gobernanza e influencia local, regional e internacional"},{"$f":"IF(ISERROR(VLOOKUP(K74,Eje_Pilar_Prop!$C$2:$E$104,3,FALSE)),\" \",VLOOKUP(K74,Eje_Pilar_Prop!$C$2:$E$104,3,FALSE))","v":"Eje Transversal 4 Gobierno Legitimo, Fortalecimiento Local y Eficiencia"},1474,79997685,"NESTOR CAMILO FLORIAN TORRES",19132000,null,null,0,0,19132000,19132000,"2020-06-01","2020-06-08","2020-10-07",120,0,0,null,null,null,null,null,null,"X",null,1]
[60,2020,"SECOP II","FDLF-CD-60-2020","Contratos de prestación de servicios","Contratación Directa","Prestación de servicios profesionales y de apoyo a la gestión, o para la ejecución de trabajos artísticos que sólo puedan encomendarse a determinadas personas naturales;","Prestar servicios profesionales para apoyar al alcalde (sa) local en la promoción, acompañamiento,coordinación y atención de las instancias de coordinación interinstucionales y las instintas de participacion locales asi como los procesos comunitarios en la localidad.","Inversión","Bogotá Mejor para Todos",45,{"$f":"IF(ISERROR(VLOOKUP(K75,Eje_Pilar_Prop!$C$2:$E$104,2,FALSE)),\" \",VLOOKUP(K75,Eje_Pilar_Prop!$C$2:$E$104,2,FALSE))","v":"Gobernanza e influencia local, regional e internacional"},{"$f":"IF(ISERROR(VLOOKUP(K75,Eje_Pilar_Prop!$C$2:$E$104,3,FALSE)),\" \",VLOOKUP(K75,Eje_Pilar_Prop!$C$2:$E$104,3,FALSE))","v":"Eje Transversal 4 Gobierno Legitimo, Fortalecimiento Local y Eficiencia"},1473,1016040453,"HENRY ANDRÉS TENORIO ALBÁN ",19132000,null,null,0,0,19132000,18813133,"2020-06-02","2020-06-03","2020-10-02",120,0,0,null,null,null,null,null,null,"X",null,0.98333331591051643]
[61,2020,"SECOP II","FDLF-CD-61-2020","Contratos de prestación de servicios","Contratación Directa","Prestación de servicios profesionales y de apoyo a la gestión, o para la ejecución de trabajos artísticos que sólo puedan encomendarse a determinadas personas naturales;","Prestar servicios profesionales para apoyar jurídicamente los diferentes procesos que requiera adelantar la Alcaldía Local de Fontibón desde las etapas precontractual, contractual y post contractual.","Inversión","Bogotá Mejor para Todos",45,{"$f":"IF(ISERROR(VLOOKUP(K76,Eje_Pilar_Prop!$C$2:$E$104,2,FALSE)),\" \",VLOOKUP(K76,Eje_Pilar_Prop!$C$2:$E$104,2,FALSE))","v":"Gobernanza e influencia local, regional e internacional"},{"$f":"IF(ISERROR(VLOOKUP(K76,Eje_Pilar_Prop!$C$2:$E$104,3,FALSE)),\" \",VLOOKUP(K76,Eje_Pilar_Prop!$C$2:$E$104,3,FALSE))","v":"Eje Transversal 4 Gobierno Legitimo, Fortalecimiento Local y Eficiencia"},1474,40390477,"BLANCA OLIVA CORDOBA MARTINEZ",30000000,null,null,2,{"$f":"11800000+3200000","v":15000000},45000000,35800000,"2020-06-01","2020-06-02","2021-01-16",150,2,59,1123730820,"RODRIGO JOSE ZABALETA BAÑOL","2020-08-21",14200000,null,"X",null,null,0.79555555555555557]
[62,2020,"SECOP II","FDLF-CD-62-2020","Contratos de prestación de servicios","Contratación Directa","Prestación de servicios profesionales y de apoyo a la gestión, o para la ejecución de trabajos artísticos que sólo puedan encomendarse a determinadas personas naturales;","PRESTAR SERVICIOS PROFESIONALES PARA APOYAR EL FORTALECIMIENTO DE LA GESTIÓN LOCAL DE RIESGO Y CAMBIO CLIMÁTICO EN EL MARCO DEL SISTEMA DISTRITAL DE GESTIÓN DE RIESGOS Y CAMBIO CLIMÁTICO DSGR-CC.","Inversión","Bogotá Mejor para Todos",45,{"$f":"IF(ISERROR(VLOOKUP(K77,Eje_Pilar_Prop!$C$2:$E$104,2,FALSE)),\" \",VLOOKUP(K77,Eje_Pilar_Prop!$C$2:$E$104,2,FALSE))","v":"Gobernanza e influencia local, regional e internacional"},{"$f":"IF(ISERROR(VLOOKUP(K77,Eje_Pilar_Prop!$C$2:$E$104,3,FALSE)),\" \",VLOOKUP(K77,Eje_Pilar_Prop!$C$2:$E$104,3,FALSE))","v":"Eje Transversal 4 Gobierno Legitimo, Fortalecimiento Local y Eficiencia"},1474,80166442,"CARLOS ANDRES MARIN BAUTISTA",16800000,null,null,0,0,16800000,16800000,"2020-06-09","2020-06-11","2020-10-10",120,0,0,null,null,null,null,null,null,"X",null,1]
[63,2020,"SECOP II","FDLF-CD-63-2020","Contratos de prestación de servicios","Contratación Directa","Prestación de servicios profesionales y de apoyo a la gestión, o para la ejecución de trabajos artísticos que sólo puedan encomendarse a determinadas personas naturales;","PRESTACIÓN DE SERVICIOS DE APOYO TÉCNICO AL ÁREA DE GESTIÓN DE DESARROLLO LOCAL EN PLANEACIÓN EN LAS ACTIVIDADES QUE SE REQUIERAN, DE CONFORMIDAD CON LOS ESTUDIOS PREVIOS.","Inversión","Bogotá Mejor para Todos",45,{"$f":"IF(ISERROR(VLOOKUP(K78,Eje_Pilar_Prop!$C$2:$E$104,2,FALSE)),\" \",VLOOKUP(K78,Eje_Pilar_Prop!$C$2:$E$104,2,FALSE))","v":"Gobernanza e influencia local, regional e internacional"},{"$f":"IF(ISERROR(VLOOKUP(K78,Eje_Pilar_Prop!$C$2:$E$104,3,FALSE)),\" \",VLOOKUP(K78,Eje_Pilar_Prop!$C$2:$E$104,3,FALSE))","v":"Eje Transversal 4 Gobierno Legitimo, Fortalecimiento Local y Eficiencia"},1474,52352116,"NELLY ANGELICA MELENDEZ NUÑEZ",22800000,null,null,1,3800000,{"$f":"+Q78+S78+U78","v":26600000},21660000,"2020-06-05","2020-06-10","2021-01-09",180,1,30,null,null,null,null,null,"X",null,null,0.81428571428571428]
["63",2020,null,null,"Otros","Contratación directa","No aplica","RESOLUCION N° 63 DE 2020, POR MEDIO DE LA CUAL SE GARANTIZA EL GASTO Y PAGO CORRESPONDIENTE AL PROYECTO N° 1453   FONTIBON INCLUYENTE,DIGNO Y FELIZ PARA PERSONAS MAYORES Y EN CONDICIÓN DE DISCAPACIDAD  COMPONENTE: ENTREGA DE SUBSIDIO ECONOMICO TIPO C, VIGENCIA 2020, DESDE LOS MESES DE JULIO DE 2020 A ENERO DE 2021, SE EXPIDE CRP SEGÚN MEMORANDO 20205900001733 DE FECHA JUL 16 DE 2020.","Inversión","Bogotá Mejor para Todos",3,{"$f":"IF(ISERROR(VLOOKUP(K79,[1]Eje_Pilar_Prop!$C$2:$E$104,2,FALSE)),\" \",VLOOKUP(K79,[1]Eje_Pilar_Prop!$C$2:$E$104,2,FALSE))","v":"Igualdad y autonomía para una Bogotá incluyente"},{"$f":"IF(ISERROR(VLOOKUP(K79,[1]Eje_Pilar_Prop!$C$2:$E$104,3,FALSE)),\" \",VLOOKUP(K79,[1]Eje_Pilar_Prop!$C$2:$E$104,3,FALSE))","v":"Pilar 1 Igualdad de Calidad de Vida"},1453,"860.066942-7","CAJA DE COMPENSACION FAMILIAR COMPENSAR",857500000,null,null,null,null,857500000,735000000,"2020-07-07","2020-07-07","2021-02-06",{"$f":"7*30","v":210},null,null,null,null,null,null,null,"X",null,null,0.8571428571428571]
[64,2020,"SECOP II","FDLF-CD-64-2020","Contratos de prestación de servicios","Contratación Directa","Prestación de servicios profesionales y de apoyo a la gestión, o para la ejecución de trabajos artísticos que sólo puedan encomendarse a determinadas personas naturales;","PRESTAR SERVICIOS COMO PROFESIONAL PARA REALIZAR EL PROCESO DE LIQUIDACIONES DE LOS CONTRATOS SUSCRITOS POR EL FONDO DE DESARROLLO LOCAL DE FONTIBÓN","Inversión","Bogotá Mejor para Todos",45,{"$f":"IF(ISERROR(VLOOKUP(K80,Eje_Pilar_Prop!$C$2:$E$104,2,FALSE)),\" \",VLOOKUP(K80,Eje_Pilar_Prop!$C$2:$E$104,2,FALSE))","v":"Gobernanza e influencia local, regional e internacional"},{"$f":"IF(ISERROR(VLOOKUP(K80,Eje_Pilar_Prop!$C$2:$E$104,3,FALSE)),\" \",VLOOKUP(K80,Eje_Pilar_Prop!$C$2:$E$104,3,FALSE))","v":"Eje Transversal 4 Gobierno Legitimo, Fortalecimiento Local y Eficiencia"},1474,51800753,"MARIBEL SOLIS AVILA",19132000,null,null,0,0,19132000,17537667,"2020-06-09","2020-06-11","2020-10-10",120,0,0,null,null,null,null,null,null,"X",null,{"$f":"IF(ISERROR(W80/V80),\"-\",(W80/V80))","v":0.9166666840894836}]
["64",2020,null,null,"Otros","Contratación directa","No aplica","RESOLUCION N° 64 DE 2020, POR MEDIO DE LA CUAL SE GARANTIZA EL PAGO DE LOS COSTOS OPERATIVOS QUE CAUSEN EN EL DESARROLLO DEL CONVENIO N°4002 DE 2011, CELEBRADO ENTRE LA ALCALDIA LOCAL DE FONTIBÓN Y LA CAJA DE COMPENSACION FAMILIAR COMPENSAR, DENTRO DEL PROYECTO N° 1453 DE LA LOCALIDAD DE FONTIBÓN, VIGENCIA 2020, CON COBERTURA DE JULIO DE 2020 A ENERO DE 2021, SE EXPIDE CRP SEGÚN MEMORANDO 20205900001723 DE FECHA JUL 16 DE 2020.","Inversión","Bogotá Mejor para Todos",3,{"$f":"IF(ISERROR(VLOOKUP(K81,[1]Eje_Pilar_Prop!$C$2:$E$104,2,FALSE)),\" \",VLOOKUP(K81,[1]Eje_Pilar_Prop!$C$2:$E$104,2,FALSE))","v":"Igualdad y autonomía para una Bogotá incluyente"},{"$f":"IF(ISERROR(VLOOKUP(K81,[1]Eje_Pilar_Prop!$C$2:$E$104,3,FALSE)),\" \",VLOOKUP(K81,[1]Eje_Pilar_Prop!$C$2:$E$104,3,FALSE))","v":"Pilar 1 Igualdad de Calidad de Vida"},1453,"860.066942-7","CAJA DE COMPENSACION FAMILIAR COMPENSAR",11900000,null,null,null,null,11900000,6376755,"2020-07-07","2020-07-07","2021-02-06",{"$f":"7*30","v":210},null,null,null,null,null,null,null,"X",null,null,{"$f":"IF(ISERROR(W81/V81),\"-\",(W81/V81))","v":0.53586176470588232}]
[65,2020,"SECOP II","FDLF-CD-65-2020","Contratos de prestación de servicios","Contratación Directa","Prestación de servicios profesionales y de apoyo a la gestión, o para la ejecución de trabajos artísticos que sólo puedan encomendarse a determinadas personas naturales;","PRESTAR SERVICIOS COMO PROFESIONAL PARA REALIZAR EL PROCESO DE LIQUIDACIONES DE LOS CONTRATOS SUSCRITOS POR EL FONDO DE DESARROLLO LOCAL DE FONTIBÓN","Inversión","Bogotá Mejor para Todos",45,{"$f":"IF(ISERROR(VLOOKUP(K82,Eje_Pilar_Prop!$C$2:$E$104,2,FALSE)),\" \",VLOOKUP(K82,Eje_Pilar_Prop!$C$2:$E$104,2,FALSE))","v":"Gobernanza e influencia local, regional e internacional"},{"$f":"IF(ISERROR(VLOOKUP(K82,Eje_Pilar_Prop!$C$2:$E$104,3,FALSE)),\" \",VLOOKUP(K82,Eje_Pilar_Prop!$C$2:$E$104,3,FALSE))","v":"Eje Transversal 4 Gobierno Legitimo, Fortalecimiento Local y Eficiencia"},1474,60315384,"MARTHA LUCIA VEGA RAMIREZ",19132000,null,null,0,0,19132000,19132000,"2020-06-05","2020-06-08","2020-10-07",120,0,0,null,null,null,null,null,null,"X",null,{"$f":"IF(ISERROR(W82/V82),\"-\",(W82/V82))","v":1}]
[66,2020,"SECOP II","FDLF-CD-66-2020","Contratos de prestación de servicios","Contratación Directa","Prestación de servicios profesionales y de apoyo a la gestión, o para la ejecución de trabajos artísticos que sólo puedan encomendarse a determinadas personas naturales;","SERVICIOS PARA EL APOYO EN LA CONDUCCIÓN DE VEHÍCULOS AL SERVICIO DE LA ALCALDÍA LOCAL DE FONTIBÓN.","Inversión","Bogotá Mejor para Todos",45,{"$f":"IF(ISERROR(VLOOKUP(K83,Eje_Pilar_Prop!$C$2:$E$104,2,FALSE)),\" \",VLOOKUP(K83,Eje_Pilar_Prop!$C$2:$E$104,2,FALSE))","v":"Gobernanza e influencia local, regional e internacional"},{"$f":"IF(ISERROR(VLOOKUP(K83,Eje_Pilar_Prop!$C$2:$E$104,3,FALSE)),\" \",VLOOKUP(K83,Eje_Pilar_Prop!$C$2:$E$104,3,FALSE))","v":"Eje Transversal 4 Gobierno Legitimo, Fortalecimiento Local y Eficiencia"},1474,80066595,"JHON FREDY ORDUZ ORTIZ",9452000,null,null,0,0,9452000,9452000,"2020-06-08","2020-06-18","2020-10-17",120,0,0,null,null,null,null,null,null,"X",null,{"$f":"IF(ISERROR(W83/V83),\"-\",(W83/V83))","v":1}]
[67,2020,"SECOP II","FDLF-CD-67-2020","Contratos de prestación de servicios","Contratación Directa","Prestación de servicios profesionales y de apoyo a la gestión, o para la ejecución de trabajos artísticos que sólo puedan encomendarse a determinadas personas naturales;","PRESTACIÓN DE SERVICIOS COMO PROFESIONAL ESPECIALIZADO PARA ORIENTAR AL ÁREA DE GESTIÓN DE DESARROLLO EN LAS ACTIVIDADES DE REVISIÓN, CONTROL, SEGUIMIENTO A LOS PROYECTOS A CARGO DE LA ALCALDÍA LOCAL DE FONTIBÓN.","Inversión","Bogotá Mejor para Todos",45,{"$f":"IF(ISERROR(VLOOKUP(K84,Eje_Pilar_Prop!$C$2:$E$104,2,FALSE)),\" \",VLOOKUP(K84,Eje_Pilar_Prop!$C$2:$E$104,2,FALSE))","v":"Gobernanza e influencia local, regional e internacional"},{"$f":"IF(ISERROR(VLOOKUP(K84,Eje_Pilar_Prop!$C$2:$E$104,3,FALSE)),\" \",VLOOKUP(K84,Eje_Pilar_Prop!$C$2:$E$104,3,FALSE))","v":"Eje Transversal 4 Gobierno Legitimo, Fortalecimiento Local y Eficiencia"},1474,32294897,"YAJAIRA CUESTA MACHUCA",45000000,null,null,1,15000000,60000000,40750000,"2020-06-16","2020-06-18","2021-02-17",180,0,0,null,null,null,null,null,"X",null,null,{"$f":"IF(ISERROR(W84/V84),\"-\",(W84/V84))","v":0.6791666666666667}]
[67,2020,null,null,"Otros","Contratación directa","No aplica","POR EL CUAL SE AUTORIZA LA TRANSFERENCIA DE RECURSOS CON DESTINO A LA DIRECCIÓN DISTRITAL DE TESORERIA PARA ATENDER EL CANAL DE TRANSFERENCIAS MONETARIAS SEGÚN RESOLUCIÓN 067 DEL 22 DE JULIO DE 2020 DE LA ALCALDÍA LOCAL DE FONTIBÓN. SOLICITUD DE CRP 22-JULIO-2020","Inversión","Bogotá Mejor para Todos",3,{"$f":"IF(ISERROR(VLOOKUP(K85,[1]Eje_Pilar_Prop!$C$2:$E$104,2,FALSE)),\" \",VLOOKUP(K85,[1]Eje_Pilar_Prop!$C$2:$E$104,2,FALSE))","v":"Igualdad y autonomía para una Bogotá incluyente"},{"$f":"IF(ISERROR(VLOOKUP(K85,[1]Eje_Pilar_Prop!$C$2:$E$104,3,FALSE)),\" \",VLOOKUP(K85,[1]Eje_Pilar_Prop!$C$2:$E$104,3,FALSE))","v":"Pilar 1 Igualdad de Calidad de Vida"},1453,"899999061-2","FONDO DE DESARROLLO LOCAL DE FONTIBON",1517521995,null,null,null,null,1517521995,1517521995,"2020-07-22",null,null,null,null,null,null,null,null,null,null,null,"X",null,{"$f":"IF(ISERROR(W85/V85),\"-\",(W85/V85))","v":1}]
[68,2020,"SECOP II","FDLF-CD-68-2020","Contratos de prestación de servicios","Contratación Directa","Prestación de servicios profesionales y de apoyo a la gestión, o para la ejecución de trabajos artísticos que sólo puedan encomendarse a determinadas personas naturales;","PRESTACIÓN DE SERVICIOS ESPECIALIZADOS DE APOYO AL DESPACHO DEL ALCALDE LOCAL EN LA REVISIÓN, GESTIÓN, EJECUCIÓN Y SEGUIMIENTO DE LA EJECUCIÓN PRESUPUESTAL, PROCESO ADMINISTRATIVOS, CONTRACTUALES Y ORGANIZACIONALES DEL ÁREA DE GESTIÓN POLICIVA Y JURÍDICA Y EL ÁREA DE GESTIÓN DE DESARROLLO LOCAL QUE LE SEAN REQUERIDOS, DE CONFORMIDAD CON LOS ESTUDIOS PREVIOS.","Inversión","Bogotá Mejor para Todos",45,{"$f":"IF(ISERROR(VLOOKUP(K86,Eje_Pilar_Prop!$C$2:$E$104,2,FALSE)),\" \",VLOOKUP(K86,Eje_Pilar_Prop!$C$2:$E$104,2,FALSE))","v":"Gobernanza e influencia local, regional e internacional"},{"$f":"IF(ISERROR(VLOOKUP(K86,Eje_Pilar_Prop!$C$2:$E$104,3,FALSE)),\" \",VLOOKUP(K86,Eje_Pilar_Prop!$C$2:$E$104,3,FALSE))","v":"Eje Transversal 4 Gobierno Legitimo, Fortalecimiento Local y Eficiencia"},1474,1014182635,"HEIDI VANESSA SARAY GUATAQUIRA",48000000,null,null,1,16000000,64000000,43466666,"2020-06-12","2020-06-18","2021-02-17",180,1,60,null,null,null,null,null,"X",null,null,{"$f":"IF(ISERROR(W86/V86),\"-\",(W86/V86))","v":0.67916665624999994}]
[69,2020,"SECOP II","FDLF-CD-69-2020","Contratos de prestación de servicios","Contratación Directa","Prestación de servicios profesionales y de apoyo a la gestión, o para la ejecución de trabajos artísticos que sólo puedan encomendarse a determinadas personas naturales;","PRESTAR SERVICIOS PROFESIONALES ESPECIALIZADOS AL DESPACHO DEL ALCALDE LOCAL DE FONTIBÓN PARA ARTICULAR LA IMPLEMENTACIÓN DE PROCESOS ORIENTADOS A MEJORAR LA SEGURIDAD Y CONVIVENCIA EN LA LOCALIDAD DE FONTIBÓN A TRAVÉS DE LA PREVENCIÓN Y CONTROL DE DELITOS.","Inversión","Bogotá Mejor para Todos",19,{"$f":"IF(ISERROR(VLOOKUP(K87,Eje_Pilar_Prop!$C$2:$E$104,2,FALSE)),\" \",VLOOKUP(K87,Eje_Pilar_Prop!$C$2:$E$104,2,FALSE))","v":"Seguridad y convivencia para todos"},{"$f":"IF(ISERROR(VLOOKUP(K87,Eje_Pilar_Prop!$C$2:$E$104,3,FALSE)),\" \",VLOOKUP(K87,Eje_Pilar_Prop!$C$2:$E$104,3,FALSE))","v":"Pilar 3 Construcción de Comunidad y Cultura Ciudadana"},1467,98378367,"CARLOS MARIN INSUASTI INSUASTI",45000000,null,null,1,15000000,60000000,40750000,"2020-06-16","2020-06-18","2021-02-17",180,1,60,null,null,null,null,null,"X",null,null,0.6791666666666667]
[71,2020,"SECOP II","FDLF-CD-71-2020","Contratos de prestación de servicios","Contratación Directa","Prestación de servicios profesionales y de apoyo a la gestión, o para la ejecución de trabajos artísticos que sólo puedan encomendarse a determinadas personas naturales;","PRESTAR SERVICIOS DE APOYO TÉCNICO AL ÁREA DE GESTIÓN DE DESARROLLO LOCAL EN EL FONDO DE DESARROLLO LOCAL DE FONTIBÓN, EN LOS TRÁMITES RELACIONADOS CON LOS PROCESOS PRECONTRACTUALES, CONTRACTUALES Y POST CONTRACTUALES Y EN LAS DEMÁS ACTIVIDADES QUE ALLÍ SE REQUIERAN","Inversión","Bogotá Mejor para Todos",45,{"$f":"IF(ISERROR(VLOOKUP(K88,Eje_Pilar_Prop!$C$2:$E$104,2,FALSE)),\" \",VLOOKUP(K88,Eje_Pilar_Prop!$C$2:$E$104,2,FALSE))","v":"Gobernanza e influencia local, regional e internacional"},{"$f":"IF(ISERROR(VLOOKUP(K88,Eje_Pilar_Prop!$C$2:$E$104,3,FALSE)),\" \",VLOOKUP(K88,Eje_Pilar_Prop!$C$2:$E$104,3,FALSE))","v":"Eje Transversal 4 Gobierno Legitimo, Fortalecimiento Local y Eficiencia"},1474,1026267502,"JEFFERSON DAVID LADINO MALAGON",17500000,null,null,0,0,17500000,17500000,"2020-06-19","2020-06-19","2020-11-18",150,0,0,52290771,"JOHANNA GONZALEZ GONZALEZ","2020-09-25",6300000,null,null,"X",null,1]
[72,2020,"SECOP II","FDLF-CD-72-2020","Contratos de prestación de servicios","Contratación Directa","Prestación de servicios profesionales y de apoyo a la gestión, o para la ejecución de trabajos artísticos que sólo puedan encomendarse a determinadas personas naturales;","PRESTAR SERVICIOS PROFESIONALES PARA LA OPERACIÓN, PRESTACIÓN, SEGUIMIENTO Y CUMPLIMIENTO DE LOS PROCEDIMIENTOS ADMINISTRATIVOS, OPERATIVOS Y PROGRAMÁTICOS DEL SERVICIO APOYO ECONÓMICO TIPO C, QUE CONTRIBUYAN A LA GARANTÍA DE LOS DERECHOS DE LA POBLACIÓN MAYOR EN EL MARCO DE LA POLÍTICA PÚBLICA SOCIAL PARA EL ENVEJECIMIENTO Y LA VEJEZ EN EL DISTRITO CAPITAL A CARGO DE LA ALCALDÍA LOCAL\n","Inversión","Bogotá Mejor para Todos",3,{"$f":"IF(ISERROR(VLOOKUP(K89,Eje_Pilar_Prop!$C$2:$E$104,2,FALSE)),\" \",VLOOKUP(K89,Eje_Pilar_Prop!$C$2:$E$104,2,FALSE))","v":"Igualdad y autonomía para una Bogotá incluyente"},{"$f":"IF(ISERROR(VLOOKUP(K89,Eje_Pilar_Prop!$C$2:$E$104,3,FALSE)),\" \",VLOOKUP(K89,Eje_Pilar_Prop!$C$2:$E$104,3,FALSE))","v":"Pilar 1 Igualdad de Calidad de Vida"},1453,52783244,"DUDLEY JOHANNA PALACIOS GARCIA",23915000,null,null,0,0,23915000,23915000,"2020-06-25","2020-06-26","2021-11-26",150,0,0,null,null,null,null,null,null,"X",null,1]
[73,2020,"SECOP II","FDLF-CD-73-2020","Contratos de prestación de servicios","Contratación Directa","Prestación de servicios profesionales y de apoyo a la gestión, o para la ejecución de trabajos artísticos que sólo puedan encomendarse a determinadas personas naturales;","PRESTAR SERVICIOS PROFESIONALES PARA APOYAR TÉCNICAMENTE A LOS RESPONSABLES E INTEGRANTES DE LOS PROCESOS EN LA IMPLEMENTACIÓN DE HERRAMIENTAS DE GESTIÓN, SIGUIENDO LOS LINEAMIENTOS METODOLÓGICOS ESTABLECIDOS POR LA OFICINA ASESORA DE PLANEACIÓN DE LA SECRETARÍA DISTRITAL DE GOBIERNO","Inversión","Bogotá Mejor para Todos",45,{"$f":"IF(ISERROR(VLOOKUP(K90,Eje_Pilar_Prop!$C$2:$E$104,2,FALSE)),\" \",VLOOKUP(K90,Eje_Pilar_Prop!$C$2:$E$104,2,FALSE))","v":"Gobernanza e influencia local, regional e internacional"},{"$f":"IF(ISERROR(VLOOKUP(K90,Eje_Pilar_Prop!$C$2:$E$104,3,FALSE)),\" \",VLOOKUP(K90,Eje_Pilar_Prop!$C$2:$E$104,3,FALSE))","v":"Eje Transversal 4 Gobierno Legitimo, Fortalecimiento Local y Eficiencia"},1474,9022215,"JORGE ISAAC GARAVITO JIMENEZ",34800000,null,null,1,6960000,41760000,30160000,"2020-06-24","2020-06-25","2021-01-30",180,1,36,null,null,null,null,null,"X",null,null,0.72222222222222221]
[74,2020,"SECOP II","FDLF-CD-74-2020","Contratos de prestación de servicios","Contratación Directa","Prestación de servicios profesionales y de apoyo a la gestión, o para la ejecución de trabajos artísticos que sólo puedan encomendarse a determinadas personas naturales;","PRESTAR SERVICIOS PROFESIONALES PARA APOYAR EL ÁREA DE GESTIÓN DEL DESARROLLO LOCAL EN LA EJECUCIÓN DEL PROYECTO FONTIBÓN, MEJORES PARQUES PARA TODOS","Inversión","Bogotá Mejor para Todos",17,{"$f":"IF(ISERROR(VLOOKUP(K91,Eje_Pilar_Prop!$C$2:$E$104,2,FALSE)),\" \",VLOOKUP(K91,Eje_Pilar_Prop!$C$2:$E$104,2,FALSE))","v":"Espacio público, derecho de todos"},{"$f":"IF(ISERROR(VLOOKUP(K91,Eje_Pilar_Prop!$C$2:$E$104,3,FALSE)),\" \",VLOOKUP(K91,Eje_Pilar_Prop!$C$2:$E$104,3,FALSE))","v":"Pilar 2 Democracía Urbana"},1462,25026067,"LIDA MARIA GIRALDO SANCHEZ",19132000,null,null,0,0,19132000,19132000,"2020-06-24","2020-06-26","2020-10-25",120,0,0,52152211,"DORA ALIX HERNÁNDEZ CEBALLO","2020-08-21",10522600,null,null,"X",null,1]
[75,2020,"SECOP II","FDLF-CD-75-2020","Contratos de prestación de servicios","Contratación Directa","Prestación de servicios profesionales y de apoyo a la gestión, o para la ejecución de trabajos artísticos que sólo puedan encomendarse a determinadas personas naturales;","PRESTAR SERVICIOS COMO PROFESIONAL QUE DESARROLLE ACTIVIDADES DE APOYO, FORMULACIÓN, SEGUIMIENTO Y ACOMPAÑAMIENTO TÉCNICO EN OBRAS E INFRAESTRUCTURA EN LA LOCALIDAD DE FONTIBÓN","Inversión","Bogotá Mejor para Todos",18,{"$f":"IF(ISERROR(VLOOKUP(K92,Eje_Pilar_Prop!$C$2:$E$104,2,FALSE)),\" \",VLOOKUP(K92,Eje_Pilar_Prop!$C$2:$E$104,2,FALSE))","v":"Mejor movilidad para todos"},{"$f":"IF(ISERROR(VLOOKUP(K92,Eje_Pilar_Prop!$C$2:$E$104,3,FALSE)),\" \",VLOOKUP(K92,Eje_Pilar_Prop!$C$2:$E$104,3,FALSE))","v":"Pilar 2 Democracía Urbana"},1464,1019050768,"RIYHAT SIMAHAN BERNAL",19132000,null,null,1,9359400,28491400,23708400,"2020-07-03","2020-07-07","2020-12-30",120,1,54,null,null,null,null,null,null,"X",null,0.83212478151301794]
[76,2020,"SECOP II","FDLF-CD-76-2020","Contratos de prestación de servicios","Contratación Directa","Prestación de servicios profesionales y de apoyo a la gestión, o para la ejecución de trabajos artísticos que sólo puedan encomendarse a determinadas personas naturales;","PRESTAR SERVICIOS PROFESIONALES PARA APOYAR EL ÁREA DE GESTIÓN DEL DESARROLLO LOCAL EN LA EJECUCIÓN DEL PROYECTO FONTIBÓN, MEJORES PARQUES PARA TODOS","Inversión","Bogotá Mejor para Todos",17,{"$f":"IF(ISERROR(VLOOKUP(K93,Eje_Pilar_Prop!$C$2:$E$104,2,FALSE)),\" \",VLOOKUP(K93,Eje_Pilar_Prop!$C$2:$E$104,2,FALSE))","v":"Espacio público, derecho de todos"},{"$f":"IF(ISERROR(VLOOKUP(K93,Eje_Pilar_Prop!$C$2:$E$104,3,FALSE)),\" \",VLOOKUP(K93,Eje_Pilar_Prop!$C$2:$E$104,3,FALSE))","v":"Pilar 2 Democracía Urbana"},1462,1030533242,"DIEGO ALEJANDRO HERNANDEZ BOCANEGRA",19132000,null,null,1,8609400,27741400,22958400,"2020-07-03","2020-07-07","2020-12-30",120,1,54,null,null,null,null,null,null,"X",null,0.82758620689655171]
[78,2020,"SECOP II","FDLF-CD-78-2020","Contratos de prestación de servicios","Contratación Directa","Prestación de servicios profesionales y de apoyo a la gestión, o para la ejecución de trabajos artísticos que sólo puedan encomendarse a determinadas personas naturales;","APOYO OPERATIVO PARA LAS ACTIVIDADES RELACIONADAS CON EL MANTENIMIENTO Y REPARACIONES MENORES DE LA SEDE Y DEMÁS DEPENDENCIAS DE LA ALCALDÍA LOCAL DE FONTIBÓN.","Inversión","Bogotá Mejor para Todos",45,{"$f":"IF(ISERROR(VLOOKUP(K94,Eje_Pilar_Prop!$C$2:$E$104,2,FALSE)),\" \",VLOOKUP(K94,Eje_Pilar_Prop!$C$2:$E$104,2,FALSE))","v":"Gobernanza e influencia local, regional e internacional"},{"$f":"IF(ISERROR(VLOOKUP(K94,Eje_Pilar_Prop!$C$2:$E$104,3,FALSE)),\" \",VLOOKUP(K94,Eje_Pilar_Prop!$C$2:$E$104,3,FALSE))","v":"Eje Transversal 4 Gobierno Legitimo, Fortalecimiento Local y Eficiencia"},1474,79138055,"RENE JAVIER MELO MAZABEL",7020000,null,null,1,2340000,9360000,7605000,"2020-07-17","2020-07-21","2020-12-30",120,1,40,null,null,null,null,null,null,"X",null,0.8125]
[79,2020,"SECOP II","FDLF-CD-79-2020","Contratos de prestación de servicios","Contratación Directa","Prestación de servicios profesionales y de apoyo a la gestión, o para la ejecución de trabajos artísticos que sólo puedan encomendarse a determinadas personas naturales;","SERVICIOS PARA EL APOYO EN LA CONDUCCIÓN DE VEHÍCULOS AL SERVICIO DE LA ALCALDÍA LOCAL DE FONTIBÓN.","Inversión","Bogotá Mejor para Todos",45,{"$f":"IF(ISERROR(VLOOKUP(K95,Eje_Pilar_Prop!$C$2:$E$104,2,FALSE)),\" \",VLOOKUP(K95,Eje_Pilar_Prop!$C$2:$E$104,2,FALSE))","v":"Gobernanza e influencia local, regional e internacional"},{"$f":"IF(ISERROR(VLOOKUP(K95,Eje_Pilar_Prop!$C$2:$E$104,3,FALSE)),\" \",VLOOKUP(K95,Eje_Pilar_Prop!$C$2:$E$104,3,FALSE))","v":"Eje Transversal 4 Gobierno Legitimo, Fortalecimiento Local y Eficiencia"},1474,80064974,"CARLOS ANDRES ULCUE",9452000,null,null,0,0,9452000,9452000,"2020-07-03","2020-07-08","2020-11-07",120,0,0,null,null,null,null,null,null,"X",null,1]
[80,2020,"SECOP II","FDLF-CD-80-2020","Contratos de prestación de servicios","Contratación Directa","Prestación de servicios profesionales y de apoyo a la gestión, o para la ejecución de trabajos artísticos que sólo puedan encomendarse a determinadas personas naturales;","SERVICIOS DE APOYO TÉCNICO ADMINISTRATIVO AL ÁREA DE GESTIÓN DEL DESARROLLO LOCAL DE LA ALCALDÍA LOCAL DE FONTIBÓN","Inversión","Bogotá Mejor para Todos",45,{"$f":"IF(ISERROR(VLOOKUP(K96,Eje_Pilar_Prop!$C$2:$E$104,2,FALSE)),\" \",VLOOKUP(K96,Eje_Pilar_Prop!$C$2:$E$104,2,FALSE))","v":"Gobernanza e influencia local, regional e internacional"},{"$f":"IF(ISERROR(VLOOKUP(K96,Eje_Pilar_Prop!$C$2:$E$104,3,FALSE)),\" \",VLOOKUP(K96,Eje_Pilar_Prop!$C$2:$E$104,3,FALSE))","v":"Eje Transversal 4 Gobierno Legitimo, Fortalecimiento Local y Eficiencia"},1473,1016055638,"SERGIO SEBASTIAN VILLEGAS TORRES",14000000,null,null,1,2800000,16800000,13253333,"2020-07-08","2020-07-09","2021-01-08",150,1,30,null,null,null,null,null,"X",null,null,0.78888886904761901]
[81,2020,"SECOP II","FDLF-CD-81-2020","Contratos de prestación de servicios","Contratación Directa","Prestación de servicios profesionales y de apoyo a la gestión, o para la ejecución de trabajos artísticos que sólo puedan encomendarse a determinadas personas naturales;","PRESTAR SERVICIOS PROFESIONALES PARA APOYAR EL ÁREA DE GESTIÓN DE DESARROLLO LOCAL ORIENTADA A LOS TEMAS DEPORTIVOS Y RECREATIVOS.","Inversión","Bogotá Mejor para Todos",11,{"$f":"IF(ISERROR(VLOOKUP(K97,Eje_Pilar_Prop!$C$2:$E$104,2,FALSE)),\" \",VLOOKUP(K97,Eje_Pilar_Prop!$C$2:$E$104,2,FALSE))","v":"Mejores oportunidades para el desarrollo a través de la cultura, la recreación y el deporte"},{"$f":"IF(ISERROR(VLOOKUP(K97,Eje_Pilar_Prop!$C$2:$E$104,3,FALSE)),\" \",VLOOKUP(K97,Eje_Pilar_Prop!$C$2:$E$104,3,FALSE))","v":"Pilar 1 Igualdad de Calidad de Vida"},1458,1032430030,"MIGUEL ANGEL GONZALEZ GARCIA",27500000,null,null,1,5500000,33000000,24933333,"2020-07-09","2020-07-15","2021-01-14",150,1,30,null,null,null,null,null,"X",null,null,0.75555554545454551]
[82,2020,"SECOP II","FDLF-CD-82-2020","Contratos de prestación de servicios","Contratación Directa","Prestación de servicios profesionales y de apoyo a la gestión, o para la ejecución de trabajos artísticos que sólo puedan encomendarse a determinadas personas naturales;","PRESTAR SERVICIOS PROFESIONALES PARA APOYAR A LA ADMINISTRACIÓN LOCAL EN LA FORMULACIÓN Y SEGUIMIENTO A LOS PROYECTOS DE INVERSIÓN Y GASTOS DE FUNCIONAMIENTO.","Inversión","Bogotá Mejor para Todos",45,{"$f":"IF(ISERROR(VLOOKUP(K98,Eje_Pilar_Prop!$C$2:$E$104,2,FALSE)),\" \",VLOOKUP(K98,Eje_Pilar_Prop!$C$2:$E$104,2,FALSE))","v":"Gobernanza e influencia local, regional e internacional"},{"$f":"IF(ISERROR(VLOOKUP(K98,Eje_Pilar_Prop!$C$2:$E$104,3,FALSE)),\" \",VLOOKUP(K98,Eje_Pilar_Prop!$C$2:$E$104,3,FALSE))","v":"Eje Transversal 4 Gobierno Legitimo, Fortalecimiento Local y Eficiencia"},1474,36065900,"ANGELICA MARIA PUENTES AVILA",36000000,null,null,1,6000000,42000000,27400000,"2020-07-10","2020-07-14","2021-02-13",180,1,30,null,null,null,null,null,"X",null,null,0.65238095238095239]
[83,2020,"SECOP II","FDLF-IPMC-3-2020","Compraventa de bienes muebles","Contratación mínima cuantia","No aplica","ADQUISICIÓN DE EQUIPOS, ACCESORIOS DE CÓMPUTO Y SERVICIOS DE DATOS E INTERNET PARA FORTALECER ORGANIZACIONES, INSTANCIAS Y EXPRESIONES CIUDADANAS PARA LA PARTICIPACIÓN.","Inversión","Bogotá Mejor para Todos",45,{"$f":"IF(ISERROR(VLOOKUP(K99,Eje_Pilar_Prop!$C$2:$E$104,2,FALSE)),\" \",VLOOKUP(K99,Eje_Pilar_Prop!$C$2:$E$104,2,FALSE))","v":"Gobernanza e influencia local, regional e internacional"},{"$f":"IF(ISERROR(VLOOKUP(K99,Eje_Pilar_Prop!$C$2:$E$104,3,FALSE)),\" \",VLOOKUP(K99,Eje_Pilar_Prop!$C$2:$E$104,3,FALSE))","v":"Eje Transversal 4 Gobierno Legitimo, Fortalecimiento Local y Eficiencia"},1473,"901101612-1","CG CONTACT GROUP S.A.S",21256530,null,null,0,0,21256530,18152400,"2020-07-10","2020-07-15","2020-11-14",120,0,0,null,null,null,null,null,null,"X",null,0.85396816884035165]
[84,2020,"SECOP II","FDLF-CD-84-2020","Contratos de prestación de servicios","Contratación Directa","Prestación de servicios profesionales y de apoyo a la gestión, o para la ejecución de trabajos artísticos que sólo puedan encomendarse a determinadas personas naturales;","PRESTAR SERVICIOS PROFESIONALES PARA APOYAR AL ÁREA DE GESTIÓN DE DESARROLLO LOCAL EN LA PROMOCIÓN, ACOMPAÑAMIENTO Y ATENCIÓN DE LAS INSTANCIAS DE PARTICIPACIÓN LOCALES, ASÍ COMO LOS PROCESOS COMUNITARIOS EN LA LOCALIDAD.","Inversión","Bogotá Mejor para Todos",45,{"$f":"IF(ISERROR(VLOOKUP(K100,Eje_Pilar_Prop!$C$2:$E$104,2,FALSE)),\" \",VLOOKUP(K100,Eje_Pilar_Prop!$C$2:$E$104,2,FALSE))","v":"Gobernanza e influencia local, regional e internacional"},{"$f":"IF(ISERROR(VLOOKUP(K100,Eje_Pilar_Prop!$C$2:$E$104,3,FALSE)),\" \",VLOOKUP(K100,Eje_Pilar_Prop!$C$2:$E$104,3,FALSE))","v":"Eje Transversal 4 Gobierno Legitimo, Fortalecimiento Local y Eficiencia"},1473,1016072576,"MARÍA ALEJANDRA PIÑEROS MONDRAGÓN",21000000,null,null,1,4200000,25200000,18200000,"2020-07-16","2020-07-21","2021-01-20",150,1,30,null,null,null,null,null,"X",null,null,0.72222222222222221]
[85,2020,"SECOP I","FDLF-CIA-85-2020","Contratos interadministrativos","Contratación directa","Contratos interadministrativos","PROVEER UNA PLATAFORMA VIRTUAL Y SERVICIOS TECNOLÓGICOS PARA LA REALIZACIÓN DE LA VOTACIÓN DE LOS PRESUPUESTOS PARTICIPATIVOS, DE ACUERDO CON LOS LINEAMIENTOS ESTRATÉGICOS QUE DETERMINEN LOS FDL. ","Inversión","Bogotá Mejor para Todos",45,{"$f":"IF(ISERROR(VLOOKUP(K101,Eje_Pilar_Prop!$C$2:$E$104,2,FALSE)),\" \",VLOOKUP(K101,Eje_Pilar_Prop!$C$2:$E$104,2,FALSE))","v":"Gobernanza e influencia local, regional e internacional"},{"$f":"IF(ISERROR(VLOOKUP(K101,Eje_Pilar_Prop!$C$2:$E$104,3,FALSE)),\" \",VLOOKUP(K101,Eje_Pilar_Prop!$C$2:$E$104,3,FALSE))","v":"Eje Transversal 4 Gobierno Legitimo, Fortalecimiento Local y Eficiencia"},1473,"899.999.115-8","EMPRESA DE TELECOMUNICACIONES DE BOGOTÁ SA ESP",11604880,null,null,0,0,11604880,0,"2020-07-09","2020-07-13","2020-07-31",27,0,0,null,null,null,null,null,null,"X",null,0]
[86,2020,"SECOP II","FDLF-CD-86-2020","Contratos de prestación de servicios","Contratación Directa","Prestación de servicios profesionales y de apoyo a la gestión, o para la ejecución de trabajos artísticos que sólo puedan encomendarse a determinadas personas naturales;","APOYO OPERATIVO PARA LAS ACTIVIDADES RELACIONADAS CON EL MANTENIMIENTO Y REPARACIONES MENORES DE LA SEDE Y DEMÁS DEPENDENCIAS DE LA ALCALDÍA LOCAL DE FONTIBÓN.\n","Inversión","Bogotá Mejor para Todos",45,{"$f":"IF(ISERROR(VLOOKUP(K102,Eje_Pilar_Prop!$C$2:$E$104,2,FALSE)),\" \",VLOOKUP(K102,Eje_Pilar_Prop!$C$2:$E$104,2,FALSE))","v":"Gobernanza e influencia local, regional e internacional"},{"$f":"IF(ISERROR(VLOOKUP(K102,Eje_Pilar_Prop!$C$2:$E$104,3,FALSE)),\" \",VLOOKUP(K102,Eje_Pilar_Prop!$C$2:$E$104,3,FALSE))","v":"Eje Transversal 4 Gobierno Legitimo, Fortalecimiento Local y Eficiencia"},1474,1090424456,"JAMES ANTONY ANGARITA VELASCO",7020000,null,null,1,2281500,9301500,7546500,"2020-07-16","2020-07-22","2020-12-30",120,1,39,null,null,null,null,null,null,"X",null,0.81132075471698117]
[87,2020,"SECOP II","FDLF-CD-87-2020","Contratos de prestación de servicios","Contratación Directa","Prestación de servicios profesionales y de apoyo a la gestión, o para la ejecución de trabajos artísticos que sólo puedan encomendarse a determinadas personas naturales;","PRESTAR SERVICIOS PROFESIONALES PARA APOYAR LOS PROCESOS RELACIONADOS CON LOS CONTRATOS DE INVERSIÓN, VERIFICACIÓN DEL PROCEDIMIENTO DE PAGOS Y REVISIÓN DE CARPETAS ALLEGADAS AL DESPACHO PARA SU RESPECTIVA FIRMA DEL ALCALDE LOCAL.","Inversión","Bogotá Mejor para Todos",45,{"$f":"IF(ISERROR(VLOOKUP(K103,Eje_Pilar_Prop!$C$2:$E$104,2,FALSE)),\" \",VLOOKUP(K103,Eje_Pilar_Prop!$C$2:$E$104,2,FALSE))","v":"Gobernanza e influencia local, regional e internacional"},{"$f":"IF(ISERROR(VLOOKUP(K103,Eje_Pilar_Prop!$C$2:$E$104,3,FALSE)),\" \",VLOOKUP(K103,Eje_Pilar_Prop!$C$2:$E$104,3,FALSE))","v":"Eje Transversal 4 Gobierno Legitimo, Fortalecimiento Local y Eficiencia"},1474,51922431,"AMANDA LUCIA BELTRAN MARTINEZ",21000000,null,null,1,8400000,29400000,17920000,"2020-07-22","2020-07-23","2021-02-22",150,1,60,null,null,null,null,null,"X",null,null,0.60952380952380958]
[89,2020,"SECOP II","FDLF-CD-89-2020","Contratos de prestación de servicios","Contratación Directa","Prestación de servicios profesionales y de apoyo a la gestión, o para la ejecución de trabajos artísticos que sólo puedan encomendarse a determinadas personas naturales;","SERVICIOS DE APOYO TÉCNICO ADMINISTRATIVO AL ÁREA DE GESTIÓN DEL DESARROLLO LOCAL DE LA ALCALDÍA LOCAL DE FONTIBÓN.","Inversión","Bogotá Mejor para Todos",45,{"$f":"IF(ISERROR(VLOOKUP(K104,Eje_Pilar_Prop!$C$2:$E$104,2,FALSE)),\" \",VLOOKUP(K104,Eje_Pilar_Prop!$C$2:$E$104,2,FALSE))","v":"Gobernanza e influencia local, regional e internacional"},{"$f":"IF(ISERROR(VLOOKUP(K104,Eje_Pilar_Prop!$C$2:$E$104,3,FALSE)),\" \",VLOOKUP(K104,Eje_Pilar_Prop!$C$2:$E$104,3,FALSE))","v":"Eje Transversal 4 Gobierno Legitimo, Fortalecimiento Local y Eficiencia"},1474,52358174,"MARIA ISABEL BUITRAGO POLOCHE",19000000,null,null,1,3800000,22800000,16213333,"2020-07-22","2020-07-23","2021-01-22",150,1,30,null,null,null,null,null,"X",null,null,0.71111109649122806]
[91,2020,"SECOP II","FDLF-CD-91-2020","Contratos de prestación de servicios","Contratación Directa","Prestación de servicios profesionales y de apoyo a la gestión, o para la ejecución de trabajos artísticos que sólo puedan encomendarse a determinadas personas naturales;","PRESTAR SERVICIOS PROFESIONALES PARA APOYAR JURÍDICAMENTE LA EJECUCIÓN DE LAS ACCIONES REQUERIDAS PARA EL TRÁMITE E IMPULSO PROCESAL DE LAS ACTUACIONES CONTRAVENCIONALES Y/O QUERELLAS QUE CURSEN EN LAS INSPECCIONES DE POLICÍA DE LA LOCALIDAD","Inversión","Bogotá Mejor para Todos",45,{"$f":"IF(ISERROR(VLOOKUP(K105,Eje_Pilar_Prop!$C$2:$E$104,2,FALSE)),\" \",VLOOKUP(K105,Eje_Pilar_Prop!$C$2:$E$104,2,FALSE))","v":"Gobernanza e influencia local, regional e internacional"},{"$f":"IF(ISERROR(VLOOKUP(K105,Eje_Pilar_Prop!$C$2:$E$104,3,FALSE)),\" \",VLOOKUP(K105,Eje_Pilar_Prop!$C$2:$E$104,3,FALSE))","v":"Eje Transversal 4 Gobierno Legitimo, Fortalecimiento Local y Eficiencia"},1474,79307654,"ALVARO GOMEZ GOMEZ",23915000,null,null,1,4783000,28698000,20407467,"2020-07-21","2020-07-23","2021-01-22",150,1,30,null,null,null,null,null,"X",null,null,0.71111112272632238]
[92,2020,"SECOP II","FDLF-CD-92-2020","Contratos de prestación de servicios","Contratación Directa","Prestación de servicios profesionales y de apoyo a la gestión, o para la ejecución de trabajos artísticos que sólo puedan encomendarse a determinadas personas naturales;","PRESTAR SERVICIOS PROFESIONALES PARA APOYAR JURÍDICAMENTE LA EJECUCIÓN DE LAS ACCIONES REQUERIDAS PARA EL TRÁMITE E IMPULSO PROCESAL DE LAS ACTUACIONES CONTRAVENCIONALES Y/O QUERELLAS QUE CURSEN EN LAS INSPECCIONES DE POLICÍA DE LA LOCALIDAD","Inversión","Bogotá Mejor para Todos",45,{"$f":"IF(ISERROR(VLOOKUP(K106,Eje_Pilar_Prop!$C$2:$E$104,2,FALSE)),\" \",VLOOKUP(K106,Eje_Pilar_Prop!$C$2:$E$104,2,FALSE))","v":"Gobernanza e influencia local, regional e internacional"},{"$f":"IF(ISERROR(VLOOKUP(K106,Eje_Pilar_Prop!$C$2:$E$104,3,FALSE)),\" \",VLOOKUP(K106,Eje_Pilar_Prop!$C$2:$E$104,3,FALSE))","v":"Eje Transversal 4 Gobierno Legitimo, Fortalecimiento Local y Eficiencia"},1474,93020228,"HAMIXON LEAL CHILATRA",23915000,null,null,0,0,23915000,20407466,"2020-07-21","2020-07-23","2020-12-22",150,0,0,null,null,null,null,null,null,"X",null,0.85333330545682629]
[93,2020,"SECOP II","FDLF-CD-93-2020","Contratos de prestación de servicios","Contratación Directa","Prestación de servicios profesionales y de apoyo a la gestión, o para la ejecución de trabajos artísticos que sólo puedan encomendarse a determinadas personas naturales;","PRESTAR SERVICIOS PROFESIONALES PARA APOYAR JURÍDICAMENTE LA EJECUCIÓN DE LAS ACCIONES REQUERIDAS PARA EL TRÁMITE E IMPULSO PROCESAL DE LAS ACTUACIONES CONTRAVENCIONALES Y/O QUERELLAS QUE CURSEN EN LAS INSPECCIONES DE POLICÍA DE LA LOCALIDAD","Inversión","Bogotá Mejor para Todos",45,{"$f":"IF(ISERROR(VLOOKUP(K107,Eje_Pilar_Prop!$C$2:$E$104,2,FALSE)),\" \",VLOOKUP(K107,Eje_Pilar_Prop!$C$2:$E$104,2,FALSE))","v":"Gobernanza e influencia local, regional e internacional"},{"$f":"IF(ISERROR(VLOOKUP(K107,Eje_Pilar_Prop!$C$2:$E$104,3,FALSE)),\" \",VLOOKUP(K107,Eje_Pilar_Prop!$C$2:$E$104,3,FALSE))","v":"Eje Transversal 4 Gobierno Legitimo, Fortalecimiento Local y Eficiencia"},1474,1031152968,"NATALIA ALEJANDRA SEDANO GARZON",23915000,null,null,1,4783000,28698000,20407466,"2020-07-21","2020-07-23","2021-01-22",150,1,30,null,null,null,null,null,"X",null,null,0.71111108788068855]
[94,2020,"SECOP II","FDLE-CD-94-2020","Contratos de prestación de servicios","Contratación Directa","Prestación de servicios profesionales y de apoyo a la gestión, o para la ejecución de trabajos artísticos que sólo puedan encomendarse a determinadas personas naturales;","PRESTAR SERVICIOS PROFESIONALES PARA APOYAR JURÍDICAMENTE LA EJECUCIÓN DE LAS ACCIONES REQUERIDAS PARA EL TRÁMITE E IMPULSO PROCESAL DE LAS ACTUACIONES CONTRAVENCIONALES Y/O QUERELLAS QUE CURSEN EN LAS INSPECCIONES DE POLICÍA DE LA LOCALIDAD","Inversión","Bogotá Mejor para Todos",45,{"$f":"IF(ISERROR(VLOOKUP(K108,Eje_Pilar_Prop!$C$2:$E$104,2,FALSE)),\" \",VLOOKUP(K108,Eje_Pilar_Prop!$C$2:$E$104,2,FALSE))","v":"Gobernanza e influencia local, regional e internacional"},{"$f":"IF(ISERROR(VLOOKUP(K108,Eje_Pilar_Prop!$C$2:$E$104,3,FALSE)),\" \",VLOOKUP(K108,Eje_Pilar_Prop!$C$2:$E$104,3,FALSE))","v":"Eje Transversal 4 Gobierno Legitimo, Fortalecimiento Local y Eficiencia"},1474,1136886171,"JUAN FELIPE GAVIRIA VILLEGAS",23915000,null,null,0,0,23915000,20407466,"2020-07-21","2020-07-23","2020-12-22",150,0,0,null,null,null,null,null,null,"X",null,0.85333330545682629]
[95,2020,"SECOP II","FDLF-CD-95-2020","Contratos de prestación de servicios","Contratación Directa","Prestación de servicios profesionales y de apoyo a la gestión, o para la ejecución de trabajos artísticos que sólo puedan encomendarse a determinadas personas naturales;","PRESTAR LOS SERVICIOS PROFESIONALES PARA BRINDAR EL APOYO AL ÁREA DE GESTIÓN DEL DESARROLLO LOCAL COMO ENLACE ANTE LAS ENTIDADES DISTRITALES EN ATENCIÓN DE LA EMERGENCIA SANITARIA POR COVID-19.","Inversión","Bogotá Mejor para Todos",45,{"$f":"IF(ISERROR(VLOOKUP(K109,Eje_Pilar_Prop!$C$2:$E$104,2,FALSE)),\" \",VLOOKUP(K109,Eje_Pilar_Prop!$C$2:$E$104,2,FALSE))","v":"Gobernanza e influencia local, regional e internacional"},{"$f":"IF(ISERROR(VLOOKUP(K109,Eje_Pilar_Prop!$C$2:$E$104,3,FALSE)),\" \",VLOOKUP(K109,Eje_Pilar_Prop!$C$2:$E$104,3,FALSE))","v":"Eje Transversal 4 Gobierno Legitimo, Fortalecimiento Local y Eficiencia"},1474,19440420,"LUIS GUSTAVO PIÑEROS CALDERON",27500000,null,null,0,0,27500000,12466667,"2020-07-22","2020-07-23","2020-12-22",150,0,0,null,null,null,null,null,null,"X",null,0.45333334545454546]
[96,2020,"SECOP II","FDLF-CD-96-2020","Contratos de prestación de servicios","Contratación Directa","Prestación de servicios profesionales y de apoyo a la gestión, o para la ejecución de trabajos artísticos que sólo puedan encomendarse a determinadas personas naturales;","PRESTAR SERVICIOS PARA APOYAR ADMINISTRATIVA Y ASISTENCIALMENTE A LAS INSPECCIONES DE POLICÍA DE LA LOCALIDAD.","Inversión","Bogotá Mejor para Todos",45,{"$f":"IF(ISERROR(VLOOKUP(K110,Eje_Pilar_Prop!$C$2:$E$104,2,FALSE)),\" \",VLOOKUP(K110,Eje_Pilar_Prop!$C$2:$E$104,2,FALSE))","v":"Gobernanza e influencia local, regional e internacional"},{"$f":"IF(ISERROR(VLOOKUP(K110,Eje_Pilar_Prop!$C$2:$E$104,3,FALSE)),\" \",VLOOKUP(K110,Eje_Pilar_Prop!$C$2:$E$104,3,FALSE))","v":"Eje Transversal 4 Gobierno Legitimo, Fortalecimiento Local y Eficiencia"},1474,1016018384,"DIEGO ALEJANDRO CASTRO MUNZA",11815000,null,null,0,0,11815000,9452000,"2020-07-24","2020-07-31","2020-12-30",150,0,0,null,null,null,null,null,null,"X",null,0.8]
[97,2020,"SECOP II","FDLF-CD-97-2020","Contratos de prestación de servicios","Contratación Directa","Prestación de servicios profesionales y de apoyo a la gestión, o para la ejecución de trabajos artísticos que sólo puedan encomendarse a determinadas personas naturales;","PRESTAR SERVICIOS PARA APOYAR ADMINISTRATIVA Y ASISTENCIALMENTE A LAS INSPECCIONES DE POLICÍA DE LA LOCALIDAD","Inversión","Bogotá Mejor para Todos",45,{"$f":"IF(ISERROR(VLOOKUP(K111,Eje_Pilar_Prop!$C$2:$E$104,2,FALSE)),\" \",VLOOKUP(K111,Eje_Pilar_Prop!$C$2:$E$104,2,FALSE))","v":"Gobernanza e influencia local, regional e internacional"},{"$f":"IF(ISERROR(VLOOKUP(K111,Eje_Pilar_Prop!$C$2:$E$104,3,FALSE)),\" \",VLOOKUP(K111,Eje_Pilar_Prop!$C$2:$E$104,3,FALSE))","v":"Eje Transversal 4 Gobierno Legitimo, Fortalecimiento Local y Eficiencia"},1474,35221867,"MARIA JOHANA LOPEZ ULCUE",11815000,null,null,1,2363000,14178000,9452000,"2020-07-27","2020-07-31","2021-01-30",150,1,30,null,null,null,null,null,"X",null,null,0.66666666666666663]
[98,2020,"SECOP II","FDLF-CD-98-2020","Contratos de prestación de servicios","Contratación Directa","Prestación de servicios profesionales y de apoyo a la gestión, o para la ejecución de trabajos artísticos que sólo puedan encomendarse a determinadas personas naturales;","PRESTAR SERVICIOS PARA APOYAR ADMINISTRATIVA Y ASISTENCIALMENTE A LAS INSPECCIONES DE POLICÍA DE LA LOCALIDAD","Inversión","Bogotá Mejor para Todos",45,{"$f":"IF(ISERROR(VLOOKUP(K112,Eje_Pilar_Prop!$C$2:$E$104,2,FALSE)),\" \",VLOOKUP(K112,Eje_Pilar_Prop!$C$2:$E$104,2,FALSE))","v":"Gobernanza e influencia local, regional e internacional"},{"$f":"IF(ISERROR(VLOOKUP(K112,Eje_Pilar_Prop!$C$2:$E$104,3,FALSE)),\" \",VLOOKUP(K112,Eje_Pilar_Prop!$C$2:$E$104,3,FALSE))","v":"Eje Transversal 4 Gobierno Legitimo, Fortalecimiento Local y Eficiencia"},1474,39760197,"SONIA YASMIN BAQUERO PARRADO",11815000,null,null,1,2363000,14178000,9452000,"2020-07-27","2020-07-31","2021-01-30",150,1,30,null,null,null,null,null,"X",null,null,0.66666666666666663]
[99,2020,"SECOP II","FDLF-CD-99-2020","Contratos de prestación de servicios","Contratación Directa","Prestación de servicios profesionales y de apoyo a la gestión, o para la ejecución de trabajos artísticos que sólo puedan encomendarse a determinadas personas naturales;","SERVICIOS DE APOYO AL ÁREA DE GESTIÓN DEL DESARROLLO LOCAL DE LA ALCALDÍA LOCAL DE FONTIBÓN.","Inversión","Bogotá Mejor para Todos",45,{"$f":"IF(ISERROR(VLOOKUP(K113,Eje_Pilar_Prop!$C$2:$E$104,2,FALSE)),\" \",VLOOKUP(K113,Eje_Pilar_Prop!$C$2:$E$104,2,FALSE))","v":"Gobernanza e influencia local, regional e internacional"},{"$f":"IF(ISERROR(VLOOKUP(K113,Eje_Pilar_Prop!$C$2:$E$104,3,FALSE)),\" \",VLOOKUP(K113,Eje_Pilar_Prop!$C$2:$E$104,3,FALSE))","v":"Eje Transversal 4 Gobierno Legitimo, Fortalecimiento Local y Eficiencia"},1473,1016025481,"DIEGO ARMANDO PÉREZ ROA",9452000,null,null,0,0,9452000,6773933,"2020-07-29","2020-08-05","2020-12-04",120,0,0,null,null,null,null,null,null,"X",null,0.7166666314007617]
[100,2020,"SECOP II","FDLF-CD-100-2020","Contratos de prestación de servicios","Contratación Directa","Prestación de servicios profesionales y de apoyo a la gestión, o para la ejecución de trabajos artísticos que sólo puedan encomendarse a determinadas personas naturales;","SERVICIOS DE APOYO AL ÁREA DE GESTIÓN DEL DESARROLLO LOCAL DE LA ALCALDÍA LOCAL DE FONTIBÓN.","Inversión","Bogotá Mejor para Todos",45,{"$f":"IF(ISERROR(VLOOKUP(K114,Eje_Pilar_Prop!$C$2:$E$104,2,FALSE)),\" \",VLOOKUP(K114,Eje_Pilar_Prop!$C$2:$E$104,2,FALSE))","v":"Gobernanza e influencia local, regional e internacional"},{"$f":"IF(ISERROR(VLOOKUP(K114,Eje_Pilar_Prop!$C$2:$E$104,3,FALSE)),\" \",VLOOKUP(K114,Eje_Pilar_Prop!$C$2:$E$104,3,FALSE))","v":"Eje Transversal 4 Gobierno Legitimo, Fortalecimiento Local y Eficiencia"},1473,80165123,"CARLOS ENRIQUE ALFONSO COBALEDA",9452000,null,null,0,0,9452000,6773933,"2020-07-29","2020-08-05","2020-12-04",120,0,0,null,null,null,null,null,null,"X",null,0.7166666314007617]
[101,2020,"SECOP II","FDLF-CD-101-2020","Contratos de prestación de servicios","Contratación Directa","Prestación de servicios profesionales y de apoyo a la gestión, o para la ejecución de trabajos artísticos que sólo puedan encomendarse a determinadas personas naturales;","SERVICIOS DE APOYO AL ÁREA DE GESTIÓN DEL DESARROLLO LOCAL DE LA ALCALDÍA LOCAL DE FONTIBÓN.","Inversión","Bogotá Mejor para Todos",45,{"$f":"IF(ISERROR(VLOOKUP(K115,Eje_Pilar_Prop!$C$2:$E$104,2,FALSE)),\" \",VLOOKUP(K115,Eje_Pilar_Prop!$C$2:$E$104,2,FALSE))","v":"Gobernanza e influencia local, regional e internacional"},{"$f":"IF(ISERROR(VLOOKUP(K115,Eje_Pilar_Prop!$C$2:$E$104,3,FALSE)),\" \",VLOOKUP(K115,Eje_Pilar_Prop!$C$2:$E$104,3,FALSE))","v":"Eje Transversal 4 Gobierno Legitimo, Fortalecimiento Local y Eficiencia"},1473,1026585031,"LEONARDO NARVÁEZ PUERTA",9452000,null,null,0,0,9452000,9215700,"2020-08-03","2020-08-04","2020-12-03",120,0,0,null,null,null,null,null,null,"X",null,0.97499999999999998]
[102,2020,"SECOP II","FDLF-CD-102-2020","Contratos de prestación de servicios","Contratación Directa","Prestación de servicios profesionales y de apoyo a la gestión, o para la ejecución de trabajos artísticos que sólo puedan encomendarse a determinadas personas naturales;","PRESTAR SERVICIOS COMO PROFESIONAL QUE DESARROLLE ACTIVIDADES DE FORMULACIÓN Y SEGUIMIENTO A LOS PROYECTOS RELACIONADOS CON INSTANCIAS DE PARTICIPACIÓN, PARA LA ALCALDÍA LOCAL DE FONTIBÓN.","Inversión","Bogotá Mejor para Todos",45,{"$f":"IF(ISERROR(VLOOKUP(K116,Eje_Pilar_Prop!$C$2:$E$104,2,FALSE)),\" \",VLOOKUP(K116,Eje_Pilar_Prop!$C$2:$E$104,2,FALSE))","v":"Gobernanza e influencia local, regional e internacional"},{"$f":"IF(ISERROR(VLOOKUP(K116,Eje_Pilar_Prop!$C$2:$E$104,3,FALSE)),\" \",VLOOKUP(K116,Eje_Pilar_Prop!$C$2:$E$104,3,FALSE))","v":"Eje Transversal 4 Gobierno Legitimo, Fortalecimiento Local y Eficiencia"},1473,80492335,"ANDRES FERNANDO MEJIA RINCON",16800000,null,null,0,0,16800000,12740000,"2020-07-28","2020-07-30","2020-11-29",120,0,0,null,null,null,null,null,null,"X",null,0.7583333333333333]
[103,2020,"SECOP II","FDLF-CD-103-2020","Contratos de prestación de servicios","Contratación Directa","Prestación de servicios profesionales y de apoyo a la gestión, o para la ejecución de trabajos artísticos que sólo puedan encomendarse a determinadas personas naturales;","EL CONTRATISTA SE OBLIGA CON EL FONDO DE DESARROLLO LOCAL DE FONTIBÓN A PRESTAR SUS SERVICIOS PROFESIONALES PARA APOYAR LA FORMULACIÓN, EJECUCIÓN, SEGUIMIENTO Y MEJORA CONTINUA DE LAS HERRAMIENTAS QUE CONFORMAN LA GESTIÓN AMBIENTAL INSTITUCIONAL DE LA ALCALDÍA LOCAL DE FONTIBÓN.","Inversión","Bogotá Mejor para Todos",45,{"$f":"IF(ISERROR(VLOOKUP(K117,Eje_Pilar_Prop!$C$2:$E$104,2,FALSE)),\" \",VLOOKUP(K117,Eje_Pilar_Prop!$C$2:$E$104,2,FALSE))","v":"Gobernanza e influencia local, regional e internacional"},{"$f":"IF(ISERROR(VLOOKUP(K117,Eje_Pilar_Prop!$C$2:$E$104,3,FALSE)),\" \",VLOOKUP(K117,Eje_Pilar_Prop!$C$2:$E$104,3,FALSE))","v":"Eje Transversal 4 Gobierno Legitimo, Fortalecimiento Local y Eficiencia"},1474,52351073,"SANDRA MILENA CORTÉS PINEDA",19132000,null,null,0,0,19132000,14827299,"2020-07-23","2020-07-28","2020-11-27",120,0,0,null,null,null,null,null,null,"X",null,0.77499994773154923]
[104,2020,"SECOP II","FDLF-CD-104-2020","Contratos de prestación de servicios","Contratación Directa","Prestación de servicios profesionales y de apoyo a la gestión, o para la ejecución de trabajos artísticos que sólo puedan encomendarse a determinadas personas naturales;","SERVICIOS DE APOYO AL ÁREA DE GESTIÓN DEL DESARROLLO LOCAL DE LA ALCALDÍA LOCAL DE FONTIBÓN.","Inversión","Bogotá Mejor para Todos",45,{"$f":"IF(ISERROR(VLOOKUP(K118,Eje_Pilar_Prop!$C$2:$E$104,2,FALSE)),\" \",VLOOKUP(K118,Eje_Pilar_Prop!$C$2:$E$104,2,FALSE))","v":"Gobernanza e influencia local, regional e internacional"},{"$f":"IF(ISERROR(VLOOKUP(K118,Eje_Pilar_Prop!$C$2:$E$104,3,FALSE)),\" \",VLOOKUP(K118,Eje_Pilar_Prop!$C$2:$E$104,3,FALSE))","v":"Eje Transversal 4 Gobierno Legitimo, Fortalecimiento Local y Eficiencia"},1473,1010230934,"DAYRA ALEJANDRA SANCHEZ TOBAR",9452000,null,null,0,0,9452000,6773933,"2020-08-03","2020-08-05","2020-12-04",120,0,0,null,null,null,null,null,null,"X",null,0.7166666314007617]
[105,2020,"SECOP II","FDLF-CD-105-2020","Contratos de prestación de servicios","Contratación Directa","Prestación de servicios profesionales y de apoyo a la gestión, o para la ejecución de trabajos artísticos que sólo puedan encomendarse a determinadas personas naturales;","PRESTAR SERVICIOS PARA APOYAR ADMINISTRATIVA Y ASISTENCIALMENTE A LAS INSPECCIONES DE POLICÍA DE LA LOCALIDAD.","Inversión","Bogotá Mejor para Todos",45,{"$f":"IF(ISERROR(VLOOKUP(K119,Eje_Pilar_Prop!$C$2:$E$104,2,FALSE)),\" \",VLOOKUP(K119,Eje_Pilar_Prop!$C$2:$E$104,2,FALSE))","v":"Gobernanza e influencia local, regional e internacional"},{"$f":"IF(ISERROR(VLOOKUP(K119,Eje_Pilar_Prop!$C$2:$E$104,3,FALSE)),\" \",VLOOKUP(K119,Eje_Pilar_Prop!$C$2:$E$104,3,FALSE))","v":"Eje Transversal 4 Gobierno Legitimo, Fortalecimiento Local y Eficiencia"},1474,88220745,"JULIO CESAR CALDERON SUAREZ",11815000,null,null,0,0,11815000,9452000,"2020-07-27","2020-07-31","2020-12-30",150,0,0,null,null,null,null,null,null,"X",null,0.8]
[106,2020,"SECOP II","FDLF-CD-106-2020","Contratos de prestación de servicios","Contratación Directa","Prestación de servicios profesionales y de apoyo a la gestión, o para la ejecución de trabajos artísticos que sólo puedan encomendarse a determinadas personas naturales;","PRESTAR LOS SERVICIOS COMO PROFESIONAL ESPECIALIZADO AL ÁREA DE GESTIÓN DE DESARROLLO LOCAL.","Inversión","Bogotá Mejor para Todos",45,{"$f":"IF(ISERROR(VLOOKUP(K120,Eje_Pilar_Prop!$C$2:$E$104,2,FALSE)),\" \",VLOOKUP(K120,Eje_Pilar_Prop!$C$2:$E$104,2,FALSE))","v":"Gobernanza e influencia local, regional e internacional"},{"$f":"IF(ISERROR(VLOOKUP(K120,Eje_Pilar_Prop!$C$2:$E$104,3,FALSE)),\" \",VLOOKUP(K120,Eje_Pilar_Prop!$C$2:$E$104,3,FALSE))","v":"Eje Transversal 4 Gobierno Legitimo, Fortalecimiento Local y Eficiencia"},1474,52055580,"NARDA CONSUELO PERILLA ALONSO",32925000,null,null,1,6585000,39510000,26340000,"2020-07-30","2020-07-31","2021-01-30",150,1,30,null,null,null,null,null,"X",null,null,0.66666666666666663]
[108,2020,"SECOP II","FDLF-CD-108-2020","Contratos de prestación de servicios","Contratación Directa","Prestación de servicios profesionales y de apoyo a la gestión, o para la ejecución de trabajos artísticos que sólo puedan encomendarse a determinadas personas naturales;","PRESTAR SERVICIOS PROFESIONALES PARA LA OPERACIÓN DEL PROYECTO PUNTO VIVE DIGITAL DE LA LOCALIDAD DE FONTIBÓN.","Inversión","Bogotá Mejor para Todos",45,{"$f":"IF(ISERROR(VLOOKUP(K121,Eje_Pilar_Prop!$C$2:$E$104,2,FALSE)),\" \",VLOOKUP(K121,Eje_Pilar_Prop!$C$2:$E$104,2,FALSE))","v":"Gobernanza e influencia local, regional e internacional"},{"$f":"IF(ISERROR(VLOOKUP(K121,Eje_Pilar_Prop!$C$2:$E$104,3,FALSE)),\" \",VLOOKUP(K121,Eje_Pilar_Prop!$C$2:$E$104,3,FALSE))","v":"Eje Transversal 4 Gobierno Legitimo, Fortalecimiento Local y Eficiencia"},1474,80801120,"STEVE LEONARDO CHAMUCERO BARBOSA",28265000,null,null,1,11306000,39571000,22235133,"2020-07-30","2020-08-03","2021-02-28",150,1,60,null,null,null,null,null,"X",null,null,0.5619047534810846]
[109,2020,"SECOP II","FDLF-CD-109-2020","Contratos de prestación de servicios","Contratación Directa","Prestación de servicios profesionales y de apoyo a la gestión, o para la ejecución de trabajos artísticos que sólo puedan encomendarse a determinadas personas naturales;","PRESTACIÓN DE SERVICIOS PROFESIONALES PARA APOYAR A LA ALCALDÍA LOCAL DE FONTIBÓN EN TEMAS ORIENTADOS A SALUD Y LA POBLACIÓN ADULTO MAYOR DE LA LOCALIDAD.","Inversión","Bogotá Mejor para Todos",3,{"$f":"IF(ISERROR(VLOOKUP(K122,Eje_Pilar_Prop!$C$2:$E$104,2,FALSE)),\" \",VLOOKUP(K122,Eje_Pilar_Prop!$C$2:$E$104,2,FALSE))","v":"Igualdad y autonomía para una Bogotá incluyente"},{"$f":"IF(ISERROR(VLOOKUP(K122,Eje_Pilar_Prop!$C$2:$E$104,3,FALSE)),\" \",VLOOKUP(K122,Eje_Pilar_Prop!$C$2:$E$104,3,FALSE))","v":"Pilar 1 Igualdad de Calidad de Vida"},1453,51938884,"MARTHA PATRICIA NIÑO TORO",19132000,null,null,0,0,19132000,18494267,"2020-08-04","2020-08-05","2020-12-04",120,0,0,null,null,null,null,null,null,"X",null,0.96666668408948364]
[110,2020,"SECOP II","FDLF-CD-110-2020","Contratos de prestación de servicios","Contratación Directa","Prestación de servicios profesionales y de apoyo a la gestión, o para la ejecución de trabajos artísticos que sólo puedan encomendarse a determinadas personas naturales;","SERVICIOS PROFESIONALES PARA LA OPERACIÓN, PRESTACIÓN, SEGUIMIENTO Y CUMPLIMIENTO DE LOS PROCEDIMIENTOS ADMINISTRATIVOS, OPERATIVOS Y PROGRAMÁTICOS DEL SERVICIO APOYO ECONÓMICO TIPO C, QUE CONTRIBUYAN A LA GARANTÍA DE LOS DERECHOS DE LA POBLACIÓN MAYOR EN EL MARCO DE LA POLÍTICA PÚBLICA SOCIAL PARA EL ENVEJECIMIENTO Y LA VEJEZ EN EL DISTRITO CAPITAL A CARGO DE LA ALCALDÍA LOCAL\n","Inversión","Bogotá Mejor para Todos",3,{"$f":"IF(ISERROR(VLOOKUP(K123,Eje_Pilar_Prop!$C$2:$E$104,2,FALSE)),\" \",VLOOKUP(K123,Eje_Pilar_Prop!$C$2:$E$104,2,FALSE))","v":"Igualdad y autonomía para una Bogotá incluyente"},{"$f":"IF(ISERROR(VLOOKUP(K123,Eje_Pilar_Prop!$C$2:$E$104,3,FALSE)),\" \",VLOOKUP(K123,Eje_Pilar_Prop!$C$2:$E$104,3,FALSE))","v":"Pilar 1 Igualdad de Calidad de Vida"},1453,41795474,"FLOR MERY CONEJO RODDRIGUEZ",23277267,null,null,0,0,23277267,18494267,"2020-08-04","2020-08-05","2020-12-30",146,0,0,null,null,null,null,null,null,"X",null,0.79452055088769657]
[111,2020,"SECOP II","FDLF-CD-111-2020","Contratos de prestación de servicios","Contratación Directa","Prestación de servicios profesionales y de apoyo a la gestión, o para la ejecución de trabajos artísticos que sólo puedan encomendarse a determinadas personas naturales;","APOYAR AL EQUIPO DE PRENSA Y COMUNICACIONES DE LA ALCALDÍA LOCAL EN LA REALIZACIÓN Y PUBLICACIÓN DE CONTENIDOS DE REDES SOCIALES Y CANALES DE DIVULGACIÓN DIGITAL (SITIO WEB) DE LA ALCALDÍA LOCAL.\n","Inversión","Bogotá Mejor para Todos",45,{"$f":"IF(ISERROR(VLOOKUP(K124,Eje_Pilar_Prop!$C$2:$E$104,2,FALSE)),\" \",VLOOKUP(K124,Eje_Pilar_Prop!$C$2:$E$104,2,FALSE))","v":"Gobernanza e influencia local, regional e internacional"},{"$f":"IF(ISERROR(VLOOKUP(K124,Eje_Pilar_Prop!$C$2:$E$104,3,FALSE)),\" \",VLOOKUP(K124,Eje_Pilar_Prop!$C$2:$E$104,3,FALSE))","v":"Eje Transversal 4 Gobierno Legitimo, Fortalecimiento Local y Eficiencia"},1474,80801473,"JOHN ALEXANDER GARZÓN MORENO",22480100,null,null,0,0,22480100,17537666,"2020-08-10","2020-08-11","2020-12-30",141,0,0,null,null,null,null,null,null,"X",null,0.78014181431577256]
[112,2020,"SECOP II","FDLF-CD-112-2020","Contratos de prestación de servicios","Contratación Directa","Prestación de servicios profesionales y de apoyo a la gestión, o para la ejecución de trabajos artísticos que sólo puedan encomendarse a determinadas personas naturales;","APOYAR AL ALCALDE LOCAL EN LA GESTIÓN DE LOS ASUNTOS RELACIONADOS CON SEGURIDAD CIUDADANA, CONVIVENCIA Y PREVENCIÓN DE CONFLICTIVIDADES, VIOLENCIAS Y DELITOS EN LA LOCALIDAD, DE CONFORMIDAD CON EL MARCO NORMATIVO APLICABLE EN LA MATERIA.","Inversión","Bogotá Mejor para Todos",19,{"$f":"IF(ISERROR(VLOOKUP(K125,Eje_Pilar_Prop!$C$2:$E$104,2,FALSE)),\" \",VLOOKUP(K125,Eje_Pilar_Prop!$C$2:$E$104,2,FALSE))","v":"Seguridad y convivencia para todos"},{"$f":"IF(ISERROR(VLOOKUP(K125,Eje_Pilar_Prop!$C$2:$E$104,3,FALSE)),\" \",VLOOKUP(K125,Eje_Pilar_Prop!$C$2:$E$104,3,FALSE))","v":"Pilar 3 Construcción de Comunidad y Cultura Ciudadana"},1467,1019045244,"JULIETH JOHANA GARCIA LÓPEZ",23277267,null,null,0,0,23277267,0,"2020-08-05","2020-08-05","2020-12-30",146,0,0,null,null,null,null,null,null,"X",null,0]
[113,2020,"SECOP II","FDLF-CD-113-2020","Contratos de prestación de servicios","Contratación Directa","Prestación de servicios profesionales y de apoyo a la gestión, o para la ejecución de trabajos artísticos que sólo puedan encomendarse a determinadas personas naturales;"," COORDINAR, LIDERAR Y ASESORAR LOS PLANES Y ESTRATEGIAS DE COMUNICACIÓN INTERNA Y EXTERNA PARA LA DIVULGACIÓN DE LOS PROGRAMAS, PROYECTOS Y ACTIVIDADES DE ALCALDÍA LOCAL DE FONTIBÓN.\n","Inversión","Bogotá Mejor para Todos",45,{"$f":"IF(ISERROR(VLOOKUP(K126,Eje_Pilar_Prop!$C$2:$E$104,2,FALSE)),\" \",VLOOKUP(K126,Eje_Pilar_Prop!$C$2:$E$104,2,FALSE))","v":"Gobernanza e influencia local, regional e internacional"},{"$f":"IF(ISERROR(VLOOKUP(K126,Eje_Pilar_Prop!$C$2:$E$104,3,FALSE)),\" \",VLOOKUP(K126,Eje_Pilar_Prop!$C$2:$E$104,3,FALSE))","v":"Eje Transversal 4 Gobierno Legitimo, Fortalecimiento Local y Eficiencia"},1474,79654994,"JORGE ENRIQUE CAÑON UBAQUE",30550000,null,null,1,13000000,43550000,23833333,"2020-08-10","2020-08-11","2020-02-28",141,1,60,null,null,null,null,null,"X",null,null,0.54726367393800235]
[114,2020,"SECOP II","FDLF-CD-114-2020","Contratos de prestación de servicios","Contratación Directa","Prestación de servicios profesionales y de apoyo a la gestión, o para la ejecución de trabajos artísticos que sólo puedan encomendarse a determinadas personas naturales;"," PRESTAR SERVICIOS PROFESIONALES PARA EL DESARROLLO DE ACTIVIDADES ORIENTADAS A LA IMPLEMENTACIÓN DEL PROYECTO ESTRATÉGICO DEL SECTOR DE SEGURIDAD Y CONVIVENCIA DE LA ALCALDÍA LOCAL DE FONTIBÓN.","Inversión","Bogotá Mejor para Todos",19,{"$f":"IF(ISERROR(VLOOKUP(K127,Eje_Pilar_Prop!$C$2:$E$104,2,FALSE)),\" \",VLOOKUP(K127,Eje_Pilar_Prop!$C$2:$E$104,2,FALSE))","v":"Seguridad y convivencia para todos"},{"$f":"IF(ISERROR(VLOOKUP(K127,Eje_Pilar_Prop!$C$2:$E$104,3,FALSE)),\" \",VLOOKUP(K127,Eje_Pilar_Prop!$C$2:$E$104,3,FALSE))","v":"Pilar 3 Construcción de Comunidad y Cultura Ciudadana"},1467,73161809,"FARID PUELLO PEREZ",20440000,null,null,1,4200000,24640000,16240000,"2020-08-04","2020-08-05","2021-01-30",146,1,30,null,null,null,null,null,"X",null,null,0.65909090909090906]
[115,2020,"SECOP II","FDLF-CD-115-2020","Contratos de prestación de servicios","Contratación Directa","Prestación de servicios profesionales y de apoyo a la gestión, o para la ejecución de trabajos artísticos que sólo puedan encomendarse a determinadas personas naturales;","PRESTAR SERVICIOS PROFESIONALES PARA APOYAR TÉCNICAMENTE LAS DISTINTAS ETAPAS DE LOS PROCESOS DE COMPETENCIA DE LAS INSPECCIONES DE POLICÍA DE LA LOCALIDAD, SEGÚN REPARTO.","Inversión","Bogotá Mejor para Todos",45,{"$f":"IF(ISERROR(VLOOKUP(K128,Eje_Pilar_Prop!$C$2:$E$104,2,FALSE)),\" \",VLOOKUP(K128,Eje_Pilar_Prop!$C$2:$E$104,2,FALSE))","v":"Gobernanza e influencia local, regional e internacional"},{"$f":"IF(ISERROR(VLOOKUP(K128,Eje_Pilar_Prop!$C$2:$E$104,3,FALSE)),\" \",VLOOKUP(K128,Eje_Pilar_Prop!$C$2:$E$104,3,FALSE))","v":"Eje Transversal 4 Gobierno Legitimo, Fortalecimiento Local y Eficiencia"},1474,1123085092,"JUAN DAVID PEÑA GARAVITO",28265000,null,null,0,0,28265000,19408633,"2020-08-13","2020-08-18","2020-12-30",134,0,0,null,null,null,null,null,null,"X",null,0.68666665487351852]
[116,2020,"SECOP II","FDLF-CD-116-2020","Contratos de prestación de servicios","Contratación Directa","Prestación de servicios profesionales y de apoyo a la gestión, o para la ejecución de trabajos artísticos que sólo puedan encomendarse a determinadas personas naturales;","PRESTAR SERVICIOS PROFESIONALES PARA APOYAR TÉCNICAMENTE LAS DISTINTAS ETAPAS DE LOS PROCESOS DE COMPETENCIA DE LAS INSPECCIONES DE POLICÍA DE LA LOCALIDAD, SEGÚN REPARTO.","Inversión","Bogotá Mejor para Todos",45,{"$f":"IF(ISERROR(VLOOKUP(K129,Eje_Pilar_Prop!$C$2:$E$104,2,FALSE)),\" \",VLOOKUP(K129,Eje_Pilar_Prop!$C$2:$E$104,2,FALSE))","v":"Gobernanza e influencia local, regional e internacional"},{"$f":"IF(ISERROR(VLOOKUP(K129,Eje_Pilar_Prop!$C$2:$E$104,3,FALSE)),\" \",VLOOKUP(K129,Eje_Pilar_Prop!$C$2:$E$104,3,FALSE))","v":"Eje Transversal 4 Gobierno Legitimo, Fortalecimiento Local y Eficiencia"},1474,1010176279,"HECTOR JAVIER VARGAS NAVARRO",28265000,null,null,0,0,28265000,2449633,"2020-08-12","2020-08-18","2020-12-30",134,0,0,39536092,"ANA YANET LEGUIZAMON FANDIÑO","2020-11-11",17147434,null,null,"X",null,8.6666654873518489E-2]
[117,2020,"SECOP II","FDLF-IPMC-5-2020","Suministro","Contratación mínima cuantia","No aplica","SUMINISTRO, DE ELEMENTOS DE PROTECCIÓN Y BIOSEGURIDAD, PARA LOS FUNCIONARIOS DE LA ALCALDÍA LOCAL DE FONTIBÓN, INSPECCIONES DE POLICÍA Y JUNTA ADMINISTRADORA LOCAL, CON RAZÓN A LA EMERGENCIA SANITARIA CAUSADA EN EL PAÍS, POR LA ENFERMEDAD COVID-19 ESTABLECIDA EN EL DECRETO NACIONAL 457 DE 2020, DECRETO DISTRITAL 092 DE 2020 Y DEMÁS NORMAS QUE LAS MODIFIQUEN","Inversión","Bogotá Mejor para Todos",45,{"$f":"IF(ISERROR(VLOOKUP(K130,Eje_Pilar_Prop!$C$2:$E$104,2,FALSE)),\" \",VLOOKUP(K130,Eje_Pilar_Prop!$C$2:$E$104,2,FALSE))","v":"Gobernanza e influencia local, regional e internacional"},{"$f":"IF(ISERROR(VLOOKUP(K130,Eje_Pilar_Prop!$C$2:$E$104,3,FALSE)),\" \",VLOOKUP(K130,Eje_Pilar_Prop!$C$2:$E$104,3,FALSE))","v":"Eje Transversal 4 Gobierno Legitimo, Fortalecimiento Local y Eficiencia"},1474,"800.209.890-1","COMERCIALIZADORA VINARTA SAS",12519667,null,null,0,0,12519667,0,"2020-08-06","2020-08-11","2020-11-25",75,0,0,null,null,null,null,null,null,"X",null,0]
[118,2020,"SECOP II","FDLF-CD-118-2020","Contratos de prestación de servicios","Contratación Directa","Prestación de servicios profesionales y de apoyo a la gestión, o para la ejecución de trabajos artísticos que sólo puedan encomendarse a determinadas personas naturales;","PRESTAR SERVICIOS PROFESIONALES PARA BRINDAR APOYO AL ALMACÉN EN LA PROYECCIÓN, SEGUIMIENTO Y APOYO A LA SUPERVISIÓN DE COMODATOS.","Inversión","Bogotá Mejor para Todos",45,{"$f":"IF(ISERROR(VLOOKUP(K131,Eje_Pilar_Prop!$C$2:$E$104,2,FALSE)),\" \",VLOOKUP(K131,Eje_Pilar_Prop!$C$2:$E$104,2,FALSE))","v":"Gobernanza e influencia local, regional e internacional"},{"$f":"IF(ISERROR(VLOOKUP(K131,Eje_Pilar_Prop!$C$2:$E$104,3,FALSE)),\" \",VLOOKUP(K131,Eje_Pilar_Prop!$C$2:$E$104,3,FALSE))","v":"Eje Transversal 4 Gobierno Legitimo, Fortalecimiento Local y Eficiencia"},1474,39750866,"EDITH LUCIA QUECANO CÁRDENAS",16800000,null,null,1,8400000,25200000,15540000,"2020-08-06","2020-08-10","2021-02-09",120,1,60,null,null,null,null,null,"X",null,null,0.6166666666666667]
[119,2020,"SECOP II","FDLF-CD-119-2020","Contratos de prestación de servicios","Contratación Directa","Prestación de servicios profesionales y de apoyo a la gestión, o para la ejecución de trabajos artísticos que sólo puedan encomendarse a determinadas personas naturales;","PRESTAR SERVICIOS PARA APOYAR LAS LABORES DE NOTIFICACIÓN DE CORRESPONDENCIA DE LA ALCALDÍA LOCAL DE FONTIBÓN.","Inversión","Bogotá Mejor para Todos",45,{"$f":"IF(ISERROR(VLOOKUP(K132,Eje_Pilar_Prop!$C$2:$E$104,2,FALSE)),\" \",VLOOKUP(K132,Eje_Pilar_Prop!$C$2:$E$104,2,FALSE))","v":"Gobernanza e influencia local, regional e internacional"},{"$f":"IF(ISERROR(VLOOKUP(K132,Eje_Pilar_Prop!$C$2:$E$104,3,FALSE)),\" \",VLOOKUP(K132,Eje_Pilar_Prop!$C$2:$E$104,3,FALSE))","v":"Eje Transversal 4 Gobierno Legitimo, Fortalecimiento Local y Eficiencia"},1474,86004084,"JOSE OCTAVIO CRUZ NINCOR",11106100,null,null,1,2363000,13469100,8585566,"2020-08-06","2020-08-12","2021-01-30",141,1,30,null,null,null,null,null,"X",null,null,0.63742685108878838]
[120,2020,"SECOP II","FDLF-CD-120-2020","Contratos de prestación de servicios","Contratación Directa","Prestación de servicios profesionales y de apoyo a la gestión, o para la ejecución de trabajos artísticos que sólo puedan encomendarse a determinadas personas naturales;","PRESTAR SERVICIOS PARA APOYAR LAS LABORES DE NOTIFICACIÓN DE CORRESPONDENCIA DE LA ALCALDÍA LOCAL DE FONTIBÓN.","Inversión","Bogotá Mejor para Todos",45,{"$f":"IF(ISERROR(VLOOKUP(K133,Eje_Pilar_Prop!$C$2:$E$104,2,FALSE)),\" \",VLOOKUP(K133,Eje_Pilar_Prop!$C$2:$E$104,2,FALSE))","v":"Gobernanza e influencia local, regional e internacional"},{"$f":"IF(ISERROR(VLOOKUP(K133,Eje_Pilar_Prop!$C$2:$E$104,3,FALSE)),\" \",VLOOKUP(K133,Eje_Pilar_Prop!$C$2:$E$104,3,FALSE))","v":"Eje Transversal 4 Gobierno Legitimo, Fortalecimiento Local y Eficiencia"},1474,79538248,"SABAS CRUZ ORTIZ",11106100,null,null,1,2363000,13469100,8743100,"2020-08-06","2020-08-10","2021-01-31",141,1,30,null,null,null,null,null,"X",null,null,0.64912280701754388]
[121,2020,"SECOP II","FDLF-CD-121-2020","Contratos de prestación de servicios","Contratación Directa","Prestación de servicios profesionales y de apoyo a la gestión, o para la ejecución de trabajos artísticos que sólo puedan encomendarse a determinadas personas naturales;","PRESTAR SERVICIOS PARA APOYAR LAS ACTIVIDADES OPERATIVAS Y ADMINISTRATIVAS DE LA JUNTA ADMINISTRADORA LOCAL.","Inversión","Bogotá Mejor para Todos",45,{"$f":"IF(ISERROR(VLOOKUP(K134,Eje_Pilar_Prop!$C$2:$E$104,2,FALSE)),\" \",VLOOKUP(K134,Eje_Pilar_Prop!$C$2:$E$104,2,FALSE))","v":"Gobernanza e influencia local, regional e internacional"},{"$f":"IF(ISERROR(VLOOKUP(K134,Eje_Pilar_Prop!$C$2:$E$104,3,FALSE)),\" \",VLOOKUP(K134,Eje_Pilar_Prop!$C$2:$E$104,3,FALSE))","v":"Eje Transversal 4 Gobierno Legitimo, Fortalecimiento Local y Eficiencia"},1474,52974047,"ANGELICA MARIA SALAZAR BAYONA",11106100,null,null,0,0,11106100,6222567,"2020-08-06","2020-08-12","2020-12-30",139,0,0,80802214,"GUILLERMO SANMIGUEL  SALAMANCA","2020-09-24",7561585,null,null,"X",null,0.56028371795679854]
[122,2020,"SECOP II","FDLF-CD-122-2020","Contratos de prestación de servicios","Contratación Directa","Prestación de servicios profesionales y de apoyo a la gestión, o para la ejecución de trabajos artísticos que sólo puedan encomendarse a determinadas personas naturales;","PRESTAR SERVICIOS DE APOYO A LA ÁREA DE GESTIÓN DEL DESARROLLO LOCAL DE LA ALCALDÍA LOCAL DE FONTIBÓN.","Inversión","Bogotá Mejor para Todos",45,{"$f":"IF(ISERROR(VLOOKUP(K135,Eje_Pilar_Prop!$C$2:$E$104,2,FALSE)),\" \",VLOOKUP(K135,Eje_Pilar_Prop!$C$2:$E$104,2,FALSE))","v":"Gobernanza e influencia local, regional e internacional"},{"$f":"IF(ISERROR(VLOOKUP(K135,Eje_Pilar_Prop!$C$2:$E$104,3,FALSE)),\" \",VLOOKUP(K135,Eje_Pilar_Prop!$C$2:$E$104,3,FALSE))","v":"Eje Transversal 4 Gobierno Legitimo, Fortalecimiento Local y Eficiencia"},1474,80147386,"JOHN FREDY HERRERA RINCON",11106100,null,null,1,2363000,13469100,8743100,"2020-08-06","2020-08-10","30//01/2021",141,1,30,null,null,null,null,null,"X",null,null,0.64912280701754388]
[123,2020,"SECOP II","FDLF-CD-123-2020","Contratos de prestación de servicios","Contratación Directa","Prestación de servicios profesionales y de apoyo a la gestión, o para la ejecución de trabajos artísticos que sólo puedan encomendarse a determinadas personas naturales;","SERVICIOS DE APOYO A LA GESTIÓN DE LA ALCALDÍA LOCAL DE FONTIBÓN EN LA RECEPCIÓN DE CORRESPONDENCIA INTERNA Y EXTERNA, ASÍ COMO LA ASIGNACIÓN INTERNA DE LAS SOLICITUDES Y/O CORRESPONDENCIA RECIBIDA.","Inversión","Bogotá Mejor para Todos",45,{"$f":"IF(ISERROR(VLOOKUP(K136,Eje_Pilar_Prop!$C$2:$E$104,2,FALSE)),\" \",VLOOKUP(K136,Eje_Pilar_Prop!$C$2:$E$104,2,FALSE))","v":"Gobernanza e influencia local, regional e internacional"},{"$f":"IF(ISERROR(VLOOKUP(K136,Eje_Pilar_Prop!$C$2:$E$104,3,FALSE)),\" \",VLOOKUP(K136,Eje_Pilar_Prop!$C$2:$E$104,3,FALSE))","v":"Eje Transversal 4 Gobierno Legitimo, Fortalecimiento Local y Eficiencia"},1474,53925244,"XIMENA ANDREA PARRAGA GOMEZ",10948567,null,null,1,4726000,15674567,0,"2020-08-11","2020-08-12","2021-02-28",139,1,60,null,null,null,null,null,"X",null,null,0]
[124,2020,"SECOP II","FDLF-CD-124-2020","Contratos de prestación de servicios","Contratación Directa","Prestación de servicios profesionales y de apoyo a la gestión, o para la ejecución de trabajos artísticos que sólo puedan encomendarse a determinadas personas naturales;","SERVICIOS DE APOYO A LA GESTIÓN DE LA ALCALDÍA LOCAL DE FONTIBÓN EN LA RECEPCIÓN DE CORRESPONDENCIA INTERNA Y EXTERNA, ASÍ COMO LA ASIGNACIÓN INTERNA DE LAS SOLICITUDES Y/O CORRESPONDENCIA RECIBIDA.","Inversión","Bogotá Mejor para Todos",45,{"$f":"IF(ISERROR(VLOOKUP(K137,Eje_Pilar_Prop!$C$2:$E$104,2,FALSE)),\" \",VLOOKUP(K137,Eje_Pilar_Prop!$C$2:$E$104,2,FALSE))","v":"Gobernanza e influencia local, regional e internacional"},{"$f":"IF(ISERROR(VLOOKUP(K137,Eje_Pilar_Prop!$C$2:$E$104,3,FALSE)),\" \",VLOOKUP(K137,Eje_Pilar_Prop!$C$2:$E$104,3,FALSE))","v":"Eje Transversal 4 Gobierno Legitimo, Fortalecimiento Local y Eficiencia"},1474,51876290,"JACQUELIN SALAS SANCHEZ",10791033,null,null,1,2363000,13154033,945200,"2020-08-13","2020-08-14","2021-01-30",137,1,30,10179441,"OSCAR EMILIO CORTES RODRIGUEZ","2020-11-19",3308199,null,"X",null,null,7.1856289246043398E-2]
[125,2020,"SECOP II","FDLF-CD-125-2020","Contratos de prestación de servicios","Contratación Directa","Prestación de servicios profesionales y de apoyo a la gestión, o para la ejecución de trabajos artísticos que sólo puedan encomendarse a determinadas personas naturales;","PRESTAR SERVICIOS PROFESIONALES DE APOYO EN LOS PROCESOS DE COBRO PERSUASIVO DE LAS OBLIGACIONES CLARAS, EXPRESAS Y ACTUALMENTE EXIGIBLES, POR CONCEPTO DE MULTAS IMPUESTAS POR EL ÁREA DE GESTIÓN POLICIVA.","Inversión","Bogotá Mejor para Todos",45,{"$f":"IF(ISERROR(VLOOKUP(K138,Eje_Pilar_Prop!$C$2:$E$104,2,FALSE)),\" \",VLOOKUP(K138,Eje_Pilar_Prop!$C$2:$E$104,2,FALSE))","v":"Gobernanza e influencia local, regional e internacional"},{"$f":"IF(ISERROR(VLOOKUP(K138,Eje_Pilar_Prop!$C$2:$E$104,3,FALSE)),\" \",VLOOKUP(K138,Eje_Pilar_Prop!$C$2:$E$104,3,FALSE))","v":"Eje Transversal 4 Gobierno Legitimo, Fortalecimiento Local y Eficiencia"},1474,36302596,"CLARA ISABEL RAMIREZ CORDOBA",22001800,null,null,0,0,22001800,12276366,"2020-08-12","2020-08-14","2021-01-01",138,0,0,null,null,null,null,null,"X",null,null,0.55797098419220248]
[126,2020,"SECOP II","FDLF-CD-126-2020","Contratos de prestación de servicios","Contratación Directa","Prestación de servicios profesionales y de apoyo a la gestión, o para la ejecución de trabajos artísticos que sólo puedan encomendarse a determinadas personas naturales;","PRESTAR LOS SERVICIOS COMO PROFESIONAL ESPECIALIZADO PARA BRINDAR EL APOYO AL ÁREA DE GESTIÓN DEL DESARROLLO LOCAL EN LOS TEMAS SOCIALES DESARROLLADOS EN LA LOCALIDAD DE FONTIBÓN.","Inversión","Bogotá Mejor para Todos",45,{"$f":"IF(ISERROR(VLOOKUP(K139,Eje_Pilar_Prop!$C$2:$E$104,2,FALSE)),\" \",VLOOKUP(K139,Eje_Pilar_Prop!$C$2:$E$104,2,FALSE))","v":"Gobernanza e influencia local, regional e internacional"},{"$f":"IF(ISERROR(VLOOKUP(K139,Eje_Pilar_Prop!$C$2:$E$104,3,FALSE)),\" \",VLOOKUP(K139,Eje_Pilar_Prop!$C$2:$E$104,3,FALSE))","v":"Eje Transversal 4 Gobierno Legitimo, Fortalecimiento Local y Eficiencia"},1474,53031238,"JENNY PAOLA MALAGON BARAHONA",30281800,null,null,1,6583000,36864800,23479367,"2020-08-12","2020-08-14","2021-02-01",138,1,30,null,null,null,null,null,"X",null,null,0.63690477094681108]
[127,2020,"SECOP II","FDLF-CD-127-2020","Contratos de prestación de servicios","Contratación Directa","Prestación de servicios profesionales y de apoyo a la gestión, o para la ejecución de trabajos artísticos que sólo puedan encomendarse a determinadas personas naturales;","PRESTAR SERVICIOS PARA APOYAR ADMINISTRATIVA Y ASISTENCIALMENTE AL ÁREA DE GESTIÓN POLICIVA DE LA LOCALIDAD.","Inversión","Bogotá Mejor para Todos",45,{"$f":"IF(ISERROR(VLOOKUP(K140,Eje_Pilar_Prop!$C$2:$E$104,2,FALSE)),\" \",VLOOKUP(K140,Eje_Pilar_Prop!$C$2:$E$104,2,FALSE))","v":"Gobernanza e influencia local, regional e internacional"},{"$f":"IF(ISERROR(VLOOKUP(K140,Eje_Pilar_Prop!$C$2:$E$104,3,FALSE)),\" \",VLOOKUP(K140,Eje_Pilar_Prop!$C$2:$E$104,3,FALSE))","v":"Eje Transversal 4 Gobierno Legitimo, Fortalecimiento Local y Eficiencia"},1474,1016064829,"CARLOS EDUARDO FLORES TORRES",9452000,null,null,1,2363000,11815000,7955433,"2020-08-13","2020-08-20","2021-01-19",120,1,30,null,null,null,null,null,"X",null,null,0.6733333051206094]
[128,2020,"SECOP II","FDLF-CD-128-2020","Contratos de prestación de servicios","Contratación Directa","Prestación de servicios profesionales y de apoyo a la gestión, o para la ejecución de trabajos artísticos que sólo puedan encomendarse a determinadas personas naturales;","SERVICIOS PROFESIONALES, PARA APOYAR LAS ACTIVIDADES PROPIAS DEL ÁREA DE GESTIÓN POLICIVA EN RELACIÓN CON LOS PROCESOS DE OBRAS, ESPACIOS PÚBLICOS Y ESTABLECIMIENTOS DE COMERCIO, DE LA ALCALDÍA LOCAL DE FONTIBÓN.\n","Inversión","Bogotá Mejor para Todos",45,{"$f":"IF(ISERROR(VLOOKUP(K141,Eje_Pilar_Prop!$C$2:$E$104,2,FALSE)),\" \",VLOOKUP(K141,Eje_Pilar_Prop!$C$2:$E$104,2,FALSE))","v":"Gobernanza e influencia local, regional e internacional"},{"$f":"IF(ISERROR(VLOOKUP(K141,Eje_Pilar_Prop!$C$2:$E$104,3,FALSE)),\" \",VLOOKUP(K141,Eje_Pilar_Prop!$C$2:$E$104,3,FALSE))","v":"Eje Transversal 4 Gobierno Legitimo, Fortalecimiento Local y Eficiencia"},1474,79108533,"JOSE JULIAN CARDENAS ZUÑIGA",25815367,null,null,1,5653000,{"$f":"+Q141+S141+U141","v":31468367},14509367,"2020-08-13","2020-08-14","2021-01-30",137,1,30,null,null,null,null,null,"X",null,null,0.46107785001998991]
[129,2020,"SECOP II","FDLF-CD-129-2020","Contratos de prestación de servicios","Contratación Directa","Prestación de servicios profesionales y de apoyo a la gestión, o para la ejecución de trabajos artísticos que sólo puedan encomendarse a determinadas personas naturales;","PRESTAR SERVICIOS PROFESIONALES PARA APOYAR TÉCNICAMENTE LAS DISTINTAS ETAPAS DE LOS PROCESOS DE COMPETENCIA DE LAS INSPECCIONES DE POLICÍA DE LA LOCALIDAD, SEGÚN REPARTO. ","Inversión","Bogotá Mejor para Todos",45,{"$f":"IF(ISERROR(VLOOKUP(K142,Eje_Pilar_Prop!$C$2:$E$104,2,FALSE)),\" \",VLOOKUP(K142,Eje_Pilar_Prop!$C$2:$E$104,2,FALSE))","v":"Gobernanza e influencia local, regional e internacional"},{"$f":"IF(ISERROR(VLOOKUP(K142,Eje_Pilar_Prop!$C$2:$E$104,3,FALSE)),\" \",VLOOKUP(K142,Eje_Pilar_Prop!$C$2:$E$104,3,FALSE))","v":"Eje Transversal 4 Gobierno Legitimo, Fortalecimiento Local y Eficiencia"},1474,52283995,"EMMA CECILIA BAUTISTA IBARRA",25815367,null,null,0,0,25815367,19408633,"2020-08-13","2020-08-18","2021-01-04",137,0,0,null,null,null,null,null,"X",null,null,0.75182479489832543]
[130,2020,"SECOP II","FDLF-CD-130-2020","Contratos de prestación de servicios","Contratación Directa","Prestación de servicios profesionales y de apoyo a la gestión, o para la ejecución de trabajos artísticos que sólo puedan encomendarse a determinadas personas naturales;","PRESTAR SERVICIOS PROFESIONALES PARA APOYAR TÉCNICAMENTE LAS DISTINTAS ETAPAS DE LOS PROCESOS DE COMPETENCIA DE LAS INSPECCIONES DE POLICÍA DE LA LOCALIDAD, SEGÚN REPARTO. ","Inversión","Bogotá Mejor para Todos",45,{"$f":"IF(ISERROR(VLOOKUP(K143,Eje_Pilar_Prop!$C$2:$E$104,2,FALSE)),\" \",VLOOKUP(K143,Eje_Pilar_Prop!$C$2:$E$104,2,FALSE))","v":"Gobernanza e influencia local, regional e internacional"},{"$f":"IF(ISERROR(VLOOKUP(K143,Eje_Pilar_Prop!$C$2:$E$104,3,FALSE)),\" \",VLOOKUP(K143,Eje_Pilar_Prop!$C$2:$E$104,3,FALSE))","v":"Eje Transversal 4 Gobierno Legitimo, Fortalecimiento Local y Eficiencia"},1474,1013601563,"JENNY ANGELICA MALAGON CORTES",25815367,null,null,0,0,25815367,19220200,"2020-08-13","2020-08-19","2021-01-05",137,0,0,null,null,null,null,null,"X",null,null,0.74452553783178832]
[131,2020,"SECOP II","FDLF-CD-131-2020","Contratos de prestación de servicios","Contratación Directa","Prestación de servicios profesionales y de apoyo a la gestión, o para la ejecución de trabajos artísticos que sólo puedan encomendarse a determinadas personas naturales;","PRESTAR SERVICIOS PARA APOYAR ADMINISTRATIVA Y ASISTENCIALMENTE AL ÁREA DE GESTIÓN POLICIVA DE LA LOCALIDAD.","Inversión","Bogotá Mejor para Todos",45,{"$f":"IF(ISERROR(VLOOKUP(K144,Eje_Pilar_Prop!$C$2:$E$104,2,FALSE)),\" \",VLOOKUP(K144,Eje_Pilar_Prop!$C$2:$E$104,2,FALSE))","v":"Gobernanza e influencia local, regional e internacional"},{"$f":"IF(ISERROR(VLOOKUP(K144,Eje_Pilar_Prop!$C$2:$E$104,3,FALSE)),\" \",VLOOKUP(K144,Eje_Pilar_Prop!$C$2:$E$104,3,FALSE))","v":"Eje Transversal 4 Gobierno Legitimo, Fortalecimiento Local y Eficiencia"},1474,79331823,"ERNESTO MUNEVAR GONZALEZ",9452000,null,null,0,0,9452000,5986266,"2020-08-13","2020-08-14","2020-12-13",120,0,0,1023885413,"LEIDI YOHANA GOMEZ CRISTIANO","2020-09-14",7010233,null,null,"X",null,0.63333326280152347]
[132,2020,"SECOP II","FDLF-CD-132-2020","Contratos de prestación de servicios","Contratación Directa","Prestación de servicios profesionales y de apoyo a la gestión, o para la ejecución de trabajos artísticos que sólo puedan encomendarse a determinadas personas naturales;","PRESTAR SERVICIOS DE APOYO AL ÁREA DE GESTIÓN DEL DESARROLLO LOCAL DE LA ALCALDÍA LOCAL DE FONTIBÓN.","Inversión","Bogotá Mejor para Todos",45,{"$f":"IF(ISERROR(VLOOKUP(K145,Eje_Pilar_Prop!$C$2:$E$104,2,FALSE)),\" \",VLOOKUP(K145,Eje_Pilar_Prop!$C$2:$E$104,2,FALSE))","v":"Gobernanza e influencia local, regional e internacional"},{"$f":"IF(ISERROR(VLOOKUP(K145,Eje_Pilar_Prop!$C$2:$E$104,3,FALSE)),\" \",VLOOKUP(K145,Eje_Pilar_Prop!$C$2:$E$104,3,FALSE))","v":"Eje Transversal 4 Gobierno Legitimo, Fortalecimiento Local y Eficiencia"},1474,1016006281,"JOHN FREDDY AMAYA MORENO",11815000,null,null,0,0,11815000,8034200,"2020-08-14","2020-08-19","2020-12-30",133,0,0,null,null,null,null,null,null,"X",null,0.68]
[133,2020,"SECOP II","FDLF-CD-133-2020","Contratos de prestación de servicios","Contratación Directa","Prestación de servicios profesionales y de apoyo a la gestión, o para la ejecución de trabajos artísticos que sólo puedan encomendarse a determinadas personas naturales;","SERVICIOS DE APOYO TÉCNICO ADMINISTRATIVO PARA PROCESOS DE COBRO PERSUASIVO DE LAS OBLIGACIONES CLARAS, EXPRESAS Y ACTUALMENTE EXIGIBLES, POR CONCEPTO DE MULTAS IMPUESTAS POR EL ÁREA DE GESTIÓN POLICIVA.","Inversión","Bogotá Mejor para Todos",45,{"$f":"IF(ISERROR(VLOOKUP(K146,Eje_Pilar_Prop!$C$2:$E$104,2,FALSE)),\" \",VLOOKUP(K146,Eje_Pilar_Prop!$C$2:$E$104,2,FALSE))","v":"Gobernanza e influencia local, regional e internacional"},{"$f":"IF(ISERROR(VLOOKUP(K146,Eje_Pilar_Prop!$C$2:$E$104,3,FALSE)),\" \",VLOOKUP(K146,Eje_Pilar_Prop!$C$2:$E$104,3,FALSE))","v":"Eje Transversal 4 Gobierno Legitimo, Fortalecimiento Local y Eficiencia"},1474,52848705,"CAROLINA HERNANDEZ HERRERA",16720000,null,null,1,3800000,20520000,12793333,"2020-08-14","2020-08-19","2021-01-30",132,1,30,null,null,null,null,null,"X",null,null,0.62345677387914233]
[134,2020,"SECOP II","FDLF-CD-134-2020","Contratos de prestación de servicios","Contratación Directa","Prestación de servicios profesionales y de apoyo a la gestión, o para la ejecución de trabajos artísticos que sólo puedan encomendarse a determinadas personas naturales;","SERVICIOS APOYO A LAS ACTIVIDADES CORRESPONDIENTES A TEMAS DE MALLA VIAL, OBRAS, ESPACIO PÚBLICO E INFRAESTRUCTURA PARA LA ALCALDÍA LOCAL DE FONTIBÓN","Inversión","Bogotá Mejor para Todos",18,{"$f":"IF(ISERROR(VLOOKUP(K147,Eje_Pilar_Prop!$C$2:$E$104,2,FALSE)),\" \",VLOOKUP(K147,Eje_Pilar_Prop!$C$2:$E$104,2,FALSE))","v":"Mejor movilidad para todos"},{"$f":"IF(ISERROR(VLOOKUP(K147,Eje_Pilar_Prop!$C$2:$E$104,3,FALSE)),\" \",VLOOKUP(K147,Eje_Pilar_Prop!$C$2:$E$104,3,FALSE))","v":"Pilar 2 Democracía Urbana"},1464,19497903,"EDGAR AUGUSTO GRANADOS MEJIA",15200000,null,null,1,7600000,22800000,12793333,"2020-08-19","2020-08-20","2021-02-19",120,1,60,null,null,null,null,null,"X",null,null,0.56111109649122803]
[135,2020,"SECOP II","FDLF-CD-135-2020","Contratos de prestación de servicios","Contratación Directa","Prestación de servicios profesionales y de apoyo a la gestión, o para la ejecución de trabajos artísticos que sólo puedan encomendarse a determinadas personas naturales;","PRESTAR SERVICIOS PARA APOYAR JURÍDICAMENTE LA EJECUCIÓN DE LAS ACCIONES REQUERIDAS PARA EL TRÁMITE E IMPULSO PROCESAL DE LAS ACTUACIONES CONTRAVENCIONALES Y/O QUERELLAS QUE CURSEN EN LAS INSPECCIONES DE POLICÍA DE LA LOCALIDAD.","Inversión","Bogotá Mejor para Todos",45,{"$f":"IF(ISERROR(VLOOKUP(K148,Eje_Pilar_Prop!$C$2:$E$104,2,FALSE)),\" \",VLOOKUP(K148,Eje_Pilar_Prop!$C$2:$E$104,2,FALSE))","v":"Gobernanza e influencia local, regional e internacional"},{"$f":"IF(ISERROR(VLOOKUP(K148,Eje_Pilar_Prop!$C$2:$E$104,3,FALSE)),\" \",VLOOKUP(K148,Eje_Pilar_Prop!$C$2:$E$104,3,FALSE))","v":"Eje Transversal 4 Gobierno Legitimo, Fortalecimiento Local y Eficiencia"},1474,5831620,"RICAURTE TARQUINO BECERRA",19132000,null,null,1,4783000,23915000,15305600,"2020-08-20","2020-08-25","2021-01-24",120,1,30,null,null,null,null,null,"X",null,null,0.64]
[136,2020,"SECOP II","FDLF-CD-136-2020","Contratos de prestación de servicios","Contratación Directa","Prestación de servicios profesionales y de apoyo a la gestión, o para la ejecución de trabajos artísticos que sólo puedan encomendarse a determinadas personas naturales;","PRESTAR SERVICIOS COMO PROFESIONAL ESPECIALIZADO PARA REALIZAR EL PROCESO DE LIQUIDACIONES DE LOS CONTRATOS SUSCRITOS POR EL FONDO DE DESARROLLO LOCAL DE FONTIBÓN.","Inversión","Bogotá Mejor para Todos",45,{"$f":"IF(ISERROR(VLOOKUP(K149,Eje_Pilar_Prop!$C$2:$E$104,2,FALSE)),\" \",VLOOKUP(K149,Eje_Pilar_Prop!$C$2:$E$104,2,FALSE))","v":"Gobernanza e influencia local, regional e internacional"},{"$f":"IF(ISERROR(VLOOKUP(K149,Eje_Pilar_Prop!$C$2:$E$104,3,FALSE)),\" \",VLOOKUP(K149,Eje_Pilar_Prop!$C$2:$E$104,3,FALSE))","v":"Eje Transversal 4 Gobierno Legitimo, Fortalecimiento Local y Eficiencia"},1474,79582465,"FRANCISCO JIMENEZ BEDOYA",28000000,null,null,1,8633333,36633333,22633333,"2020-08-20","2020-08-24","2021-01-30",120,1,37,null,null,null,null,null,"X",null,null,{"$f":"IF(ISERROR(W149/V149),\"-\",(W149/V149))","v":0.61783439142706453}]
[137,2020,"SECOP II","FDLF-CD-137-2020","Contratos de prestación de servicios","Contratación Directa","Prestación de servicios profesionales y de apoyo a la gestión, o para la ejecución de trabajos artísticos que sólo puedan encomendarse a determinadas personas naturales;","PRESTAR SERVICIOS PARA APOYAR LA FORMULACIÓN, GESTIÓN Y SEGUIMIENTO DE ACTIVIDADES ENFOCADAS A LA GESTIÓN AMBIENTAL EXTERNA, ENCAMINADAS A LA MITIGACIÓN DE LOS DIFERENTES IMPACTOS AMBIENTALES Y LA CONSERVACIÓN DE LOS RECURSOS NATURALES DE LA LOCALIDAD.","Inversión","Bogotá Mejor para Todos",38,{"$f":"IF(ISERROR(VLOOKUP(K150,Eje_Pilar_Prop!$C$2:$E$104,2,FALSE)),\" \",VLOOKUP(K150,Eje_Pilar_Prop!$C$2:$E$104,2,FALSE))","v":"Recuperación y manejo de la Estructura Ecológica Principal"},{"$f":"IF(ISERROR(VLOOKUP(K150,Eje_Pilar_Prop!$C$2:$E$104,3,FALSE)),\" \",VLOOKUP(K150,Eje_Pilar_Prop!$C$2:$E$104,3,FALSE))","v":"Eje Transversal 3 Sostenibilidad Ambiental basada en la eficiencia energética"},1471,1015437921,"CRISTIAN STIVEN TAMBO LOPEZ",20000000,null,null,0,0,20000000,0,"2020-08-21","2020-08-27","2020-12-26",120,0,0,null,null,null,null,null,null,"X",null,0]
[138,2020,"SECOP II","FDLF-CD-138-2020","Contratos de prestación de servicios","Contratación Directa","Prestación de servicios profesionales y de apoyo a la gestión, o para la ejecución de trabajos artísticos que sólo puedan encomendarse a determinadas personas naturales;","APOYAR AL EQUIPO DE PRENSA Y COMUNICACIONES DE LA ALCALDÍA LOCAL EN LA CREACIÓN, REALIZACIÓN, PRODUCCIÓN Y EDICIÓN DE VÍDEOS, ASÍ COMO EL REGISTRO, EDICIÓN Y LA PRESENTACIÓN DE FOTOGRAFÍAS DE LOS ACONTECIMIENTOS, HECHOS Y EVENTOS EXTERNOS E INTERNOS DE LA ALCALDÍA LOCAL, PARA SER UTILIZADOS COMO INSUMOS DE COMUNICACIÓN EN LOS MEDIOS, ESPECIALMENTE ESCRITOS, DIGITALES Y AUDIOVISUALES.","Inversión","Bogotá Mejor para Todos",45,{"$f":"IF(ISERROR(VLOOKUP(K151,Eje_Pilar_Prop!$C$2:$E$104,2,FALSE)),\" \",VLOOKUP(K151,Eje_Pilar_Prop!$C$2:$E$104,2,FALSE))","v":"Gobernanza e influencia local, regional e internacional"},{"$f":"IF(ISERROR(VLOOKUP(K151,Eje_Pilar_Prop!$C$2:$E$104,3,FALSE)),\" \",VLOOKUP(K151,Eje_Pilar_Prop!$C$2:$E$104,3,FALSE))","v":"Eje Transversal 4 Gobierno Legitimo, Fortalecimiento Local y Eficiencia"},1474,1098775570,"JENNY KATHERINE SILVA PICO",16800000,null,null,1,4200000,21000000,13580000,"2020-08-20","2020-08-24","2021-01-23",120,1,30,null,null,null,null,null,"X",null,null,0.64666666666666661]
[139,2020,"SECOP II","FDLF-CD-139-2020","Contratos de prestación de servicios","Contratación Directa","Prestación de servicios profesionales y de apoyo a la gestión, o para la ejecución de trabajos artísticos que sólo puedan encomendarse a determinadas personas naturales;","PRESTAR SERVICIOS PROFESIONALES PARA REALIZAR EL CONTROL, SEGUIMIENTO, ACTUALIZACIÓN Y ANÁLISIS DEL BANCO DE\nPROGRAMAS Y PROYECTOS, ASÍ COMO TAMBIÉN A LOS INSTRUMENTOS DE PLANEACIÓN Y GESTIÓN DEL FONDO DE DESARROLLO LOCAL DE FONTIBÓN DE CONFORMIDAD CON EL ESTUDIO DE PREVIO.","Inversión","Bogotá Mejor para Todos",45,{"$f":"IF(ISERROR(VLOOKUP(K152,Eje_Pilar_Prop!$C$2:$E$104,2,FALSE)),\" \",VLOOKUP(K152,Eje_Pilar_Prop!$C$2:$E$104,2,FALSE))","v":"Gobernanza e influencia local, regional e internacional"},{"$f":"IF(ISERROR(VLOOKUP(K152,Eje_Pilar_Prop!$C$2:$E$104,3,FALSE)),\" \",VLOOKUP(K152,Eje_Pilar_Prop!$C$2:$E$104,3,FALSE))","v":"Eje Transversal 4 Gobierno Legitimo, Fortalecimiento Local y Eficiencia"},1474,1030553619,"LUIS FERNANDO MOSCOSO GAVIRIA",23200000,null,null,1,11600000,34800000,18753333,"2020-08-20","2020-08-24","2021-02-23",120,1,60,null,null,null,null,null,"X",null,null,0.53888887931034479]
[140,2020,"SECOP II","FDLF-CD-140-2020","Contratos de prestación de servicios","Contratación Directa","Prestación de servicios profesionales y de apoyo a la gestión, o para la ejecución de trabajos artísticos que sólo puedan encomendarse a determinadas personas naturales;","PRESTAR SERVICIOS PROFESIONALES PARA REALIZAR EL CONTROL, SEGUIMIENTO, ACTUALIZACIÓN Y ANÁLISIS DEL BANCO DE\nPROGRAMAS Y PROYECTOS, ASÍ COMO TAMBIÉN A LOS INSTRUMENTOS DE PLANEACIÓN Y GESTIÓN DEL FONDO DE DESARROLLO LOCAL DE FONTIBÓN DE CONFORMIDAD CON EL ESTUDIO DE PREVIO.","Inversión","Bogotá Mejor para Todos",45,{"$f":"IF(ISERROR(VLOOKUP(K153,Eje_Pilar_Prop!$C$2:$E$104,2,FALSE)),\" \",VLOOKUP(K153,Eje_Pilar_Prop!$C$2:$E$104,2,FALSE))","v":"Gobernanza e influencia local, regional e internacional"},{"$f":"IF(ISERROR(VLOOKUP(K153,Eje_Pilar_Prop!$C$2:$E$104,3,FALSE)),\" \",VLOOKUP(K153,Eje_Pilar_Prop!$C$2:$E$104,3,FALSE))","v":"Eje Transversal 4 Gobierno Legitimo, Fortalecimiento Local y Eficiencia"},1474,52515689,"BIBIANA BAUTISTA ZABALETA",22000000,null,null,1,5500000,27500000,17783333,"2020-08-20","2020-08-24","2021-01-23",120,1,30,null,null,null,null,null,"X",null,null,0.64666665454545458]
[142,2020,"SECOP II","FDLF-CD-142-2020","Contratos de prestación de servicios","Contratación directa","Prestación de servicios profesionales y de apoyo a la gestión, o para la ejecución de trabajos artísticos que sólo puedan encomendarse a determinadas personas naturales;","PRESTAR SERVICIOS PARA APOYAR JURÍDICAMENTE LA EJECUCIÓN DE LAS ACCIONES REQUERIDAS PARA EL TRÁMITE E IMPULSO PROCESAL DE LAS ACTUACIONES CONTRAVENCIONALES Y/O QUERELLAS QUE CURSEN EN LAS INSPECCIONES DE POLICÍA DE LA LOCALIDAD.","Inversión","Bogotá Mejor para Todos",45,{"$f":"IF(ISERROR(VLOOKUP(K154,Eje_Pilar_Prop!$C$2:$E$104,2,FALSE)),\" \",VLOOKUP(K154,Eje_Pilar_Prop!$C$2:$E$104,2,FALSE))","v":"Gobernanza e influencia local, regional e internacional"},{"$f":"IF(ISERROR(VLOOKUP(K154,Eje_Pilar_Prop!$C$2:$E$104,3,FALSE)),\" \",VLOOKUP(K154,Eje_Pilar_Prop!$C$2:$E$104,3,FALSE))","v":"Eje Transversal 4 Gobierno Legitimo, Fortalecimiento Local y Eficiencia"},1474,1016074802,"NATALIA ANDREA SERRATO CRUZ",19132000,null,null,0,0,19132000,0,"2020-08-20","2020-08-24","2020-12-23",120,0,0,null,null,null,null,null,null,"X",null,0]
[143,2020,"SECOP II","FDLF-CD-143-2020","Contratos de prestación de servicios","Contratación Directa","Prestación de servicios profesionales y de apoyo a la gestión, o para la ejecución de trabajos artísticos que sólo puedan encomendarse a determinadas personas naturales;","PRESTAR SERVICIOS PARA APOYAR JURÍDICAMENTE LA EJECUCIÓN DE LAS ACCIONES REQUERIDAS PARA EL TRÁMITE E IMPULSO PROCESAL DE LAS ACTUACIONES CONTRAVENCIONALES Y/O QUERELLAS QUE CURSEN EN LAS INSPECCIONES DE POLICÍA DE LA LOCALIDAD.","Inversión","Bogotá Mejor para Todos",45,{"$f":"IF(ISERROR(VLOOKUP(K155,Eje_Pilar_Prop!$C$2:$E$104,2,FALSE)),\" \",VLOOKUP(K155,Eje_Pilar_Prop!$C$2:$E$104,2,FALSE))","v":"Gobernanza e influencia local, regional e internacional"},{"$f":"IF(ISERROR(VLOOKUP(K155,Eje_Pilar_Prop!$C$2:$E$104,3,FALSE)),\" \",VLOOKUP(K155,Eje_Pilar_Prop!$C$2:$E$104,3,FALSE))","v":"Eje Transversal 4 Gobierno Legitimo, Fortalecimiento Local y Eficiencia"},1474,33307650,"LUZ MERY PATERNINA MEDINA",19132000,null,null,0,0,19132000,15465033,"2020-08-20","2020-08-24","2020-12-23",120,0,0,null,null,null,null,null,null,"X",null,0.80833331591051638]
[144,2020,"SECOP II","FDLF-CD-144-2020","Contratos de prestación de servicios","Contratación Directa","Prestación de servicios profesionales y de apoyo a la gestión, o para la ejecución de trabajos artísticos que sólo puedan encomendarse a determinadas personas naturales;","SERVICIOS DE APOYO TÉCNICO ADMINISTRATIVO AL ÁREA DE GESTIÓN DEL DESARROLLO LOCAL DE LA ALCALDÍA LOCAL DE FONTIBÓN.","Inversión","Bogotá Mejor para Todos",45,{"$f":"IF(ISERROR(VLOOKUP(K156,Eje_Pilar_Prop!$C$2:$E$104,2,FALSE)),\" \",VLOOKUP(K156,Eje_Pilar_Prop!$C$2:$E$104,2,FALSE))","v":"Gobernanza e influencia local, regional e internacional"},{"$f":"IF(ISERROR(VLOOKUP(K156,Eje_Pilar_Prop!$C$2:$E$104,3,FALSE)),\" \",VLOOKUP(K156,Eje_Pilar_Prop!$C$2:$E$104,3,FALSE))","v":"Eje Transversal 4 Gobierno Legitimo, Fortalecimiento Local y Eficiencia"},1474,79611853,"DIEGO FERNANDO MONCADA MORENO",15200000,null,null,1,3800000,19000000,12286667,"2020-08-20","2020-08-24","2021-01-23",120,1,30,null,null,null,null,null,"X",null,null,0.64666668421052631]
[145,2020,"SECOP II","FDLF-CD-145-2020","Contratos de prestación de servicios","Contratación Directa","Prestación de servicios profesionales y de apoyo a la gestión, o para la ejecución de trabajos artísticos que sólo puedan encomendarse a determinadas personas naturales;","PRESTAR SERVICIOS PROFESIONALES PARA APOYAR EL ÁREA DE GESTIÓN DE DESARROLLO LOCAL EN LA EJECUCIÓN DEL PROYECTO FONTIBÓN, MEJOR MOVILIDAD PARA TODOS.","Inversión","Bogotá Mejor para Todos",18,{"$f":"IF(ISERROR(VLOOKUP(K157,Eje_Pilar_Prop!$C$2:$E$104,2,FALSE)),\" \",VLOOKUP(K157,Eje_Pilar_Prop!$C$2:$E$104,2,FALSE))","v":"Mejor movilidad para todos"},{"$f":"IF(ISERROR(VLOOKUP(K157,Eje_Pilar_Prop!$C$2:$E$104,3,FALSE)),\" \",VLOOKUP(K157,Eje_Pilar_Prop!$C$2:$E$104,3,FALSE))","v":"Pilar 2 Democracía Urbana"},1464,38248578,"LUZ EDELMIRA RODRIGUEZ SILVA",26000000,null,null,1,6500000,32500000,5416667,"2020-08-20","2020-08-24","2021-01-23",120,1,30,7304329,"PEDRO ALFONSO VARGAS","2020-11-06",10400000,null,"X",null,null,0.16666667692307693]
[146,2020,"SECOP II","FDLF-CD-146-2020","Contratos de prestación de servicios","Contratación Directa","Prestación de servicios profesionales y de apoyo a la gestión, o para la ejecución de trabajos artísticos que sólo puedan encomendarse a determinadas personas naturales;","SERVICIOS PROFESIONALES ESPECIALIZADOS PARA ORIENTAR EL GRUPO JURÍDICO DE CONTRATACIÓN DE LA ALCALDÍA LOCAL DE FONTIBÓN.","Inversión","Bogotá Mejor para Todos",45,{"$f":"IF(ISERROR(VLOOKUP(K158,Eje_Pilar_Prop!$C$2:$E$104,2,FALSE)),\" \",VLOOKUP(K158,Eje_Pilar_Prop!$C$2:$E$104,2,FALSE))","v":"Gobernanza e influencia local, regional e internacional"},{"$f":"IF(ISERROR(VLOOKUP(K158,Eje_Pilar_Prop!$C$2:$E$104,3,FALSE)),\" \",VLOOKUP(K158,Eje_Pilar_Prop!$C$2:$E$104,3,FALSE))","v":"Eje Transversal 4 Gobierno Legitimo, Fortalecimiento Local y Eficiencia"},1474,40390477,"BLANCA OLIVIA CORDOBA MARTINEZ",38566667,null,null,1,17800000,56366667,28776667,"2020-08-21","2020-08-24","2021-02-28",130,1,60,null,null,null,null,null,"X",null,null,0.51052631868405485]
[147,2020,"SECOP II","FDLF-CD-147-2020","Contratos de prestación de servicios","Contratación Directa","Prestación de servicios profesionales y de apoyo a la gestión, o para la ejecución de trabajos artísticos que sólo puedan encomendarse a determinadas personas naturales;","PRESTAR SERVICIOS PROFESIONALES PARA APOYAR AL DESPACHO EN LA REALIZACIÓN DE ACTIVIDADES DEFINIDAS POR EL ÁREA DE GESTIÓN PARA EL DESARROLLO LOCAL DE FONTIBÓN, EN RELACIÓN A LA GESTIÓN INTRAINSTITUCIONAL CON LA JUNTA ADMINISTRADORA LOCAL Y LA LOGÍSTICA REFERIDA AL SECTOR EMPRESARIAL DE LA LOCALIDAD DE FONTIBÓN.\n","Inversión","Bogotá Mejor para Todos",45,{"$f":"IF(ISERROR(VLOOKUP(K159,Eje_Pilar_Prop!$C$2:$E$104,2,FALSE)),\" \",VLOOKUP(K159,Eje_Pilar_Prop!$C$2:$E$104,2,FALSE))","v":"Gobernanza e influencia local, regional e internacional"},{"$f":"IF(ISERROR(VLOOKUP(K159,Eje_Pilar_Prop!$C$2:$E$104,3,FALSE)),\" \",VLOOKUP(K159,Eje_Pilar_Prop!$C$2:$E$104,3,FALSE))","v":"Eje Transversal 4 Gobierno Legitimo, Fortalecimiento Local y Eficiencia"},1474,1015402473,"CARLOS ANDRES DUQUE NIÑO",16800000,null,null,0,0,16800000,0,"2020-08-21","2020-08-24","2020-12-23",120,0,0,null,null,null,null,null,null,"X",null,0]
[148,2020,"SECOP II","FDLF-CD-148-2020","Contratos de prestación de servicios","Contratación Directa","Prestación de servicios profesionales y de apoyo a la gestión, o para la ejecución de trabajos artísticos que sólo puedan encomendarse a determinadas personas naturales;","PRESTAR SERVICIOS PROFESIONALES PARA APOYAR AL ALCALDE LOCAL EN LA FORMULACIÓN, SEGUIMIENTO E IMPLEMENTACIÓN DE LA ESTRATEGIA LOCAL PARA LA TERMINACIÓN JURÍDICA O INACTIVACIÓN DE LAS ACTUACIONES ADMINISTRATIVAS QUE CURSAN EN LA ALCALDÍA LOCAL.","Inversión","Bogotá Mejor para Todos",45,{"$f":"IF(ISERROR(VLOOKUP(K160,Eje_Pilar_Prop!$C$2:$E$104,2,FALSE)),\" \",VLOOKUP(K160,Eje_Pilar_Prop!$C$2:$E$104,2,FALSE))","v":"Gobernanza e influencia local, regional e internacional"},{"$f":"IF(ISERROR(VLOOKUP(K160,Eje_Pilar_Prop!$C$2:$E$104,3,FALSE)),\" \",VLOOKUP(K160,Eje_Pilar_Prop!$C$2:$E$104,3,FALSE))","v":"Eje Transversal 4 Gobierno Legitimo, Fortalecimiento Local y Eficiencia"},1474,80203157,"HAROLD RAUL MOLANO CERQUERA",28000000,null,null,1,14000000,42000000,22633333,"2020-08-21","2020-08-24","2021-02-23",120,1,60,null,null,null,null,null,"X",null,null,0.53888888095238097]
[149,2020,"SECOP II","FDLF-CD-149-2020","Contratos de prestación de servicios","Contratación Directa","Prestación de servicios profesionales y de apoyo a la gestión, o para la ejecución de trabajos artísticos que sólo puedan encomendarse a determinadas personas naturales;","APOYO PROFESIONAL PARA LOS TEMAS DE GESTIÓN DE RIESGO Y GESTIÓN AMBIENTAL DEL ÁREA DE GESTIÓN DE DESARROLLO LOCAL.","Inversión","Bogotá Mejor para Todos",45,{"$f":"IF(ISERROR(VLOOKUP(K161,Eje_Pilar_Prop!$C$2:$E$104,2,FALSE)),\" \",VLOOKUP(K161,Eje_Pilar_Prop!$C$2:$E$104,2,FALSE))","v":"Gobernanza e influencia local, regional e internacional"},{"$f":"IF(ISERROR(VLOOKUP(K161,Eje_Pilar_Prop!$C$2:$E$104,3,FALSE)),\" \",VLOOKUP(K161,Eje_Pilar_Prop!$C$2:$E$104,3,FALSE))","v":"Eje Transversal 4 Gobierno Legitimo, Fortalecimiento Local y Eficiencia"},1474,1024563513,"NAYIB SELENIA CALIFA GARZON",16800000,null,null,1,4200000,21000000,13580000,"2020-08-21","2020-08-24","2021-01-23",120,1,30,null,null,null,null,null,"X",null,null,0.64666666666666661]
[150,2020,"SECOP II","FDLF-CD-150-2020","Contratos de prestación de servicios","Contratación Directa","Prestación de servicios profesionales y de apoyo a la gestión, o para la ejecución de trabajos artísticos que sólo puedan encomendarse a determinadas personas naturales;","PRESTAR SERVICIOS PARA APOYAR JURÍDICAMENTE LA EJECUCIÓN DE LAS ACCIONES REQUERIDAS PARA LA DEPURACIÓN DE LAS ACTUACIONES ADMINISTRATIVAS QUE CURSAN EN LA ALCALDÍA LOCAL DE FONTIBÓN.","Inversión","Bogotá Mejor para Todos",45,{"$f":"IF(ISERROR(VLOOKUP(K162,Eje_Pilar_Prop!$C$2:$E$104,2,FALSE)),\" \",VLOOKUP(K162,Eje_Pilar_Prop!$C$2:$E$104,2,FALSE))","v":"Gobernanza e influencia local, regional e internacional"},{"$f":"IF(ISERROR(VLOOKUP(K162,Eje_Pilar_Prop!$C$2:$E$104,3,FALSE)),\" \",VLOOKUP(K162,Eje_Pilar_Prop!$C$2:$E$104,3,FALSE))","v":"Eje Transversal 4 Gobierno Legitimo, Fortalecimiento Local y Eficiencia"},1474,1032454002,"DANIEL RICARDO GONZALEZ RODRIGUEZ",19132000,null,null,1,4783000,23915000,15305600,"2020-08-21","2020-08-25","2021-01-24",120,1,30,null,null,null,null,null,"X",null,null,0.64]
[151,2020,"SECOP II","FDLF-CD-151-2020","Contratos de prestación de servicios","Contratación Directa","Prestación de servicios profesionales y de apoyo a la gestión, o para la ejecución de trabajos artísticos que sólo puedan encomendarse a determinadas personas naturales;","PRESTAR SERVICIOS PARA APOYAR JURÍDICAMENTE LA EJECUCIÓN DE LAS ACCIONES REQUERIDAS PARA LA DEPURACIÓN DE LAS ACTUACIONES ADMINISTRATIVAS QUE CURSAN EN LA ALCALDÍA LOCAL DE FONTIBÓN.","Inversión","Bogotá Mejor para Todos",45,{"$f":"IF(ISERROR(VLOOKUP(K163,Eje_Pilar_Prop!$C$2:$E$104,2,FALSE)),\" \",VLOOKUP(K163,Eje_Pilar_Prop!$C$2:$E$104,2,FALSE))","v":"Gobernanza e influencia local, regional e internacional"},{"$f":"IF(ISERROR(VLOOKUP(K163,Eje_Pilar_Prop!$C$2:$E$104,3,FALSE)),\" \",VLOOKUP(K163,Eje_Pilar_Prop!$C$2:$E$104,3,FALSE))","v":"Eje Transversal 4 Gobierno Legitimo, Fortalecimiento Local y Eficiencia"},1474,39636097,"MARIA ELINA PLAZAS LOPEZ",19132000,null,null,1,4783000,23915000,15305600,"2020-08-21","2020-08-25","2021-01-24",120,1,30,null,null,null,null,null,"X",null,null,0.64]
[152,2020,"SECOP II","FDLF-CD-152-2020","Contratos de prestación de servicios","Contratación Directa","Prestación de servicios profesionales y de apoyo a la gestión, o para la ejecución de trabajos artísticos que sólo puedan encomendarse a determinadas personas naturales;","PRESTAR SERVICIOS PARA APOYAR JURÍDICAMENTE LA EJECUCIÓN DE LAS ACCIONES REQUERIDAS PARA LA DEPURACIÓN DE LAS ACTUACIONES ADMINISTRATIVAS QUE CURSAN EN LA ALCALDÍA LOCAL DE FONTIBÓN.","Inversión","Bogotá Mejor para Todos",45,{"$f":"IF(ISERROR(VLOOKUP(K164,Eje_Pilar_Prop!$C$2:$E$104,2,FALSE)),\" \",VLOOKUP(K164,Eje_Pilar_Prop!$C$2:$E$104,2,FALSE))","v":"Gobernanza e influencia local, regional e internacional"},{"$f":"IF(ISERROR(VLOOKUP(K164,Eje_Pilar_Prop!$C$2:$E$104,3,FALSE)),\" \",VLOOKUP(K164,Eje_Pilar_Prop!$C$2:$E$104,3,FALSE))","v":"Eje Transversal 4 Gobierno Legitimo, Fortalecimiento Local y Eficiencia"},1474,79572785,"JORGE ARMANDO SUAREZ MEDINA",19132000,null,null,1,9566000,28698000,15146167,"2020-08-21","2020-08-26","2021-02-25",120,1,60,null,null,null,null,null,"X",null,null,0.52777778939298903]
[153,2020,"SECOP II","FDLF-CD-153-2020","Contratos de prestación de servicios","Contratación Directa","Prestación de servicios profesionales y de apoyo a la gestión, o para la ejecución de trabajos artísticos que sólo puedan encomendarse a determinadas personas naturales;","PRESTAR SERVICIOS PARA APOYAR Y DAR SOPORTE TÉCNICO AL ADMINISTRADOR Y USUARIO FINAL DE LA RED DE SISTEMAS Y TECNOLOGÍA E INFORMACIÓN DE LA ALCALDÍA LOCAL.","Inversión","Bogotá Mejor para Todos",45,{"$f":"IF(ISERROR(VLOOKUP(K165,Eje_Pilar_Prop!$C$2:$E$104,2,FALSE)),\" \",VLOOKUP(K165,Eje_Pilar_Prop!$C$2:$E$104,2,FALSE))","v":"Gobernanza e influencia local, regional e internacional"},{"$f":"IF(ISERROR(VLOOKUP(K165,Eje_Pilar_Prop!$C$2:$E$104,3,FALSE)),\" \",VLOOKUP(K165,Eje_Pilar_Prop!$C$2:$E$104,3,FALSE))","v":"Eje Transversal 4 Gobierno Legitimo, Fortalecimiento Local y Eficiencia"},1474,1015410053,"JUAN DAVID RAMIREZ FARIAS",15400000,null,null,1,7700000,23100000,12320000,"2020-08-24","2020-08-25","2021-02-24",120,1,60,null,null,null,null,null,"X",null,null,0.53333333333333333]
[154,2020,"SECOP II","FDLF-CD-154-2020","Contratos de prestación de servicios","Contratación Directa","Prestación de servicios profesionales y de apoyo a la gestión, o para la ejecución de trabajos artísticos que sólo puedan encomendarse a determinadas personas naturales;","PRESTAR SERVICIOS PROFESIONALES PARA APOYAR AL ÁREA DE GESTIÓN DE DESARROLLO LOCAL EN LA PROMOCIÓN, ACOMPAÑAMIENTO Y ATENCIÓN DE LAS INSTANCIAS DE PARTICIPACIÓN LOCALES, ASÍ COMO EN LA FORMULACIÓN Y SEGUIMIENTO DE LOS PROYECTOS DE INVERSIÓN RELACIONADOS.","Inversión","Bogotá Mejor para Todos",45,{"$f":"IF(ISERROR(VLOOKUP(K166,Eje_Pilar_Prop!$C$2:$E$104,2,FALSE)),\" \",VLOOKUP(K166,Eje_Pilar_Prop!$C$2:$E$104,2,FALSE))","v":"Gobernanza e influencia local, regional e internacional"},{"$f":"IF(ISERROR(VLOOKUP(K166,Eje_Pilar_Prop!$C$2:$E$104,3,FALSE)),\" \",VLOOKUP(K166,Eje_Pilar_Prop!$C$2:$E$104,3,FALSE))","v":"Eje Transversal 4 Gobierno Legitimo, Fortalecimiento Local y Eficiencia"},1473,1016023490,"GERARDO MARTINEZ VASQUEZ",16800000,null,null,0,0,16800000,9240000,"2020-08-24","2020-08-25","2021-01-24",120,1,30,null,null,null,null,null,"X",null,null,0.55000000000000004]
[156,2020,"SECOP I","FDLF-CD-156-2020","Contratos interadministrativos","Contratación directa","Contratos interadministrativos","IMPLEMENTAR Y EJECUTAR EL PROGRAMA “CUMPLIMENTO DE PROTOCOLOS DE BIOSEGURIDAD PARA LA ADAPTACIÓN Y REACTIVACIÓN ECONÓMICA EN LAS LOCALIDADES DE BOSA, FONTIBÓN Y PUENTE ARANDA.\"","Inversión","Bogotá Mejor para Todos",19,{"$f":"IF(ISERROR(VLOOKUP(K167,Eje_Pilar_Prop!$C$2:$E$104,2,FALSE)),\" \",VLOOKUP(K167,Eje_Pilar_Prop!$C$2:$E$104,2,FALSE))","v":"Seguridad y convivencia para todos"},{"$f":"IF(ISERROR(VLOOKUP(K167,Eje_Pilar_Prop!$C$2:$E$104,3,FALSE)),\" \",VLOOKUP(K167,Eje_Pilar_Prop!$C$2:$E$104,3,FALSE))","v":"Pilar 3 Construcción de Comunidad y Cultura Ciudadana"},1467,"900.959.048-4","SUBRED INTEGRADA DE SERVICIOS DE SALUD SUROCCIDENTE ESE",338654690,null,null,0,0,338654690,0,"2020-08-26","2020-08-26","2021-02-28",183,0,0,null,null,null,null,null,"X",null,null,0]
[157,2020,"SECOP I","FDLF-CD-157-2020","Contratos de prestación de servicios","Contratación directa","Urgencia manifiesta","COMPENSAR SE OBLIGA A PRESTAR LOS SERVICIOS REQUERIDOS PARA OPERAR EL PROGRAMA DE INCENTIVOS PARA EL EMPLEO CON EL CUAL SE BUSCA APOYAR AL TEJIDO PRODUCTIVO DE LAS LOCALIDADES DE BOGOTÁ D.C, CON ESPECIAL ÉNFASIS EN LOS EMPRESARIOS, E INCLUIR Y/O MANTENER LABORALMENTE A TRABAJADORES MAYORES DE 50 AÑOS, MUJERES Y JÓVENES (18-28 AÑOS) PRINCIPALMENTE, A TRAVÉS DE LA TRANSFERENCIA DE INCENTIVOS A LA NÓMINA, EN EL MARCO DE LA CONTENCIÓN Y MITIGACIÓN DE LOS EFECTOS DEL COVID-19, LA DECLARATORIA DE EMERGENCIA SANITARIA EN TODO EL TERRITORIO NACIONAL Y LA CALAMIDAD PÚBLICA DECLARADA EN LA CIUDAD DE BOGOTÁ. ","Inversión","Bogotá Mejor para Todos",45,{"$f":"IF(ISERROR(VLOOKUP(K168,Eje_Pilar_Prop!$C$2:$E$104,2,FALSE)),\" \",VLOOKUP(K168,Eje_Pilar_Prop!$C$2:$E$104,2,FALSE))","v":"Gobernanza e influencia local, regional e internacional"},{"$f":"IF(ISERROR(VLOOKUP(K168,Eje_Pilar_Prop!$C$2:$E$104,3,FALSE)),\" \",VLOOKUP(K168,Eje_Pilar_Prop!$C$2:$E$104,3,FALSE))","v":"Eje Transversal 4 Gobierno Legitimo, Fortalecimiento Local y Eficiencia"},1473,"860.066942-7","CAJA DE COMPENSACIÓN FAMILIAR COMPENSAR",9238016519,1,-781980229,0,0,8456036290,2536810887,"2020-08-26","2020-09-14","2020-07-13",300,0,0,null,null,null,null,null,null,"X",null,0.3]
[158,2020,"SECOP II","FDLF-CD-158-2020","Contratos de prestación de servicios","Contratación directa","Prestación de servicios profesionales y de apoyo a la gestión, o para la ejecución de trabajos artísticos que sólo puedan encomendarse a determinadas personas naturales;","PRSETAR SERVICIOS PROFESIONALES ESPECIALIZADOS AL DESPACHO DEL ALCALDE DE LA LOCALIDAD DE FONTIBON","Inversión","Bogotá Mejor para Todos",45,{"$f":"IF(ISERROR(VLOOKUP(K169,Eje_Pilar_Prop!$C$2:$E$104,2,FALSE)),\" \",VLOOKUP(K169,Eje_Pilar_Prop!$C$2:$E$104,2,FALSE))","v":"Gobernanza e influencia local, regional e internacional"},{"$f":"IF(ISERROR(VLOOKUP(K169,Eje_Pilar_Prop!$C$2:$E$104,3,FALSE)),\" \",VLOOKUP(K169,Eje_Pilar_Prop!$C$2:$E$104,3,FALSE))","v":"Eje Transversal 4 Gobierno Legitimo, Fortalecimiento Local y Eficiencia"},1474,79399547,"FRANCISCO JAVIER BECERRA CORREDOR",21950000,null,null,0,0,21950000,0,"2020-09-21","2020-09-21","2020-12-30",100,0,0,null,null,null,null,null,null,"X",null,0]
[161,2020,"SECOP II","FDLF-CD-161-2020","Contratos de prestación de servicios",null,"Prestación de servicios profesionales y de apoyo a la gestión, o para la ejecución de trabajos artísticos que sólo puedan encomendarse a determinadas personas naturales;","PRESTAR SERVICIOS PROFESIONALES PARA APOYAR EL ÁREA DE GESTIÓN DEL DESARROLLO LOCAL ORIENTADA A LOS TEMAS DE RECREACIÓN Y DEPORTE ENFOCADAS EN LA CREACIÓN E IMPLEMENTACIÓN DE ESCUELAS DE FORMACIÓN DEPORTIVA","Inversión","Bogotá Mejor para Todos",11,{"$f":"IF(ISERROR(VLOOKUP(K170,Eje_Pilar_Prop!$C$2:$E$104,2,FALSE)),\" \",VLOOKUP(K170,Eje_Pilar_Prop!$C$2:$E$104,2,FALSE))","v":"Mejores oportunidades para el desarrollo a través de la cultura, la recreación y el deporte"},{"$f":"IF(ISERROR(VLOOKUP(K170,Eje_Pilar_Prop!$C$2:$E$104,3,FALSE)),\" \",VLOOKUP(K170,Eje_Pilar_Prop!$C$2:$E$104,3,FALSE))","v":"Pilar 1 Igualdad de Calidad de Vida"},1458,1014185339,"LUISA FERNANDA LEON LUQUE",15624467,null,null,0,0,15624467,10522600,"2020-09-25","2020-09-25","2020-12-31",98,0,0,null,null,null,null,null,null,"X",null,0.67346937338726498]
[{"$f":"A170+1","v":162},2020,"SECOP II","FDLF-CD-162-2020","Contratos de prestación de servicios","Contratación Directa","Prestación de servicios profesionales y de apoyo a la gestión, o para la ejecución de trabajos artísticos que sólo puedan encomendarse a determinadas personas naturales;","PRESTAR SERVICIOS PROFESIONALES DE APOYO CONTABLE EN LOS PROCESOS DE CAUSACIÓN, SISTEMATIZACIÓN Y REGISTROS DE INFORMACIÓN CONTABLE Y A LA GESTIÓN PRESUPUESTAL DEL FONDO DE DESARROLLO LOCAL.","Inversión","Bogotá Mejor para Todos",45,{"$f":"IF(ISERROR(VLOOKUP(K171,Eje_Pilar_Prop!$C$2:$E$104,2,FALSE)),\" \",VLOOKUP(K171,Eje_Pilar_Prop!$C$2:$E$104,2,FALSE))","v":"Gobernanza e influencia local, regional e internacional"},{"$f":"IF(ISERROR(VLOOKUP(K171,Eje_Pilar_Prop!$C$2:$E$104,3,FALSE)),\" \",VLOOKUP(K171,Eje_Pilar_Prop!$C$2:$E$104,3,FALSE))","v":"Eje Transversal 4 Gobierno Legitimo, Fortalecimiento Local y Eficiencia"},1474,79938920,"JHON FREDY ROA PINTO",14349000,null,null,1,7174500,21523500,10044300,"2020-09-28","2020-09-28","2021-02-12",90,1,45,null,null,null,null,null,"X",null,null,0.46666666666666667]
[163,2020,"SECOP II","FDLF-CD-163-2020","Contratos de prestación de servicios","Contratación Directa","Prestación de servicios profesionales y de apoyo a la gestión, o para la ejecución de trabajos artísticos que sólo puedan encomendarse a determinadas personas naturales;","PRESTAR LOS SERVICIOS TÉCNICOS PARA APOYAR LOS PROCESOS DE GESTIÓN ADMINISTRATIVA Y CONTRACTUAL AL FONDO DE DESARROLLO LOCAL DE FONTIBON.","Inversión","Bogotá Mejor para Todos",45,{"$f":"IF(ISERROR(VLOOKUP(K172,Eje_Pilar_Prop!$C$2:$E$104,2,FALSE)),\" \",VLOOKUP(K172,Eje_Pilar_Prop!$C$2:$E$104,2,FALSE))","v":"Gobernanza e influencia local, regional e internacional"},{"$f":"IF(ISERROR(VLOOKUP(K172,Eje_Pilar_Prop!$C$2:$E$104,3,FALSE)),\" \",VLOOKUP(K172,Eje_Pilar_Prop!$C$2:$E$104,3,FALSE))","v":"Eje Transversal 4 Gobierno Legitimo, Fortalecimiento Local y Eficiencia"},1474,1016039271,"JUAN DAVID RAMIREZ MONTOYA",10200000,null,null,1,4080000,14280000,7480000,"2020-09-25","2020-09-25","2021-01-30",90,1,36,null,null,null,null,null,"X",null,null,0.52380952380952384]
[164,2020,"SECOP II","FDLF-CD-164-2020","Contratos de prestación de servicios","Contratación Directa","Prestación de servicios profesionales y de apoyo a la gestión, o para la ejecución de trabajos artísticos que sólo puedan encomendarse a determinadas personas naturales;","PRESTAR SERVICIOS PROFESIONALES COOMO ABOGADO PARA BRINDAR APOYO JURÍDICO EN EL TRÁMITE Y DESARROLLO DE LOS DESPACHOS COMISORIOS QUE POR COMPETENCIA CORRESPONDEN A LA ALCALDÍA LOCAL DE FONTIBON","Inversión","Bogotá Mejor para Todos",45,{"$f":"IF(ISERROR(VLOOKUP(K173,Eje_Pilar_Prop!$C$2:$E$104,2,FALSE)),\" \",VLOOKUP(K173,Eje_Pilar_Prop!$C$2:$E$104,2,FALSE))","v":"Gobernanza e influencia local, regional e internacional"},{"$f":"IF(ISERROR(VLOOKUP(K173,Eje_Pilar_Prop!$C$2:$E$104,3,FALSE)),\" \",VLOOKUP(K173,Eje_Pilar_Prop!$C$2:$E$104,3,FALSE))","v":"Eje Transversal 4 Gobierno Legitimo, Fortalecimiento Local y Eficiencia"},1474,80228231,"CRHISTIAN ANDRES PINTO GONZALEZ ",16959000,null,null,1,5653000,22612000,11871299,"2020-09-28","2020-09-28","2021-01-27",90,1,30,null,null,null,null,null,"X",null,null,0.52499995577569436]
[165,2020,"SECOP II","FDLF-CD-165-2020","Contratos de prestación de servicios","Contratación Directa","Prestación de servicios profesionales y de apoyo a la gestión, o para la ejecución de trabajos artísticos que sólo puedan encomendarse a determinadas personas naturales;","PRESTAR SERVICIOS TÉCNICOS PARA EL APOYO ADMINISTRATIVO Y LOGISTICO DEL DESPACHO DE LA ALCALDÍA LOCAL DE FONTIBON","Inversión","Bogotá Mejor para Todos",45,{"$f":"IF(ISERROR(VLOOKUP(K174,Eje_Pilar_Prop!$C$2:$E$104,2,FALSE)),\" \",VLOOKUP(K174,Eje_Pilar_Prop!$C$2:$E$104,2,FALSE))","v":"Gobernanza e influencia local, regional e internacional"},{"$f":"IF(ISERROR(VLOOKUP(K174,Eje_Pilar_Prop!$C$2:$E$104,3,FALSE)),\" \",VLOOKUP(K174,Eje_Pilar_Prop!$C$2:$E$104,3,FALSE))","v":"Eje Transversal 4 Gobierno Legitimo, Fortalecimiento Local y Eficiencia"},1474,52974047,"ANGELICA MARIA SALAZAR BAYONA",10500000,null,null,1,3850000,14350000,7350000,"2020-09-28","2020-09-28","2021-01-30",90,1,33,null,null,null,null,null,"X",null,null,0.51219512195121952]
[166,2020,"SECOP II","FDLF-CD-166-2020","Contratos de prestación de servicios","Contratación Directa","Prestación de servicios profesionales y de apoyo a la gestión, o para la ejecución de trabajos artísticos que sólo puedan encomendarse a determinadas personas naturales;","PRESTAR SERVICIOS PROFESIONALES EN DERECHO PARA APOYAR LAS ACTIVIDADES JURÍDICAS Y ADMINISTRATIVAS PROPIAS DE LA CASA DEL CONSUMIDOR, EN EL MARCO DEL CONVENIO SUSCRITO ENTRE LA SUPERINTENDENCIA DE INDUSTRIA Y COMERCIO Y LA ALCALDÍA LOCAL DE FONTIBON","Inversión","Bogotá Mejor para Todos",45,{"$f":"IF(ISERROR(VLOOKUP(K175,Eje_Pilar_Prop!$C$2:$E$104,2,FALSE)),\" \",VLOOKUP(K175,Eje_Pilar_Prop!$C$2:$E$104,2,FALSE))","v":"Gobernanza e influencia local, regional e internacional"},{"$f":"IF(ISERROR(VLOOKUP(K175,Eje_Pilar_Prop!$C$2:$E$104,3,FALSE)),\" \",VLOOKUP(K175,Eje_Pilar_Prop!$C$2:$E$104,3,FALSE))","v":"Eje Transversal 4 Gobierno Legitimo, Fortalecimiento Local y Eficiencia"},1474,28946846,"YOLANDA CALDERON",14349000,null,null,1,4783000,19132000,10044300,"2020-09-28","2020-09-28","2021-01-27",90,1,30,null,null,null,null,null,"X",null,null,0.52500000000000002]
[167,2020,"SECOP II","FDLF-CD-167-2020","Contratos de prestación de servicios","Contratación Directa","Prestación de servicios profesionales y de apoyo a la gestión, o para la ejecución de trabajos artísticos que sólo puedan encomendarse a determinadas personas naturales;","SERVICIOS PROFESIONALES DE APOYO CONTABLE EN LOS PROCESOS DE CAUSACIÓN,SISTEMATIZACION Y REGISTROS DE INFORMACIÓN CONTABLE","Inversión","Bogotá Mejor para Todos",45,{"$f":"IF(ISERROR(VLOOKUP(K176,Eje_Pilar_Prop!$C$2:$E$104,2,FALSE)),\" \",VLOOKUP(K176,Eje_Pilar_Prop!$C$2:$E$104,2,FALSE))","v":"Gobernanza e influencia local, regional e internacional"},{"$f":"IF(ISERROR(VLOOKUP(K176,Eje_Pilar_Prop!$C$2:$E$104,3,FALSE)),\" \",VLOOKUP(K176,Eje_Pilar_Prop!$C$2:$E$104,3,FALSE))","v":"Eje Transversal 4 Gobierno Legitimo, Fortalecimiento Local y Eficiencia"},1474,79378493,"ELMAN CIFUENTES CASTAÑEDA",15000000,null,null,1,5000000,20000000,11000000,"2020-09-25","2020-09-25","2021-01-24",90,1,30,null,null,null,null,null,"X",null,null,0.55000000000000004]
[168,2020,"SECOP II","FDLF-CD-168-2020","Contratos de prestación de servicios","Contratación Directa","Prestación de servicios profesionales y de apoyo a la gestión, o para la ejecución de trabajos artísticos que sólo puedan encomendarse a determinadas personas naturales;","PRESTAR LOS SERVICIOS PROFESIONALES DE ABOGADO COMO APOYO AL ÁREA DE GESTIÓN POLICIVA JURIDICA DE LA ALCALDIA LOCAL DE FONTIBÓN","Inversión","Bogotá Mejor para Todos",45,{"$f":"IF(ISERROR(VLOOKUP(K177,Eje_Pilar_Prop!$C$2:$E$104,2,FALSE)),\" \",VLOOKUP(K177,Eje_Pilar_Prop!$C$2:$E$104,2,FALSE))","v":"Gobernanza e influencia local, regional e internacional"},{"$f":"IF(ISERROR(VLOOKUP(K177,Eje_Pilar_Prop!$C$2:$E$104,3,FALSE)),\" \",VLOOKUP(K177,Eje_Pilar_Prop!$C$2:$E$104,3,FALSE))","v":"Eje Transversal 4 Gobierno Legitimo, Fortalecimiento Local y Eficiencia"},1474,1026585989,"MARIA ALEJANDRA QUINTERO MARTINEZ",12600000,null,null,1,4200000,16800000,8820000,"2020-09-28","2020-09-28","2021-01-27",90,1,30,null,null,null,null,null,"X",null,null,0.52500000000000002]
[172,2020,"SECOP II","FDLF-CD-172-2020","Contratos de prestación de servicios","Contratación directa","Prestación de servicios profesionales y de apoyo a la gestión, o para la ejecución de trabajos artísticos que sólo puedan encomendarse a determinadas personas naturales;","PRESTAR SERVICIOS PARA APOYAR JURIDICAMENTE LA EJECUCCIÓN DE LAS ACCIONES REQUERIDAS PARA LA DEPURACION DE LAS ACTUACIONES ADMINISTRATIVAS QUE CURSAN EN LA ALCALDIA LOCAL DE FONTIBON","Inversión","Bogotá Mejor para Todos",45,{"$f":"IF(ISERROR(VLOOKUP(K178,Eje_Pilar_Prop!$C$2:$E$104,2,FALSE)),\" \",VLOOKUP(K178,Eje_Pilar_Prop!$C$2:$E$104,2,FALSE))","v":"Gobernanza e influencia local, regional e internacional"},{"$f":"IF(ISERROR(VLOOKUP(K178,Eje_Pilar_Prop!$C$2:$E$104,3,FALSE)),\" \",VLOOKUP(K178,Eje_Pilar_Prop!$C$2:$E$104,3,FALSE))","v":"Eje Transversal 4 Gobierno Legitimo, Fortalecimiento Local y Eficiencia"},1474,1016053840,"EVELYN LORENA GOMEZ ORTIZ ",14349000,null,null,1,4783000,19132000,5261300,"2020-09-28","2020-09-28","2021-01-27",90,1,30,null,null,null,null,null,"X",null,null,0.27500000000000002]
[170,2020,"SECOP II","FDLF-CD-170-2020","Contratos de prestación de servicios","Contratación Directa","Prestación de servicios profesionales y de apoyo a la gestión, o para la ejecución de trabajos artísticos que sólo puedan encomendarse a determinadas personas naturales;","PRESTAR LOS SERVICIOS PROFESIONALES DE ABOGADO COMO APOYO AL ÁREA DE GESTIÓN POLICIVA JURIDICA DE LA ALCALDIA LOCAL DE FONTIBÓN","Inversión","Bogotá Mejor para Todos",45,{"$f":"IF(ISERROR(VLOOKUP(K179,Eje_Pilar_Prop!$C$2:$E$104,2,FALSE)),\" \",VLOOKUP(K179,Eje_Pilar_Prop!$C$2:$E$104,2,FALSE))","v":"Gobernanza e influencia local, regional e internacional"},{"$f":"IF(ISERROR(VLOOKUP(K179,Eje_Pilar_Prop!$C$2:$E$104,3,FALSE)),\" \",VLOOKUP(K179,Eje_Pilar_Prop!$C$2:$E$104,3,FALSE))","v":"Eje Transversal 4 Gobierno Legitimo, Fortalecimiento Local y Eficiencia"},1474,1147687727,"KAREN DAYANA ANGARITA RINCÓN",12600000,null,null,0,0,12600000,8820000,"2020-09-28","2020-09-28","2020-12-27",90,0,0,null,null,null,null,null,null,"X",null,0.7]
[173,2020,"SECOP II","FDLF-CD-173-2020","Contratos de prestación de servicios","Contratación Directa","Prestación de servicios profesionales y de apoyo a la gestión, o para la ejecución de trabajos artísticos que sólo puedan encomendarse a determinadas personas naturales;","PRESTAR SERVICIOS PARA APOYAR JURIDICAMENTE LA EJECUCCIÓN DE LAS ACCIONES REQUERIDAS PARA LA DEPURACION DE LAS ACTUACIONES ADMINISTRATIVAS QUE CURSAN EN LA ALCALDIA LOCAL DE FONTIBON","Inversión","Bogotá Mejor para Todos",45,{"$f":"IF(ISERROR(VLOOKUP(K180,Eje_Pilar_Prop!$C$2:$E$104,2,FALSE)),\" \",VLOOKUP(K180,Eje_Pilar_Prop!$C$2:$E$104,2,FALSE))","v":"Gobernanza e influencia local, regional e internacional"},{"$f":"IF(ISERROR(VLOOKUP(K180,Eje_Pilar_Prop!$C$2:$E$104,3,FALSE)),\" \",VLOOKUP(K180,Eje_Pilar_Prop!$C$2:$E$104,3,FALSE))","v":"Eje Transversal 4 Gobierno Legitimo, Fortalecimiento Local y Eficiencia"},1474,1022941624,"ANDY FABIAN HERRERA PINTO",14349000,null,null,1,4783000,19132000,10044300,"2020-09-28","2020-09-25","2021-01-27",90,1,30,null,null,null,null,null,"X",null,null,0.52500000000000002]
[171,2020,"SECOP I","FDLF-CD-171-2020","Contratos de prestación de servicios","Contratación directa","Urgencia manifiesta","COMPENSAR SE OBLIGA A PRESTAR LOS SERVICIOS REQUERIDOS PARA OPERAR EL PROGRAMA EMPLEOS DE EMERGENCIA QUE BUSCA GENERAR EMPLEO LOCAL TEMPORAL A TRABAJADORES DE BAJA CUALIFICACIÓN DE LAS\n LOCALIDADES QUE SUSCRIBEN ESTE CONTRATO, EN EL MARCO DE LA CONTENCIÓN Y MITIGACIÓN DEL COVID-19, LA DECLARATORIA DE EMERGENCIA SANITARIA EN TODO EL TERRITORIO NACIONAL Y LA CALAMIDAD PÚBLICA DECLARADA EN LA CIUDAD DE BOGOTÁ D.C. PARA PROMOVER LA REACTIVACIÓN\n ECONÓMICA","Inversión","Bogotá Mejor para Todos",19,{"$f":"IF(ISERROR(VLOOKUP(K181,Eje_Pilar_Prop!$C$2:$E$104,2,FALSE)),\" \",VLOOKUP(K181,Eje_Pilar_Prop!$C$2:$E$104,2,FALSE))","v":"Seguridad y convivencia para todos"},{"$f":"IF(ISERROR(VLOOKUP(K181,Eje_Pilar_Prop!$C$2:$E$104,3,FALSE)),\" \",VLOOKUP(K181,Eje_Pilar_Prop!$C$2:$E$104,3,FALSE))","v":"Pilar 3 Construcción de Comunidad y Cultura Ciudadana"},1467,"860066942-7","CAJA DE COMPENSACIÓN FAMILIAR COMPENSAR",525913623,null,null,0,0,525913623,105182724,"2020-09-24","2020-10-05","2021-04-05",180,0,0,null,null,null,null,null,"X",null,null,0.19999999885912825]
[171,2020,"SECOP I","FDLF-CD-171-2020","Contratos de prestación de servicios","Contratación directa","Urgencia manifiesta","COMPENSAR SE OBLIGA A PRESTAR LOS SERVICIOS REQUERIDOS PARA OPERAR EL PROGRAMA EMPLEOS DE EMERGENCIA QUE BUSCA GENERAR EMPLEO LOCAL TEMPORAL A TRABAJADORES DE BAJA CUALIFICACIÓN DE LAS\n LOCALIDADES QUE SUSCRIBEN ESTE CONTRATO, EN EL MARCO DE LA CONTENCIÓN Y MITIGACIÓN DEL COVID-19, LA DECLARATORIA DE EMERGENCIA SANITARIA EN TODO EL TERRITORIO NACIONAL Y LA CALAMIDAD PÚBLICA DECLARADA EN LA CIUDAD DE BOGOTÁ D.C. PARA PROMOVER LA REACTIVACIÓN\n ECONÓMICA","Inversión","Bogotá Mejor para Todos",38,{"$f":"IF(ISERROR(VLOOKUP(K182,Eje_Pilar_Prop!$C$2:$E$104,2,FALSE)),\" \",VLOOKUP(K182,Eje_Pilar_Prop!$C$2:$E$104,2,FALSE))","v":"Recuperación y manejo de la Estructura Ecológica Principal"},{"$f":"IF(ISERROR(VLOOKUP(K182,Eje_Pilar_Prop!$C$2:$E$104,3,FALSE)),\" \",VLOOKUP(K182,Eje_Pilar_Prop!$C$2:$E$104,3,FALSE))","v":"Eje Transversal 3 Sostenibilidad Ambiental basada en la eficiencia energética"},1471,"860066942-7","CAJA DE COMPENSACIÓN FAMILIAR COMPENSAR",493586658,null,null,0,0,493586658,98717332,"2020-09-24","2020-10-05","2021-04-05",180,0,0,null,null,null,null,null,"X",null,null,0.20000000081039468]
[{"$f":"A182+1","v":172},2020,"SECOP II","FDLF-CD-174-2020","Contratos de prestación de servicios","Contratación Directa","Prestación de servicios profesionales y de apoyo a la gestión, o para la ejecución de trabajos artísticos que sólo puedan encomendarse a determinadas personas naturales;","PRESTAR SERVICIOS PARA APOYAR JURIDICAMENTE LA EJECUCCIÓN DE LAS ACCIONES REQUERIDAS PARA EL TRAMITE E IMPULSO PROCESAL DE LAS ACTUACIONES CONTRAVENCIONALES Y/O QUERELLAS QUE CURSEN EN LAS INSPECCIONES DE POLICIA DE LA LOCALIDAD","Inversión","Bogotá Mejor para Todos",45,{"$f":"IF(ISERROR(VLOOKUP(K183,Eje_Pilar_Prop!$C$2:$E$104,2,FALSE)),\" \",VLOOKUP(K183,Eje_Pilar_Prop!$C$2:$E$104,2,FALSE))","v":"Gobernanza e influencia local, regional e internacional"},{"$f":"IF(ISERROR(VLOOKUP(K183,Eje_Pilar_Prop!$C$2:$E$104,3,FALSE)),\" \",VLOOKUP(K183,Eje_Pilar_Prop!$C$2:$E$104,3,FALSE))","v":"Eje Transversal 4 Gobierno Legitimo, Fortalecimiento Local y Eficiencia"},1474,79131970,"WILFORD LIBERMAN RODRIGUEZ FONSECA",14349000,null,null,1,4783000,19132000,9884867,"2020-09-29","2020-09-29","2021-01-28",90,1,30,null,null,null,null,null,"X",null,null,0.51666668408948357]
[175,2020,"SECOP I","FDLF-CD- 175-2020","Convenios de cooperacion","Contratación Directa","Contratos interadministrativos","AUNAR ESFUERZOS TÉCNICOS, ADMINISTRATIVOS Y FINANCIEROS PARA IMPULSAR LA REACTIVACIÓN ECONÓMICA DE LOS AGENTES DE LA INDUSTRIA CULTURAL Y CREATIVA, DEL SECTOR CULTURA, RECREACIÓN Y DEPORTE, EN LA LOCALIDAD FONTIBÓN DE BOGOTÁ QUE SE PRIORICE EN EL EJE ADAPTACIÓN Y TRANSFORMACIÓN PRODUCTIVA DE LA ESTRATEGIA DE REACTIVACIÓN ECONÓMICA LOCAL- EMRE LOCAL, PROGRAMA APOYO Y FORTALECIMIENTO DE LAS INDUSTRIAS CREATIVAS Y CULTURALES PARA LA ADAPTACIÓN Y TRANSFORMACIÓN PRODUCTIVA, EN EL MARCO DE UN PROCESO DE FOMENTO.","Inversión","Bogotá Mejor para Todos",45,{"$f":"IF(ISERROR(VLOOKUP(K184,Eje_Pilar_Prop!$C$2:$E$104,2,FALSE)),\" \",VLOOKUP(K184,Eje_Pilar_Prop!$C$2:$E$104,2,FALSE))","v":"Gobernanza e influencia local, regional e internacional"},{"$f":"IF(ISERROR(VLOOKUP(K184,Eje_Pilar_Prop!$C$2:$E$104,3,FALSE)),\" \",VLOOKUP(K184,Eje_Pilar_Prop!$C$2:$E$104,3,FALSE))","v":"Eje Transversal 4 Gobierno Legitimo, Fortalecimiento Local y Eficiencia"},1473,"900413030-9","INSTITUTO DISTRITAL DE LAS ARTES- IDARTES",2200000000,null,null,0,0,2200000000,2100640000,"2020-10-08","2020-10-08","2020-11-30",418,0,0,null,null,null,null,null,null,"X",null,0.95483636363636359]
[{"$f":"A184+1","v":176},2020,"SECOP II","FDLF-CD-176-2020","Contratos de prestación de servicios","Contratación Directa","Prestación de servicios profesionales y de apoyo a la gestión, o para la ejecución de trabajos artísticos que sólo puedan encomendarse a determinadas personas naturales;","Apoyar las labores de entrega y recibo de las comunicaciones emitidas o\nrecibidas por las Inspecciones de Policía de la Localidad.","Inversión","Bogotá Mejor para Todos",45,{"$f":"IF(ISERROR(VLOOKUP(K185,Eje_Pilar_Prop!$C$2:$E$104,2,FALSE)),\" \",VLOOKUP(K185,Eje_Pilar_Prop!$C$2:$E$104,2,FALSE))","v":"Gobernanza e influencia local, regional e internacional"},{"$f":"IF(ISERROR(VLOOKUP(K185,Eje_Pilar_Prop!$C$2:$E$104,3,FALSE)),\" \",VLOOKUP(K185,Eje_Pilar_Prop!$C$2:$E$104,3,FALSE))","v":"Eje Transversal 4 Gobierno Legitimo, Fortalecimiento Local y Eficiencia"},1474,1016034743,"JUAN ANTONIO ESPITIA ACERO",4095866,null,null,1,2047933,6143799,1732866,"2020-11-06","2020-11-09","2021-01-26",52,1,27,null,null,null,null,null,"X",null,null,0.2820512194490738]
[179,2020,"SECOP II","FDLF-CD-179-2020","Contratos de prestación de servicios","Contratación Directa","Prestación de servicios profesionales y de apoyo a la gestión, o para la ejecución de trabajos artísticos que sólo puedan encomendarse a determinadas personas naturales;","PRESTAR SERVICIOS PROFESIONALES DE APOYO A PRESUPUESTO EN EL FONDO DE DESARROLLO LOCAL DE FONTIBÓN EN EL REGISTRO, ANÁLISIS Y GESTIÓN DE OBLIGACIONES POR PAGAR Y OTROS ASUNTOS QUE EN MATERIA DE PRESUPUESTO LOCAL LE SEAN ASIGNADOS.","Inversión","Bogotá Mejor para Todos",45,{"$f":"IF(ISERROR(VLOOKUP(K186,Eje_Pilar_Prop!$C$2:$E$104,2,FALSE)),\" \",VLOOKUP(K186,Eje_Pilar_Prop!$C$2:$E$104,2,FALSE))","v":"Gobernanza e influencia local, regional e internacional"},{"$f":"IF(ISERROR(VLOOKUP(K186,Eje_Pilar_Prop!$C$2:$E$104,3,FALSE)),\" \",VLOOKUP(K186,Eje_Pilar_Prop!$C$2:$E$104,3,FALSE))","v":"Eje Transversal 4 Gobierno Legitimo, Fortalecimiento Local y Eficiencia"},1474,1014177647,"NAIRA CAROLINA PARRA BELTRAN",11000900,null,null,1,4783000,15783900,6058467,"2020-10-21","2020-10-23","2021-01-30",69,1,30,null,null,null,null,null,"X",null,null,0.38383840495694982]
[180,2020,"SECOP II","FDLF-CD-180-2020","Contratos de prestación de servicios","Contratación Directa","Prestación de servicios profesionales y de apoyo a la gestión, o para la ejecución de trabajos artísticos que sólo puedan encomendarse a determinadas personas naturales;","Prestar los servicios profesionales especializados como enlace entre la Alcaldía Local de Fontibón, las entidades del distrito y los diferentes actores políticos locales y comunitarios en los temas de reactivación económica.","Inversión","Bogotá Mejor para Todos",45,{"$f":"IF(ISERROR(VLOOKUP(K187,Eje_Pilar_Prop!$C$2:$E$104,2,FALSE)),\" \",VLOOKUP(K187,Eje_Pilar_Prop!$C$2:$E$104,2,FALSE))","v":"Gobernanza e influencia local, regional e internacional"},{"$f":"IF(ISERROR(VLOOKUP(K187,Eje_Pilar_Prop!$C$2:$E$104,3,FALSE)),\" \",VLOOKUP(K187,Eje_Pilar_Prop!$C$2:$E$104,3,FALSE))","v":"Eje Transversal 4 Gobierno Legitimo, Fortalecimiento Local y Eficiencia"},1474,79398471,"CARLOS JULIO PIEDRA ZAMORA",17566667,null,null,1,8500000,26066667,9066666,"2020-10-28","2020-10-29","2021-01-30",62,1,30,null,null,null,null,null,"X",null,null,0.34782605693317065]
[181,2020,"SECOP II","FDLF-CD-181-2020","Contratos de prestación de servicios","Contratación Directa","Prestación de servicios profesionales y de apoyo a la gestión, o para la ejecución de trabajos artísticos que sólo puedan encomendarse a determinadas personas naturales;","Servicios para el apoyo en la conducción de vehículos al servicio de la Alcaldía Local de Fontibón.","Inversión","Bogotá Mejor para Todos",45,{"$f":"IF(ISERROR(VLOOKUP(K188,Eje_Pilar_Prop!$C$2:$E$104,2,FALSE)),\" \",VLOOKUP(K188,Eje_Pilar_Prop!$C$2:$E$104,2,FALSE))","v":"Gobernanza e influencia local, regional e internacional"},{"$f":"IF(ISERROR(VLOOKUP(K188,Eje_Pilar_Prop!$C$2:$E$104,3,FALSE)),\" \",VLOOKUP(K188,Eje_Pilar_Prop!$C$2:$E$104,3,FALSE))","v":"Eje Transversal 4 Gobierno Legitimo, Fortalecimiento Local y Eficiencia"},1474,80066595,"JHON FREDY ORDUZ ORTIZ",4804767,null,null,1,2363000,7167767,2363000,"2020-10-29","2020-10-30","2021-02-01",61,1,30,null,null,null,null,null,"X",null,null,0.32967031433917982]
[182,2020,"SECOP II","FDLF-CD-182-2020","Contratos de prestación de servicios","Contratación Directa","Prestación de servicios profesionales y de apoyo a la gestión, o para la ejecución de trabajos artísticos que sólo puedan encomendarse a determinadas personas naturales;","Servicios para el apoyo en la conducción de vehículos al servicio de la Alcaldía Local de Fontibón.","Inversión","Bogotá Mejor para Todos",45,{"$f":"IF(ISERROR(VLOOKUP(K189,Eje_Pilar_Prop!$C$2:$E$104,2,FALSE)),\" \",VLOOKUP(K189,Eje_Pilar_Prop!$C$2:$E$104,2,FALSE))","v":"Gobernanza e influencia local, regional e internacional"},{"$f":"IF(ISERROR(VLOOKUP(K189,Eje_Pilar_Prop!$C$2:$E$104,3,FALSE)),\" \",VLOOKUP(K189,Eje_Pilar_Prop!$C$2:$E$104,3,FALSE))","v":"Eje Transversal 4 Gobierno Legitimo, Fortalecimiento Local y Eficiencia"},1474,11385997,"JULIO ARMANDO GARZON MONTAÑEZ",4804767,null,null,1,2363000,7167767,2363001,"2020-10-29","2020-10-30","2021-01-30",61,1,30,null,null,null,null,null,"X",null,null,0.32967045385264337]
[183,2020,"SECOP II","FDLF-CD-183-2020","Contratos de prestación de servicios","Contratación Directa","Prestación de servicios profesionales y de apoyo a la gestión, o para la ejecución de trabajos artísticos que sólo puedan encomendarse a determinadas personas naturales;","LA PRESTACIÓN DE SERVICIOS PROFESIONALES DE APOYO AL ÁREA DE GESTIÓN DE DESARROLLO LOCAL, EN PRESUPUESTO, EN LAS ACTIVIDADES QUE ALLÍ SE GENEREN Y LE SEAN DESIGNADAS, DE CONFORMIDAD CON LOS ESTUDIOS PREVIOS","Inversión","Bogotá Mejor para Todos",45,{"$f":"IF(ISERROR(VLOOKUP(K190,Eje_Pilar_Prop!$C$2:$E$104,2,FALSE)),\" \",VLOOKUP(K190,Eje_Pilar_Prop!$C$2:$E$104,2,FALSE))","v":"Gobernanza e influencia local, regional e internacional"},{"$f":"IF(ISERROR(VLOOKUP(K190,Eje_Pilar_Prop!$C$2:$E$104,3,FALSE)),\" \",VLOOKUP(K190,Eje_Pilar_Prop!$C$2:$E$104,3,FALSE))","v":"Eje Transversal 4 Gobierno Legitimo, Fortalecimiento Local y Eficiencia"},1474,51688411,"NELLY STELLA LOPEZ SILVA",9566000,null,null,1,4783000,14349000,4942433,"2020-10-29","2020-10-30","2021-01-29",60,1,30,null,null,null,null,null,"X",null,null,0.34444442121402186]
[185,2020,"SECOP II","FDLF-CD-185-2020","Contratos de prestación de servicios","Contratación directa","Prestación de servicios profesionales y de apoyo a la gestión, o para la ejecución de trabajos artísticos que sólo puedan encomendarse a determinadas personas naturales;","Prestar los servicios profesionales de abogado como apoyo al Área de Gestión Policiva Jurídica de la Alcaldía Local de Fontibón.","Inversión","Bogotá Mejor para Todos",45,{"$f":"IF(ISERROR(VLOOKUP(K191,Eje_Pilar_Prop!$C$2:$E$104,2,FALSE)),\" \",VLOOKUP(K191,Eje_Pilar_Prop!$C$2:$E$104,2,FALSE))","v":"Gobernanza e influencia local, regional e internacional"},{"$f":"IF(ISERROR(VLOOKUP(K191,Eje_Pilar_Prop!$C$2:$E$104,3,FALSE)),\" \",VLOOKUP(K191,Eje_Pilar_Prop!$C$2:$E$104,3,FALSE))","v":"Eje Transversal 4 Gobierno Legitimo, Fortalecimiento Local y Eficiencia"},1474,39701795,"GLORIA CECILIA MOLINA VILLAMARIN",8120000,null,null,0,0,8120000,3500000,"2020-10-29","2020-11-06","2021-01-02",58,0,0,null,null,null,null,null,"X",null,null,0.43103448275862066]
[186,2020,"SECOP II","FDLF-SASI-8-2020","Suministro","Selección abreviada","Subasta inversa ","CONTRATAR EL SUMINISTRO DE PRODUCTOS LÁCTEOS PARA NIÑOS Y NIÑAS ADSCRITOS A LAS DIFERENTES MODALIDADES DE ATENCIÓN Y CUIDADO DEL ICBF EN LA LOCALIDAD DE FONTIBÓN","Inversión","Bogotá Mejor para Todos",2,{"$f":"IF(ISERROR(VLOOKUP(K192,Eje_Pilar_Prop!$C$2:$E$104,2,FALSE)),\" \",VLOOKUP(K192,Eje_Pilar_Prop!$C$2:$E$104,2,FALSE))","v":"Desarrollo integral desde la gestación hasta la adolescencia"},{"$f":"IF(ISERROR(VLOOKUP(K192,Eje_Pilar_Prop!$C$2:$E$104,3,FALSE)),\" \",VLOOKUP(K192,Eje_Pilar_Prop!$C$2:$E$104,3,FALSE))","v":"Pilar 1 Igualdad de Calidad de Vida"},1452,"830042212-6","PROALIMENTOS LIBER S.A.S. EN REORGANIZACIÓN",166374552,null,null,0,0,166374552,0,"2020-10-29","2020-11-09","2021-05-08",180,0,0,null,null,null,null,null,"X",null,null,0]
[187,2020,"SECOP II","FDLF-CD-187-2020","Contratos de prestación de servicios","Contratación Directa","Prestación de servicios profesionales y de apoyo a la gestión, o para la ejecución de trabajos artísticos que sólo puedan encomendarse a determinadas personas naturales;","PRESTAR LOS SERVICIOS PROFESIONALES PARA APOYAR LAS ACTIVIDADES ESTRATEGICAS DESARROLLADAS POR EL DESPACHO DE LA ALCALDIA LOCAL DE FONTIBÓN.","Inversión","Bogotá Mejor para Todos",45,{"$f":"IF(ISERROR(VLOOKUP(K193,Eje_Pilar_Prop!$C$2:$E$104,2,FALSE)),\" \",VLOOKUP(K193,Eje_Pilar_Prop!$C$2:$E$104,2,FALSE))","v":"Gobernanza e influencia local, regional e internacional"},{"$f":"IF(ISERROR(VLOOKUP(K193,Eje_Pilar_Prop!$C$2:$E$104,3,FALSE)),\" \",VLOOKUP(K193,Eje_Pilar_Prop!$C$2:$E$104,3,FALSE))","v":"Eje Transversal 4 Gobierno Legitimo, Fortalecimiento Local y Eficiencia"},1474,1019064411,"ADRIANA PAOLA  ROJAS VASQUEZ",8120000,null,null,0,0,8120000,3500000,"2020-10-29","2020-11-06","2021-01-02",58,0,0,null,null,null,null,null,"X",null,null,0.43103448275862066]
[189,2020,"SECOP II","FDLF-CD-189-2020","Contratos de prestación de servicios","Contratación Directa","Prestación de servicios profesionales y de apoyo a la gestión, o para la ejecución de trabajos artísticos que sólo puedan encomendarse a determinadas personas naturales;","PRESTAR SERVICIOS DE APOYO EN LAS ACTIVIDADES DE SEGURIDAD Y CONVIVENCIA CIUDADANA, DE ACUERDO CON LAS NECESIDADES Y ESTRATEGIAS EMANADAS POR EL ÁREA DE SEGURIDAD Y CONVIVENCIA DE LA ALCALDIA LOCAL DE FONTIBON","Inversión","Bogotá Mejor para Todos",19,{"$f":"IF(ISERROR(VLOOKUP(K194,Eje_Pilar_Prop!$C$2:$E$104,2,FALSE)),\" \",VLOOKUP(K194,Eje_Pilar_Prop!$C$2:$E$104,2,FALSE))","v":"Seguridad y convivencia para todos"},{"$f":"IF(ISERROR(VLOOKUP(K194,Eje_Pilar_Prop!$C$2:$E$104,3,FALSE)),\" \",VLOOKUP(K194,Eje_Pilar_Prop!$C$2:$E$104,3,FALSE))","v":"Pilar 3 Construcción de Comunidad y Cultura Ciudadana"},1467,1010087690,"LEIDY VANESSA AGUILERA SANTAFE",2867489,null,null,0,0,2867489,0,"2020-11-10","2020-11-13","2020-12-30",49,0,0,null,null,null,null,null,null,"X",null,0]
[190,2020,"SECOP II","FDLF-CD-190-2020","Contratos de prestación de servicios","Contratación Directa","Prestación de servicios profesionales y de apoyo a la gestión, o para la ejecución de trabajos artísticos que sólo puedan encomendarse a determinadas personas naturales;","Prestar servicios de apoyo en las actividades de seguridad y convivencia ciudadana, de acuerdo con las necesidades y estrategias emanadas por el área de seguridad y convivencia de la Alcaldía Local de Fontibón.","Inversión","Bogotá Mejor para Todos",19,{"$f":"IF(ISERROR(VLOOKUP(K195,Eje_Pilar_Prop!$C$2:$E$104,2,FALSE)),\" \",VLOOKUP(K195,Eje_Pilar_Prop!$C$2:$E$104,2,FALSE))","v":"Seguridad y convivencia para todos"},{"$f":"IF(ISERROR(VLOOKUP(K195,Eje_Pilar_Prop!$C$2:$E$104,3,FALSE)),\" \",VLOOKUP(K195,Eje_Pilar_Prop!$C$2:$E$104,3,FALSE))","v":"Pilar 3 Construcción de Comunidad y Cultura Ciudadana"},1467,1016052722,"JESSICA MILENA MARTINEZ RIVERA",2926010,null,null,0,0,2926010,1170404,"2020-11-10","2020-11-11","2020-12-31",50,0,0,null,null,null,null,null,null,"X",null,0.4]
[191,2020,"SECOP II","FDLF-CD-191-2020","Contratos de prestación de servicios","Contratación Directa","Prestación de servicios profesionales y de apoyo a la gestión, o para la ejecución de trabajos artísticos que sólo puedan encomendarse a determinadas personas naturales;","Prestar servicios de apoyo en las actividades de seguridad y convivencia ciudadana, de acuerdo con las necesidades y estrategias emanadas por el área de seguridad y convivencia de la Alcaldía Local de Fontibón.","Inversión","Bogotá Mejor para Todos",19,{"$f":"IF(ISERROR(VLOOKUP(K196,Eje_Pilar_Prop!$C$2:$E$104,2,FALSE)),\" \",VLOOKUP(K196,Eje_Pilar_Prop!$C$2:$E$104,2,FALSE))","v":"Seguridad y convivencia para todos"},{"$f":"IF(ISERROR(VLOOKUP(K196,Eje_Pilar_Prop!$C$2:$E$104,3,FALSE)),\" \",VLOOKUP(K196,Eje_Pilar_Prop!$C$2:$E$104,3,FALSE))","v":"Pilar 3 Construcción de Comunidad y Cultura Ciudadana"},1467,79127237,"JHON EVEL CARRION GUZMAN",2867489,null,null,0,0,2867489,1111883,"2020-11-10","2020-11-12","2020-12-31",49,0,0,null,null,null,null,null,null,"X",null,0.3877549312307737]
[192,2020,"SECOP II","FDLF-CD-192-2020","Contratos de prestación de servicios","Contratación Directa","Prestación de servicios profesionales y de apoyo a la gestión, o para la ejecución de trabajos artísticos que sólo puedan encomendarse a determinadas personas naturales;","PRESTAR SERVICIOS DE APOYO EN LAS ACTIVIDADES DE SEGURIDAD Y CONVIVENCIA CIUDADANA, DE ACUERDO CON LAS NECESIDADES Y ESTRATEGIAS EMANADAS POR EL ÁREA DE SEGURIDAD Y CONVIVENCIA DE LA ALCALDÍA LOCAL DE FONTIBÓN.","Inversión","Bogotá Mejor para Todos",19,{"$f":"IF(ISERROR(VLOOKUP(K197,Eje_Pilar_Prop!$C$2:$E$104,2,FALSE)),\" \",VLOOKUP(K197,Eje_Pilar_Prop!$C$2:$E$104,2,FALSE))","v":"Seguridad y convivencia para todos"},{"$f":"IF(ISERROR(VLOOKUP(K197,Eje_Pilar_Prop!$C$2:$E$104,3,FALSE)),\" \",VLOOKUP(K197,Eje_Pilar_Prop!$C$2:$E$104,3,FALSE))","v":"Pilar 3 Construcción de Comunidad y Cultura Ciudadana"},1467,1015450642,"ELVER SEBASTIAN DURAN FORERO",2808969,null,null,0,0,2808969,1053363,"2020-11-10","2020-11-13","2020-12-31",48,0,0,null,null,null,null,null,null,"X",null,0.3749998664990607]
[193,2020,"SECOP II","FDLF-CD-193-2020","Contratos de prestación de servicios","Contratación Directa","Prestación de servicios profesionales y de apoyo a la gestión, o para la ejecución de trabajos artísticos que sólo puedan encomendarse a determinadas personas naturales;","PRESTAR SERVICIOS DE APOYO EN LAS ACTIVIDADES DE SEGURIDAD Y CONVIVENCIA CIUDADANA, DE ACUERDO CON LAS NECESIDADES Y ESTRATEGIAS EMANADAS POR EL ÁREA DE SEGURIDAD Y CONVIVENCIA DE LA ALCALDÍA LOCAL DE FONTIBÓN.","Inversión","Bogotá Mejor para Todos",19,{"$f":"IF(ISERROR(VLOOKUP(K198,Eje_Pilar_Prop!$C$2:$E$104,2,FALSE)),\" \",VLOOKUP(K198,Eje_Pilar_Prop!$C$2:$E$104,2,FALSE))","v":"Seguridad y convivencia para todos"},{"$f":"IF(ISERROR(VLOOKUP(K198,Eje_Pilar_Prop!$C$2:$E$104,3,FALSE)),\" \",VLOOKUP(K198,Eje_Pilar_Prop!$C$2:$E$104,3,FALSE))","v":"Pilar 3 Construcción de Comunidad y Cultura Ciudadana"},1467,11430819,"ESAU ARNULFO AMORTEGUI PINEDA",2867489,null,null,0,0,2867489,0,"2020-11-11","2020-11-12","2020-12-31",49,0,0,null,null,null,null,null,null,"X",null,0]
[194,2020,"SECOP II","FDLF-CD-194-2020","Contratos de prestación de servicios","Contratación Directa","Prestación de servicios profesionales y de apoyo a la gestión, o para la ejecución de trabajos artísticos que sólo puedan encomendarse a determinadas personas naturales;","PRESTAR SERVICIOS DE APOYO EN LAS ACTIVIDADES DE SEGURIDAD Y CONVIVENCIA CIUDADANA, DE ACUERDO CON LAS NECESIDADES Y ESTRATEGIAS EMANADAS POR EL ÁREA DE SEGURIDAD Y CONVIVENCIA DE LA ALCALDÍA LOCAL DE FONTIBÓN","Inversión","Bogotá Mejor para Todos",19,{"$f":"IF(ISERROR(VLOOKUP(K199,Eje_Pilar_Prop!$C$2:$E$104,2,FALSE)),\" \",VLOOKUP(K199,Eje_Pilar_Prop!$C$2:$E$104,2,FALSE))","v":"Seguridad y convivencia para todos"},{"$f":"IF(ISERROR(VLOOKUP(K199,Eje_Pilar_Prop!$C$2:$E$104,3,FALSE)),\" \",VLOOKUP(K199,Eje_Pilar_Prop!$C$2:$E$104,3,FALSE))","v":"Pilar 3 Construcción de Comunidad y Cultura Ciudadana"},1467,1016040374,"PAOLA ANDREA QUIROGA ARIAS",2926010,null,null,0,0,2926010,1111883,"2020-11-10","2020-11-12","2020-12-31",50,0,0,null,null,null,null,null,null,"X",null,0.3799997265901347]
[195,2020,"SECOP II","FDLF-CD-195-2020","Contratos de prestación de servicios","Contratación Directa","Prestación de servicios profesionales y de apoyo a la gestión, o para la ejecución de trabajos artísticos que sólo puedan encomendarse a determinadas personas naturales;","Prestar servicios de apoyo en las actividades de seguridad y convivencia ciudadana, de acuerdo con las necesidades y estrategias emanadas por el área de seguridad y convivencia de la Alcaldía Local de Fontibón","Inversión","Bogotá Mejor para Todos",19,{"$f":"IF(ISERROR(VLOOKUP(K200,Eje_Pilar_Prop!$C$2:$E$104,2,FALSE)),\" \",VLOOKUP(K200,Eje_Pilar_Prop!$C$2:$E$104,2,FALSE))","v":"Seguridad y convivencia para todos"},{"$f":"IF(ISERROR(VLOOKUP(K200,Eje_Pilar_Prop!$C$2:$E$104,3,FALSE)),\" \",VLOOKUP(K200,Eje_Pilar_Prop!$C$2:$E$104,3,FALSE))","v":"Pilar 3 Construcción de Comunidad y Cultura Ciudadana"},1467,79127015,"WILLIAM MORENO RICON",2867489,null,null,0,0,{"$f":"+Q200+S200+U200","v":2867489},0,"2020-11-01","2020-11-12","2020-12-31",49,0,0,null,null,null,null,null,null,"X",null,0]
[196,2020,"SECOP II","FDLF-CD-196-2020","Contratos de prestación de servicios","Contratación Directa","Prestación de servicios profesionales y de apoyo a la gestión, o para la ejecución de trabajos artísticos que sólo puedan encomendarse a determinadas personas naturales;","Prestar servicios de apoyo en las actividades de seguridad y convivencia ciudadana, de acuerdo con las necesidades y estrategias emanadas por el área de seguridad y convivencia de la Alcaldía Local de Fontibón.","Inversión","Bogotá Mejor para Todos",19,{"$f":"IF(ISERROR(VLOOKUP(K201,Eje_Pilar_Prop!$C$2:$E$104,2,FALSE)),\" \",VLOOKUP(K201,Eje_Pilar_Prop!$C$2:$E$104,2,FALSE))","v":"Seguridad y convivencia para todos"},{"$f":"IF(ISERROR(VLOOKUP(K201,Eje_Pilar_Prop!$C$2:$E$104,3,FALSE)),\" \",VLOOKUP(K201,Eje_Pilar_Prop!$C$2:$E$104,3,FALSE))","v":"Pilar 3 Construcción de Comunidad y Cultura Ciudadana"},1467,1016028460,"sergio fernando florez barrera",2867489,null,null,0,0,2867489,1111883,"2020-11-11","2020-11-12","2020-12-31",49,0,0,null,null,null,null,null,null,"X",null,0.3877549312307737]
[197,2020,"SECOP II","FDLF-CD-197-2020","Contratos de prestación de servicios","Contratación Directa","Prestación de servicios profesionales y de apoyo a la gestión, o para la ejecución de trabajos artísticos que sólo puedan encomendarse a determinadas personas naturales;","Prestar servicios de apoyo en las actividades de seguridad y convivencia ciudadana, de acuerdo con las necesidades y estrategias emanadas por el área de seguridad y convivencia de la Alcaldía Local de Fontibón.","Inversión","Bogotá Mejor para Todos",19,{"$f":"IF(ISERROR(VLOOKUP(K202,Eje_Pilar_Prop!$C$2:$E$104,2,FALSE)),\" \",VLOOKUP(K202,Eje_Pilar_Prop!$C$2:$E$104,2,FALSE))","v":"Seguridad y convivencia para todos"},{"$f":"IF(ISERROR(VLOOKUP(K202,Eje_Pilar_Prop!$C$2:$E$104,3,FALSE)),\" \",VLOOKUP(K202,Eje_Pilar_Prop!$C$2:$E$104,3,FALSE))","v":"Pilar 3 Construcción de Comunidad y Cultura Ciudadana"},1467,80418976,"JULIO CESAR MUÑOZ OLMOS",2223767,null,null,0,0,2223767,0,"2020-11-12","2020-11-23","2020-12-31",38,0,0,null,null,null,null,null,null,"X",null,0]
[198,2020,"SECOP II","FDLF-CD-198-2020","Contratos de prestación de servicios","Contratación Directa","Prestación de servicios profesionales y de apoyo a la gestión, o para la ejecución de trabajos artísticos que sólo puedan encomendarse a determinadas personas naturales;","Prestar servicios para apoyar las actividades operativas y administrativas de la Junta Administradora Local.","Inversión","Bogotá Mejor para Todos",45,{"$f":"IF(ISERROR(VLOOKUP(K203,Eje_Pilar_Prop!$C$2:$E$104,2,FALSE)),\" \",VLOOKUP(K203,Eje_Pilar_Prop!$C$2:$E$104,2,FALSE))","v":"Gobernanza e influencia local, regional e internacional"},{"$f":"IF(ISERROR(VLOOKUP(K203,Eje_Pilar_Prop!$C$2:$E$104,3,FALSE)),\" \",VLOOKUP(K203,Eje_Pilar_Prop!$C$2:$E$104,3,FALSE))","v":"Eje Transversal 4 Gobierno Legitimo, Fortalecimiento Local y Eficiencia"},1474,19426466,"RAUL ARMANDO LUQUE RUIZ",2993133,null,null,0,0,2993133,551366,"2020-11-20","2020-11-24","2020-12-30",37,0,0,null,null,null,null,null,null,"X",null,0.18421032409852819]
[199,2020,"SECOP II","FDLF-CD-199-2020","Contratos de prestación de servicios","Contratación Directa","Prestación de servicios profesionales y de apoyo a la gestión, o para la ejecución de trabajos artísticos que sólo puedan encomendarse a determinadas personas naturales;","PRESTAR SERVICIOS PROFESIONALES PARA APOYAR EL FORTALECIMIENTO DE LA GESTIÓN LOCAL DE RIESGO Y CAMBIO CLIMÁTICO EN EL MARCO DEL SISTEMA DISTRITAL DE GESTIÓN DE RIESGOS Y CAMBIO CLIMÁTICO DSGR-CC","Inversión","Bogotá Mejor para Todos",45,{"$f":"IF(ISERROR(VLOOKUP(K204,Eje_Pilar_Prop!$C$2:$E$104,2,FALSE)),\" \",VLOOKUP(K204,Eje_Pilar_Prop!$C$2:$E$104,2,FALSE))","v":"Gobernanza e influencia local, regional e internacional"},{"$f":"IF(ISERROR(VLOOKUP(K204,Eje_Pilar_Prop!$C$2:$E$104,3,FALSE)),\" \",VLOOKUP(K204,Eje_Pilar_Prop!$C$2:$E$104,3,FALSE))","v":"Eje Transversal 4 Gobierno Legitimo, Fortalecimiento Local y Eficiencia"},1474,80166442,"CARLOS ANDRES MARIN BAUTISTA",8493333,null,null,0,0,8493333,3293333,"2020-11-11","2020-11-12","2020-12-30",49,0,0,null,null,null,null,null,null,"X",null,0.38775507801236569]
[200,2020,"SECOP II","FDLF-CD-200-2020","Contratos de prestación de servicios","Contratación Directa","Prestación de servicios profesionales y de apoyo a la gestión, o para la ejecución de trabajos artísticos que sólo puedan encomendarse a determinadas personas naturales;","PRESTAR LOS SERVICIOS PROFESIONALES A LA ALCALDÍA LOCAL DE FONTIBÓN EN LA ADMINISTRACIÓN DE LA RED DE VOZ Y DATOS, EN LA ACTUALIZACIÓN Y SOPORTE CON LAS TECNOLOGÍAS Y SISTEMAS DE INFORMACIÓN, ASÍ COMO EL APOYO A LA SUPERVISIÓN DE LOS CONTRATOS QUE TIENEN RELACIÓN CON SOPORTES TECNOLÓGICOS Y TEMAS RELACIONADOS.","Inversión","Bogotá Mejor para Todos",45,{"$f":"IF(ISERROR(VLOOKUP(K205,Eje_Pilar_Prop!$C$2:$E$104,2,FALSE)),\" \",VLOOKUP(K205,Eje_Pilar_Prop!$C$2:$E$104,2,FALSE))","v":"Gobernanza e influencia local, regional e internacional"},{"$f":"IF(ISERROR(VLOOKUP(K205,Eje_Pilar_Prop!$C$2:$E$104,3,FALSE)),\" \",VLOOKUP(K205,Eje_Pilar_Prop!$C$2:$E$104,3,FALSE))","v":"Eje Transversal 4 Gobierno Legitimo, Fortalecimiento Local y Eficiencia"},1474,79955070,"Carlos Fernando Huerfano Guiza",8291066,null,null,0,0,8291066,2638066,"2020-11-12","2019-02-05","2019-08-04",44,0,0,null,null,null,null,null,null,"X",null,0.31818176335829434]
[201,2020,"SECOP II","FDLF-CD-201-2020","Contratos de prestación de servicios","Contratación Directa","Prestación de servicios profesionales y de apoyo a la gestión, o para la ejecución de trabajos artísticos que sólo puedan encomendarse a determinadas personas naturales;","Prestar servicios como profesional para realizar el proceso de liquidaciones de los contratos suscritos por el Fondo de Desarrollo Local de Fontibón.","Inversión","Bogotá Mejor para Todos",45,{"$f":"IF(ISERROR(VLOOKUP(K206,Eje_Pilar_Prop!$C$2:$E$104,2,FALSE)),\" \",VLOOKUP(K206,Eje_Pilar_Prop!$C$2:$E$104,2,FALSE))","v":"Gobernanza e influencia local, regional e internacional"},{"$f":"IF(ISERROR(VLOOKUP(K206,Eje_Pilar_Prop!$C$2:$E$104,3,FALSE)),\" \",VLOOKUP(K206,Eje_Pilar_Prop!$C$2:$E$104,3,FALSE))","v":"Eje Transversal 4 Gobierno Legitimo, Fortalecimiento Local y Eficiencia"},1474,60315384,"MARTHA LUCIA VEGA RAMIREZ",6855633,null,null,1,3348100,10203733,2072633,"2020-11-17","2020-11-18","2021-01-21",43,1,21,null,null,null,null,null,"X",null,null,0.20312497396786058]
[202,2020,"SECOP II","FDLF-CD-202-2020","Contratos de prestación de servicios","Contratación Directa","Prestación de servicios profesionales y de apoyo a la gestión, o para la ejecución de trabajos artísticos que sólo puedan encomendarse a determinadas personas naturales;","PRESTAR SERVICIOS COMO PROFESIONAL PARA REALIZAR EL PROCESO DE LIQUIDACIONES DE LOS CONTRATOS SUSCRITOS POR EL FONDO DE DESARROLLO LOCAL DE FONTIBÓN.","Inversión","Bogotá Mejor para Todos",45,{"$f":"IF(ISERROR(VLOOKUP(K207,Eje_Pilar_Prop!$C$2:$E$104,2,FALSE)),\" \",VLOOKUP(K207,Eje_Pilar_Prop!$C$2:$E$104,2,FALSE))","v":"Gobernanza e influencia local, regional e internacional"},{"$f":"IF(ISERROR(VLOOKUP(K207,Eje_Pilar_Prop!$C$2:$E$104,3,FALSE)),\" \",VLOOKUP(K207,Eje_Pilar_Prop!$C$2:$E$104,3,FALSE))","v":"Eje Transversal 4 Gobierno Legitimo, Fortalecimiento Local y Eficiencia"},1474,51800753,"MARIBEL SOLIS AVILA",6855633,null,null,1,3348100,10203733,2072633,"2020-11-17","2020-11-18","2021-01-21",43,1,21,null,null,null,null,null,"X",null,null,0.20312497396786058]
[203,2020,"SECOP II","FDLF-CD-203-2020","Contratos de prestación de servicios","Contratación Directa","Prestación de servicios profesionales y de apoyo a la gestión, o para la ejecución de trabajos artísticos que sólo puedan encomendarse a determinadas personas naturales;","Prestar servicios como profesional para realizar el proceso de liquidaciones de los contratos suscritos por el Fondo de Desarrollo Local de Fontibón.","Inversión","Bogotá Mejor para Todos",45,{"$f":"IF(ISERROR(VLOOKUP(K208,Eje_Pilar_Prop!$C$2:$E$104,2,FALSE)),\" \",VLOOKUP(K208,Eje_Pilar_Prop!$C$2:$E$104,2,FALSE))","v":"Gobernanza e influencia local, regional e internacional"},{"$f":"IF(ISERROR(VLOOKUP(K208,Eje_Pilar_Prop!$C$2:$E$104,3,FALSE)),\" \",VLOOKUP(K208,Eje_Pilar_Prop!$C$2:$E$104,3,FALSE))","v":"Eje Transversal 4 Gobierno Legitimo, Fortalecimiento Local y Eficiencia"},1474,52324766,"Yarsely Suarez Suarez",6855633,null,null,0,0,6855633,2072633,"2020-11-17","2020-11-18","2020-12-30",43,0,0,null,null,null,null,null,null,"X",null,{"$f":"IF(ISERROR(W208/V208),\"-\",(W208/V208))","v":0.30232554747315094}]
[204,2020,"SECOP II","FDLF-CD-204-2020","Contratos de prestación de servicios","Contratación Directa","Prestación de servicios profesionales y de apoyo a la gestión, o para la ejecución de trabajos artísticos que sólo puedan encomendarse a determinadas personas naturales;","Prestar servicios profesionales para apoyar el área de gestión de desarrollo local orientada a los temas culturales","Inversión","Bogotá Mejor para Todos",11,{"$f":"IF(ISERROR(VLOOKUP(K209,Eje_Pilar_Prop!$C$2:$E$104,2,FALSE)),\" \",VLOOKUP(K209,Eje_Pilar_Prop!$C$2:$E$104,2,FALSE))","v":"Mejores oportunidades para el desarrollo a través de la cultura, la recreación y el deporte"},{"$f":"IF(ISERROR(VLOOKUP(K209,Eje_Pilar_Prop!$C$2:$E$104,3,FALSE)),\" \",VLOOKUP(K209,Eje_Pilar_Prop!$C$2:$E$104,3,FALSE))","v":"Pilar 1 Igualdad de Calidad de Vida"},1458,80040922,"Andrés Fernando Acero Díaz",8250000,null,null,1,3850000,12100000,2200000,"2020-11-13","2020-11-19","2021-01-21",45,1,21,null,null,null,null,null,"X",null,null,0.18181818181818182]
[205,2020,"SECOP II","FDLF-CD-205-2020","Contratos de prestación de servicios","Contratación Directa","Prestación de servicios profesionales y de apoyo a la gestión, o para la ejecución de trabajos artísticos que sólo puedan encomendarse a determinadas personas naturales;","PRESTAR LOS SERVICIOS PARA APOYAR ADMINISTRATIVA Y ASISTENCIALMENTE AL ÁREA DE GESTIÓN POLICIVA","Inversión","Bogotá Mejor para Todos",45,{"$f":"IF(ISERROR(VLOOKUP(K210,Eje_Pilar_Prop!$C$2:$E$104,2,FALSE)),\" \",VLOOKUP(K210,Eje_Pilar_Prop!$C$2:$E$104,2,FALSE))","v":"Gobernanza e influencia local, regional e internacional"},{"$f":"IF(ISERROR(VLOOKUP(K210,Eje_Pilar_Prop!$C$2:$E$104,3,FALSE)),\" \",VLOOKUP(K210,Eje_Pilar_Prop!$C$2:$E$104,3,FALSE))","v":"Eje Transversal 4 Gobierno Legitimo, Fortalecimiento Local y Eficiencia"},1474,51874701,"CLAUDIA TERESA MORENO BOBADILLA",3544500,null,null,1,1654100,5198600,945200,"2020-11-16","2020-11-19","2021-01-24",45,1,21,null,null,null,null,null,"X",null,null,0.18181818181818182]
[207,2020,"SECOP II","FDLF-CD-207-2020","Contratos de prestación de servicios","Contratación Directa","Prestación de servicios profesionales y de apoyo a la gestión, o para la ejecución de trabajos artísticos que sólo puedan encomendarse a determinadas personas naturales;","PRESTAR SERVICIOS DE APOYO A LA GESTIÓN DE LA ALCALDÍA LOCAL DE FONTIBÓN EN LA RECEPCIÓN DE CORRESPONDENCIA INTERNA Y EXTERNA, ASÍ COMO LA ASIGNACIÓN DE SOLICITUDES Y/O CORRESPONDENCIA RECIBIDA.","Inversión","Bogotá Mejor para Todos",45,{"$f":"IF(ISERROR(VLOOKUP(K211,Eje_Pilar_Prop!$C$2:$E$104,2,FALSE)),\" \",VLOOKUP(K211,Eje_Pilar_Prop!$C$2:$E$104,2,FALSE))","v":"Gobernanza e influencia local, regional e internacional"},{"$f":"IF(ISERROR(VLOOKUP(K211,Eje_Pilar_Prop!$C$2:$E$104,3,FALSE)),\" \",VLOOKUP(K211,Eje_Pilar_Prop!$C$2:$E$104,3,FALSE))","v":"Eje Transversal 4 Gobierno Legitimo, Fortalecimiento Local y Eficiencia"},1474,80014664,"CARLOS ARTURO YEPES MENDEZ",3465733,null,null,1,1732866,5198599,945200,"2020-11-13","2020-11-19","2021-01-23",44,1,22,null,null,null,null,null,"X",null,null,0.18181821679263971]
[208,2020,"SECOP II","FDLF-CD-208-2020","Contratos de prestación de servicios","Contratación Directa","Prestación de servicios profesionales y de apoyo a la gestión, o para la ejecución de trabajos artísticos que sólo puedan encomendarse a determinadas personas naturales;","Prestar servicios para apoyar jurídicamente la ejecución de las acciones requeridas para el trámite e impulso procesal de las actuaciones contravencionales y/o querellas que cursen en las inspecciones de Policía de la localidad","Inversión","Bogotá Mejor para Todos",45,{"$f":"IF(ISERROR(VLOOKUP(K212,Eje_Pilar_Prop!$C$2:$E$104,2,FALSE)),\" \",VLOOKUP(K212,Eje_Pilar_Prop!$C$2:$E$104,2,FALSE))","v":"Gobernanza e influencia local, regional e internacional"},{"$f":"IF(ISERROR(VLOOKUP(K212,Eje_Pilar_Prop!$C$2:$E$104,3,FALSE)),\" \",VLOOKUP(K212,Eje_Pilar_Prop!$C$2:$E$104,3,FALSE))","v":"Eje Transversal 4 Gobierno Legitimo, Fortalecimiento Local y Eficiencia"},1474,21057585,"RUTH YANED VARGAS RICO",6696200,null,null,0,0,6696200,1913200,"2020-11-17","2020-11-19","2020-12-30",42,0,0,null,null,null,null,null,null,"X",null,0.2857142857142857]
[209,2020,"SECOP II","FDLF-CD-209-2020","Contratos de prestación de servicios","Contratación Directa","Prestación de servicios profesionales y de apoyo a la gestión, o para la ejecución de trabajos artísticos que sólo puedan encomendarse a determinadas personas naturales;","PRESTAR SERVICIOS PARA APOYAR LA GESTIÓN DOCUMENTAL DE LA ALCALDÍA LOCAL EN LA IMPLEMENTACIÓN DE LOS PROCESOS DE CLASIFICACIÓN, ORDENACIÓN, SELECCIÓN NATURAL, FOLIACIÓN, IDENTIFICACIÓN, LEVANTAMIENTO DE INVENTARIOS, ALMACENAMIENTO Y APLICACIÓN DE PROTOCOLOS DE ELIMINACIÓN Y TRANSFERENCIAS DOCUMENTALES.","Inversión","Bogotá Mejor para Todos",45,{"$f":"IF(ISERROR(VLOOKUP(K213,Eje_Pilar_Prop!$C$2:$E$104,2,FALSE)),\" \",VLOOKUP(K213,Eje_Pilar_Prop!$C$2:$E$104,2,FALSE))","v":"Gobernanza e influencia local, regional e internacional"},{"$f":"IF(ISERROR(VLOOKUP(K213,Eje_Pilar_Prop!$C$2:$E$104,3,FALSE)),\" \",VLOOKUP(K213,Eje_Pilar_Prop!$C$2:$E$104,3,FALSE))","v":"Eje Transversal 4 Gobierno Legitimo, Fortalecimiento Local y Eficiencia"},1474,80804691,"JOHAN MANUEL RAMOS RODRIGUEZ",3386966,null,null,1,1654100,5041066,0,"2020-11-17","2020-03-13","2021-01-21",43,1,21,null,null,null,null,null,"X",null,null,0]
[210,2020,"SECOP II","FDLF-CD-210-2020","Contratos de prestación de servicios","Contratación Directa","Prestación de servicios profesionales y de apoyo a la gestión, o para la ejecución de trabajos artísticos que sólo puedan encomendarse a determinadas personas naturales;","PRESTAR LOS SERVICIOS PROFESIONALES A LA ALCALDÍA LOCAL DE FONTIBÓN, PARA LA EJECUCIÓN DE LAS ACTIVIDADES Y PROCESOS ADMINISTRATIVOS Y DE CAMPO RELACIONADOS CON LA REACTIVACIÓN ECONÓMICA EN EL MARCO DE LAS NECESIDADES DEL FONDO DE DESARROLLO LOCAL A CAUSA DE LA EMERGENCIA PRESENTADA POR EL COVID 19.","Inversión","Bogotá Mejor para Todos",45,{"$f":"IF(ISERROR(VLOOKUP(K214,Eje_Pilar_Prop!$C$2:$E$104,2,FALSE)),\" \",VLOOKUP(K214,Eje_Pilar_Prop!$C$2:$E$104,2,FALSE))","v":"Gobernanza e influencia local, regional e internacional"},{"$f":"IF(ISERROR(VLOOKUP(K214,Eje_Pilar_Prop!$C$2:$E$104,3,FALSE)),\" \",VLOOKUP(K214,Eje_Pilar_Prop!$C$2:$E$104,3,FALSE))","v":"Eje Transversal 4 Gobierno Legitimo, Fortalecimiento Local y Eficiencia"},1474,79734945,"MILTON ORLANDO CASTRO CHAPARRO",6536766,null,null,0,0,6536766,0,"2020-11-19","2020-11-24","2021-01-03",41,0,0,null,null,null,null,null,"X",null,null,0]
[211,2020,"SECOP II","FDLF-CD-211-2020","Contratos de prestación de servicios","Contratación Directa","Prestación de servicios profesionales y de apoyo a la gestión, o para la ejecución de trabajos artísticos que sólo puedan encomendarse a determinadas personas naturales;","Prestar servicios profesionales para apoyar el área de Gestión del desarrollo local en la ejecución del proyecto Fontibón, Mejores parques para todos","Inversión","Bogotá Mejor para Todos",17,{"$f":"IF(ISERROR(VLOOKUP(K215,Eje_Pilar_Prop!$C$2:$E$104,2,FALSE)),\" \",VLOOKUP(K215,Eje_Pilar_Prop!$C$2:$E$104,2,FALSE))","v":"Espacio público, derecho de todos"},{"$f":"IF(ISERROR(VLOOKUP(K215,Eje_Pilar_Prop!$C$2:$E$104,3,FALSE)),\" \",VLOOKUP(K215,Eje_Pilar_Prop!$C$2:$E$104,3,FALSE))","v":"Pilar 2 Democracía Urbana"},1462,52152211,"DORA ALIZ HERNANDEZ CEBALLOS ",6696200,null,null,0,0,6696200,1753766,"2020-11-20","2020-11-20","2020-12-31",42,0,0,null,null,null,null,null,null,"X",null,0.26190466234580806]
[212,2020,"SECOP II","FDLF-CD-212-2020","Contratos de prestación de servicios","Contratación Directa","Prestación de servicios profesionales y de apoyo a la gestión, o para la ejecución de trabajos artísticos que sólo puedan encomendarse a determinadas personas naturales;","Servicios para el apoyo en la conducción de vehículos al servicio de la Alcaldía Local de Fontibón.","Inversión","Bogotá Mejor para Todos",45,{"$f":"IF(ISERROR(VLOOKUP(K216,Eje_Pilar_Prop!$C$2:$E$104,2,FALSE)),\" \",VLOOKUP(K216,Eje_Pilar_Prop!$C$2:$E$104,2,FALSE))","v":"Gobernanza e influencia local, regional e internacional"},{"$f":"IF(ISERROR(VLOOKUP(K216,Eje_Pilar_Prop!$C$2:$E$104,3,FALSE)),\" \",VLOOKUP(K216,Eje_Pilar_Prop!$C$2:$E$104,3,FALSE))","v":"Eje Transversal 4 Gobierno Legitimo, Fortalecimiento Local y Eficiencia"},1474,79463263,"YOVANNY BUITRAGO CACERES",3229433,null,null,1,1575333,4804766,866433,"2020-11-19","2020-11-20","2021-01-20",41,1,20,null,null,null,null,null,"X",null,null,0.1803278244975926]
[213,2020,"SECOP II","FDLF-CD-213-2020","Contratos de prestación de servicios","Contratación Directa","Prestación de servicios profesionales y de apoyo a la gestión, o para la ejecución de trabajos artísticos que sólo puedan encomendarse a determinadas personas naturales;","Prestar servicios profesionales en ingeniería para apoyar las actividades técnicas y administrativas propias de la CASA DEL CONSUMIDOR, en el marco del convenio suscrito entre la Superintendencia de Industria y Comercio y la Alcaldía Local de Fontibón","Inversión","Bogotá Mejor para Todos",45,{"$f":"IF(ISERROR(VLOOKUP(K217,Eje_Pilar_Prop!$C$2:$E$104,2,FALSE)),\" \",VLOOKUP(K217,Eje_Pilar_Prop!$C$2:$E$104,2,FALSE))","v":"Gobernanza e influencia local, regional e internacional"},{"$f":"IF(ISERROR(VLOOKUP(K217,Eje_Pilar_Prop!$C$2:$E$104,3,FALSE)),\" \",VLOOKUP(K217,Eje_Pilar_Prop!$C$2:$E$104,3,FALSE))","v":"Eje Transversal 4 Gobierno Legitimo, Fortalecimiento Local y Eficiencia"},1474,52880341,"LUIS FERNANDA OCAMPO REY",6058466,null,null,0,0,6058466,1275466,"2020-11-20","2020-11-23","2020-12-30",38,0,0,null,null,null,null,null,null,"X",null,0.21052622891669279]
[214,2020,"SECOP II","FDLF-CD-214-2020","Contratos de prestación de servicios","Contratación Directa","Prestación de servicios profesionales y de apoyo a la gestión, o para la ejecución de trabajos artísticos que sólo puedan encomendarse a determinadas personas naturales;","Prestar servicios profesionales para apoyar al Alcalde (sa) Local en la promoción, acompañamiento, coordinación y atención de las instancias de coordinación interinstitucionales y las instancias de participación locales, así como los procesos comunitarios en la localidad.","Inversión","Bogotá Mejor para Todos",45,{"$f":"IF(ISERROR(VLOOKUP(K218,Eje_Pilar_Prop!$C$2:$E$104,2,FALSE)),\" \",VLOOKUP(K218,Eje_Pilar_Prop!$C$2:$E$104,2,FALSE))","v":"Gobernanza e influencia local, regional e internacional"},{"$f":"IF(ISERROR(VLOOKUP(K218,Eje_Pilar_Prop!$C$2:$E$104,3,FALSE)),\" \",VLOOKUP(K218,Eje_Pilar_Prop!$C$2:$E$104,3,FALSE))","v":"Eje Transversal 4 Gobierno Legitimo, Fortalecimiento Local y Eficiencia"},1473,43558926,"LAYDA MARIA ZULUAGA RIVERA",5899033,null,null,1,2869800,8768833,0,"2020-11-20","2020-11-24","2021-01-17",37,1,18,null,null,null,null,null,"X",null,null,0]
[215,2020,"SECOP II","FDLF-CD-215-2020","Contratos de prestación de servicios","Contratación Directa","Prestación de servicios profesionales y de apoyo a la gestión, o para la ejecución de trabajos artísticos que sólo puedan encomendarse a determinadas personas naturales;","Prestar servicios de apoyo en las actividades de seguridad y convivencia ciudadana, de acuerdo con las necesidades y estrategias emanadas por el área de seguridad y convivencia de la Alcaldía Local de Fontibón","Inversión","Bogotá Mejor para Todos",19,{"$f":"IF(ISERROR(VLOOKUP(K219,Eje_Pilar_Prop!$C$2:$E$104,2,FALSE)),\" \",VLOOKUP(K219,Eje_Pilar_Prop!$C$2:$E$104,2,FALSE))","v":"Seguridad y convivencia para todos"},{"$f":"IF(ISERROR(VLOOKUP(K219,Eje_Pilar_Prop!$C$2:$E$104,3,FALSE)),\" \",VLOOKUP(K219,Eje_Pilar_Prop!$C$2:$E$104,3,FALSE))","v":"Pilar 3 Construcción de Comunidad y Cultura Ciudadana"},1467,1016037214,"MIGUEL ANDRES ALARCON OSPINA ",2165247,null,null,0,0,2165247,0,"2020-11-20","2020-12-09","2021-01-15",37,0,0,null,null,null,null,null,"X",null,null,0]
[216,2020,"SECOP II","FDLF-CD-216-2020","Contratos de prestación de servicios","Contratación Directa","Prestación de servicios profesionales y de apoyo a la gestión, o para la ejecución de trabajos artísticos que sólo puedan encomendarse a determinadas personas naturales;","PRESTAR LOS SERVICIOS PROFESIONALES A LA ALCALDÍA LOCAL DE FONTIBÓN, PARA LA EJECUCIÓN DE LAS ACTIVIDADES Y PROCESOS ADMINISTRATIVOS Y DE CAMPO RELACIONADOS CON LA REACTIVACIÓN ECONÓMICA EN EL MARCO DE LAS NECESIDADES DEL FONDO DE DESARROLLO LOCAL A CAUSA DE LA EMERGENCIA PRESENTADA POR EL COVID 19.","Inversión","Bogotá Mejor para Todos",45,{"$f":"IF(ISERROR(VLOOKUP(K220,Eje_Pilar_Prop!$C$2:$E$104,2,FALSE)),\" \",VLOOKUP(K220,Eje_Pilar_Prop!$C$2:$E$104,2,FALSE))","v":"Gobernanza e influencia local, regional e internacional"},{"$f":"IF(ISERROR(VLOOKUP(K220,Eje_Pilar_Prop!$C$2:$E$104,3,FALSE)),\" \",VLOOKUP(K220,Eje_Pilar_Prop!$C$2:$E$104,3,FALSE))","v":"Eje Transversal 4 Gobierno Legitimo, Fortalecimiento Local y Eficiencia"},1474,7182813,"JEFFER DARIO BUITRAGO BETANCOURT",5739600,null,null,0,0,5739600,0,"2020-11-24","2020-11-26","2020-12-31",36,0,0,null,null,null,null,null,null,"X",null,0]
[217,2020,"SECOP II","FDLF-CD-217-2020","Contratos de prestación de servicios","Contratación Directa","Prestación de servicios profesionales y de apoyo a la gestión, o para la ejecución de trabajos artísticos que sólo puedan encomendarse a determinadas personas naturales;","SERVICIOS DE APOYO AL ÁREA DE GESTIÓN DEL DESARROLLO LOCAL DE FONTIBÓN EN ACTIVIDADES INHERENTES A LA PLANEACIÓN.","Inversión","Bogotá Mejor para Todos",45,{"$f":"IF(ISERROR(VLOOKUP(K221,Eje_Pilar_Prop!$C$2:$E$104,2,FALSE)),\" \",VLOOKUP(K221,Eje_Pilar_Prop!$C$2:$E$104,2,FALSE))","v":"Gobernanza e influencia local, regional e internacional"},{"$f":"IF(ISERROR(VLOOKUP(K221,Eje_Pilar_Prop!$C$2:$E$104,3,FALSE)),\" \",VLOOKUP(K221,Eje_Pilar_Prop!$C$2:$E$104,3,FALSE))","v":"Eje Transversal 4 Gobierno Legitimo, Fortalecimiento Local y Eficiencia"},1474,51712771,"MARÍA ELENA SARMIENTO FRANCO",2993133,null,null,1,1496566,4489699,551367,"2020-11-20","2020-11-24","2020-12-31",38,1,19,null,null,null,null,null,null,"X",null,0.12280711914094909]
[218,2020,"SECOP II","FDLF-CD-218-2020","Contratos de prestación de servicios","Contratación Directa","Prestación de servicios profesionales y de apoyo a la gestión, o para la ejecución de trabajos artísticos que sólo puedan encomendarse a determinadas personas naturales;","Prestar servicios técnicos para la operación, seguimiento y cumplimiento de los procesos y procedimientos del servicio social Apoyo para la Seguridad Económica Tipo C, requeridos para el oportuno y adecuado registro, cruce y reporte de datos en el sistema de información y registro de Beneficiarios SIRBE, que contribuyan a la garantía de los derechos de la población mayor en el marco de la Política Pública Social para el Envejecimiento y la Vejez en el Distrito Capital a cargo de la Alcaldía Loca","Inversión","Bogotá Mejor para Todos",3,{"$f":"IF(ISERROR(VLOOKUP(K222,Eje_Pilar_Prop!$C$2:$E$104,2,FALSE)),\" \",VLOOKUP(K222,Eje_Pilar_Prop!$C$2:$E$104,2,FALSE))","v":"Igualdad y autonomía para una Bogotá incluyente"},{"$f":"IF(ISERROR(VLOOKUP(K222,Eje_Pilar_Prop!$C$2:$E$104,3,FALSE)),\" \",VLOOKUP(K222,Eje_Pilar_Prop!$C$2:$E$104,3,FALSE))","v":"Pilar 1 Igualdad de Calidad de Vida"},1453,53080759,"VIVIANA ANDREA OJEDA VILLABA",3779733,null,null,0,0,3779733,696266,"2020-11-23","2020-11-24","2020-12-31",38,0,0,null,null,null,null,null,null,"X",null,0.18421036618194989]
[219,2020,"SECOP II","FDLF-CD-219-2020","Contratos de prestación de servicios","Contratación Directa","Prestación de servicios profesionales y de apoyo a la gestión, o para la ejecución de trabajos artísticos que sólo puedan encomendarse a determinadas personas naturales;","PRESTAR LOS SERVICIOS PROFESIONALES A LA ALCALDÍA LOCAL DE FONTIBÓN, PARA LA EJECUCIÓN DE LAS ACTIVIDADES Y PROCESOS ADMINISTRATIVOS Y DE CAMPO RELACIONADOS CON LA REACTIVACIÓN ECONÓMICA EN EL MARCO DE LAS NECESIDADES DEL FONDO DE DESARROLLO LOCAL A CAUSA DE LA EMERGENCIA PRESENTADA POR EL COVID 19.","Inversión","Bogotá Mejor para Todos",45,{"$f":"IF(ISERROR(VLOOKUP(K223,Eje_Pilar_Prop!$C$2:$E$104,2,FALSE)),\" \",VLOOKUP(K223,Eje_Pilar_Prop!$C$2:$E$104,2,FALSE))","v":"Gobernanza e influencia local, regional e internacional"},{"$f":"IF(ISERROR(VLOOKUP(K223,Eje_Pilar_Prop!$C$2:$E$104,3,FALSE)),\" \",VLOOKUP(K223,Eje_Pilar_Prop!$C$2:$E$104,3,FALSE))","v":"Eje Transversal 4 Gobierno Legitimo, Fortalecimiento Local y Eficiencia"},1474,1010176279,"DUDLEY JOHANNA PALACIOS GARCIA",5739600,null,null,1,2869800,8609400,0,"2020-11-24","2020-11-26","2021-01-18",36,1,18,null,null,null,null,null,"X",null,null,0]
[220,2020,"SECOP II","FDLF-CIA-220-2020","Convenios de cooperacion","Contratación directa","Contratos interadministrativos","AUNAR ESFUERZOS ENTRE EL FONDO DE DESARROLLO LOCAL DE FONTIBÓN Y LA SECRETARÍA DISTRITAL DE CULTURA, RECREACIÓN Y DEPORTE PARA LA PROMOCIÓN Y FORTALECIMIENTO DE INICIATIVAS DE INTERÉS CULTURAL Y ARTÍSTICO EN LA LOCALIDAD DE FONTIBÓN A TRAVÉS DEL PROGRAMA DISTRITAL DE ESTÍMULOS","Inversión","Bogotá Mejor para Todos",11,{"$f":"IF(ISERROR(VLOOKUP(K224,Eje_Pilar_Prop!$C$2:$E$104,2,FALSE)),\" \",VLOOKUP(K224,Eje_Pilar_Prop!$C$2:$E$104,2,FALSE))","v":"Mejores oportunidades para el desarrollo a través de la cultura, la recreación y el deporte"},{"$f":"IF(ISERROR(VLOOKUP(K224,Eje_Pilar_Prop!$C$2:$E$104,3,FALSE)),\" \",VLOOKUP(K224,Eje_Pilar_Prop!$C$2:$E$104,3,FALSE))","v":"Pilar 1 Igualdad de Calidad de Vida"},1458,"899999061-9","SECRETARIA DISTRITAL DE CULTURA, RECREACIÓN Y DEPORTE",493209000,null,null,0,0,493209000,0,"2020-12-10","2020-12-15","2021-12-31",376,0,0,null,null,null,null,null,"X",null,null,0]
[222,2020,"SECOP II","FDLF-CD-222-2020","Contratos de prestación de servicios","Contratación Directa","Prestación de servicios profesionales y de apoyo a la gestión, o para la ejecución de trabajos artísticos que sólo puedan encomendarse a determinadas personas naturales;","PRESTAR LOS SERVICIOS PROFESIONALES PARA APOYAR LAS ACTIVIDADES DE REACTIVACIÓN ECONÓMICA DESARROLLADAS POR LA ALCALDÍA LOCAL DE FONTBÓN","Inversión","Bogotá Mejor para Todos",45,{"$f":"IF(ISERROR(VLOOKUP(K225,Eje_Pilar_Prop!$C$2:$E$104,2,FALSE)),\" \",VLOOKUP(K225,Eje_Pilar_Prop!$C$2:$E$104,2,FALSE))","v":"Gobernanza e influencia local, regional e internacional"},{"$f":"IF(ISERROR(VLOOKUP(K225,Eje_Pilar_Prop!$C$2:$E$104,3,FALSE)),\" \",VLOOKUP(K225,Eje_Pilar_Prop!$C$2:$E$104,3,FALSE))","v":"Eje Transversal 4 Gobierno Legitimo, Fortalecimiento Local y Eficiencia"},1474,1030654701,"MARIA PAULA MALDONADO ROLDAN",5040000,null,null,0,0,5040000,0,"2020-11-24","2020-11-25","2020-12-30",36,0,0,null,null,null,null,null,null,"X",null,0]
[223,2020,"SECOP II","FDLF-CD-223-2020","Contratos de prestación de servicios","Contratación Directa","Prestación de servicios profesionales y de apoyo a la gestión, o para la ejecución de trabajos artísticos que sólo puedan encomendarse a determinadas personas naturales;","PRESTAR LOS SERVICIOS PROFESIONALES PARA APOYAR LAS ACTIVIDADES DE REACTIVACIÓN ECONÓMICA DESARROLLADAS POR LA ALCALDÍA LOCAL DE FONTBÓN","Inversión","Bogotá Mejor para Todos",45,{"$f":"IF(ISERROR(VLOOKUP(K226,Eje_Pilar_Prop!$C$2:$E$104,2,FALSE)),\" \",VLOOKUP(K226,Eje_Pilar_Prop!$C$2:$E$104,2,FALSE))","v":"Gobernanza e influencia local, regional e internacional"},{"$f":"IF(ISERROR(VLOOKUP(K226,Eje_Pilar_Prop!$C$2:$E$104,3,FALSE)),\" \",VLOOKUP(K226,Eje_Pilar_Prop!$C$2:$E$104,3,FALSE))","v":"Eje Transversal 4 Gobierno Legitimo, Fortalecimiento Local y Eficiencia"},1474,1016055959,"JAIR ANDRES ACEVEDP RINCON ",5040000,null,null,0,0,5040000,0,"2020-11-24","2020-11-26","2020-12-31",36,0,0,null,null,null,null,null,null,"X",null,0]
[224,2020,"SECOP II","FDLF-CD-224-2020","Contratos de prestación de servicios","Contratación Directa","Prestación de servicios profesionales y de apoyo a la gestión, o para la ejecución de trabajos artísticos que sólo puedan encomendarse a determinadas personas naturales;","COORDINAR LA ARTICULACIÓN, ASISTENCIA Y ACOMPAÑAMIENTO DE LOS PROCESOS DE PLANEACIÓN LOCAL, PARA LA PROMOCIÓN DE LA PARTICIPACIÓN DE LAS MUJERES Y DE LA EQUIDAD DE GÉNERO, PARA MATERIALIZAR EN LA LOCALIDAD LAS ESTRATEGIAS DE TERRITORIALIZACIÓN Y TRANSVERSALIZACIÓN DE LA POLÍTICA PUBLICA DE MUJERES Y EQUIDAD DE GÉNERO, PPMYEG","Inversión","Bogotá Mejor para Todos",45,{"$f":"IF(ISERROR(VLOOKUP(K227,Eje_Pilar_Prop!$C$2:$E$104,2,FALSE)),\" \",VLOOKUP(K227,Eje_Pilar_Prop!$C$2:$E$104,2,FALSE))","v":"Gobernanza e influencia local, regional e internacional"},{"$f":"IF(ISERROR(VLOOKUP(K227,Eje_Pilar_Prop!$C$2:$E$104,3,FALSE)),\" \",VLOOKUP(K227,Eje_Pilar_Prop!$C$2:$E$104,3,FALSE))","v":"Eje Transversal 4 Gobierno Legitimo, Fortalecimiento Local y Eficiencia"},1474,1032413689,"JEISON HERLEY CAMACHO TELLEZ",7888800,null,null,0,0,7888800,0,"2020-11-24","2020-11-26","2020-12-31",36,0,0,null,null,null,null,null,null,"X",null,0]
[225,2020,"SECOP II","FDLF-CD-225-2020","Contratos de prestación de servicios","Contratación Directa","Prestación de servicios profesionales y de apoyo a la gestión, o para la ejecución de trabajos artísticos que sólo puedan encomendarse a determinadas personas naturales;","PRESTAR LOS SERVICIOS PROFESIONALES PARA APOYAR LAS ACTIVIDADES DE REACTIVACIÓN ECONÓMICA DESARROLLADAS POR LA ALCALDÍA LOCAL DE FONTBÓN","Inversión","Bogotá Mejor para Todos",45,{"$f":"IF(ISERROR(VLOOKUP(K228,Eje_Pilar_Prop!$C$2:$E$104,2,FALSE)),\" \",VLOOKUP(K228,Eje_Pilar_Prop!$C$2:$E$104,2,FALSE))","v":"Gobernanza e influencia local, regional e internacional"},{"$f":"IF(ISERROR(VLOOKUP(K228,Eje_Pilar_Prop!$C$2:$E$104,3,FALSE)),\" \",VLOOKUP(K228,Eje_Pilar_Prop!$C$2:$E$104,3,FALSE))","v":"Eje Transversal 4 Gobierno Legitimo, Fortalecimiento Local y Eficiencia"},1474,1016089405,"JUAN MIGUEL RIAÑO ABRIL",5040000,null,null,0,0,5040000,0,"2020-11-24","2020-11-26","2020-12-31",36,0,0,null,null,null,null,null,null,"X",null,0]
[226,2020,"SECOP II","FDLF-CD-226-2020","Contratos de prestación de servicios","Contratación Directa","Prestación de servicios profesionales y de apoyo a la gestión, o para la ejecución de trabajos artísticos que sólo puedan encomendarse a determinadas personas naturales;","PRESTAR LOS SERVICIOS PROFESIONALES A LA ALCALDÍA LOCAL DE FONTIBÓN, PARA LA EJECUCIÓN DE LAS ACTIVIDADES Y PROCESOS ADMINISTRATIVOS Y DE CAMPO RELACIONADOS CON LA REACTIVACIÓN ECONÓMICA EN EL MARCO DE LAS NECESIDADES DEL FONDO DE DESARROLLO LOCAL A CAUSA DE LA EMERGENCIA PRESENTADA POR EL COVID 19.","Inversión","Bogotá Mejor para Todos",45,{"$f":"IF(ISERROR(VLOOKUP(K229,Eje_Pilar_Prop!$C$2:$E$104,2,FALSE)),\" \",VLOOKUP(K229,Eje_Pilar_Prop!$C$2:$E$104,2,FALSE))","v":"Gobernanza e influencia local, regional e internacional"},{"$f":"IF(ISERROR(VLOOKUP(K229,Eje_Pilar_Prop!$C$2:$E$104,3,FALSE)),\" \",VLOOKUP(K229,Eje_Pilar_Prop!$C$2:$E$104,3,FALSE))","v":"Eje Transversal 4 Gobierno Legitimo, Fortalecimiento Local y Eficiencia"},1474,79793957,"LUCAS DAVID CARDOZO CARRILLO",5739600,null,null,0,0,5739600,0,"2020-11-24","2020-11-26","2020-12-31",36,0,0,null,null,null,null,null,null,"X",null,0]
[227,2020,"SECOP II","FDLF-CD-227-2020","Contratos de prestación de servicios","Contratación Directa","Prestación de servicios profesionales y de apoyo a la gestión, o para la ejecución de trabajos artísticos que sólo puedan encomendarse a determinadas personas naturales;","Prestar servicios apoyo a las actividades correspondientes a temas de liquidaciones para el área de gestión de desarrollo de la Alcaldía Local de Fontibón.","Inversión","Bogotá Mejor para Todos",45,{"$f":"IF(ISERROR(VLOOKUP(K230,Eje_Pilar_Prop!$C$2:$E$104,2,FALSE)),\" \",VLOOKUP(K230,Eje_Pilar_Prop!$C$2:$E$104,2,FALSE))","v":"Gobernanza e influencia local, regional e internacional"},{"$f":"IF(ISERROR(VLOOKUP(K230,Eje_Pilar_Prop!$C$2:$E$104,3,FALSE)),\" \",VLOOKUP(K230,Eje_Pilar_Prop!$C$2:$E$104,3,FALSE))","v":"Eje Transversal 4 Gobierno Legitimo, Fortalecimiento Local y Eficiencia"},1474,1032476271,"CHRISTHIAN MOISES GUARIN CUBILLOS",3800000,null,null,0,0,3800000,0,"2020-11-30","2020-12-01","2020-12-31",30,0,0,null,null,null,null,null,null,"X",null,0]
[228,2020,"SECOP II","FDLF-CD-228-2020","Contratos de prestación de servicios","Contratación Directa","Prestación de servicios profesionales y de apoyo a la gestión, o para la ejecución de trabajos artísticos que sólo puedan encomendarse a determinadas personas naturales;","APOYAR EL CUBRIMIENTO DE LAS ACTIVIDADES, CRONOGRAMAS Y AGENDA DE LA ALCALDÍA LOCAL A NIVEL INTERNO Y EXTERNO, ASÍ COMO LA GENERACIÓN DE CONTENIDOS PERIODÍSTICOS.","Inversión","Bogotá Mejor para Todos",45,{"$f":"IF(ISERROR(VLOOKUP(K231,Eje_Pilar_Prop!$C$2:$E$104,2,FALSE)),\" \",VLOOKUP(K231,Eje_Pilar_Prop!$C$2:$E$104,2,FALSE))","v":"Gobernanza e influencia local, regional e internacional"},{"$f":"IF(ISERROR(VLOOKUP(K231,Eje_Pilar_Prop!$C$2:$E$104,3,FALSE)),\" \",VLOOKUP(K231,Eje_Pilar_Prop!$C$2:$E$104,3,FALSE))","v":"Eje Transversal 4 Gobierno Legitimo, Fortalecimiento Local y Eficiencia"},1474,1016060955,"DIEGO ARMANDO HUERTAS GARCÍA",4200000,null,null,0,0,4200000,0,"2020-12-02","2020-12-03","2021-01-02",30,0,0,null,null,null,null,null,"X",null,null,0]
[230,2020,"SECOP II","FDLF-CD-230-2020","Contratos de prestación de servicios","Contratación Directa","Prestación de servicios profesionales y de apoyo a la gestión, o para la ejecución de trabajos artísticos que sólo puedan encomendarse a determinadas personas naturales;","APOYAR AL EQUIPO DE PRENSA Y COMUNICACIONES DE LA ALCALDÍA LOCAL EN LA REALIZACIÓN DE PRODUCTOS Y PIEZAS DIGITALES, IMPRESAS Y PUBLICITARIAS DE GRAN FORMATO Y DE ANIMACIÓN GRÁFICA, ASÍ COMO APOYAR LA PRODUCCIÓN Y MONTAJE DE EVENTOS.","Inversión","Bogotá Mejor para Todos",45,{"$f":"IF(ISERROR(VLOOKUP(K232,Eje_Pilar_Prop!$C$2:$E$104,2,FALSE)),\" \",VLOOKUP(K232,Eje_Pilar_Prop!$C$2:$E$104,2,FALSE))","v":"Gobernanza e influencia local, regional e internacional"},{"$f":"IF(ISERROR(VLOOKUP(K232,Eje_Pilar_Prop!$C$2:$E$104,3,FALSE)),\" \",VLOOKUP(K232,Eje_Pilar_Prop!$C$2:$E$104,3,FALSE))","v":"Eje Transversal 4 Gobierno Legitimo, Fortalecimiento Local y Eficiencia"},1474,1010193154,"ERIKA LIZETH VASQUEZ RAMIREZ",4200000,null,null,0,0,4200000,0,"2020-12-04","2020-12-07","2021-01-06",30,0,0,null,null,null,null,null,"X",null,null,0]
[231,2020,"SECOP II","FDLF-CD-231-2020","Contratos de prestación de servicios","Contratación Directa","Prestación de servicios profesionales y de apoyo a la gestión, o para la ejecución de trabajos artísticos que sólo puedan encomendarse a determinadas personas naturales;","PRESTACIÓN DE SERVICIOS PROFESIONALES PARA ACOMPAÑAR EL EQUIPO GESTORES DE CONVIVENCIA, QUE CONLLEVEN AL MEJORAMIENTO DE LA CONVIVENCIA, LA SEGURIDAD, LA PRESERVACIÓN DEL ESPACIO PÚBLICO Y AMBIENTAL DE LA LOCALIDAD DE ACUERDO CON LAS NECESIDADES Y ESTRATEGIAS EMANADAS POR EL ÁREA DE SEGURIDAD Y CONVIVENCIA DE LA ALCALDÍA LOCAL DE FONTIBÓN.","Inversión","Bogotá Mejor para Todos",19,{"$f":"IF(ISERROR(VLOOKUP(K233,Eje_Pilar_Prop!$C$2:$E$104,2,FALSE)),\" \",VLOOKUP(K233,Eje_Pilar_Prop!$C$2:$E$104,2,FALSE))","v":"Seguridad y convivencia para todos"},{"$f":"IF(ISERROR(VLOOKUP(K233,Eje_Pilar_Prop!$C$2:$E$104,3,FALSE)),\" \",VLOOKUP(K233,Eje_Pilar_Prop!$C$2:$E$104,3,FALSE))","v":"Pilar 3 Construcción de Comunidad y Cultura Ciudadana"},1467,52783302,"CLAUDIA PATRICIA VILLAMIZAR ALCALA",4497321,null,null,0,0,4497321,0,"2020-12-04","2020-12-07","2021-01-06",30,0,0,null,null,null,null,null,"X",null,null,0]
[232,2020,"SECOP II","FDLF-CD-232-2020","Contratos de prestación de servicios","Contratación Directa","Prestación de servicios profesionales y de apoyo a la gestión, o para la ejecución de trabajos artísticos que sólo puedan encomendarse a determinadas personas naturales;","PRESTAR SERVICIOS PARA APOYAR TÉCNICAMENTE LAS DISTINTAS ETAPAS DE LOS PROCESOS DE COMPETENCIA DE LAS INSPECCIONES DE POLICÍA DE LA LOCALIDAD, SEGÚN REPARTO.","Inversión","Bogotá Mejor para Todos",45,{"$f":"IF(ISERROR(VLOOKUP(K234,Eje_Pilar_Prop!$C$2:$E$104,2,FALSE)),\" \",VLOOKUP(K234,Eje_Pilar_Prop!$C$2:$E$104,2,FALSE))","v":"Gobernanza e influencia local, regional e internacional"},{"$f":"IF(ISERROR(VLOOKUP(K234,Eje_Pilar_Prop!$C$2:$E$104,3,FALSE)),\" \",VLOOKUP(K234,Eje_Pilar_Prop!$C$2:$E$104,3,FALSE))","v":"Eje Transversal 4 Gobierno Legitimo, Fortalecimiento Local y Eficiencia"},"1474",79757415,"RAUL TOVAR MARTINEZ",13190333,null,null,0,0,13190333,0,"2020-12-18","2020-12-22","2021-03-03",70,0,0,null,null,null,null,null,"X",null,null,0]
[233,2020,"SECOP II","FDLF-CD-233-2020","Contratos de prestación de servicios","Contratación Directa","Prestación de servicios profesionales y de apoyo a la gestión, o para la ejecución de trabajos artísticos que sólo puedan encomendarse a determinadas personas naturales;","PRESTAR SERVICIOS PARA APOYAR TÉCNICAMENTE LAS DISTINTAS ETAPAS DE LOS PROCESOS DE COMPETENCIA DE LAS INSPECCIONES DE POLICÍA DE LA LOCALIDAD, SEGÚN REPARTO.","Inversión","Bogotá Mejor para Todos",45,{"$f":"IF(ISERROR(VLOOKUP(K235,Eje_Pilar_Prop!$C$2:$E$104,2,FALSE)),\" \",VLOOKUP(K235,Eje_Pilar_Prop!$C$2:$E$104,2,FALSE))","v":"Gobernanza e influencia local, regional e internacional"},{"$f":"IF(ISERROR(VLOOKUP(K235,Eje_Pilar_Prop!$C$2:$E$104,3,FALSE)),\" \",VLOOKUP(K235,Eje_Pilar_Prop!$C$2:$E$104,3,FALSE))","v":"Eje Transversal 4 Gobierno Legitimo, Fortalecimiento Local y Eficiencia"},"1474",79539341,"LUIS FERNANDO ROJAS PINTO",13190333,null,null,0,0,13190333,0,"2020-12-18","2020-12-21","2021-03-02",70,0,0,null,null,null,null,null,"X",null,null,0]
[234,2020,"SECOP II","FDLF-SAMC-10-2020","Contratos de prestación de servicios","Selección abreviada","Selección abreviada por menor cuantía ","\tPRESTACIÓN DE SERVICIOS PARA ORIENTACIÓN Y ASESORÍA FAMILIAR Y LA REALIZACIÓN DE ACCIONES LOCALES DE PROMOCIÓN DEL BUEN TRATO EN LA LOCALIDAD DE FONTIBÓN.","Inversión","Bogotá Mejor para Todos",2,{"$f":"IF(ISERROR(VLOOKUP(K236,Eje_Pilar_Prop!$C$2:$E$104,2,FALSE)),\" \",VLOOKUP(K236,Eje_Pilar_Prop!$C$2:$E$104,2,FALSE))","v":"Desarrollo integral desde la gestación hasta la adolescencia"},{"$f":"IF(ISERROR(VLOOKUP(K236,Eje_Pilar_Prop!$C$2:$E$104,3,FALSE)),\" \",VLOOKUP(K236,Eje_Pilar_Prop!$C$2:$E$104,3,FALSE))","v":"Pilar 1 Igualdad de Calidad de Vida"},1452,"900216251-5","ADIFCOL",145150654,null,null,0,0,145150654,0,"2020-12-23",null,null,null,0,0,null,null,null,null,"X",null,null,null,0]
[235,2020,"SECOP II","FDLF-LP-9-2020","Contratos de prestación de servicios","Licitación pública","No aplica","PRESTACIÓN DE SERVICIO PARA REALIZAR LA ORGANIZACIÓN, COORDINACIÓN Y EJECUCIÓN EN EL DESARROLLO DE LOS PROCESOS DE FORMACIÓN DE LAS ESCUELAS DEPORTIVAS DE FONTIBON EN EL MARCO DEL PROYECTO DE INVERSIÓN 1458","Inversión","Bogotá Mejor para Todos",11,{"$f":"IF(ISERROR(VLOOKUP(K237,Eje_Pilar_Prop!$C$2:$E$104,2,FALSE)),\" \",VLOOKUP(K237,Eje_Pilar_Prop!$C$2:$E$104,2,FALSE))","v":"Mejores oportunidades para el desarrollo a través de la cultura, la recreación y el deporte"},{"$f":"IF(ISERROR(VLOOKUP(K237,Eje_Pilar_Prop!$C$2:$E$104,3,FALSE)),\" \",VLOOKUP(K237,Eje_Pilar_Prop!$C$2:$E$104,3,FALSE))","v":"Pilar 1 Igualdad de Calidad de Vida"},1458,"900216251-5","ADIFCOL",348396440,null,null,0,0,348396440,0,"2020-12-24",null,null,null,0,0,null,null,null,null,"X",null,null,null,0]
[236,2020,"SECOP II","FDLF-CD-236-2020","Contratos de prestación de servicios","Contratación Directa","Prestación de servicios profesionales y de apoyo a la gestión, o para la ejecución de trabajos artísticos que sólo puedan encomendarse a determinadas personas naturales;","PRESTAR SERVICIOS PARA APOYAR LAS LABORES DE NOTIFICACIÓN DE CORRESPONDENCIA DE LA ALCALDÍA LOCAL DE FONTIBÓN.","Inversión","Bogotá Mejor para Todos",45,{"$f":"IF(ISERROR(VLOOKUP(K238,Eje_Pilar_Prop!$C$2:$E$104,2,FALSE)),\" \",VLOOKUP(K238,Eje_Pilar_Prop!$C$2:$E$104,2,FALSE))","v":"Gobernanza e influencia local, regional e internacional"},{"$f":"IF(ISERROR(VLOOKUP(K238,Eje_Pilar_Prop!$C$2:$E$104,3,FALSE)),\" \",VLOOKUP(K238,Eje_Pilar_Prop!$C$2:$E$104,3,FALSE))","v":"Eje Transversal 4 Gobierno Legitimo, Fortalecimiento Local y Eficiencia"},"1474",79746042,"DIEGO MARIO ACOSTA TORRES",2363000,null,null,0,0,2363000,0,"2020-12-24","2020-12-31","2021-01-30",30,0,0,null,null,null,null,null,"X",null,null,0]
[238,2020,"SECOP II","FDLF-IPMC-18-2020","Contratos de prestación de servicios","Contratación mínima cuantia","No aplica","\tPRESTAR LOS SERVICIOS DE APOYO LOGÍSTICO PARA LA CELEBRACIÓN DEL DÍA DEL COMUNAL 2020 DE LA LOCALIDAD DE FONTIBÓN","Inversión","Bogotá Mejor para Todos",45,{"$f":"IF(ISERROR(VLOOKUP(K239,Eje_Pilar_Prop!$C$2:$E$104,2,FALSE)),\" \",VLOOKUP(K239,Eje_Pilar_Prop!$C$2:$E$104,2,FALSE))","v":"Gobernanza e influencia local, regional e internacional"},{"$f":"IF(ISERROR(VLOOKUP(K239,Eje_Pilar_Prop!$C$2:$E$104,3,FALSE)),\" \",VLOOKUP(K239,Eje_Pilar_Prop!$C$2:$E$104,3,FALSE))","v":"Eje Transversal 4 Gobierno Legitimo, Fortalecimiento Local y Eficiencia"},1473,80222117,"MIGUEL ANGEL VALLEJO BURGOS",13344856,null,null,0,0,13344856,0,"2020-12-30",null,null,null,0,0,null,null,null,null,"X",null,null,null,0]
[239,2020,"SECOP II","FDLF-SAMC-15 DE 2020","Obra pública","Selección abreviada","Selección abreviada por menor cuantía ","CONTRATAR POR EL SISTEMA DE PRECIOS UNITARIOS FIJOS SIN FÓRMULA DE AJUSTE LAS REPARACIONES Y ADECUACIONES LOCATIVAS DEL JARDÍN INFANTIL LA CABAÑA DE LA LOCALIDAD DE FONTIBÓN","Inversión","Bogotá Mejor para Todos",2,{"$f":"IF(ISERROR(VLOOKUP(K240,Eje_Pilar_Prop!$C$2:$E$104,2,FALSE)),\" \",VLOOKUP(K240,Eje_Pilar_Prop!$C$2:$E$104,2,FALSE))","v":"Desarrollo integral desde la gestación hasta la adolescencia"},{"$f":"IF(ISERROR(VLOOKUP(K240,Eje_Pilar_Prop!$C$2:$E$104,3,FALSE)),\" \",VLOOKUP(K240,Eje_Pilar_Prop!$C$2:$E$104,3,FALSE))","v":"Pilar 1 Igualdad de Calidad de Vida"},"1452","901442437-1","CONSORCIO 2S",165818175,null,null,0,0,165818175,0,"2020-12-30",null,null,60,0,0,null,null,null,null,"X",null,null,null,0]
[240,2020,"SECOP II","FDLF-SAMC-16-2020","Suministro","Selección abreviada","Selección abreviada por menor cuantía ","SUMINISTRO DE BIENES E INSUMOS PARA EL DESARROLLO DE ACCIONES DE JARDINERÍA, RENATURALIZACION DE ESPACIO PÚBLICO, MANTENIMIENTO Y SIEMBRA DEL ARBOLADO URBANO LOCAL EN LOS ESCENARIOS QUE INTEGRAN LAS REDES DE ESPACIOS PÚBLICOS Y EJES AMBIENTALES DE LA LOCALIDAD DE FONTIBON","Inversión","Bogotá Mejor para Todos",38,{"$f":"IF(ISERROR(VLOOKUP(K241,Eje_Pilar_Prop!$C$2:$E$104,2,FALSE)),\" \",VLOOKUP(K241,Eje_Pilar_Prop!$C$2:$E$104,2,FALSE))","v":"Recuperación y manejo de la Estructura Ecológica Principal"},{"$f":"IF(ISERROR(VLOOKUP(K241,Eje_Pilar_Prop!$C$2:$E$104,3,FALSE)),\" \",VLOOKUP(K241,Eje_Pilar_Prop!$C$2:$E$104,3,FALSE))","v":"Eje Transversal 3 Sostenibilidad Ambiental basada en la eficiencia energética"},"1471","900354406-0","ALIADOS DE COLOMBIA SAS",125785751,null,null,0,0,125785751,0,"2020-12-30",null,null,90,0,0,null,null,null,null,"X",null,null,null,0]
[241,2020,"SECOP II","FDLF-SASI-14-2020","Suministro","Selección abreviada","Subasta inversa ","ADQUIRIR LA DOTACIÓN PEDAGÓGICA DE LOS SERVICIOS DE ATENCIÓN A LA PRIMERA INFANCIA DE LOS JARDINES INFANTILES DE LA LOCALIDAD DE FONTIBÓN","Inversión","Bogotá Mejor para Todos",2,{"$f":"IF(ISERROR(VLOOKUP(K242,Eje_Pilar_Prop!$C$2:$E$104,2,FALSE)),\" \",VLOOKUP(K242,Eje_Pilar_Prop!$C$2:$E$104,2,FALSE))","v":"Desarrollo integral desde la gestación hasta la adolescencia"},{"$f":"IF(ISERROR(VLOOKUP(K242,Eje_Pilar_Prop!$C$2:$E$104,3,FALSE)),\" \",VLOOKUP(K242,Eje_Pilar_Prop!$C$2:$E$104,3,FALSE))","v":"Pilar 1 Igualdad de Calidad de Vida"},1452,"901151389-5","S&S SERVICIOS Y SUMINISTROS STELAR S.A.S",114888888,null,null,0,0,114888888,0,"2020-12-30",null,null,null,0,0,null,null,null,null,"X",null,null,null,0]
[242,2020,"SECOP II","FDLF-CM-12-2020","Interventoría","Concurso de méritos","No aplica","REALIZAR LA INTERVENTORÍA TÉCNICA, ADMINISTRATIVA, JURÍDICA, FINANCIERA, SOCIAL, AMBIENTAL Y DE SISTEMA DE SEGURIDAD Y SALUD EN EL TRABAJO - SST, DEL CONTRATO DE OBRA QUE SE DERIVE DE LA LICITACIÓN PÚBLICA REALIZADA PARA CONTRATAR “OBRAS Y ACTIVIDADES PARA LA CONSERVACIÓN DE LA MALLA VIAL DE LA LOCALIDAD DE FONTIBÒN","Inversión","Bogotá Mejor para Todos",18,{"$f":"IF(ISERROR(VLOOKUP(K243,Eje_Pilar_Prop!$C$2:$E$104,2,FALSE)),\" \",VLOOKUP(K243,Eje_Pilar_Prop!$C$2:$E$104,2,FALSE))","v":"Mejor movilidad para todos"},{"$f":"IF(ISERROR(VLOOKUP(K243,Eje_Pilar_Prop!$C$2:$E$104,3,FALSE)),\" \",VLOOKUP(K243,Eje_Pilar_Prop!$C$2:$E$104,3,FALSE))","v":"Pilar 2 Democracía Urbana"},1464,"900426155-7","\tProyectistas Asociados SAS",241066640,null,null,0,0,{"$f":"+Q243+S243+U243","v":241066640},0,"2020-12-30",null,null,null,0,0,null,null,null,null,"X",null,null,null,0]
[243,2020,"SECOP II","FDLF-LP-11-2020","Obra pública","Licitación pública","No aplica","OBRAS Y ACTIVIDADES PARA LA CONSERVACIÓN DE LA MALLA VIAL DE LA LOCALIDAD DE FONTIBON","Inversión","Bogotá Mejor para Todos",18,{"$f":"IF(ISERROR(VLOOKUP(K244,Eje_Pilar_Prop!$C$2:$E$104,2,FALSE)),\" \",VLOOKUP(K244,Eje_Pilar_Prop!$C$2:$E$104,2,FALSE))","v":"Mejor movilidad para todos"},{"$f":"IF(ISERROR(VLOOKUP(K244,Eje_Pilar_Prop!$C$2:$E$104,3,FALSE)),\" \",VLOOKUP(K244,Eje_Pilar_Prop!$C$2:$E$104,3,FALSE))","v":"Pilar 2 Democracía Urbana"},1464,"800012888-7","SOFAN INGENIERIA SAS",1303936072,null,null,0,0,1303936072,0,"2020-12-30",null,null,null,0,0,null,null,null,null,"X",null,null,null,0]
[244,2020,"SECOP II","FDLF-IPMC-19-2020","Suministro","Contratación mínima cuantia","No aplica","CONTRATAR EL SERVICIO DE DISEÑO, DIAGRAMACIÓN, CORRECCIÓN DE ESTILO, IMPRESIÓN Y ARTE FINALIZADO DE LAS CARTILLAS DEL PLAN DE DESARROLLO LOCAL DE FONTIBÓN Y LA ADQUISICIÓN DE DISPOSITIVOS DE ALMACENAMIENTO DE DATOS SEGÚN LAS ESPECIFICACIONES TÉCNICAS SOLICITADAS POR LA ENTIDAD","Inversión","Bogotá Mejor para Todos",45,{"$f":"IF(ISERROR(VLOOKUP(K245,Eje_Pilar_Prop!$C$2:$E$104,2,FALSE)),\" \",VLOOKUP(K245,Eje_Pilar_Prop!$C$2:$E$104,2,FALSE))","v":"Gobernanza e influencia local, regional e internacional"},{"$f":"IF(ISERROR(VLOOKUP(K245,Eje_Pilar_Prop!$C$2:$E$104,3,FALSE)),\" \",VLOOKUP(K245,Eje_Pilar_Prop!$C$2:$E$104,3,FALSE))","v":"Eje Transversal 4 Gobierno Legitimo, Fortalecimiento Local y Eficiencia"},1473,"9003816133-3","IMPREAMIL",24558923,null,null,0,0,{"$f":"+Q245+S245+U245","v":24558923},0,"2020-12-30",null,null,null,0,0,null,null,null,null,"X",null,null,null,0]
[246,2020,"SECOP II","FDLF-CD-246-2020","Contratos interadministrativos","Contratación directa","Contratos interadministrativos","AUNAR ESFUERZOS TÉCNICOS, ADMINISTRATIVOS Y FINANCIEROS QUE PERMITAN REALIZAR LA ENTREGA DE DISPOSITIVOS DE ASISTENCIA PERSONAL-AYUDAS TÉCNICAS, NO INCLUIDAS O NO CUBIERTAS EN EL PLAN OBLIGATORIO DE SALUD -POS- A POR LO MENOS 200 BENEFICIARIOS DE LA LOCALIDAD DE FONTIBÓN.","Inversión","Bogotá Mejor para Todos",3,{"$f":"IF(ISERROR(VLOOKUP(K246,Eje_Pilar_Prop!$C$2:$E$104,2,FALSE)),\" \",VLOOKUP(K246,Eje_Pilar_Prop!$C$2:$E$104,2,FALSE))","v":"Igualdad y autonomía para una Bogotá incluyente"},{"$f":"IF(ISERROR(VLOOKUP(K246,Eje_Pilar_Prop!$C$2:$E$104,3,FALSE)),\" \",VLOOKUP(K246,Eje_Pilar_Prop!$C$2:$E$104,3,FALSE))","v":"Pilar 1 Igualdad de Calidad de Vida"},1453,"900959048-4","SUBRED INTEGRADA DE SERVICIOS DE SALUD SUR OCCIDENTE ESE.",531917688,null,null,0,0,531917688,0,"2020-12-31",null,null,null,0,0,null,null,null,null,"X",null,null,null,0]
[472079,2020,null,null,"Otros","Contratación directa","Prestación de servicios profesionales y de apoyo a la gestión, o para la ejecución de trabajos artísticos que sólo puedan encomendarse a determinadas personas naturales;","Por medio de la cual se destina y ordena el gasto anticipado de losaportes al sistema general de riesgos laborales de acuerdo con loestablecido en el articulo 13 del Decreto 723 de 2013, Se expide CDPatendiendo resuelve de la resolución 142 del 07 de diciembre de 2020,memorando con solicitud 20205900002873 recibido para tramite de fechaDIC 11 de 2020.Se expide CRP para dar continuidad con el pago","Inversión","Bogotá Mejor para Todos",19,{"$f":"IF(ISERROR(VLOOKUP(K247,Eje_Pilar_Prop!$C$2:$E$104,2,FALSE)),\" \",VLOOKUP(K247,Eje_Pilar_Prop!$C$2:$E$104,2,FALSE))","v":"Seguridad y convivencia para todos"},{"$f":"IF(ISERROR(VLOOKUP(K247,Eje_Pilar_Prop!$C$2:$E$104,3,FALSE)),\" \",VLOOKUP(K247,Eje_Pilar_Prop!$C$2:$E$104,3,FALSE))","v":"Pilar 3 Construcción de Comunidad y Cultura Ciudadana"},1467,860011153,"POSITIVA COMPAÑIA DE SEGUROS SA",611000,null,null,null,null,611000,611000,"2020-12-03","2020-12-03","2020-12-05",2,null,null,null,null,null,null,null,null,"X",null,1]
[177,2019,"SECOP II","FDLF-CD-177-2019","Contratos de prestación de servicios","Contratación directa","Prestación de servicios profesionales y de apoyo a la gestión, o para la ejecución de trabajos artísticos que sólo puedan encomendarse a determinadas personas naturales;","ADICIN NO 2 Y PRORROGA NO 2 POR DIEZ (10) DIAS AL CONTRATO NO 177/2019, CUYO ES SERVICIOS TECNICOS PARA EL APOYO ADMINISTRATIVO Y LOGISTICO DEL DESPACHO DE LA ALCALDIA LOCAL DE FONTIBON. - SEGUN MEMORANDO 5920001953 DE 28-02-2020 Y SOLICITUD DE CRP 5920001873 DE 28022020","Inversión","Bogotá Mejor para Todos",45,{"$f":"IF(ISERROR(VLOOKUP(K248,Eje_Pilar_Prop!$C$2:$E$104,2,FALSE)),\" \",VLOOKUP(K248,Eje_Pilar_Prop!$C$2:$E$104,2,FALSE))","v":"Gobernanza e influencia local, regional e internacional"},{"$f":"IF(ISERROR(VLOOKUP(K248,Eje_Pilar_Prop!$C$2:$E$104,3,FALSE)),\" \",VLOOKUP(K248,Eje_Pilar_Prop!$C$2:$E$104,3,FALSE))","v":"Eje Transversal 4 Gobierno Legitimo, Fortalecimiento Local y Eficiencia"},"1474",1016029324,"YESSICA LORENA BAÑOL FANDIÑO",null,null,null,null,1166667,1166667,1166667,"2020-02-28","2020-03-15","2020-03-15",15,null,0,null,null,null,null,null,null,"X",null,1]
[38,2019,"SECOP II","FDLF-38-CD-2019","Contratos de prestación de servicios","Contratación directa","Prestación de servicios profesionales y de apoyo a la gestión, o para la ejecución de trabajos artísticos que sólo puedan encomendarse a determinadas personas naturales;","ADICION 2 Y PRORROGA 2 por tres (3) meses al contrato No. 038-2019 cuyo objeto es servicios profesionales orientados a temas de plataforma y sistemas de información para el reporte y publicidad de los procesos del Fondo de Desarrollo Local de Fontibón. Radicado SIPSE No. 35729.","Inversión","Bogotá Mejor para Todos",45,{"$f":"IF(ISERROR(VLOOKUP(K249,Eje_Pilar_Prop!$C$2:$E$104,2,FALSE)),\" \",VLOOKUP(K249,Eje_Pilar_Prop!$C$2:$E$104,2,FALSE))","v":"Gobernanza e influencia local, regional e internacional"},{"$f":"IF(ISERROR(VLOOKUP(K249,Eje_Pilar_Prop!$C$2:$E$104,3,FALSE)),\" \",VLOOKUP(K249,Eje_Pilar_Prop!$C$2:$E$104,3,FALSE))","v":"Eje Transversal 4 Gobierno Legitimo, Fortalecimiento Local y Eficiencia"},"1474",null,"OSCAR GIOVANNY CONTRERAS NOVOA",null,null,null,null,12600000,12600000,12600000,"2020-01-21","2020-01-21","2020-04-21",90,null,0,null,null,null,null,null,null,"X",null,1]
[130,2019,"SECOP II","FDLF-CD-130-2019","Contratos de prestación de servicios","Contratación directa","Prestación de servicios profesionales y de apoyo a la gestión, o para la ejecución de trabajos artísticos que sólo puedan encomendarse a determinadas personas naturales;","ADICIN NO 2 Y PRORROGA NO 2 POR DIEZ (10) DIAS AL CONTRATO NO 130/2019, CUYO OBJETO ES SERVICIOS PROFESIONALES PARA APAOYAR EL FORTALECIMIENTO DE LA GESTION LOCAL DE RIESGO Y CAMBIO CLIMATICO EN EL MARCO DEL SISTEMA DISTRITAL DE GESTION DE RIESGOS Y CAMBIO CLIMATICO DSGR.CC. - SEGUN MEMORANDO 5920001843 DE 28-02-2020 - SEGUN SOLICITUD CRP 5920001893 DE 28-02-2020","Inversión","Bogotá Mejor para Todos",45,{"$f":"IF(ISERROR(VLOOKUP(K250,Eje_Pilar_Prop!$C$2:$E$104,2,FALSE)),\" \",VLOOKUP(K250,Eje_Pilar_Prop!$C$2:$E$104,2,FALSE))","v":"Gobernanza e influencia local, regional e internacional"},{"$f":"IF(ISERROR(VLOOKUP(K250,Eje_Pilar_Prop!$C$2:$E$104,3,FALSE)),\" \",VLOOKUP(K250,Eje_Pilar_Prop!$C$2:$E$104,3,FALSE))","v":"Eje Transversal 4 Gobierno Legitimo, Fortalecimiento Local y Eficiencia"},"1474",1024563513,"NAYIB SELENIA CALIFA GARZON",null,null,null,null,1518333,1518333,1518333,null,null,null,null,null,null,null,null,null,null,null,null,"X",null,1]
[259,2019,"SECOP II","FDLF-CD-259-2019","Contratos de prestación de servicios","Contratación directa","Prestación de servicios profesionales y de apoyo a la gestión, o para la ejecución de trabajos artísticos que sólo puedan encomendarse a determinadas personas naturales;","ADICIN 1 Y PRORROGA 1 POR UN MES AL CONTRATO  NO 259/2019, CUYO ES PRESTAR SERVICIOS DE APOYO OPERATIVO PARA LAS ACTIVIDADES RELACIONADAS CON EL MANTENIMIENTO Y REPARACIONES MENORES DE LA SEDE Y DEMAS DEPENDENCIAS DE LA ALCALDIA LOCAL DE FONTIBON. - SEGUN MEMORANDO 5920001943 DE 28-02-2020 Y SOLICITUD DE CRP 5920001863 DE 28-02-2020","Inversión","Bogotá Mejor para Todos",45,{"$f":"IF(ISERROR(VLOOKUP(K251,Eje_Pilar_Prop!$C$2:$E$104,2,FALSE)),\" \",VLOOKUP(K251,Eje_Pilar_Prop!$C$2:$E$104,2,FALSE))","v":"Gobernanza e influencia local, regional e internacional"},{"$f":"IF(ISERROR(VLOOKUP(K251,Eje_Pilar_Prop!$C$2:$E$104,3,FALSE)),\" \",VLOOKUP(K251,Eje_Pilar_Prop!$C$2:$E$104,3,FALSE))","v":"Eje Transversal 4 Gobierno Legitimo, Fortalecimiento Local y Eficiencia"},"1474",79138055,"RENE JAVIER MELO MAZABEL",null,null,null,null,2250000,2250000,2250000,null,null,null,null,null,null,null,null,null,null,null,null,"X",null,1]
[97,2019,"SECOP II","FDLF-CD-97-2019","Contratos de prestación de servicios","Contratación directa","Prestación de servicios profesionales y de apoyo a la gestión, o para la ejecución de trabajos artísticos que sólo puedan encomendarse a determinadas personas naturales;","ADICIN NO 2 Y PRORROGA NO 2 POR DIEZ (10) DIAS AL CONTRATO NO 97/2019, CUYO OBJETO ES PRESTAR SERVICIOS PROFESIONALES PARA APOYAR EL SEGUIMIENTO A LOS PROYECTOS DE INVERSION DE LA ALCALDIA LOCAL DE FONTIBON - SEGUN MEMORANDO 5920001813 DE 28-02-2020 Y SOLICITUD DE CRP 5920001913 DE 28022020","Inversión","Bogotá Mejor para Todos",45,{"$f":"IF(ISERROR(VLOOKUP(K252,Eje_Pilar_Prop!$C$2:$E$104,2,FALSE)),\" \",VLOOKUP(K252,Eje_Pilar_Prop!$C$2:$E$104,2,FALSE))","v":"Gobernanza e influencia local, regional e internacional"},{"$f":"IF(ISERROR(VLOOKUP(K252,Eje_Pilar_Prop!$C$2:$E$104,3,FALSE)),\" \",VLOOKUP(K252,Eje_Pilar_Prop!$C$2:$E$104,3,FALSE))","v":"Eje Transversal 4 Gobierno Legitimo, Fortalecimiento Local y Eficiencia"},"1474",null,"CARLOS ALBERTO CORREDOR RODRIGUEZ",null,null,null,null,1666667,1666667,1666667,null,null,null,null,null,null,null,null,null,null,null,null,"X",null,1]
[54,2019,"SECOP II","FDLF-CD-54-2019","Contratos de prestación de servicios","Contratación directa","Prestación de servicios profesionales y de apoyo a la gestión, o para la ejecución de trabajos artísticos que sólo puedan encomendarse a determinadas personas naturales;","ADICIN NO 2 Y PRORROGA NO 2 POR DIEZ (10) DIAS AL CONTRATO NO 54/2019, CUYO OBJETO ES APOYAR ADMINISTRATIVA Y ASISTENCIAMENTE A LAS INSPECCIONES DE POLICIA DE LA LOCALIDAD. - SEGUN MEMORANDO 5920001933 DE 28-02-2020 Y SOLICITUD DE CRP 5920001993 DE 28-02-2020","Inversión","Bogotá Mejor para Todos",45,{"$f":"IF(ISERROR(VLOOKUP(K253,Eje_Pilar_Prop!$C$2:$E$104,2,FALSE)),\" \",VLOOKUP(K253,Eje_Pilar_Prop!$C$2:$E$104,2,FALSE))","v":"Gobernanza e influencia local, regional e internacional"},{"$f":"IF(ISERROR(VLOOKUP(K253,Eje_Pilar_Prop!$C$2:$E$104,3,FALSE)),\" \",VLOOKUP(K253,Eje_Pilar_Prop!$C$2:$E$104,3,FALSE))","v":"Eje Transversal 4 Gobierno Legitimo, Fortalecimiento Local y Eficiencia"},"1474",39760197,"SONIA YASMIN BAQUERO PARRADO",null,null,null,null,616667,616667,616667,null,null,null,null,null,null,null,null,null,null,null,null,"X",null,1]
[37,2019,"SECOP II","FDLF-CD-37-2019","Contratos de prestación de servicios","Contratación directa","Prestación de servicios profesionales y de apoyo a la gestión, o para la ejecución de trabajos artísticos que sólo puedan encomendarse a determinadas personas naturales;","ADICIN NO 2 Y PRORROGA NO 2 POR DIEZ (10) DIAS AL CONTRATO NO 37/2019, CUYO OBJETO ES PRESTAR SERVICIOS PROFESIONALES PARA LA OPERACION DEL PROYECTO PUNTO VIVE DIGITAL DE LA LOCALIDAD DE FONTIBON - SEGUN MEMORANDO 5920001803 DE 28-02-2020 Y SOLICIUD DE CRP 5920002013 DE 28-02-2020","Inversión","Bogotá Mejor para Todos",45,{"$f":"IF(ISERROR(VLOOKUP(K254,Eje_Pilar_Prop!$C$2:$E$104,2,FALSE)),\" \",VLOOKUP(K254,Eje_Pilar_Prop!$C$2:$E$104,2,FALSE))","v":"Gobernanza e influencia local, regional e internacional"},{"$f":"IF(ISERROR(VLOOKUP(K254,Eje_Pilar_Prop!$C$2:$E$104,3,FALSE)),\" \",VLOOKUP(K254,Eje_Pilar_Prop!$C$2:$E$104,3,FALSE))","v":"Eje Transversal 4 Gobierno Legitimo, Fortalecimiento Local y Eficiencia"},"1474",79974632,"JULIAN ANDRES ARANZAZU VILLA",null,null,null,null,1794333,1794333,0,null,null,null,null,null,null,null,null,null,null,null,null,null,null,0]
[86,2019,"SECOP II","FDLF-CD-86-2019","Contratos de prestación de servicios","Contratación directa","Prestación de servicios profesionales y de apoyo a la gestión, o para la ejecución de trabajos artísticos que sólo puedan encomendarse a determinadas personas naturales;","ADICIN NO 2 Y PRORROGA NO 2 POR DIEZ (10) DIAS AL CONTRATO NO 86/2019, CUYO OBJETO ES PRESTAR LOS SERVICIOS PARA APAYAR LAS LABORES DE NOTIFICACION DE CORRESPONDENCIA DE LA ALCALDIA LOCAL DE FONTIBON. - SEGUN MEMORANDO 5920001833 DE 28-02-2020 Y SEGUN SOLICITD 5920001903 DE 28-02-2020","Inversión","Bogotá Mejor para Todos",45,{"$f":"IF(ISERROR(VLOOKUP(K255,Eje_Pilar_Prop!$C$2:$E$104,2,FALSE)),\" \",VLOOKUP(K255,Eje_Pilar_Prop!$C$2:$E$104,2,FALSE))","v":"Gobernanza e influencia local, regional e internacional"},{"$f":"IF(ISERROR(VLOOKUP(K255,Eje_Pilar_Prop!$C$2:$E$104,3,FALSE)),\" \",VLOOKUP(K255,Eje_Pilar_Prop!$C$2:$E$104,3,FALSE))","v":"Eje Transversal 4 Gobierno Legitimo, Fortalecimiento Local y Eficiencia"},"1474",86004084,"JOSE OCTAVIO CRUZ NINCOR",null,null,null,null,750000,750000,750000,null,null,null,null,null,null,null,null,null,null,null,null,"X",null,1]
[21,2019,"SECOP II","FDLF-CD-21-2019","Contratos de prestación de servicios","Contratación directa","Prestación de servicios profesionales y de apoyo a la gestión, o para la ejecución de trabajos artísticos que sólo puedan encomendarse a determinadas personas naturales;","ADICIN NO 2 Y PRORROGA NO 2 POR DIEZ (10) DIAS AL CONTRATO NO 44/2019, CUYO OBJETO ES APOYAR TECNICAMENTE LAS DISTINTAS ETAPAS DE LOS PEROCESOS DE COMPETENCIA DE LAS INSPECCIONES INSPECCIONES DE POLICIA DE LA LOCALIDAD - SEGUN MEMORANDO 5920001823 DE 28-02-2020 Y SOLICITUD CRP 5920002003 DE 28022020","Inversión","Bogotá Mejor para Todos",45,{"$f":"IF(ISERROR(VLOOKUP(K256,Eje_Pilar_Prop!$C$2:$E$104,2,FALSE)),\" \",VLOOKUP(K256,Eje_Pilar_Prop!$C$2:$E$104,2,FALSE))","v":"Gobernanza e influencia local, regional e internacional"},{"$f":"IF(ISERROR(VLOOKUP(K256,Eje_Pilar_Prop!$C$2:$E$104,3,FALSE)),\" \",VLOOKUP(K256,Eje_Pilar_Prop!$C$2:$E$104,3,FALSE))","v":"Eje Transversal 4 Gobierno Legitimo, Fortalecimiento Local y Eficiencia"},"1474",74323203,"EPIFANIO  MELO VALERO",null,null,null,null,1794333,1794333,1794333,null,null,null,null,null,null,null,null,null,null,null,null,"X",null,1]
[265,2019,"SECOP II","FDLF-CM-038-1-2019","Interventoría","Contratación directa","No aplica","ADICIÓN Y PRÓRROGA AL CONTRATO 265 de 2019, CUYO  OBJETO ES: REALIZARPOR EL SISTEMA DE PRECIOS GLOBAL FIJO LA INTERVENTORÍA ADMINISTRATIVA,FINANCIERA, TÉCNICA, JURÍDICA, LEGAL, SOCIAL Y AMBIENTAL, AL CONTRATO DEOBRA CUYO OBJETO ES: \"REALIZAR POR EL SISTEMA DE PRECIOS UNITARIOS FIJOSSIN FÓRMULA DE REAJUSTE A MONTO AGOTABLE EL MANTENIMIENTO, ADECUACIÓN,DOTACIÓN Y SUMINISTRO DE PARQUES VECINALES Y/O DE BOLSILLO Y A PRECIOSFIJOS SIN FORMULA DE REAJUSTE LA CONSTRUCCIÓN DE UN PARQUE VECINAL EN LALOCALIDAD DE FONTIBÓN\", SIPSE 53041. Solicitud de CRP 20205920011813recibida para tramite de fecha DIC 30 de 2020.","Inversión","Bogotá Mejor para Todos",17,{"$f":"IF(ISERROR(VLOOKUP(K257,Eje_Pilar_Prop!$C$2:$E$104,2,FALSE)),\" \",VLOOKUP(K257,Eje_Pilar_Prop!$C$2:$E$104,2,FALSE))","v":"Espacio público, derecho de todos"},{"$f":"IF(ISERROR(VLOOKUP(K257,Eje_Pilar_Prop!$C$2:$E$104,3,FALSE)),\" \",VLOOKUP(K257,Eje_Pilar_Prop!$C$2:$E$104,3,FALSE))","v":"Pilar 2 Democracía Urbana"},1462,901354038,"CONSORCIO FONPARQUES 038",null,null,null,0,120073599,120073599,0,"2020-12-31","2020-01-29","2020-12-02",null,0,0,null,null,null,null,null,null,null,null,0]
[266,2019,"SECOP II","FDLF-LP-025-2019","Obra pública","Contratación directa","No aplica","ADICIÓN Y PRÓRROGA N°1 al contrato 266 de 2019, cuyo objeto es:\"REALIZAR POR EL SISTEMA DE PRECIOS UNITARIOS FIJOS SIN FÓRMULA DEREAJUSTE A MONTO AGOTABLE EL MANTENIMIENTO, ADECUACIÓN, DOTACIÓN YSUMINISTRO DE PARQUES VECINALES Y/O DE BOLSILLO Y A PRECIOS FIJOS SINFORMULA DE REAJUSTE LA CONSTRUCCIÓN DE UN PARQUE VECINAL EN LA LOCALIDADDE FONTIBÓN\", SIPSE 53143. Solicitud de CRP recibida para tramite defecha DIC 30 de 2020.","Inversión","Bogotá Mejor para Todos",17,{"$f":"IF(ISERROR(VLOOKUP(K258,Eje_Pilar_Prop!$C$2:$E$104,2,FALSE)),\" \",VLOOKUP(K258,Eje_Pilar_Prop!$C$2:$E$104,2,FALSE))","v":"Espacio público, derecho de todos"},{"$f":"IF(ISERROR(VLOOKUP(K258,Eje_Pilar_Prop!$C$2:$E$104,3,FALSE)),\" \",VLOOKUP(K258,Eje_Pilar_Prop!$C$2:$E$104,3,FALSE))","v":"Pilar 2 Democracía Urbana"},1462,800104214,"INCITECO S A S",null,null,null,0,1164201734,1164201734,0,"2020-12-31","2021-01-02","2021-05-01",null,0,0,null,null,null,null,null,null,null,null,0]
[261,2019,"SECOP II","FDLF-SAMC-036-2019","Obra pública","Selección abreviada","Selección abreviada por menor cuantía ","Adición y Prórroga del Contrato de Obra Pública No. 261 de 2019 cuyo es:\"Contratar por el sistema de precios unitarios fijos sin formula deajuste la reparación y adecuaciones locativas del jardín infantil SabanaGrande  de la localidad de Fontibón\", SIPSE 51327. Solicitud de CRPrecibida para trámite NOV 30/2020","Inversión","Bogotá Mejor para Todos",2,{"$f":"IF(ISERROR(VLOOKUP(K259,Eje_Pilar_Prop!$C$2:$E$104,2,FALSE)),\" \",VLOOKUP(K259,Eje_Pilar_Prop!$C$2:$E$104,2,FALSE))","v":"Desarrollo integral desde la gestación hasta la adolescencia"},{"$f":"IF(ISERROR(VLOOKUP(K259,Eje_Pilar_Prop!$C$2:$E$104,3,FALSE)),\" \",VLOOKUP(K259,Eje_Pilar_Prop!$C$2:$E$104,3,FALSE))","v":"Pilar 1 Igualdad de Calidad de Vida"},1452,901087858,"INGEBLAR SAS",null,null,null,1,61000000,61000000,0,null,"2020-01-31","2021-02-03",null,0,0,null,null,null,null,null,null,null,null,0]
[187,2019,"SECOP II","FDLF-SAMC-12-2019","Contratos de prestación de servicios","Selección abreviada","No aplica","ADICION N°2 AL CONTRATO 187 DE 2019, CUYO OBJETO ES:  PRESTAR EL SERVICIO DE MANTENIMIENTO PREVENTIV Y CORRECTIVO DE LA MAQUINARIA,VEHICULOS PESADOS Y LIVIANOS DE PROPIEDAD, GUARDA Y/O TENENCIA DEL FONDO DE DESARROLLO LOCAL DE FONTIBÓN CON SUMINISTRO DE REPUESTOS, INSUMOS Y MANO DE OBRA, SE EXPIDE CDP CON MEMORANDO 20205920007053 RECIBIDO PARA TRAMITE DE FECHA AGOSTO 21 DE 2020, LO ANTERIOR TENIENDO EN CUENTA QUE EL PROCESO NO SE CARGO AL APLICATIVO SIPSE DESDE EL INICIO DEL PROCESO PRECONTRACTUAL.SE EXPIDE REGISTRO PRESUPUESTAL, CON MEMORANDO 20205900002213 RECIBIDO PARA TRAMITE DE FECHA 17 DE SEPTIEMBRE DE 2020.","Inversión","Bogotá Mejor para Todos",18,{"$f":"IF(ISERROR(VLOOKUP(K260,Eje_Pilar_Prop!$C$2:$E$104,2,FALSE)),\" \",VLOOKUP(K260,Eje_Pilar_Prop!$C$2:$E$104,2,FALSE))","v":"Mejor movilidad para todos"},{"$f":"IF(ISERROR(VLOOKUP(K260,Eje_Pilar_Prop!$C$2:$E$104,3,FALSE)),\" \",VLOOKUP(K260,Eje_Pilar_Prop!$C$2:$E$104,3,FALSE))","v":"Pilar 2 Democracía Urbana"},1464,800020006,"AUTO INVERSIONES COLOMBIA S.A. AUTOINVER COL",null,null,null,1,35000000,35000000,22735030,"2020-09-17","2021-02-01","2021-06-04",null,0,0,null,null,null,null,null,null,null,null,0.64957228571428571]
[51,2019,"SECOP II","FDLF-CD-51-2019","Otros","Contratación directa","No aplica","ADICION 2 Y PRORROGA 2 POR TRES (3) MESES Y DOCE (12) DIAS AL CONTRATO 051-2019, CUYO OBJETO ES SERVICIOS PROFESIONALES PARA LA OPERACION , PRESTACION, SEGUMIENTO Y CUMPLIMIENTO DE LOS PROCEDIMIENTOS ADMINISTRATIVOS, OPERATIVOS Y PROGRAMACION DE LOS SERVICIOS SOCIALES APOYO ECONOMICO TIPO C, QUE CONTRIBUYA A LA GARANTIA DE LOS DERECHOS DE LA POBLACION MAYOR, EN EL MARCO DE LA POLITICA PUBLICA SOCIAL PARA EL ENVEJECIMIENTO Y LA VEJEZ EN EL DISTRITO CAPITAL AL CARGO DE LA ALCALDIA LOCAL. SOLICITUD DE CDP SEGUN MEMORANDO 20205920001723 DEL 27 -02-2020, SOLICITUD  SEGUN MEMORANDO 20205920001773 DEL 28-02-2020","Inversión","Bogotá Mejor para Todos",3,"Igualdad y autonomía para una Bogotá incluyente","Pilar 1 Igualdad de Calidad de Vida",1453,"860.066942-7","DUDLEY JOHANNA PALACIOS GARCIA",null,null,null,2,15487000,15487000,15487000,"2020-02-28","2020-03-01","2020-06-12",null,0,0,null,null,null,null,null,null,"X",null,1]
[123,2019,"SECOP II","FDLF-CD-123-2019","Otros","Contratación directa","No aplica","ADICION 2 Y PRORROGA 2 PRO 20 DIAS AL CONTRARTO 122-2019, CUYO OBJETO ES PRESTAR LOS SERVICIOS PROFESIONALES PAR LIDERAR Y GARANTIZAR LA IMPLEMENTACION Y SEGUIMIENTO DE LOS PROCESOS Y PROCEDIMIENTOS DEL SERVICIOS SOCIAL, SOLICITUD DE CDP SEGUN MEMORANDO 20205920001713 DEL DIA 27-02-2020, SOLICITUD MEMORANDO 20205920001783 DEL 28-02-2020","Inversión","Bogotá Mejor para Todos",3,"Igualdad y autonomía para una Bogotá incluyente","Pilar 1 Igualdad de Calidad de Vida",1453,"860.066942-7","ANA MARIA NOSSA ARANGUREN",null,null,null,2,3588667,3588667,3588667,"2020-02-28",null,null,null,0,0,null,null,null,null,null,null,"X",null,1]
[151,2019,"SECOP II","FDLF-CD-151-2019","Contratos de prestación de servicios profesionales y de apoyo a la gestión","Contratación directa","Prestación de servicios profesionales y de apoyo a la gestión, o para la ejecución de trabajos artísticos que sólo puedan encomendarse a determinadas personas naturales;","ADICION 2 Y PRORROGA 2 POR DIEZ (10) DIAS AL CONTRATO  NO 151/2019, CUYO OBJETO ES SERVICIOS PROFESIONALES PARA EL DESARROLLA DE ACTIVIDADES ORIENTADAS A LA IMPLEMENTACION DEL PROYECTO ESTRATEGICO DEL SECTOR SEGURIDAD Y CONVIVENCIA DE LA ALCLADIA LOCAL DE FONTIBON. - SEGUN MEMORANDO 5920001973 DE 28-02-2020 Y SOLICITUD DE CRP 5920001883 DE 28-02-2020","Inversión","Bogotá Mejor para Todos",19,{"$f":"IF(ISERROR(VLOOKUP(K263,Eje_Pilar_Prop!$C$2:$E$104,2,FALSE)),\" \",VLOOKUP(K263,Eje_Pilar_Prop!$C$2:$E$104,2,FALSE))","v":"Seguridad y convivencia para todos"},{"$f":"IF(ISERROR(VLOOKUP(K263,Eje_Pilar_Prop!$C$2:$E$104,3,FALSE)),\" \",VLOOKUP(K263,Eje_Pilar_Prop!$C$2:$E$104,3,FALSE))","v":"Pilar 3 Construcción de Comunidad y Cultura Ciudadana"},1467,46362634,"MARIA MAGDALENA REINA HERNANDEZ",null,null,null,null,1383333,1383333,1383333,"2020-02-28","2020-02-28","2020-10-10",10,1,10,null,null,null,null,null,null,"X",null,1]
[107,2020,"SECOP II","FDLF-IPMC-4-2020","Seguros","Contratación mínima cuantia","No aplica","CONTRATAR LOS SEGUROS QUE AMPAREN LOS INTERESES PATRIMONIALES, SÍ COMO LOS BIENES QUE ESTÉN BAJO SU RESPONSABILIDAD, CUSTODIA, CUIDAD Y CONTROL, O POR LOS QUE PUEDA SER LEGALMENTE RESPONSABLE DEL FONDO DE DESARROLLO LOCAL DE FONTIBON, ASÍ COMO LA EXPEDICIÓN DE CUALQUIER OTRA POLIZA DE SEGUROS QUE REQUIERA LA ENTIDAD EN EL DESARROLLO DE SU ACTIVIDAD","Funcionamiento",null,null," "," ","131020202020108","860.002.400-2","LA PREVISORA S.A. COMPAÑÍA DE SEGUROS",20925129,null,null,0,0,20925129,20925129,"2020-07-29","2020-07-31","2020-09-23",54,0,0,null,null,null,null,null,"X",null,null,{"$f":"IF(ISERROR(W264/V264),\"-\",(W264/V264))","v":1}]
[141,2020,"SECOP II","FDLF-CD-141-2020","Arrendamiento de bienes inmuebles","Contratación directa","El arrendamiento o adquisición de inmuebles","ARRENDAMIENTO BODEGA Y PARQUEADERO PARA LOS DIFERENTES ELEMENTOS Y VEHICULOS, MAQUINARIA PESADA DEL FONDO DE DESARROLLO LOCAL DE FONTIBON","Funcionamiento",null,null," "," ","131020202020201","900.200.519-3","INVERSIONES CAOVA S.A.S.",56700000,null,null,0,0,56700000,28350000,"2020-08-24","2020-08-25","2021-02-24",180,0,0,null,null,null,null,null,"X",null,null,0.5]
[160,2020,"SECOP II","FDLF-SAMC-6-2020","Seguros","Selección abreviada","Selección abreviada por menor cuantía ","CONTRATAR LOS SEGUROS QUE AMPAREN LOS INTERESES PATRIMONIALES, SÍ COMO LOS BIENES QUE ESTÉN BAJO SU RESPONSABILIDAD, CUSTODIA, CUIDAD Y CONTROL, O POR LOS QUE PUEDA SER LEGALMENTE RESPONSABLE DEL FONDO DE DESARROLLO LOCAL DE FONTIBON, ASÍ COMO LA EXPEDICIÓN DE CUALQUIER OTRA POLIZA DE SEGUROS QUE REQUIERA LA ENTIDAD EN EL DESARROLLO DE SU ACTIVIDAD","Funcionamiento",null,null," "," ","131020202020108","860002400-2","LA PREVISORA S.A. COMPAÑÍA DE SEGUROS",91871342,null,null,0,0,91871342,90759280,"2020-09-22","2020-09-23","2021-11-26",365,0,0,null,null,null,null,null,"X",null,null,0.98789544186695344]
[177,2020,"SECOP II","FDLF-LP-7-2020","Contratos de prestación de servicios","Licitación pública","No aplica","PRESTAR EL SERVICIO DE VIGILANCIA Y SEGURIDAD PRIVADA LAS 24 HORAS Y LOS 7 DIAS DE LA SEMANA, CON APOYO TÉCNOLOGICO PARA LOS PREDIOS DE PROPIEDAD Y/ O TENENCIA QUE SE ENCUENTREN A NOMBRE DEL FONDO DE DESARROLLO LOCAL DE FONTIBÓN, ASÍ COMO VELAR POR LA SEGURIDAD DE LAS PERSONAS Y LA CUSTODIA DE LOS BIENES MUEBLES Y ENSERES QUE SE ENCUENTREN DENTRO DE DICHOS PREDIOS","Funcionamiento",null,null," "," ","131020202030501","901419268-5","UNION TEMPORAL SEGURIDAD 2020",690659243,null,null,0,0,690659243,93332848,"2020-10-07","2020-10-11","2021-05-25",225,0,0,null,null,null,null,null,"X",null,null,0.13513588494753556]
[229,2020,"SECOP II","FDLF-IPMC-13-2020","Suministro","Contratación mínima cuantia","No aplica","\tSUMINISTRO DE LOS ELEMENTOS DE FERRETERÍA NECESARIOS PARA REALIZAR EL MANTENIMIENTO, REPARACIONES O MEJORAS DE TIPO LOCATIVO DE LOS BIENES INMUEBLES Y MUEBLES A CARGO DEL FONDO DE DESARROLLO LOCAL DE FONTIBÓN","Funcionamiento",null,null," "," ","1310202010302","900960810-2","DIEGO CASTRO INDUSTRIA Y CONSTRUCCIÓN S.A.S",24500000,null,null,0,0,24500000,null,"2020-12-04","2020-12-10","2021-06-09",180,0,0,null,null,null,null,null,"X",null,null,0]
[237,2020,"SECOP II","FDLF-IPMC-17-2020","Contratos de prestación de servicios","Contratación mínima cuantia","No aplica","SERVICIO DE MANTENIMIENTO PREVENTIVO Y CORRECTIVO PARA EL ASCENSOR DE PASAJEROS EN CONFORMIDAD CON LAS CONDICIONES Y ESPECIFICACIONES TÉCNICAS QUE SE REQUIERE PARA EL ÓPTIMO FUNCIONAMIENTO DE LA SEDE ADMINISTRATIVA AL SERVICIO DE LA ALCALDÍA LOCAL DE FONTIBÓN, LA JUNTA ADMINISTRADORA LOCAL Y LA COMUNIDAD","Funcionamiento",null,null," "," ","131020202030611","900758149-7","DYF MANTENIMIENTO Y SERVICIOS SAS",11000000,null,null,0,0,11000000,null,"2020-12-29",null,null,null,0,0,null,null,null,null,"X",null,null,null,0]
[122,2020,"SECOP II","FDLF-SAMC-5-2020","Seguros","Selección abreviada","Selección abreviada por menor cuantía ","Contarartar los seguros que amparen los intereses patrimoniales actuales y futuros, asi como los bienes del Fondo de Desarrollo Local  de fontibon que esta bajos su responsabilidad y custodia y aquellos que sean adquiridos para desarrollar las funciones inherntes a su actividad, asi como la expedición de cualquier otra poliza de seguros que requiera la entidad en el desarrollo de su actividad. solicidud de CDP según memorando 20205920000293 del 22-01-2020","Funcionamiento",null,null,{"$f":"IF(ISERROR(VLOOKUP(K270,Eje_Pilar_Prop!$C$2:$E$104,2,FALSE)),\" \",VLOOKUP(K270,Eje_Pilar_Prop!$C$2:$E$104,2,FALSE))","v":" "},{"$f":"IF(ISERROR(VLOOKUP(K270,Eje_Pilar_Prop!$C$2:$E$104,3,FALSE)),\" \",VLOOKUP(K270,Eje_Pilar_Prop!$C$2:$E$104,3,FALSE))","v":" "},"131020202020108","860002400-2","LA PREVISORA S.A. COMPAÑÍA DE SEGUROS",53292534,null,null,2,21878315,75170849,75170849,null,null,null,null,null,null,null,null,null,null,"X",null,null,null,1]
[160,2020,"SECOP II","FDLF-SAMC-6-2020","Seguros","Selección abreviada","Selección abreviada por menor cuantía ","CONTRATAR LOS SEGUROS QUE AMPAREN LOS INTERESES PATRIMONIALES, ASÍ COMO LOS BIENES QUE ESTÉN BAJO SU RESPONSABILIDAD, CUSTODIA, CUIDADO Y CONTROL, O POR LOS QUE PUEDA SER LEGALMENTE RESPONSABLE, AL IGUAL QUE LA COBERTURA DE VIDA GRUPO EDILES, SEGURO OBLIGATORIO DE ACCIDENTES Y LA EXPEDICION  DE CUALQUIER OTRA POLIZA DE SEGUROS QUE REQUIERA EL FONDO DE DESARROLLO LOCAL DE FONTIBON EN EL DESARROLLO DE SU ACTIVIDAD, SIPSE 49401, SE EXPIDE CRP SEGÚN SOLICITUD RECIBIDA PARA TRAMITE DE FECHA SEPTIEMBRE 22 DE 2020.","Funcionamiento",null,null," "," ","131020202020105","860002400-2","LA PREVISORA S.A. COMPAÑÍA DE SEGUROS",19747202,null,null,0,0,19747202,19747202,"2020-09-22","2020-09-23","2021-11-26",365,0,0,null,null,null,null,null,"X",null,null,1]
[114,2019,"SECOP II","FDLF-CD-141-2020","Arrendamiento de bienes inmuebles","Contratación directa","El arrendamiento o adquisición de inmuebles","ARRENDAMIENTO BODEGA Y PARQUEADERO PARA LOS DIFERENTES ELEMENTOS Y VEHICULOS, MAQUINARIA PESADA DEL FONDO DE DESARROLLO LOCAL DE FONTIBON","Funcionamiento",null,null," "," ","131020202020201","900.200.519-3","INVERSIONES CAOVA S.A.S.",null,null,null,0,54000000,54000000,54000000,"2020-02-21","2020-02-25","2020-08-24",180,0,0,null,null,null,null,null,null,"X",null,1]
[211,2019,"SECOP II","FDLF-LP-18-2019","Contratos de prestación de servicios","Licitación pública","No aplica","ADICIÓN Y PRÓRROGA 01 CONTRATO 211-2019 PRESTAR EL SERVICO DE VIGILANCIA Y SEGURIDAD PRIVADA LAS 24 HORAS Y LOS 7 DIAS DE LA SEMANA, CON APOYO TECNOLOGICO PARA LOS PREDIOS DE PROPIEDAD Y EN ARRENDAMIENTO QUE SE ENCUENTREN A NOMBRE DEL FONDO DE DESARROLLO LOCAL DEFONTIBON, ASI COMO VELAR POR LA SEGURIDAD DE LAS PERSONAS Y LA CUSTODIA DE LOS BIENES MUEBLES Y ENSERES QUE SE ENCUENTRAN DENTRO DEDICHOS PREDIOS. SIPSE 38488. SOLICITUD DE CRP 20205920004563 DEL 29-05-2020","Funcionamiento",null,null,{"$f":"IF(ISERROR(VLOOKUP(K273,Eje_Pilar_Prop!$C$2:$E$104,2,FALSE)),\" \",VLOOKUP(K273,Eje_Pilar_Prop!$C$2:$E$104,2,FALSE))","v":" "},{"$f":"IF(ISERROR(VLOOKUP(K273,Eje_Pilar_Prop!$C$2:$E$104,3,FALSE)),\" \",VLOOKUP(K273,Eje_Pilar_Prop!$C$2:$E$104,3,FALSE))","v":" "},"131020202030501",901321055,"UNION TEMPORAL VIGILANCIA Y SEGURIDAD FD LF SA",null,null,null,1,413006402,{"$f":"+Q273+S273+U273","v":413006402},315428755,"2020-05-29","2020-06-10","2020-10-10",120,null,null,null,null,null,null,null,null,null,null,0.76373817324022986]
[160,2020,"SECOP II","FDLF-SAMC-6-2020","Seguros","Selección abreviada","Selección abreviada por menor cuantía ","CONTRATAR LOS SEGUROS QUE AMPAREN LOS INTERESES PATRIMONIALES, SÍ COMO LOS BIENES QUE ESTÉN BAJO SU RESPONSABILIDAD, CUSTODIA, CUIDAD Y CONTROL, O POR LOS QUE PUEDA SER LEGALMENTE RESPONSABLE DEL FONDO DE DESARROLLO LOCAL DE FONTIBON, ASÍ COMO LA EXPEDICIÓN DE CUALQUIER OTRA POLIZA DE SEGUROS QUE REQUIERA LA ENTIDAD EN EL DESARROLLO DE SU ACTIVIDAD","Funcionamiento",null,null," "," ","131020202020110","860002400-2","LA PREVISORA S.A. COMPAÑÍA DE SEGUROS",5435750,null,null,0,0,{"$f":"+Q274+S274+U274","v":5435750},5435750,"2020-09-22","2020-09-23","2021-11-26",365,0,0,null,null,null,null,null,"X",null,null,{"$f":"IF(ISERROR(W274/V274),\"-\",(W274/V274))","v":1}]
[257,2019,"SECOP II","FDLF-SAMC-030-2019","Contratos de prestación de servicios","Selección abreviada","Selección abreviada por menor cuantía ","Adición N°1 al contrato 257 de 2019, cuyo objeto es:\"Servicio de diseñoy producción de piezas comunicativas requeridas por la Alcaldía Local deFontibón, para la divulgación de las políticas, planes, programas,logros, acciones, campañas y/o estrategias adelantadas en el desarrollode su gestión publica\", Se expide CRP con memorando de solicitud20205900002783 recibido para tramite de fecha DIC 01/2020.","Funcionamiento",null,null,{"$f":"IF(ISERROR(VLOOKUP(K275,Eje_Pilar_Prop!$C$2:$E$104,2,FALSE)),\" \",VLOOKUP(K275,Eje_Pilar_Prop!$C$2:$E$104,2,FALSE))","v":" "},{"$f":"IF(ISERROR(VLOOKUP(K275,Eje_Pilar_Prop!$C$2:$E$104,3,FALSE)),\" \",VLOOKUP(K275,Eje_Pilar_Prop!$C$2:$E$104,3,FALSE))","v":" "},"131020202030310","830107466","SYRTECT LTDA",null,null,null,1,31500000,31500000,null,"2020-12-01","2020-12-02","2020-05-01",null,null,null,null,null,null,null,null,null,null,null,0]
[187,2019,"SECOP II","FDLF-SAMC-12-2019","Contratos de prestación de servicios","Selección abreviada","Selección abreviada por menor cuantía ","ADICIÓN 01 CONTRATO 187-2019 PRESTAR EL SERVICIO DE MANTENIMIENTO PREVENTIVO Y CORRECTIVO DE LA MAQUINARIA, VEHICULOS PESADOS Y LIVIANOS DE PROPIEDAD, GUARDA Y/O TENENCIA DEL FONDO DE DESARROLLO LOCAL DE FONTIBON CON SUMINISTRO DE REPUESTOS, INSUMOS Y MANO DE OBRA.SIPSE 37910. SOLICITUD DE CRP 20205920004933 DEL 16-06-2020","Funcionamiento",null,null,{"$f":"IF(ISERROR(VLOOKUP(K276,Eje_Pilar_Prop!$C$2:$E$104,2,FALSE)),\" \",VLOOKUP(K276,Eje_Pilar_Prop!$C$2:$E$104,2,FALSE))","v":" "},{"$f":"IF(ISERROR(VLOOKUP(K276,Eje_Pilar_Prop!$C$2:$E$104,3,FALSE)),\" \",VLOOKUP(K276,Eje_Pilar_Prop!$C$2:$E$104,3,FALSE))","v":" "},"131020202030604","800020006","AUTO INVERSIONES COLOMBIA S.A. AUTOINVER COL",null,null,null,1,63999705,63999705,5806451,"2020-06-17","2021-02-01","2021-06-04",null,null,null,null,null,null,null,null,null,null,null,9.0726215066147572E-2]
[46118,2020,null,null,"Otros","Selección abreviada","Acuerdo marco de precios ","LA ADQUISICION DE SERVICIO INTEGRAL DE ASEO Y CAFETERIA CONFORME AL ACUERDO MACRO DE PRECIOS No CCE-972-AMP -2019 PARA LAS DIFERENTES DEPENDENCIAS DE LA LOCALIDAD LOCAL DE FONTIBON , LAS INSPECCIONES DE POLICIA, LA CASA DE LA JUSTICIA  LA CASA DE CONSUMIDOR Y LA JUNTA ADMINISTRADORA LOCAL DE FONTIBON.  SOLICITUD DE CDP SEGUN SIPSE No 44951 DEL 04-03-2020","Funcionamiento",null,null,{"$f":"IF(ISERROR(VLOOKUP(K277,Eje_Pilar_Prop!$C$2:$E$104,2,FALSE)),\" \",VLOOKUP(K277,Eje_Pilar_Prop!$C$2:$E$104,2,FALSE))","v":" "},{"$f":"IF(ISERROR(VLOOKUP(K277,Eje_Pilar_Prop!$C$2:$E$104,3,FALSE)),\" \",VLOOKUP(K277,Eje_Pilar_Prop!$C$2:$E$104,3,FALSE))","v":" "},"131020202030502","800148041","SERVI LIMPIEZA S A",134375899,null,null,1,38322017,172697916,88045872,"2020-03-27","2021-02-18","2021-03-25",null,null,null,null,null,null,null,null,null,null,null,0.50982590895885505]
[221,2020,"SECOP II","FDLF-CD-221- 2020","Contratos interadministrativos","Contratación directa","Contratos interadministrativos","PRESTAR EL SERVICIO DE MENSAJERÍA EXPRESA A NIVEL NACIONAL, URBANO Y RURAL, PARA EL DESARROLLO DE LAS ACTIVIDADES ADMINISTRATIVAS DE FUNCIONAMIENTO DE LA ALCALDÍA LOCAL DE FONTIBÓN, INSPECCIONES DE POLICIA Y LA JUNTA ADMINISTRADORA LOCAL DE FONTIBÓN","Funcionamiento",null,null,{"$f":"IF(ISERROR(VLOOKUP(K278,Eje_Pilar_Prop!$C$2:$E$104,2,FALSE)),\" \",VLOOKUP(K278,Eje_Pilar_Prop!$C$2:$E$104,2,FALSE))","v":" "},{"$f":"IF(ISERROR(VLOOKUP(K278,Eje_Pilar_Prop!$C$2:$E$104,3,FALSE)),\" \",VLOOKUP(K278,Eje_Pilar_Prop!$C$2:$E$104,3,FALSE))","v":" "},"131020202010601","900.062.917-9","MENSAJERIA 4-72",16353000,null,null,0,0,16353000,null,"2020-12-03","2020-12-09","2021-10-08",300,0,0,null,null,null,null,null,"X",null,null,0]
[null,2020,null,null,"Otros gastos",null,null,"SEGUROS SALUD EDILES","Funcionamiento",null,null,{"$f":"IF(ISERROR(VLOOKUP(K279,Eje_Pilar_Prop!$C$2:$E$104,2,FALSE)),\" \",VLOOKUP(K279,Eje_Pilar_Prop!$C$2:$E$104,2,FALSE))","v":" "},{"$f":"IF(ISERROR(VLOOKUP(K279,Eje_Pilar_Prop!$C$2:$E$104,3,FALSE)),\" \",VLOOKUP(K279,Eje_Pilar_Prop!$C$2:$E$104,3,FALSE))","v":" "},"131020202020106",null,"SEGUROS SALUD EDILES",101030200,null,null,null,null,{"$f":"+Q279+S279+U279","v":101030200},92600800,"2020-01-01","2020-12-31","2020-12-31",null,null,null,null,null,null,null,null,null,"X",null,{"$f":"IF(ISERROR(W279/V279),\"-\",(W279/V279))","v":0.91656554178849492}]
[null,2020,null,null,"Otros gastos",null,null," Servicios de telefonía fija","Funcionamiento",null,null,{"$f":"IF(ISERROR(VLOOKUP(K280,Eje_Pilar_Prop!$C$2:$E$104,2,FALSE)),\" \",VLOOKUP(K280,Eje_Pilar_Prop!$C$2:$E$104,2,FALSE))","v":" "},{"$f":"IF(ISERROR(VLOOKUP(K280,Eje_Pilar_Prop!$C$2:$E$104,3,FALSE)),\" \",VLOOKUP(K280,Eje_Pilar_Prop!$C$2:$E$104,3,FALSE))","v":" "},"131020202030401","899999115","EMPRESA DE TELECOMUNICACIONES DE BOGOTÁ S.A. E.S.P. - ETB S.A. ESP",17351320,null,null,null,null,17351320,17351320,"2020-01-01","2020-01-01","2020-12-31",null,null,null,null,null,null,null,null,null,null,null,1]
[null,2020,null,null,"Otros gastos",null,null,"ENERGIA","Funcionamiento",null,null,{"$f":"IF(ISERROR(VLOOKUP(K281,Eje_Pilar_Prop!$C$2:$E$104,2,FALSE)),\" \",VLOOKUP(K281,Eje_Pilar_Prop!$C$2:$E$104,2,FALSE))","v":" "},{"$f":"IF(ISERROR(VLOOKUP(K281,Eje_Pilar_Prop!$C$2:$E$104,3,FALSE)),\" \",VLOOKUP(K281,Eje_Pilar_Prop!$C$2:$E$104,3,FALSE))","v":" "},"131020202040101",830037248,"CODENSA SA",65686134,null,null,null,null,65686134,65686134,"2020-01-01","2020-01-01","2020-12-31",null,null,null,null,null,null,null,null,null,null,null,1]
[null,2020,null,null,"Otros gastos",null,null,"ACUEDUCTO Y ALCANTARILLADO","Funcionamiento",null,null,{"$f":"IF(ISERROR(VLOOKUP(K282,Eje_Pilar_Prop!$C$2:$E$104,2,FALSE)),\" \",VLOOKUP(K282,Eje_Pilar_Prop!$C$2:$E$104,2,FALSE))","v":" "},{"$f":"IF(ISERROR(VLOOKUP(K282,Eje_Pilar_Prop!$C$2:$E$104,3,FALSE)),\" \",VLOOKUP(K282,Eje_Pilar_Prop!$C$2:$E$104,3,FALSE))","v":" "},"131020202040102  ",899999094,"EMPRESA DE ACUEDUCTO Y ALCANTARILLADO DE BOGOTA ESP",15571015,null,null,null,null,15571015,15571015,"2020-01-01","2020-01-01","2020-12-31",null,null,null,null,null,null,null,null,null,null,null,1]
[null,2020,null,null,"Otros gastos",null,null,"ASEO","Funcionamiento",null,null,{"$f":"IF(ISERROR(VLOOKUP(K283,Eje_Pilar_Prop!$C$2:$E$104,2,FALSE)),\" \",VLOOKUP(K283,Eje_Pilar_Prop!$C$2:$E$104,2,FALSE))","v":" "},{"$f":"IF(ISERROR(VLOOKUP(K283,Eje_Pilar_Prop!$C$2:$E$104,3,FALSE)),\" \",VLOOKUP(K283,Eje_Pilar_Prop!$C$2:$E$104,3,FALSE))","v":" "},"131020202040103 ","830048122","CIUDAD LIMPIA BOGOTA S A E S P",2021920,null,null,null,null,2021920,2021920,"2020-01-01","2020-01-01","2020-12-31",null,null,null,null,null,null,null,null,null,null,null,1]
[null,2020,null,null,"Otros gastos",null,null,"GAS","Funcionamiento",null,null,{"$f":"IF(ISERROR(VLOOKUP(K284,Eje_Pilar_Prop!$C$2:$E$104,2,FALSE)),\" \",VLOOKUP(K284,Eje_Pilar_Prop!$C$2:$E$104,2,FALSE))","v":" "},{"$f":"IF(ISERROR(VLOOKUP(K284,Eje_Pilar_Prop!$C$2:$E$104,3,FALSE)),\" \",VLOOKUP(K284,Eje_Pilar_Prop!$C$2:$E$104,3,FALSE))","v":" "},"131020202040104 ",800007813,"VANTI S.A. ESP",348410,null,null,null,null,{"$f":"+Q284+S284+U284","v":348410},348410,"2020-01-01","2020-01-01","2020-12-31",null,null,null,null,null,null,null,null,null,null,null,1]
[null,2020,null,null,"Otros gastos",null,null,"HONORARIOS EDILES","Funcionamiento",null,null,{"$f":"IF(ISERROR(VLOOKUP(K285,Eje_Pilar_Prop!$C$2:$E$104,2,FALSE)),\" \",VLOOKUP(K285,Eje_Pilar_Prop!$C$2:$E$104,2,FALSE))","v":" "},{"$f":"IF(ISERROR(VLOOKUP(K285,Eje_Pilar_Prop!$C$2:$E$104,3,FALSE)),\" \",VLOOKUP(K285,Eje_Pilar_Prop!$C$2:$E$104,3,FALSE))","v":" "},13101040102,null,"EDILES LOCALIDAD",807500702,null,null,null,null,{"$f":"+Q285+S285+U285","v":807500702},740072036,"2020-01-01","2020-01-01","2020-12-31",null,null,null,null,null,null,null,null,null,null,null,0.91649708064278557]
[null,2020,null,null,"Otros gastos",null,null,"Obligaciones por Pagar Vigencia Anterior","Funcionamiento",null,null,{"$f":"IF(ISERROR(VLOOKUP(K286,Eje_Pilar_Prop!$C$2:$E$104,2,FALSE)),\" \",VLOOKUP(K286,Eje_Pilar_Prop!$C$2:$E$104,2,FALSE))","v":" "},{"$f":"IF(ISERROR(VLOOKUP(K286,Eje_Pilar_Prop!$C$2:$E$104,3,FALSE)),\" \",VLOOKUP(K286,Eje_Pilar_Prop!$C$2:$E$104,3,FALSE))","v":" "},131089001,null,"Obligaciones por Pagar Vigencia Anterior",1022028990,null,null,null,null,1022028990,722601244,"2020-01-01","2020-01-01","2020-12-31",null,null,null,null,null,null,null,null,null,null,null,0.70702617153746294]
[null,2020,null,null,"Otros gastos",null,null,"Obligaciones por Pagar Otras Vigencias","Funcionamiento",null,null,{"$f":"IF(ISERROR(VLOOKUP(K287,Eje_Pilar_Prop!$C$2:$E$104,2,FALSE)),\" \",VLOOKUP(K287,Eje_Pilar_Prop!$C$2:$E$104,2,FALSE))","v":" "},{"$f":"IF(ISERROR(VLOOKUP(K287,Eje_Pilar_Prop!$C$2:$E$104,3,FALSE)),\" \",VLOOKUP(K287,Eje_Pilar_Prop!$C$2:$E$104,3,FALSE))","v":" "},131089002,null,"Obligaciones por Pagar Otras Vigencias",328696,null,null,null,null,328696,0,"2020-01-01","2020-01-01","2020-12-31",null,null,null,null,null,null,null,null,null,null,null,0]
["TOTALES",null,null,null,null,null,null,null,null,null,null,null,null,null,null,null,{"$f":"SUM(Q14:Q287)","v":28017525706},1,-781980229,116,2705090802,29940636279,14762960745]

{"sheet":"Instructivo","index":1,"n_rows":103,"n_cols":4,"rows_kept":103,"cut":false,"hidden":false,"merged":[[25,1,25,3],[1,1,1,3],[2,1,2,3],[3,1,3,3],[4,1,4,3],[5,1,5,3],[6,1,6,3],[7,1,7,3],[10,1,10,3],[11,1,11,3],[12,1,12,3],[14,1,14,3],[8,1,8,3],[9,1,9,3],[67,1,67,3],[26,1,27,1],[26,2,27,2],[31,1,32,1],[31,2,32,2],[33,1,53,1],[35,2,36,2],[54,1,56,1],[54,2,56,2],[59,1,62,1],[61,2,62,2],[64,1,65,1],[29,1,30,1],[68,1,70,1],[68,2,70,2],[71,1,72,1],[71,2,72,2],[74,1,75,1],[74,2,75,2],[101,1,101,3],[77,1,80,1],[77,2,80,2],[83,1,83,3],[84,1,85,1],[84,2,85,2],[98,1,98,3],[92,1,92,3]]}
[]
[null,"INSTRUCTIVO"]
[null,"Recomendamos leer cuidadosamente y poner en práctica las instrucciones que se explican en este instructivo. De la calidad de la información que se registre, depende en gran medida la calidad del informe de rendición de cuentas de la Gestión Contractual que presenta el Alcalde Mayor, consolidado por la Veeduría Distrital."]
[null,"La base en Excel a diligenciar es inmodificable, debe utilizar versión Excel 2010 o posteriores, la versión 2007 no habilita los macros.  La base no permite que se incluyan columnas con otro tipo de información que la Veeduría Distrital no está solicitando o que se cambie el formato de celda establecido. Tenga en cuenta que algunas celdas están bloqueadas y/o solo permiten el registro de una información determinada."]
[null,"La información que se registre en la base, debe coincidir con los reportes realizados en PREDIS y en el SECOP"]
[null,"Diligencie la totalidad de celdas."]
[null,"Para insertar una o varias filas, haga click  en el opción Insertar Filas y digite el número de filas a insertar. Si usted no sigue este procedimiento las filas que inserte no tomaran el formato de las filas anteriores. Se recomienda que antes de iniciar el registro de información inserte las filas que requiere, sin embargo en cualquier momento que necesite puede hacer este paso."]
[null,"Si requiere inserte una o varias filas realícelo después de la fila A14 y antes de la fila de Totales para que tomen el formato de las filas anteriores."]
[null,"Si necesita pegar información debe hacerlo por secciones debido a que hay columnas formuladas que están protegidas (como la columna J, K, T y AK) que no permiten realizar esta opción. Utilice la opción de pegado especial valores para no borrar las listas desplegables ni los formatos de las columnas."]
[null,"Si al pegar quedan textos en rojo,  verifique y ajuste la información, el dato que adiciono no se encuentra en la lista desplegable o no corresponde con el criterio definido en el columna."]
[null,"En primer lugar diligencie toda la información correspondiente a los contratos suscritos con cargo a la vigencia 2020."]
[null,"Una vez incluidos todos los contratos de la vigencia 2020, a continuación diligencie el formato completo con la información correspondiente a las adiciones efectuadas con cargo a la vigencia 2020 de contratos suscritos en vigencias anteriores. La información general del contrato como: modalidad de selección, tipología contractual, objeto, entre otros, debe corresponder a la información del contrato adicionado o modificado. Respecto al valor solo se diligencia el valor en la columna adición, es decir la columna de valor inicial debe quedar en blanco. No olvide registrar el número de adiciones realizadas, en la columna correspondiente."]
[null,"En caso de haber realizado apropiaciones presupuestales en la vigencia a través de resoluciones, caja menor, honorarios ediles, servicios públicos, debe relacionar dicha información en una sola fila al final de la base, indicando de que se trata la apropiación y número de proyecto si hay lugar a ello. En el tipo de contrato se registra Otros gastos."]
[]
[null,"ENCABEZADO DEL FORMATO"]
[null,1,"Entidad","Indique el nombre completo de la Entidad."]
[null,2,"Sector","Seleccione el sector al cual pertenece la Entidad."]
[null,3,"Presupuesto Disponible Inversión Directa","Indique el valor total del presupuesto disponible de inversión directa, de acuerdo con el PREDIS, a 31 de diciembre de 2020."]
[null,4,"Presupuesto Comprometido de Inversión Directa ","Escriba el valor total del presupuesto comprometido de inversión directa, de acuerdo con el PREDIS a 31 de diciembre de 2020."]
[null,5,"Presupuesto Disponible Funcionamiento","Indique el valor total del presupuesto de funcionamiento disponible, de acuerdo con el PREDIS a 31 de diciembre de 2020."]
[null,6,"Presupuesto Comprometido funcionamiento ","Escriba el monto del presupuesto de funcionamiento, comprometido mediante contratos, de acuerdo con el PREDIS a 31 de diciembre de 2020."]
[null,7,"Presupuesto Disponible Operación","Coloque el monto del presupuesto de operación disponible, de acuerdo con el PREDIS, a 31 de diciembre de 2020. Los gastos de operación corresponden solamente a aquellas entidades de régimen de contratación  privado."]
[null,8,"Presupuesto Comprometido operación mediante contratos","Escriba el monto del presupuesto de operación comprometido mediante contratos a 31 de diciembre de 2020."]
[null,9,"Nombre de quien diligencia el formato:","Indique el nombre completo, cargo, número de teléfono con extensión y correo electrónico del profesional que diligencia el formato y que posteriormente realizará los ajustes y aclaraciones a que haya lugar por solicitud de la Veeduría Distrital."]
[]
[null,"1- INFORMACIÓN GENERAL"]
[null,1,"Número de Contrato","En estricto orden consecutivo registre el número del contrato, sin incluir los contratos que fueron anulados ni comodatos."]
[null,null,null,"Una vez terminado el registro de los contratos con cargo a la vigencia 2020, en las siguientes filas registre la información correspondiente a las adiciones efectuadas con cargo a la vigencia 2020 de contratos suscritos en vigencias anteriores, especificando el año de suscripción en la columna dos."]
[null,2,"Año","Registre el año de celebración del contrato."]
[null,3,"Proceso Publicado","Seleccione el aplicativo donde se publicó el proceso (SECOP I / SECOP II)"]
[null,null,"Número de proceso en el SECOP","Relacione el número de proceso con el cual se encuentra publicado el contrato en el SECOP. Ejemplo IDU-CMA-DTDP-240-2020"]
[null,4,"Tipo de Contrato","En esta columna seleccione de la lista el tipo de contrato que corresponde al contrato suscrito. El formato no permite incluir tipo de contratos diferentes a los señaladas en la lista desplegable.  "]
[null,null,null,"Para las adiciones a contratos de años anteriores se debe diligenciar el tipo del contrato adicionado o modificado."]
[null,4,"Obra ","Son contratos de obra los que celebren las entidades estatales para la construcción, mantenimiento, instalación y, en general, para la realización de cualquier otro trabajo material sobre bienes inmuebles, cualquiera que sea la modalidad de ejecución y pago. Numeral 1 del Artículo 32 de la Ley 80 de 1993. "]
[null,null,"Consultoría","Aquellos que celebran las entidades estatales, referidos a los estudios necesarios para la ejecución de proyectos de inversión, de diagnósticos, prefactibilidad o factibilidad para programas o proyectos específicos, así como a las asesorías técnicas de coordinación, control y supervisión. Numeral 2 del Artículo 32 de la Ley 80 de 1993. "]
[null,null,"Interventoría","Son también  contratos de consultoría los que tienen por objeto la Interventoría, asesoría, gerencia de obras o de proyectos, dirección, programación y la ejecución de diseños, planos, anteproyectos y proyectos. Numeral 2 del Artículo 32 de la Ley 80 de 1993."]
[null,null,null,"El contrato de Interventoría tiene por objeto la  supervisión, seguimiento y vigilancia a la ejecución material de un contrato principal."]
[null,null,"Contrato de Prestación de servicios","Son contratos de prestación de servicios los que celebren las entidades estatales para desarrollar actividades relacionadas con la administración o funcionamiento de la entidad. Numeral 3 del Artículo 32 de la Ley 80 de 1993."]
[null,null,"Contrato de Prestación de servicios profesionales y de apoyo a la gestión","Corresponden a aquellos de naturaleza intelectual diferentes a los de consultoría que se derivan del cumplimiento de las funciones de la entidad estatal; así como los relacionados con actividades operativas, logísticas, o asistenciales. Art. 2.2.1.2.1.4.9, Decreto 1082 de 2015"]
[null,null,"Compraventa de bienes muebles","Son aquellos contratos donde se transfiere el dominio de un bien mueble (aquellos susceptibles de ser trasladadas de un lugar a otro sin alterar ni su forma ni su esencia, tal es el caso del mobiliario y equipo de oficina, maquinaria, automóviles, etc.), cuya ejecución se agota de manera instantánea. Artículo 660, Código Civil."]
[null,null,"Compraventa de bienes inmuebles","Son aquellos contratos donde se transfiere el dominio de un bien inmueble (todos aquellos bienes considerados bienes raíces, por tener de común la circunstancia de estar íntimamente ligados al suelo, unidos de modo inseparable, física o jurídicamente, al terreno). Artículo 656, Código Civil."]
[null,null,"Arrendamiento de bienes muebles","Es un contrato que tiene por objeto, conceder el uso y goce de un bien mueble a cambio de un precio determinado.  Artículo 1974 Código Civil."]
[null,null,"Arrendamiento de bienes inmuebles","Es un contrato que tiene por objeto, conceder el uso y goce de un bien inmueble a cambio de un precio determinado.  Artículo 2.2.1.2.1.4.11 Decreto 1082 de 2015"]
[null,null,"Seguros","El seguro es un contrato, en virtud del cual una persona jurídica llamada asegurador, asume, a cambio de una prima, un riesgo que le es trasladado por una persona natural o jurídica llamado tomador y en el cual éste tiene un interés asegurable, con el fin de indemnizarlo, en el evento de que ocurra la realización del riesgo amparado. de conformidad con el Título V, del Libro Cuarto del Código de Comercio "]
[null,null,"Suministro","El suministro es el contrato por el cual una parte se obliga, a cambio de una contraprestación, a cumplir en favor de otra, en forma independiente, prestaciones periódicas o continuadas de cosas o servicios. Artículo 968, Código de Comercio"]
[null,null,"Empréstitos","Son contratos de empréstito los que tienen por objeto proveer a la entidad estatal contratante de recursos en moneda nacional o extranjera con plazo para su pago. Artículo 7,  Decreto 2681 de 1996. "]
[null,null,"Fiducia mercantil o encargo fiduciario","Son contratos que tienen por objeto la administración o el manejo de los recursos vinculados a los contratos que tales entidades celebren. Numeral 5 de Articulo 32 de la Ley 80 de 1993."]
[null,null,"Concesión","Este contrato tiene por objeto otorgar a una persona llamada CONCESIONARIO  la prestación, operación, explotación, organización o gestión, total o parcial, de un servicio público, o la construcción, explotación o conservación total o parcial, de una obra o bien destinados al servicio o uso público, así como todas aquellas actividades necesarias para la adecuada prestación o funcionamiento de la obra o servicio por cuenta y riesgo del CONCESIONARIO, y bajo la vigilancia y control de la entidad concedente, a cambio de una remuneración que puede consistir en derechos, tarifas, tasas, valorización, o en la participación que se le otorgue en la explotación del bien, obra o servicio, o en una suma periódica, única o porcentual, y en general, en cualquier otra modalidad de contraprestación que las partes acuerden. Numeral 4 del Artículo 32 de la Ley 80 de 1993 "]
[null,null,"Convenios de cooperación","Son aquellos mediante los cuales se formaliza la asistencia, ayuda, auxilio, soporte o colaboración entre entidades de una misma nación, de distintos países o por parte de organizaciones internacionales de naturaleza pública o privada a favor de entidades públicas. Artículo 20 de la ley 1150"]
[null,null,"Convenios/Contratos interadministrativos","El convenio interadministrativo es el negocio jurídico en el cual están presentes dos entidades públicas en desarrollo de relaciones interadministrativas cuyo objeto es coordinar, cooperar, colaborar o distribuir competencias en la realización de funciones administrativas de interés común a los sujetos negóciales. Artículo 95 de la ley 489 de 1998."]
[null,null,"Convenios de Apoyo y/o Convenios de Asociación","Los contratos que en desarrollo de lo dispuesto en el segundo inciso del artículo 355 de la Constitución Política celebren la Nación, los Departamentos, Distritos y Municipios con entidades privadas sin ánimo de lucro y de reconocida idoneidad, con el propósito de impulsar programas y actividades de interés público.  Reglamentado mediante Decreto 92 de 2017"]
[null,null,"Asociaciones Público Privadas","Los contratos con personas naturales o jurídicas que se celebran en desarrollo de lo dispuesto en el Decreto 1508 de 2012."]
[null,null,"Otros","Los demás tipos de contratos que no se encuentren definidos en las anteriores tipologías."]
[null,null,"Otros gastos","Incluye los gastos no contractuales, estos se registran al final de la base, no cuentan con número de contrato, tipo, proceso o modalidad.  Estos gastos en los que no media un acuerdo de voluntades, en caso de ser del rubro de inversiòn, se deben discriminar por programa y proyecto. En el caso de ser del rubro de funcionamiento no requieren ser discriminados."]
[null,5,"Modalidad de Selección","Al ubicarse en la celda, se despliega una lista de modalidades de selección, de las cuales debe seleccionar la indicada. El formato no permite incluir modalidades diferentes a las señaladas en la lista desplegable.  "]
[null,null,null,"Para las adiciones a contratos de años anteriores se debe diligenciar la modalidad de selección del contrato adicionado o modificado"]
[null,null,null,"La modalidad régimen especial se refiere a todos los contratos realizados en cumplimiento del Decreto 092 de 2017, convenios de asociaciòn con ESAL. Regimen Privado es para todas aquellas entidades, que no se rigen por el Estatuto General de Contrataciòn, para el caso, en estas entidades todos sus contratos deben ser identificados con esta modalidad."]
[null,6,"Procedimiento o causal","Esta columna solo se habilita y debe ser diligenciada, para las modalidades de selección abreviada y contratación directa. Al ubicarse en la celda, se despliega una lista de procedimientos o causales, de las cuales debe seleccionar la indicada. El formato no permite incluir procedimientos o causales diferentes a las señaladas en la lista desplegable.  "]
[null,7,"Objeto","Registre el objeto del contrato."]
[null,8,"Afectación ","Registre la afectación según la clasificación de cuentas del presupuesto de gastos. Funcionamiento, Inversión y Operación, esta última aplica únicamente para entidades de régimen privado. La celda solamente permite registrar estas tres opciones."]
[null,null,"Planes de Desarrollo Distrital","Seleccionar el PDD de acuerdo con los diferentes contratos suscritos, automáticamente en la columna K se activan  los números de programa de acuerdo al PDD escogido."]
[null,null,"Número Programa","Si en la columna anterior “Afectación”,  indicó funcionamiento u operación deje en blanco el número de programa, es decir esta columna solamente aplica para gastos de Inversión."]
[null,null,null,"Identifíquelo de acuerdo con el código presupuestal de los Planes de Desarrollo \"Bogotá Mejor Para Todos\" o  \"Un Nuevo Contrato Social y Ambiental para la Bogotá del Siglo XXI\". Si un mismo contrato afecta más de un código presupuestal discrimine el contrato por cada código que afecte en filas separadas. Si se registra el número del programa, automáticamente en la columna L y M se despliega el nombre del programa y el eje, pilar o propósito según corresponda. "]
[null,9,"Número Proyecto","Indique el código presupuestal con el que se identifica el proyecto. Si un mismo contrato afecta más de un proyecto, discriminar el contrato por cada proyecto que afecte en filas separadas."]
[null,10,"Número de Identificación del contratista","Indicar el número de identificación del contratista persona natural o jurídica con quien se suscribió el contrato, con digito de verificación (DV), el formato de celda no permite guiones, comas, solo números. "]
[null,null,"Nombre del Contratista","Indicar el nombre del contratista, persona natural o jurídica."]
[]
[null,"2- INFORMACIÓN FINANCIERA"]
[null,11,"Valor Inicial ","Registre el valor inicial del contrato con cargo a la vigencia 2020, el formato de celda no permite guiones, comas o texto. Esta columna solo debe contener información numérica."]
[null,null,null,"En el caso de adiciones a contratos de años anteriores,  no diligencie esta columna, solamente la columna 15 \"Valor Total Adiciones\" "]
[null,null,null,"Excluya las reservas de apropiación y cuentas por pagar."]
[null,12,"Número de reducciones ","Diligencie esta columna solo en el caso de reducciones, reintegros, liberaciones, saldos a favor o cualquier factor que disminuya el valor de los contratos con cargo a la vigencia."]
[null,null,null,"Registre en esta celda la cantidad de reducciones que se realizaron al contrato."]
[null,13,"Valor total reducciones (En valor negativo)","Registre el valor total de las reducciones que se realizaron al contrato, el formato de celda no permite comas o texto. Esta columna solo debe contener información numérica."]
[null,14,"Número de adiciones ","Diligencie esta columna solo en el caso de adiciones al valor inicial que aumenten el valor del contrato con cargo a la vigencia."]
[null,null,null,"Registre en esta celda el número de adiciones que se realizaron al contrato."]
[null,15,"Valor total de adiciones","Registre el valor total de las adiciones que se realizaron al contrato,  el formato de celda no permite guiones, , comas o texto. Esta columna solo debe contener información numérica."]
[null,16,"Valor Final","Esta columna se encuentra formulada y bloqueada, sí el valor final no coincide, es porque están mal diligenciadas las columnas valor inicial, valor de reducciones y/o valor de adiciones. En tal caso se debe verificar dicha información."]
[null,null,null,"La sumatoria de la columna 16 (valor final) para los contratos de Inversión Directa, de funcionamiento y/o operación, cuando aplique, deberán coincidir con el valor del rubro registrado en el encabezado 4, Presupuesto comprometido de inversión según PREDIS, con el encabezado 6, Presupuesto Comprometido Funcionamiento según PREDIS y con el encabezado 8, Presupuesto Comprometido Operación mediante contratos, respectivamente. A la vez, estos valores deben coincidir con los informes de ejecución presupuestal del PREDIS.  "]
[null,null,null,"Si los valores no coinciden debe especificarse al final del formato en qué está representada la diferencia Otros gastos(discriminando los conceptos por Programa y Proyecto de inversión, si es el caso), con sus respectivos valores."]
[null,null,null,"Las bases donde dichos valores no coincidan serán devueltas por la Veeduría Distrital a cada entidad para los respectivos ajustes."]
[null,17,"Giros","Registre el valor total de los giros que se realizaron al contrato,  el formato de celda no permite guiones, comas o texto. Esta columna solo debe contener información numérica."]
[]
[null,"3- PLAZOS"]
[null,18,"Fecha de Suscripción","Relacionar la fecha en que se suscribió el contrato original. La celda solo admite el formato Día/Mes/Año así  17/02/2020."]
[null,null,null,"Para las adiciones a contratos de años anteriores se debe registrar en esta columna la fecha de suscripción de la adición en la vigencia 2020."]
[null,19,"Fecha de inicio","Indicar la fecha de inicio del contrato. Para las adiciones a contratos de años anteriores se debe diligenciar la fecha de inicio de la adición en la vigencia 2020. La celda solo admite el formato Día/Mes/Año así  13/03/2020."]
[null,20,"Fecha de terminación","Indicar la fecha efectiva de terminación del contrato. La celda solo admite el formato Día/Mes/Año así  15/02/2020."]
[null,21,"Plazo en días","Esta columna contiene el plazo inicial del contrato con el número total de días a ejecutar (sólo número de días, no mes, no texto)."]
[null,22,"Número de prórrogas","Registre en esta celda el número de prórrogas que se realizaron al contrato en la vigencia 2020."]
[null,23,"Prórroga en días","En caso de presentarse este evento, indicar en días, el tiempo por el cual se prorrogó el contrato a partir de la fecha inicial de terminación (sólo número de días, no mes, no texto)."]
[]
[null,"4- CESIÓN"]
[null,24,"Número  de Identificación del cesionario\n(NIT con digito de verificación)","Indicar el número de identificación del cesionario persona natural o jurídica con quien se suscribió la cesión, con digito de verificación (DV), el formato de celda no permite guiones o comas, solo números. Si hay más de una cesión adicione una fila y registre número de contrato, año, número proceso contractual SECOP y demás información que corresponda."]
[null,25,"Nombre cesionario","Indicar el nombre del cesionario, persona natural o jurídica."]
[null,26,"Fecha cesión","Relacionar la fecha en que se suscribió la cesión del contrato. La celda solo admite el formato Día/Mes/Año así  17/02/2020."]
[null,27,"Valor cesión","Registre el valor correspondiente a la cesión con cargo a la vigencia 2020, el formato de celda no permite guiones, comas o texto. Esta columna solo debe contener información numérica."]
[]
[null,"5- ESTADO A 31 DE DICIEMBRE DE 2020"]
[null,28,"Estado","Marque con una X en la respectiva columna si el contrato se encuentra Celebrado o por Iniciar, En Ejecución, Terminado o Liquidado."]
[]
[null,"5- PORCENTAJE DE AVANCE Y/O CUMPLIMIENTO"]
[null,29,"% Avance y/o cumplimiento","Indica el porcentaje de avance o de cumplimiento en términos presupuestales, es decir lo efectivamente pagado al contratista. Si no se ha iniciado la ejecución, el % de avance es 0%. La celda se encuentra formulada y protegida. Es la relación entre el valor de los giros y el valor final del contrato. Si el porcentaje de avance no coincide, se debe revisar los valores que se registraron en estas columnas.  Este porcentaje no debe ser superior al 100%"]

{"sheet":"Tipo","index":2,"n_rows":40,"n_cols":4,"rows_kept":40,"cut":false,"hidden":true,"merged":[]}
[null,"Tipo","Modalidad de Selección","afectacion"]
[1,"Obra pública","Concurso de méritos","Funcionamiento"]
[2,"Consultoría","Contratación directa","Inversión"]
[3,"Interventoría","Contratación mínima cuantia","Operación"]
[4,"Contratos de prestación de servicios","Selección abreviada"]
[5,"Contratos de prestación de servicios profesionales y de apoyo a la gestión","Licitación pública"]
[6,"Compraventa de bienes muebles","Régimen privado"]
[7,"Compraventa de bienes inmuebles","Régimen especial"]
[8,"Arrendamiento de bienes muebles"]
[9,"Arrendamiento de bienes inmuebles"]
[10,"Seguros","Selección abreviada"]
[11,"Suministro","Subasta inversa "]
[12,"Empréstitos","Bolsas de productos"]
[13,"Fiducia mercantil o encargo fiduciario","Acuerdo marco de precios "]
[14,"Concesión ","Selección abreviada por menor cuantía "]
[15,"Convenios de cooperacion"]
[16,"Contratos interadministrativos","contratacion directa"]
[17,"Convenios de apoyo y/o convenios de asociación ","Urgencia manifiesta"]
[18,"Asociaciones público privadas","Contratación de empréstitos"]
[19,"Otros","Contratos interadministrativos"]
[20,"Otros gastos","Contratación de bienes y servicios en el sector Defensa y en el Departamento Administrativo de Seguridad, DAS"]
[null,"SECTOR","Contratos para el desarrollo de actividades científicas y tecnológicas"]
[1,"Gestión Pública","Contratos de encargo fiduciario que celebren las entidades territoriales cuando inician el Acuerdo de Reestructuración de Pasivos"]
[{"$f":"+A23+1","v":2},"Gobierno","Cuando no exista pluralidad de oferentes en el mercado"]
[{"$f":"+A24+1","v":3},"Hacienda","Prestación de servicios profesionales y de apoyo a la gestión, o para la ejecución de trabajos artísticos que sólo puedan encomendarse a determinadas personas naturales;"]
[4,"Planeación","El arrendamiento o adquisición de inmuebles"]
[5,"Desarrollo Económico, Industria y Turismo","Contratación de bienes y servicios de la Dirección Nacional de Inteligencia (DNI)"]
[6,"Educación"]
[7,"Salud"]
[8,"Integración Social","Decreto 92 de 2017"]
[9,"Cultura, Recreación y Deporte","No aplica"]
[10,"Ambiente"]
[11,"Movilidad","SECOP I"]
[12,"Hábitat","SECOP II"]
[13,"Mujeres"]
[14,"Seguridad, Convivencia y Justicia","Bogotá Mejor para Todos"]
[15,"Gestión Juridíca","Un Nuevo Contrato Social y Ambiental para la Bogotá del Siglo XXI"]
[16,"descentralizado territorialmente"]
[]
[null,"16 - AL"]

{"sheet":"Eje_Pilar_Prop","index":3,"n_rows":104,"n_cols":5,"rows_kept":104,"cut":false,"hidden":false,"merged":[]}
[]
[null,"PDD","No. Programa","Programa","Pilar /Eje / propósito"]
[null,"Bogotá Mejor para Todos",1,"Prevención y atención de la maternidad y la paternidad tempranas","Pilar 1 Igualdad de Calidad de Vida"]
[null,"Bogotá Mejor para Todos",2,"Desarrollo integral desde la gestación hasta la adolescencia","Pilar 1 Igualdad de Calidad de Vida"]
[null,"Bogotá Mejor para Todos",3,"Igualdad y autonomía para una Bogotá incluyente","Pilar 1 Igualdad de Calidad de Vida"]
[null,"Bogotá Mejor para Todos",4,"Familias protegidas y adaptadas al cambio climático","Pilar 1 Igualdad de Calidad de Vida"]
[null,"Bogotá Mejor para Todos",5,"Desarrollo integral para la felicidad y el ejercicio de la ciudadanía","Pilar 1 Igualdad de Calidad de Vida"]
[null,"Bogotá Mejor para Todos",6,"Calidad educativa para todos","Pilar 1 Igualdad de Calidad de Vida"]
[null,"Bogotá Mejor para Todos",7,"Inclusión educativa para la equidad","Pilar 1 Igualdad de Calidad de Vida"]
[null,"Bogotá Mejor para Todos",8,"Acceso con calidad a la educación superior","Pilar 1 Igualdad de Calidad de Vida"]
[null,"Bogotá Mejor para Todos",9,"Atención integral y eficiente en salud","Pilar 1 Igualdad de Calidad de Vida"]
[null,"Bogotá Mejor para Todos",10,"Modernización de la infraestructura física y tecnológica en salud","Pilar 1 Igualdad de Calidad de Vida"]
[null,"Bogotá Mejor para Todos",11,"Mejores oportunidades para el desarrollo a través de la cultura, la recreación y el deporte","Pilar 1 Igualdad de Calidad de Vida"]
[null,"Bogotá Mejor para Todos",12,"Mujeres protagonistas, activas y empoderadas en el cierre de brechas de género","Pilar 1 Igualdad de Calidad de Vida"]
[null,"Bogotá Mejor para Todos",13,"Infraestructura para el desarrollo del hábitat","Pilar 2 Democracía Urbana"]
[null,"Bogotá Mejor para Todos",14,"Intervenciones integrales del hábitat","Pilar 2 Democracía Urbana"]
[null,"Bogotá Mejor para Todos",15,"Recuperación, incorporación, vida urbana y control de la ilegalidad","Pilar 2 Democracía Urbana"]
[null,"Bogotá Mejor para Todos",16,"Integración social para una ciudad de oportunidades","Pilar 2 Democracía Urbana"]
[null,"Bogotá Mejor para Todos",17,"Espacio público, derecho de todos","Pilar 2 Democracía Urbana"]
[null,"Bogotá Mejor para Todos",18,"Mejor movilidad para todos","Pilar 2 Democracía Urbana"]
[null,"Bogotá Mejor para Todos",19,"Seguridad y convivencia para todos","Pilar 3 Construcción de Comunidad y Cultura Ciudadana"]
[null,"Bogotá Mejor para Todos",20,"Fortalecimiento del Sistema de Protección Integral a Mujeres Víctimas de Violencia - SOFIA","Pilar 3 Construcción de Comunidad y Cultura Ciudadana"]
[null,"Bogotá Mejor para Todos",21,"Justicia para todos: consolidación del Sistema Distrital de Justicia","Pilar 3 Construcción de Comunidad y Cultura Ciudadana"]
[null,"Bogotá Mejor para Todos",22,"Bogotá vive los derechos humanos","Pilar 3 Construcción de Comunidad y Cultura Ciudadana"]
[null,"Bogotá Mejor para Todos",23,"Bogotá mejor para las víctimas, la paz y la reconciliación","Pilar 3 Construcción de Comunidad y Cultura Ciudadana"]
[null,"Bogotá Mejor para Todos",24,"Equipo por la educación para el reencuentro, la reconciliación y la paz","Pilar 3 Construcción de Comunidad y Cultura Ciudadana"]
[null,"Bogotá Mejor para Todos",25,"Cambio cultural y construcción del tejido social para la vida","Pilar 3 Construcción de Comunidad y Cultura Ciudadana"]
[null,"Bogotá Mejor para Todos",26,"Información relevante e integral para la planeación territorial","Eje Transversal 1 Nuevo Ordenamiento Territorial"]
[null,"Bogotá Mejor para Todos",27,"Proyectos urbanos integrales con visión de ciudad","Eje Transversal 1 Nuevo Ordenamiento Territorial"]
[null,"Bogotá Mejor para Todos",28,"Suelo para reducir el déficit habitacional de suelo urbanizable, vivienda y soportes urbanos","Eje Transversal 1 Nuevo Ordenamiento Territorial"]
[null,"Bogotá Mejor para Todos",29,"Articulación regional y planeación integral del transporte","Eje Transversal 1 Nuevo Ordenamiento Territorial"]
[null,"Bogotá Mejor para Todos",30,"Financiación para el Desarrollo Territorial","Eje Transversal 1 Nuevo Ordenamiento Territorial"]
[null,"Bogotá Mejor para Todos",31,"Fundamentar el desarrollo económico en la generación y uso del conocimiento para mejorar la competitividad de la Ciudad Región","Eje Transversal 2 Desarrollo Económico basado en el conocimiento"]
[null,"Bogotá Mejor para Todos",32,"Generar alternativas de ingreso y empleo de mejor calidad","Eje Transversal 2 Desarrollo Económico basado en el conocimiento"]
[null,"Bogotá Mejor para Todos",33,"Elevar la eficiencia de los mercados de la ciudad","Eje Transversal 2 Desarrollo Económico basado en el conocimiento"]
[null,"Bogotá Mejor para Todos",34,"Mejorar y fortalecer el recaudo tributario de la ciudad e impulsar el uso de mecanismos de vinculación de capital privado","Eje Transversal 2 Desarrollo Económico basado en el conocimiento"]
[null,"Bogotá Mejor para Todos",35,"Bogotá, ciudad inteligente","Eje Transversal 2 Desarrollo Económico basado en el conocimiento"]
[null,"Bogotá Mejor para Todos",36,"Bogotá, una ciudad digital","Eje Transversal 2 Desarrollo Económico basado en el conocimiento"]
[null,"Bogotá Mejor para Todos",37,"Consolidar el turismo como factor de desarrollo, confianza y felicidad para Bogotá Región","Eje Transversal 2 Desarrollo Económico basado en el conocimiento"]
[null,"Bogotá Mejor para Todos",38,"Recuperación y manejo de la Estructura Ecológica Principal","Eje Transversal 3 Sostenibilidad Ambiental basada en la eficiencia energética"]
[null,"Bogotá Mejor para Todos",39,"Ambiente sano para la equidad y disfrute del ciudadano","Eje Transversal 3 Sostenibilidad Ambiental basada en la eficiencia energética"]
[null,"Bogotá Mejor para Todos",40,"Gestión de la huella ambiental urbana","Eje Transversal 3 Sostenibilidad Ambiental basada en la eficiencia energética"]
[null,"Bogotá Mejor para Todos",41,"Desarrollo rural sostenible","Eje Transversal 3 Sostenibilidad Ambiental basada en la eficiencia energética"]
[null,"Bogotá Mejor para Todos",42,"Transparencia, gestión pública y servicio a la ciudadanía","Eje Transversal 4 Gobierno Legitimo, Fortalecimiento Local y Eficiencia"]
[null,"Bogotá Mejor para Todos",43,"Modernización institucional","Eje Transversal 4 Gobierno Legitimo, Fortalecimiento Local y Eficiencia"]
[null,"Bogotá Mejor para Todos",44,"Gobierno y ciudadanía digital","Eje Transversal 4 Gobierno Legitimo, Fortalecimiento Local y Eficiencia"]
[null,"Bogotá Mejor para Todos",45,"Gobernanza e influencia local, regional e internacional","Eje Transversal 4 Gobierno Legitimo, Fortalecimiento Local y Eficiencia"]
["Acuerdo 761 2020","Un Nuevo Contrato Social y Ambiental para la Bogotá del Siglo XXI","1.","Subsidios y transferencias para la equidad","Propósito 1: Hacer un nuevo contrato social para incrementar la inclusión social, productiva y política"]
["Pag. 51","Un Nuevo Contrato Social y Ambiental para la Bogotá del Siglo XXI","2.","Igualdad de oportunidades y desarrollo de capacidades para las mujeres","Propósito 1: Hacer un nuevo contrato social para incrementar la inclusión social, productiva y política"]
[null,"Un Nuevo Contrato Social y Ambiental para la Bogotá del Siglo XXI","3.","Movilidad social integral","Propósito 1: Hacer un nuevo contrato social para incrementar la inclusión social, productiva y política"]
[null,"Un Nuevo Contrato Social y Ambiental para la Bogotá del Siglo XXI","4.","Prevención de la exclusión por razones étnicas, religiosas, sociales, políticas y de orientación sexual","Propósito 1: Hacer un nuevo contrato social para incrementar la inclusión social, productiva y política"]
[null,"Un Nuevo Contrato Social y Ambiental para la Bogotá del Siglo XXI","5.","Promoción de la igualdad, el desarrollo de capacidades y el reconocimiento de las mujeres","Propósito 1: Hacer un nuevo contrato social para incrementar la inclusión social, productiva y política"]
[null,"Un Nuevo Contrato Social y Ambiental para la Bogotá del Siglo XXI","6.","Sistema Distrital de Cuidado","Propósito 1: Hacer un nuevo contrato social para incrementar la inclusión social, productiva y política"]
[null,"Un Nuevo Contrato Social y Ambiental para la Bogotá del Siglo XXI","7.","Mejora de la gestión de instituciones de salud","Propósito 1: Hacer un nuevo contrato social para incrementar la inclusión social, productiva y política"]
[null,"Un Nuevo Contrato Social y Ambiental para la Bogotá del Siglo XXI","8.","Prevención y atención de maternidad temprana","Propósito 1: Hacer un nuevo contrato social para incrementar la inclusión social, productiva y política"]
[null,"Un Nuevo Contrato Social y Ambiental para la Bogotá del Siglo XXI","9.","Prevención y cambios para mejorar la salud de la población","Propósito 1: Hacer un nuevo contrato social para incrementar la inclusión social, productiva y política"]
[null,"Un Nuevo Contrato Social y Ambiental para la Bogotá del Siglo XXI","10.","Salud para la vida y el bienestar","Propósito 1: Hacer un nuevo contrato social para incrementar la inclusión social, productiva y política"]
[null,"Un Nuevo Contrato Social y Ambiental para la Bogotá del Siglo XXI","11.","Salud y bienestar para niñas y niños","Propósito 1: Hacer un nuevo contrato social para incrementar la inclusión social, productiva y política"]
[null,"Un Nuevo Contrato Social y Ambiental para la Bogotá del Siglo XXI","12.","Educación inicial: Bases sólidas para la vida.","Propósito 1: Hacer un nuevo contrato social para incrementar la inclusión social, productiva y política"]
[null,"Un Nuevo Contrato Social y Ambiental para la Bogotá del Siglo XXI","13.","Educación para todos y todas: acceso y permanencia con equidad y énfasis en educación rural","Propósito 1: Hacer un nuevo contrato social para incrementar la inclusión social, productiva y política"]
[null,"Un Nuevo Contrato Social y Ambiental para la Bogotá del Siglo XXI","14.","Formación integral: más y mejor tiempo en los colegios","Propósito 1: Hacer un nuevo contrato social para incrementar la inclusión social, productiva y política"]
[null,"Un Nuevo Contrato Social y Ambiental para la Bogotá del Siglo XXI","15.","Plan Distrital de Lectura, Escritura y Oralidad: \"Leer para la vida\"","Propósito 1: Hacer un nuevo contrato social para incrementar la inclusión social, productiva y política"]
[null,"Un Nuevo Contrato Social y Ambiental para la Bogotá del Siglo XXI","16.","Transformación pedagógica y mejoramiento de la gestión educativa. Es con los maestros y maestras.","Propósito 1: Hacer un nuevo contrato social para incrementar la inclusión social, productiva y política"]
[null,"Un Nuevo Contrato Social y Ambiental para la Bogotá del Siglo XXI","17.","Jóvenes con capacidades: Proyecto de vida para la ciudadanía, la innovación y el trabajo del siglo XXI","Propósito 1: Hacer un nuevo contrato social para incrementar la inclusión social, productiva y política"]
[null,"Un Nuevo Contrato Social y Ambiental para la Bogotá del Siglo XXI","18.","Cierre de brechas para la inclusión productiva urbano rural","Propósito 1: Hacer un nuevo contrato social para incrementar la inclusión social, productiva y política"]
[null,"Un Nuevo Contrato Social y Ambiental para la Bogotá del Siglo XXI","19.","Vivienda y entornos dignos en el territorio urbano y rural","Propósito 1: Hacer un nuevo contrato social para incrementar la inclusión social, productiva y política"]
[null,"Un Nuevo Contrato Social y Ambiental para la Bogotá del Siglo XXI","20.","Bogotá, referente en cultura, deporte, recreación y actividad física, con parques para el desarrollo y la salud","Propósito 1: Hacer un nuevo contrato social para incrementar la inclusión social, productiva y política"]
[null,"Un Nuevo Contrato Social y Ambiental para la Bogotá del Siglo XXI","21.","Creación y vida cotidiana: Apropiación ciudadana del arte, la cultura y el patrimonio, para la democracia cultural","Propósito 1: Hacer un nuevo contrato social para incrementar la inclusión social, productiva y política"]
[null,"Un Nuevo Contrato Social y Ambiental para la Bogotá del Siglo XXI","22.","Transformación cultural para la conciencia ambiental y el cuidado de la fauna doméstica","Propósito 1: Hacer un nuevo contrato social para incrementar la inclusión social, productiva y política"]
[null,"Un Nuevo Contrato Social y Ambiental para la Bogotá del Siglo XXI","23.","Bogotá rural","Propósito 1: Hacer un nuevo contrato social para incrementar la inclusión social, productiva y política"]
[null,"Un Nuevo Contrato Social y Ambiental para la Bogotá del Siglo XXI","24.","Bogotá región emprendedora e innovadora","Propósito 1: Hacer un nuevo contrato social para incrementar la inclusión social, productiva y política"]
[null,"Un Nuevo Contrato Social y Ambiental para la Bogotá del Siglo XXI","25.","Bogotá región productiva y competitiva","Propósito 1: Hacer un nuevo contrato social para incrementar la inclusión social, productiva y política"]
[null,"Un Nuevo Contrato Social y Ambiental para la Bogotá del Siglo XXI","26.","Bogotá - región, el mejor destino para visitar","Propósito 1: Hacer un nuevo contrato social para incrementar la inclusión social, productiva y política"]
[null,"Un Nuevo Contrato Social y Ambiental para la Bogotá del Siglo XXI","27.","Cambio cultural para la gestión de la crisis climática","Propósito 2 : Cambiar Nuestros Hábitos de Vida para Reverdecer a Bogotá y Adaptarnos y Mitigar la Crisis Climática"]
[null,"Un Nuevo Contrato Social y Ambiental para la Bogotá del Siglo XXI","28.","Bogotá protectora de sus recursos naturales","Propósito 2 : Cambiar Nuestros Hábitos de Vida para Reverdecer a Bogotá y Adaptarnos y Mitigar la Crisis Climática"]
[null,"Un Nuevo Contrato Social y Ambiental para la Bogotá del Siglo XXI","29.","Asentamientos y entornos protectores","Propósito 2 : Cambiar Nuestros Hábitos de Vida para Reverdecer a Bogotá y Adaptarnos y Mitigar la Crisis Climática"]
[null,"Un Nuevo Contrato Social y Ambiental para la Bogotá del Siglo XXI","30.","Eficiencia en la atención de emergencias","Propósito 2 : Cambiar Nuestros Hábitos de Vida para Reverdecer a Bogotá y Adaptarnos y Mitigar la Crisis Climática"]
[null,"Un Nuevo Contrato Social y Ambiental para la Bogotá del Siglo XXI","31."," Protección y valoración del patrimonio tangible e intangible en Bogotá y la región","Propósito 2 : Cambiar Nuestros Hábitos de Vida para Reverdecer a Bogotá y Adaptarnos y Mitigar la Crisis Climática"]
[null,"Un Nuevo Contrato Social y Ambiental para la Bogotá del Siglo XXI","32.","Revitalización urbana para la competitividad","Propósito 2 : Cambiar Nuestros Hábitos de Vida para Reverdecer a Bogotá y Adaptarnos y Mitigar la Crisis Climática"]
[null,"Un Nuevo Contrato Social y Ambiental para la Bogotá del Siglo XXI","33.","Más árboles y más y mejor espacio público","Propósito 2 : Cambiar Nuestros Hábitos de Vida para Reverdecer a Bogotá y Adaptarnos y Mitigar la Crisis Climática"]
[null,"Un Nuevo Contrato Social y Ambiental para la Bogotá del Siglo XXI","34.","Bogotá protectora de los animales","Propósito 2 : Cambiar Nuestros Hábitos de Vida para Reverdecer a Bogotá y Adaptarnos y Mitigar la Crisis Climática"]
[null,"Un Nuevo Contrato Social y Ambiental para la Bogotá del Siglo XXI","35.","Manejo y prevención de contaminación","Propósito 2 : Cambiar Nuestros Hábitos de Vida para Reverdecer a Bogotá y Adaptarnos y Mitigar la Crisis Climática"]
[null,"Un Nuevo Contrato Social y Ambiental para la Bogotá del Siglo XXI","36.","Manejo y saneamiento de los cuerpos de agua","Propósito 2 : Cambiar Nuestros Hábitos de Vida para Reverdecer a Bogotá y Adaptarnos y Mitigar la Crisis Climática"]
[null,"Un Nuevo Contrato Social y Ambiental para la Bogotá del Siglo XXI","37.","Provisión y mejoramiento de servicios públicos","Propósito 2 : Cambiar Nuestros Hábitos de Vida para Reverdecer a Bogotá y Adaptarnos y Mitigar la Crisis Climática"]
[null,"Un Nuevo Contrato Social y Ambiental para la Bogotá del Siglo XXI","38.","Ecoeficiencia, reciclaje, manejo de residuos e inclusión de la población recicladora","Propósito 2 : Cambiar Nuestros Hábitos de Vida para Reverdecer a Bogotá y Adaptarnos y Mitigar la Crisis Climática"]
[null,"Un Nuevo Contrato Social y Ambiental para la Bogotá del Siglo XXI","39.","Bogotá territorio de paz y atención integral a las víctimas del conflicto armado","Propósito 3: Inspirar confianza y legitimidad para vivir sin miedo y ser epicentro de cultura ciudadana, paz y reconciliación"]
[null,"Un Nuevo Contrato Social y Ambiental para la Bogotá del Siglo XXI","40.","Más mujeres viven una vida libre de violencias, se sienten seguras y acceden con confianza al sistema de justicia","Propósito 3: Inspirar confianza y legitimidad para vivir sin miedo y ser epicentro de cultura ciudadana, paz y reconciliación"]
[null,"Un Nuevo Contrato Social y Ambiental para la Bogotá del Siglo XXI","41.","Sin machismo ni violencias contra las mujeres, las niñas y los niños","Propósito 3: Inspirar confianza y legitimidad para vivir sin miedo y ser epicentro de cultura ciudadana, paz y reconciliación"]
[null,"Un Nuevo Contrato Social y Ambiental para la Bogotá del Siglo XXI","42.","Conciencia y cultura ciudadana para la seguridad, la convivencia y la construcción de confianza","Propósito 3: Inspirar confianza y legitimidad para vivir sin miedo y ser epicentro de cultura ciudadana, paz y reconciliación"]
[null,"Un Nuevo Contrato Social y Ambiental para la Bogotá del Siglo XXI","43.","Cultura ciudadana para la confianza, la convivencia y la participación desde la vida cotidiana","Propósito 3: Inspirar confianza y legitimidad para vivir sin miedo y ser epicentro de cultura ciudadana, paz y reconciliación"]
[null,"Un Nuevo Contrato Social y Ambiental para la Bogotá del Siglo XXI","44.","Autoconciencia, respeto y cuidado en el espacio público","Propósito 3: Inspirar confianza y legitimidad para vivir sin miedo y ser epicentro de cultura ciudadana, paz y reconciliación"]
[null,"Un Nuevo Contrato Social y Ambiental para la Bogotá del Siglo XXI","45.","Espacio público más seguro y construido colectivamente","Propósito 3: Inspirar confianza y legitimidad para vivir sin miedo y ser epicentro de cultura ciudadana, paz y reconciliación"]
[null,"Un Nuevo Contrato Social y Ambiental para la Bogotá del Siglo XXI","46.","Atención a jóvenes y adultos infractores con impacto en su proyecto de vida","Propósito 3: Inspirar confianza y legitimidad para vivir sin miedo y ser epicentro de cultura ciudadana, paz y reconciliación"]
[null,"Un Nuevo Contrato Social y Ambiental para la Bogotá del Siglo XXI","47.","Calidad de Vida y Derechos de la Población privada de la libertad","Propósito 3: Inspirar confianza y legitimidad para vivir sin miedo y ser epicentro de cultura ciudadana, paz y reconciliación"]
[null,"Un Nuevo Contrato Social y Ambiental para la Bogotá del Siglo XXI","48.","Plataforma institucional para la seguridad y justicia","Propósito 3: Inspirar confianza y legitimidad para vivir sin miedo y ser epicentro de cultura ciudadana, paz y reconciliación"]
[null,"Un Nuevo Contrato Social y Ambiental para la Bogotá del Siglo XXI","49.","Movilidad segura, sostenible y accesible","Propósito 4: Hacer de Bogotá Región un modelo de movilidad multimodal, incluyente y sostenible"]
[null,"Un Nuevo Contrato Social y Ambiental para la Bogotá del Siglo XXI","50.","Red de metros","Propósito 4: Hacer de Bogotá Región un modelo de movilidad multimodal, incluyente y sostenible"]
[null,"Un Nuevo Contrato Social y Ambiental para la Bogotá del Siglo XXI","51.","Gobierno Abierto","Propósito 5: Construir Bogotá - Región con gobierno abierto, transparente y ciudadanía consciente"]
[null,"Un Nuevo Contrato Social y Ambiental para la Bogotá del Siglo XXI","52.","Integración regional, distrital y local","Propósito 5: Construir Bogotá - Región con gobierno abierto, transparente y ciudadanía consciente"]
[null,"Un Nuevo Contrato Social y Ambiental para la Bogotá del Siglo XXI","53.","Información para la toma de decisiones","Propósito 5: Construir Bogotá - Región con gobierno abierto, transparente y ciudadanía consciente"]
[null,"Un Nuevo Contrato Social y Ambiental para la Bogotá del Siglo XXI","54.","Transformación digital y gestión de TIC para un territorio inteligente","Propósito 5: Construir Bogotá - Región con gobierno abierto, transparente y ciudadanía consciente"]
[null,"Un Nuevo Contrato Social y Ambiental para la Bogotá del Siglo XXI","55.","Fortalecimiento de cultura ciudadana y su institucionalidad","Propósito 5: Construir Bogotá - Región con gobierno abierto, transparente y ciudadanía consciente"]
[null,"Un Nuevo Contrato Social y Ambiental para la Bogotá del Siglo XXI","56.","Gestión pública efectiva","Propósito 5: Construir Bogotá - Región con gobierno abierto, transparente y ciudadanía consciente"]
[null,"Un Nuevo Contrato Social y Ambiental para la Bogotá del Siglo XXI","57.","Gestión pública local","Propósito 5: Construir Bogotá - Región con gobierno abierto, transparente y ciudadanía consciente"]